Workbook

Sheet AER only (hidden)
B1: Data in these columns used for data validation and database purposes.
B2: Date last modified: | C2: 2017-01-16 | D2: added (Albury and Victora) for AGN
C3: 2016-10-17 | D3: updated TransGrid's correct legal name, corrected TasNetworks (T) to June financial year
C4: 2017-02-01 | D4: inserted Power and Water, added NRs (dms_FeederCat_1 and dms_FeederCat_2)
C5: 2017-03-03 | D5: inserted AEMO as a business | AB5: FOR ELECTRICITY BUSINESSES ONLY
C6: 2018-03-28 | D6: major changes to accommodate STPIS
C7: Template Version | D7: 5 | AB7: Feeder Types | AF7: TasNetworks (D) | AG7: MAIFI flag | AH7: Feeder Names
AB8: CBD | AC8: Urban | AD8: Short rural | AE8: long rural | AF8: EXTRA
B9: dms_TradingName_List | C9: dms_TradingNameFull_List | D9: dms_ABN_List | E9: dms_JurisdictionList | F9: dms_Sector_List | G9: dms_Segment_List | H9: dms_FormControl_List | I9: dms_RPT_List | J9: dms_RPTMonth_List | K9: dms_CRCPlength_List | L9: dms_FRCPlength_List | M9: dms_663_List | N9: dms_DeterminationRef_List | O9: dms_Addr1_List | P9: dms_Addr2_List | Q9: dms_Suburb_List | R9: dms_State_List | S9: dms_PostCode_List | T9: dms_PAddr1_List | U9: dms_PAddr2_List | V9: dms_PSuburb_List | W9: dms_PState_List | X9: dms_PPostCode_List | Y9: dms_ContactName1_List | Z9: dms_ContactPh1_List | AA9: dms_ContactEmail_List | AB9: dms_CBD_flag | AC9: dms_Urban_flag | AD9: dms_ShortRural_flag | AE9: dms_LongRural_flag | AF9: dms_FeederType_5_flag | AG9: dms_MAIFI_flag_List | AH9: dms_FeederName_1 | AI9: dms_FeederName_2 | AJ9: dms_FeederName_3 | AK9: dms_FeederName_4 | AL9: dms_FeederName_5 | AM9: Column1
B10: ActewAGL Distribution | C10: ActewAGL Distribution | D10: 76670568688 | E10: ACT | F10: Electricity | G10: Distribution | H10: Revenue cap | I10: Financial | J10: June | K10: 5 | L10: 5 | M10: 5 | N10: 2014-19 Distribution Determination | O10: 40 Bunda Street | Q10: CANBERRA | R10: ACT | S10: 2600 | T10: GPO BOX 366 | V10: CANBERRA | W10: ACT | X10: 2601 | Y10: Robert Walker | Z10: 02 6248 3847 | AA10: robert.walker@actewagle.com.au | AB10: NO | AC10: YES | AD10: YES | AE10: NO | AF10: NO | AH10: CBD | AI10: Urban | AJ10: Short rural | AK10: Long rural | AM10: ActewAGL Distribution
B11: ActewAGL Distribution (Tx Assets) | C11: ActewAGL Distribution (Tx Assets) | D11: 76670568688 | E11: ACT | F11: Electricity | G11: Distribution | H11: Revenue cap | I11: Financial | J11: June | K11: 5 | L11: 5 | M11: 5 | N11: distribution determination | O11: 40 Bunda Street | Q11: CANBERRA | R11: ACT | S11: 2600 | T11: GPO BOX 366 | V11: CANBERRA | W11: ACT | X11: 2601 | Y11: Robert Walker | Z11: 02 6248 3847 | AA11: robert.walker@actewagle.com.au | AB11: NO | AC11: YES | AD11: YES | AE11: NO | AF11: NO | AH11: CBD | AI11: Urban | AJ11: Short rural | AK11: Long rural | AM11: ActewAGL Distribution (Tx Assets)
B12: ActewAGL Gas | C12: ActewAGL Gas | D12: 76670568688 | E12: ACT | F12: Gas | G12: Distribution | H12: Weighted average price cap | I12: Financial | J12: June | K12: 5 | L12: 5 | M12: x | O12: 40 Bunda Street | Q12: CANBERRA | R12: ACT | S12: 2600 | T12: GPO BOX 366 | V12: CANBERRA | W12: ACT | X12: 2601 | Y12: Philip Deamer | Z12: 02 6248 3438 | AA12: GasAAReview@actewagl.com.au | AH12: CBD | AI12: Urban | AJ12: Short rural | AK12: Long rural | AM12: ActewAGL Gas
B13: AEMO | C13: Australian Energy Market Operator Ltd | D13: 94072010327 | E13: Vic | F13: Electricity | G13: Transmission | H13: - | I13: Financial | J13: March | K13: 5 | L13: 5 | M13: x | N13: - | O13: Level 22 | P13: 530 Collins Street | Q13: MELBOURNE | R13: VIC | S13: 3000 | T13: GPO Box 2008 | V13: MELBOURNE | W13: VIC | X13: 3001 | AB13: n/a | AC13: n/a | AD13: n/a | AE13: n/a | AF13: n/a | AH13: CBD | AI13: Urban | AJ13: Short rural | AK13: Long rural | AM13: AEMO
B14: AGN (Albury and Victoria) | C14: Australian Gas Networks Limited (reporting data for Albury and Victoria) | D14: 19078551685 | E14: Vic | F14: Gas | G14: Distribution | H14: Weighted average price cap | I14: Calendar | J14: December | K14: 5 | L14: 5 | M14: x | O14: Level 6 | P14: 400 King William Street | Q14: ADELAIDE | R14: SA | S14: 5000 | T14: PO Box 6468 | U14: Halifax Street | V14: ADELAIDE | W14: SA | X14: 5000 | Y14: Craig de Laine | Z14: 08 8418 1129 | AA14: craig.delaine@agn.com.au | AB14: n/a | AC14: n/a | AD14: n/a | AE14: n/a | AF14: n/a | AH14: CBD | AI14: Urban | AJ14: Short rural | AK14: Long rural | AM14: AGN (Albury)
B15: AGN (Albury) | C15: Australian Gas Networks Limited (reporting data for Albury) | D15: 19078551685 | E15: Vic | F15: Gas | G15: Distribution | H15: Weighted average price cap | I15: Calendar | J15: December | K15: 5 | L15: 5 | M15: x | O15: Level 6 | P15: 400 King William Street | Q15: ADELAIDE | R15: SA | S15: 5000 | T15: PO Box 6468 | U15: Halifax Street | V15: ADELAIDE | W15: SA | X15: 5000 | Y15: Craig de Laine | Z15: 08 8418 1129 | AA15: craig.delaine@agn.com.au | AB15: n/a | AC15: n/a | AD15: n/a | AE15: n/a | AF15: n/a | AH15: CBD | AI15: Urban | AJ15: Short rural | AK15: Long rural
B16: AGN (SA) | C16: Australian Gas Networks Limited (reporting data for SA) | D16: 19078551685 | E16: SA | F16: Gas | G16: Distribution | H16: Weighted average price cap | I16: Financial | J16: June | K16: 5 | L16: 5 | M16: 5 | N16: distribution determination | O16: Level 6 | P16: 400 King William Street | Q16: ADELAIDE | R16: SA | S16: 5000 | T16: PO Box 6468 | U16: Halifax Street | V16: ADELAIDE | W16: SA | X16: 5000 | Y16: Craig de Laine | Z16: 08 8418 1129 | AA16: craig.delaine@agn.com.au | AB16: n/a | AC16: n/a | AD16: n/a | AE16: n/a | AF16: n/a | AH16: CBD | AI16: Urban | AJ16: Short rural | AK16: Long rural | AM16: AGN (SA)
B17: AGN (Victoria) | C17: Australian Gas Networks Limited (reporting data for Victoria) | D17: 19078551685 | E17: Vic | F17: Gas | G17: Distribution | H17: Weighted average price cap | I17: Calendar | J17: December | K17: 5 | L17: 5 | M17: x | O17: Level 6 | P17: 400 King William Street | Q17: ADELAIDE | R17: SA | S17: 5000 | T17: PO Box 6468 | U17: Halifax Street | V17: ADELAIDE | W17: SA | X17: 5000 | Y17: Craig de Laine | Z17: 08 8418 1129 | AA17: craig.delaine@agn.com.au | AB17: n/a | AC17: n/a | AD17: n/a | AE17: n/a | AF17: n/a | AH17: CBD | AI17: Urban | AJ17: Short rural | AK17: Long rural | AM17: AGN (Victoria)
B18: Amadeus | C18: APT Pipelines (NT) Pty Ltd | D18: 39009737393 | E18: NT | F18: Gas | G18: Transmission | H18: Weighted average price cap | I18: Financial | J18: June | K18: 5 | L18: 5 | M18: x | N18: n/a | O18: Level 19, HSBC Building | P18: 580 George Street | Q18: SYDNEY | R18: NSW | S18: 2000 | T18: Level 19, HSBC Building | U18: 580 George Street | V18: SYDNEY | W18: NSW | X18: 2000 | Y18: Alexandra Curran | Z18: 02 9275 0020 | AA18: alexandra.curran@apa.com.au | AB18: n/a | AC18: n/a | AD18: n/a | AE18: n/a | AF18: n/a | AH18: CBD | AI18: Urban | AJ18: Short rural | AK18: Long rural | AM18: Amadeus
B19: APA GasNet | C19: APA GasNet Australia (Operations) Pty Ltd | D19: 065083009 | E19: Vic | F19: Gas | G19: Transmission | H19: Weighted average price cap | I19: Calendar | J19: December | K19: 5 | L19: 5 | M19: x | O19: Level 19, HSBC Building | P19: 580 George Street | Q19: SYDNEY | R19: NSW | S19: 2000 | T19: PO Box R41 | V19: ROYAL EXCHANGE | W19: NSW | X19: 1225 | Y19: Alexandra Curran | Z19: 02 9275 0020 | AA19: alexandra.curran@apa.com.au | AB19: n/a | AC19: n/a | AD19: n/a | AE19: n/a | AF19: n/a | AH19: CBD | AI19: Urban | AJ19: Short rural | AK19: Long rural | AM19: APA GasNet
B20: Ausgrid | C20: Ausgrid | D20: 78508211731 | E20: NSW | F20: Electricity | G20: Distribution | H20: Revenue cap | I20: Financial | J20: June | K20: 5 | L20: 5 | M20: 5 | N20: 2014-19 Distribution Determination | O20: 570 George St | Q20: SYDNEY | R20: NSW | S20: 2000 | T20: GPO Box 4009 | V20: SYDNEY | W20: NSW | X20: 2001 | Y20: John Thomson | Z20: 02 9269 2312 | AA20: john.thomson@ausgrid.com.au | AB20: YES | AC20: YES | AD20: YES | AE20: YES | AF20: NO | AH20: CBD | AI20: Urban | AJ20: Short rural | AK20: Long rural | AM20: Ausgrid
B21: Ausgrid (Tx Assets) | C21: Ausgrid (Tx Assets) | D21: 67505337385 | E21: NSW | F21: Electricity | G21: Distribution | H21: Revenue cap | I21: Financial | J21: June | K21: 5 | L21: 5 | M21: 5 | N21: distribution determination | O21: 570 George St | Q21: SYDNEY | R21: NSW | S21: 2000 | T21: GPO Box 4009 | V21: SYDNEY | W21: NSW | X21: 2001 | Y21: John Thomson | Z21: 02 9269 2312 | AA21: john.thomson@ausgrid.com.au | AB21: YES | AC21: YES | AD21: YES | AE21: YES | AF21: NO | AH21: CBD | AI21: Urban | AJ21: Short rural | AK21: Long rural | AM21: Ausgrid (Tx Assets)
B22: AusNet (D) | C22: AusNet Electricity Services Pty Ltd | D22: 91064651118 | E22: Vic | F22: Electricity | G22: Distribution | H22: Revenue cap | I22: Calendar | J22: December | K22: 5 | L22: 5 | M22: 2 | N22: 2016-20 Distribution Determination | O22: Level 32 | P22: 2 Southbank Boulevard | Q22: SOUTHBANK | R22: Vic | S22: 3006 | T22: Locked Bag 14051 | V22: MELBOURNE CITY MAIL CENTRE | W22: VIC | X22: 8001 | Y22: please provide contact details | AC22: YES | AD22: YES | AE22: YES | AF22: NO | AH22: CBD | AI22: Urban | AJ22: Short rural | AK22: Long rural | AM22: AusNet (D)
B23: AusNet (Gas) | C23: AusNet Gas Services | D23: 086015036 | E23: Vic | F23: Gas | G23: Distribution | H23: Weighted average price cap | I23: Calendar | J23: December | K23: 5 | L23: 5 | M23: X | O23: Level 19, HSBC Building | P23: 580 George Street | Q23: SYDNEY | R23: NSW | S23: 2000 | T23: PO Box R41 | V23: ROYAL EXCHANGE | W23: NSW | X23: 1225 | Y23: Alexandra Curran | Z23: 02 9275 0020 | AA23: alexandra.curran@apa.com.au | AB23: n/a | AC23: n/a | AD23: n/a | AE23: n/a | AF23: n/a | AH23: CBD | AI23: Urban | AJ23: Short rural | AK23: Long rural | AM23: AusNet (Gas)
B24: AusNet (T) | C24: Ausnet Services (Transmission) Ltd | D24: 48116124362 | E24: Vic | F24: Electricity | G24: Transmission | H24: Revenue cap | I24: Financial | J24: March | K24: 5 | L24: 5 | M24: 2 | N24: transmission determination | O24: Level 32 | P24: 2 Southbank Boulevard | Q24: SOUTHBANK | R24: Vic | S24: 3006 | T24: Locked Bag 14051 | V24: MELBOURNE CITY MAIL CENTRE | W24: Vic | X24: 8001 | Y24: Clare Thompson | Z24: 03 9695 6670 | AA24: clare.e.thompson@ausnetservices.com.au | AB24: n/a | AC24: n/a | AD24: n/a | AE24: n/a | AF24: n/a | AH24: CBD | AI24: Urban | AJ24: Short rural | AK24: Long rural | AM24: AusNet (T)
B25: Australian Distribution Co. | C25: Australian Distribution Co. | D25: 11222333444 | E25: - | F25: Electricity | G25: Distribution | H25: Revenue cap | I25: Financial | J25: June | K25: 5 | L25: 5 | M25: 2 | N25: distribution determination | O25: 123 Straight Street | Q25: SYDNEY | R25: NSW | S25: 2000 | T25: PO Box 123 | V25: SYDNEY | W25: NSW | X25: 2000 | Y25: Bob Smith | Z25: 02 1234 5678 | AA25: bob@auselec.net.au | AB25: n/a | AC25: n/a | AD25: n/a | AE25: n/a | AF25: NO | AH25: CBD | AI25: Urban | AJ25: Short rural | AK25: Long rural | AM25: Australian Distribution Co.
B26: Australian Distribution Co. (Vic) | C26: Australian Distribution Co. (Victoria) | D26: 11222333444 | E26: Vic | F26: Electricity | G26: Distribution | H26: Revenue cap | I26: Calendar | J26: December | K26: 5 | L26: 5 | M26: 2 | N26: distribution determination | O26: 123 Straight Street | Q26: MELBOURNE | R26: Vic | S26: 3000 | T26: PO Box 123 | V26: MELBOURNE | W26: VIC | X26: 3000 | Y26: Bob Smith | Z26: 02 1234 5678 | AA26: bob@auselec.net.au | AB26: n/a | AC26: n/a | AD26: n/a | AE26: n/a | AF26: NO | AH26: CBD | AI26: Urban | AJ26: Short rural | AK26: Long rural | AM26: Australian Distribution Co. (Vic)
B27: Australian Transmission Co. | C27: Australian Transmission Co. | D27: 11222333444 | E27: - | F27: Electricity | G27: Transmission | H27: Revenue cap | I27: Financial | J27: June | K27: 5 | L27: 5 | M27: 5 | N27: transmission determination | O27: 123 Straight Street | Q27: SYDNEY | R27: NSW | S27: 2000 | T27: PO Box 123 | V27: SYDNEY | W27: NSW | X27: 2000 | Y27: Bob Smith | Z27: 02 1234 5678 | AA27: bob@auselec.net.au | AB27: n/a | AC27: n/a | AD27: n/a | AE27: n/a | AF27: NO | AH27: CBD | AI27: Urban | AJ27: Short rural | AK27: Long rural | AM27: Australian Transmission Co.
B28: Central Ranges Pipeline (D) | C28: Central Ranges Pipeline Pty Ltd | D28: 108218355 | E28: NSW | F28: Gas | G28: Distribution | H28: Weighted average price cap | I28: Financial | J28: June | K28: 15 | L28: 5 | M28: 5 | N28: distribution determination | O28: Level 19 | P28: 580 George Street | Q28: SYDNEY | R28: NSW | S28: 2000 | T28: PO Box R41 | V28: ROYAL EXCHANGE | W28: NSW | X28: 1225 | Y28: Scott Young | Z28: 02 9275 0031 | AA28: scott.young@apa.com.au | AB28: n/a | AC28: n/a | AD28: n/a | AE28: n/a | AF28: n/a | AH28: CBD | AI28: Urban | AJ28: Short rural | AK28: Long rural
B29: Central Ranges Pipeline (T) | C29: Central Ranges Pipeline Pty Ltd | D29: 108218355 | E29: NSW | F29: Gas | G29: Distribution | H29: Weighted average price cap | I29: Financial | J29: June | K29: 14 | L29: 5 | M29: 5 | N29: transmission determination | O29: Level 19 | P29: 580 George Street | Q29: SYDNEY | R29: NSW | S29: 2000 | T29: PO Box R41 | V29: ROYAL EXCHANGE | W29: NSW | X29: 1225 | Y29: Scott Young | Z29: 02 9275 0031 | AA29: scott.young@apa.com.au | AB29: n/a | AC29: n/a | AD29: n/a | AE29: n/a | AF29: n/a | AH29: CBD | AI29: Urban | AJ29: Short rural | AK29: Long rural
B30: CitiPower | C30: CitiPower | D30: 76064651056 | E30: Vic | F30: Electricity | G30: Distribution | H30: Revenue cap | I30: Calendar | J30: December | K30: 5 | L30: 5 | M30: 2 | N30: 2016-20 Distribution Determination | O30: 40 Market Street | Q30: MELBOURNE | R30: Vic | S30: 3000 | T30: Locked Bag 14090 | V30: MELBOURNE | W30: VIC | X30: 8001 | Y30: Hannah Williams | Z30: 03 9683 4088 | AA30: hwilliams@powercor.com.au | AB30: YES | AC30: YES | AD30: NO | AE30: NO | AF30: NO | AH30: CBD | AI30: Urban | AJ30: Short rural | AK30: Long rural | AM30: CitiPower
B31: Directlink | C31: Directlink | D31: 16779340889 | E31: Qld | F31: Electricity | G31: Transmission | H31: Revenue cap | I31: Financial | J31: June | K31: 9 | L31: 5 | M31: 5 | N31: transmission determination | O31: Level 19, HSBC Building | P31: 580 George Street | Q31: SYDNEY | R31: NSW | S31: 2000 | T31: PO Box R41 | V31: ROYAL EXCHANGE | W31: NSW | X31: 1225 | Y31: Scott Young | Z31: 02 9275 0031 | AA31: scott.young@apa.com.au | AB31: n/a | AC31: n/a | AD31: n/a | AE31: n/a | AF31: n/a | AH31: CBD | AI31: Urban | AJ31: Short rural | AK31: Long rural | AM31: Directlink
B32: ElectraNet | C32: ElectraNet | D32: 41094482416 | E32: SA | F32: Electricity | G32: Transmission | H32: Revenue cap | I32: Financial | J32: June | K32: 5 | L32: 5 | M32: 5 | N32: transmission determination | O32: 52-55 East Terrace | P32: Rymill Park | Q32: ADELAIDE | R32: SA | S32: 5000 | T32: PO Box 7096 | U32: Hutt Street Post Office | V32: ADELAIDE | W32: SA | X32: 5000 | Y32: Bill Jackson | Z32: 08 8404 7969 | AA32: jackson.bill@electranet.com.au | AB32: n/a | AC32: n/a | AD32: n/a | AE32: n/a | AF32: n/a | AH32: CBD | AI32: Urban | AJ32: Short rural | AK32: Long rural | AM32: ElectraNet
B33: Endeavour Energy | C33: Endeavour Energy | D33: 11247365823 | E33: NSW | F33: Electricity | G33: Distribution | H33: Revenue cap | I33: Financial | J33: June | K33: 5 | L33: 5 | M33: 5 | N33: 2014-19 Distribution Determination | O33: 51 Huntingwood Drive | Q33: HUNTINGWOOD | R33: NSW | S33: 2148 | T33: PO Box 811 | V33: SEVEN HILLS | W33: NSW | X33: 1730 | Y33: Jon Hocking | Z33: 02 9853 4386 / 0407 348 156 | AA33: Jon.Hocking@Endeavourenergy.com.au | AB33: NO | AC33: YES | AD33: YES | AE33: YES | AF33: NO | AH33: CBD | AI33: Urban | AJ33: Short rural | AK33: Long rural | AM33: Endeavour Energy
B34: Energex | C34: Energex | D34: 40078849055 | E34: Qld | F34: Electricity | G34: Distribution | H34: Revenue cap | I34: Financial | J34: June | K34: 5 | L34: 5 | M34: 5 | N34: 2015-20 Distribution Determination | O34: 26 Reddacliff Street | Q34: NEWSTEAD | R34: Qld | S34: 4006 | T34: 26 Reddacliff Street | V34: NEWSTEAD | W34: QLD | X34: 4006 | Y34: Nicola Roscoe | Z34: 07 3664 5891 | AA34: nicolaroscoe@energex.com.au | AB34: YES | AC34: YES | AD34: YES | AE34: NO | AF34: NO | AH34: CBD | AI34: Urban | AJ34: Short rural | AK34: Long rural | AM34: Energex
B35: Ergon Energy | C35: Ergon Energy | D35: 50087646062 | E35: Qld | F35: Electricity | G35: Distribution | H35: Revenue cap | I35: Financial | J35: June | K35: 5 | L35: 5 | M35: 5 | N35: 2015-20 Distribution Determination | O35: 22 Walker Street | Q35: TOWNSVILLE | R35: Qld | S35: 4810 | T35: Po Box 264 | V35: FORTITUDE VALLEY | W35: QLD | X35: 4006 | Y35: Jenny Doyle, Group Manager Regulatory Affairs | Z35: (07) 3851 6416 | AA35: jenny.doyle@ergon.com.au | AB35: NO | AC35: YES | AD35: YES | AE35: YES | AF35: NO | AH35: CBD | AI35: Urban | AJ35: Short rural | AK35: Long rural | AM35: Ergon Energy
B36: Essential Energy | C36: Essential Energy | D36: 37428185226 | E36: NSW | F36: Electricity | G36: Distribution | H36: Revenue cap | I36: Financial | J36: June | K36: 5 | L36: 5 | M36: 5 | N36: 2014-19 Distribution Determination | O36: 8 Buller Street | Q36: PORT MACQUARIE | R36: NSW | S36: 2444 | T36: PO Box 5730 | V36: PORT MACQUARIE | W36: NSW | X36: 2444 | Y36: Catherine Waddell | Z36: 02 6338 3553 | AA36: catherine.waddell@essentialenergy.com.au | AB36: NO | AC36: NO | AD36: YES | AE36: YES | AF36: NO | AH36: CBD | AI36: Urban | AJ36: Short rural | AK36: Long rural | AM36: Essential Energy
B37: Jemena Electricity | C37: Jemena Electricity | D37: 82064651083 | E37: Vic | F37: Electricity | G37: Distribution | H37: Revenue cap | I37: Calendar | J37: December | K37: 5 | L37: 5 | M37: 2 | N37: 2016-20 Distribution Determination | O37: Level 16 | P37: 567 Collins Street | Q37: MELBOURNE | R37: VIC | S37: 3000 | T37: PO Box 16182 | V37: MELBOURNE | W37: VIC | X37: 8001 | Y37: Matthew Serpell | Z37: 03 9173 8231 | AA37: matthew.serpell@jemena.com.au | AB37: NO | AC37: NO | AD37: YES | AE37: NO | AF37: NO | AH37: CBD | AI37: Urban | AJ37: Short rural | AK37: Long rural | AM37: Jemena Electricity
B38: JGN | C38: Jemena Gas Networks (NSW) Ltd | D38: 003 004 322 | E38: NSW | F38: Gas | G38: Distribution | H38: Weighted average price cap | I38: Financial | J38: June | K38: 5 | L38: 5 | Y38: please provide contact details | AB38: n/a | AC38: n/a | AD38: n/a | AE38: n/a | AF38: n/a | AH38: CBD | AI38: Urban | AJ38: Short rural | AK38: Long rural | AM38: JGN
B39: Multinet Gas | C39: Multinet Gas (DB No.1) Pty Ltd (ACN 086 026 986), Multinet Gas (DB No.2) Pty Ltd (ACN 086 230 122) | D39: 086026986 | E39: Vic | F39: Gas | G39: Distribution | H39: Weighted average price cap | I39: Calendar | J39: December | K39: 5 | L39: 5 | M39: x | O39: 43-45 Centreway | Q39: MT WAVERLEY | R39: Vic | S39: 3149 | Y39: Andrew Schille | Z39: 03 8846 9860 | AA39: andrew.schille@ue.com.au | AB39: n/a | AC39: n/a | AD39: n/a | AE39: n/a | AF39: n/a | AH39: CBD | AI39: Urban | AJ39: Short rural | AK39: Long rural | AM39: Multinet Gas
B40: Murraylink | C40: Murraylink | D40: 79181207909 | E40: SA | F40: Electricity | G40: Transmission | H40: Revenue cap | I40: Financial | J40: June | K40: 5 | L40: 5 | M40: 5 | N40: transmission determination | O40: Level 19 | P40: 580 George Street | Q40: SYDNEY | R40: NSW | S40: 2000 | T40: PO Box R41 | V40: ROYAL EXCHANGE | W40: NSW | X40: 1225 | Y40: Scott Young | Z40: 02 9275 0031 | AA40: scott.young@apa.com.au | AB40: n/a | AC40: n/a | AD40: n/a | AE40: n/a | AF40: n/a | AH40: CBD | AI40: Urban | AJ40: Short rural | AK40: Long rural | AM40: Murraylink
B41: Power and Water | C41: Power and Water Corporation | D41: 15947352360 | E41: NT | F41: Electricity | G41: Distribution | H41: Revenue cap | I41: Financial | J41: June | K41: 5 | L41: 5 | M41: x | N41: distribution determination | O41: GPO Box 1921 | Q41: DARWIN | R41: NT | S41: 801 | T41: GPO Box 1921 | V41: DARWIN | W41: NT | X41: 801 | Y41: Lucy Moon | Z41: 08 8924 5822 | AA41: Lucy.Moon@powerwater.com.au | AB41: YES | AC41: YES | AD41: YES | AE41: YES | AF41: NO | AH41: CBD | AI41: Urban | AJ41: Short rural | AK41: Long rural
B42: Powercor Australia | C42: Powercor Australia | D42: 89064651109 | E42: Vic | F42: Electricity | G42: Distribution | H42: Revenue cap | I42: Calendar | J42: December | K42: 5 | L42: 5 | M42: 2 | N42: 2016-20 Distribution Determination | O42: 40 Market Street | Q42: MELBOURNE | R42: Vic | S42: 3000 | T42: Locked bag 14090 | V42: MELBOURNE | W42: VIC | X42: 8001 | Y42: Hannah Williams | Z42: 03 9683 4088 | AA42: hwilliams@powercor.com.au | AD42: YES | AE42: YES | AF42: NO | AH42: CBD | AI42: Urban | AJ42: Short rural | AK42: Long rural | AM42: Powercor Australia
B43: Powerlink | C43: Queensland Electricity Transmission Corporation Limited trading as Powerlink Queensland | D43: 82078849233 | E43: Qld | F43: Electricity | G43: Transmission | H43: Revenue cap | I43: Financial | J43: June | K43: 5 | L43: 5 | M43: 5 | N43: transmission determination | O43: 33 Harold St | Q43: VIRGINIA | R43: Qld | S43: 4014 | T43: PO Box 1193 | V43: VIRGINIA | W43: QLD | X43: 4014 | Y43: Jennifer Harris | Z43: 07 3860 2667 | AA43: jharris@powerlink.com.au | AB43: n/a | AC43: n/a | AD43: n/a | AE43: n/a | AF43: n/a | AH43: CBD | AI43: Urban | AJ43: Short rural | AK43: Long rural | AM43: Powerlink
B44: Roma to Brisbane Pipeline | C44: APT Petroleum Pipelines Limited t/a Roma to Brisbane Pipeline | D44: 009 737 393 | E44: Qld | F44: Gas | G44: Transmission | H44: Weighted average price cap | I44: Financial | J44: June | K44: 5 | L44: 5 | M44: x | N44: n/a | O44: 580 George Street | Q44: SYDNEY | R44: NSW | S44: 2000 | T44: PO Box R41 | V44: ROYAL EXCHANGE | W44: NSW | X44: 1225 | Y44: Mark Allen | Z44: 02 9275 0010 | AA44: mark.allen@apa.com.au | AB44: n/a | AC44: n/a | AD44: n/a | AE44: n/a | AF44: n/a | AH44: CBD | AI44: Urban | AJ44: Short rural | AK44: Long rural | AM44: Roma to Brisbane Pipeline
B45: SA Power Networks | C45: SA Power Networks | D45: 13332330749 | E45: SA | F45: Electricity | G45: Distribution | H45: Revenue cap | I45: Financial | J45: June | K45: 5 | L45: 5 | M45: 5 | N45: 2015-20 Distribution Determination | O45: 1 Anzac Highway | Q45: KESWICK | R45: SA | S45: 5035 | T45: GPO Box 77 | V45: ADELAIDE | W45: SA | X45: 5000 | Y45: Richard Sibly | Z45: 08 8404 5613 | AA45: richard.sibly@sapowernetworks.com.au | AB45: NO | AC45: NO | AD45: YES | AE45: YES | AF45: NO | AH45: CBD | AI45: Urban | AJ45: Short rural | AK45: Long rural | AM45: SA Power Networks
B46: TasNetworks (D) | C46: TasNetworks (D) | D46: 24167357299 | E46: Tas | F46: Electricity | G46: Distribution | H46: Revenue cap | I46: Financial | J46: June | K46: 5 | L46: 5 | M46: 5 | N46: distribution determination | O46: 1-7 Maria Street | Q46: LENAH VALLEY | R46: Tas | S46: 7008 | T46: PO Box 606 | V46: MOONAH | W46: Tas | X46: 7009 | Y46: John Sayers | Z46: 03 6271 6469 | AA46: john.sayers@tasnetworks.com.au | AB46: YES | AC46: YES | AD46: YES | AE46: YES | AF46: YES | AH46: Critical Infrastructure | AI46: High density commercial | AJ46: Urban | AK46: High density rural | AL46: Low density rural | AM46: TasNetworks (D)
B47: TasNetworks (T) | C47: TasNetworks (T) | D47: 24167357299 | E47: Tas | F47: Electricity | G47: Transmission | H47: Revenue cap | I47: Financial | J47: June | K47: 5 | L47: 5 | M47: 5 | N47: transmission determination | O47: 1-7 Maria Street | Q47: LENAH VALLEY | R47: Tas | S47: 7008 | T47: PO Box 606 | V47: MOONAH | W47: Tas | X47: 7009 | Y47: John Sayers | Z47: 03 6271 6469 | AA47: john.sayers@tasnetworks.com.au | AB47: n/a | AC47: n/a | AD47: n/a | AE47: n/a | AF47: n/a | AH47: CBD | AI47: Urban | AJ47: Short rural | AK47: Long rural | AM47: TasNetworks (T)
B48: TransGrid | C48: NSW Electricity Networks Operations Pty Ltd trading as TransGrid | D48: 609169959 | E48: NSW | F48: Electricity | G48: Transmission | H48: Revenue cap | I48: Financial | J48: June | K48: 5 | L48: 4 | M48: 5 | N48: transmission determination | O48: 180 Thomas Street | Q48: SYDNEY | R48: NSW | S48: 2000 | T48: PO Box A1000 | V48: SYDNEY SOUTH | W48: NSW | X48: 1235 | Y48: Garrie Chubb | Z48: 0408 210 221 | AA48: garrie.chubb@transgrid.com.au | AB48: n/a | AC48: n/a | AD48: n/a | AE48: n/a | AF48: n/a | AH48: CBD | AI48: Urban | AJ48: Short rural | AK48: Long rural | AM48: TransGrid
B49: United Energy | C49: United Energy | D49: 70064651029 | E49: Vic | F49: Electricity | G49: Distribution | H49: Revenue cap | I49: Calendar | J49: December | K49: 5 | L49: 5 | M49: 2 | N49: 2016-20 Distribution Determination | O49: Level 3 | P49: 6 Nexus Court | Q49: MULGRAVE | R49: Vic | S49: 3149 | T49: PO Box 449 | V49: MOUNT WAVERLEY | W49: VIC | X49: 3170 | Y49: Mathew Abraham | Z49: 03 8846 9758 | AA49: mathew.abraham@ue.com.au | AB49: NO | AC49: NO | AD49: YES | AE49: NO | AF49: NO | AH49: CBD | AI49: Urban | AJ49: Short rural | AK49: Long rural | AM49: United Energy
B50: Western Power (D) | C50: Western Power (D) | D50: 18540492861 | E50: WA | F50: Electricity | G50: Distribution | H50: Revenue cap | I50: Financial | J50: June | K50: 12 | L50: 4 | M50: x | N50: distribution determination | O50: 363 Wellington Street | Q50: PERTH | R50: WA | S50: 6000 | T50: GPO Box L921 | V50: PERTH | W50: WA | X50: 6842 | Y50: Judy Hunter | Z50: 08 9326 6239 | AA50: judy.hunter@westernpower.com.au | AB50: NO | AC50: NO | AD50: YES | AE50: YES | AF50: NO | AG50: NO | AH50: CBD | AI50: Urban | AJ50: Short rural | AK50: Long rural | AM50: Western Power (D)
B51: Western Power (T) | C51: Western Power (T) | D51: 18540492861 | E51: WA | F51: Electricity | G51: Transmission | H51: Revenue cap | I51: Financial | J51: June | K51: 12 | L51: 4 | M51: x | N51: transmission determination | O51: 363 Wellington Street | Q51: PERTH | R51: WA | S51: 6000 | T51: GPO Box L921 | V51: PERTH | W51: WA | X51: 6842 | Y51: Judy Hunter | Z51: 08 9326 6239 | AA51: judy.hunter@westernpower.com.au | AB51: n/a | AC51: n/a | AD51: n/a | AE51: n/a | AF51: n/a | AH51: CBD | AI51: Urban | AJ51: Short rural | AK51: Long rural | AM51: Western Power (T)
Y54: For EB & Reset RINs only | AD54: For AARs only
B55: The Reg Year Ending (dms_RYE) must be set to the last year of the regulatory period. For forecast data is is usually (FRCP_y5) for actual it is a single year (CRY). For historical actual data the RYE will need to be set manually in the business details sheet by setting the dms_Multiyear_flag to 1 and putting the correct value in 'dms_Specified_FinalYear. See cells C67:C68 | G55: =IF(dms_RPT="financial",VALUE(LEFT(CRCP_y1,4)-1)&"-"&TEXT(VALUE(RIGHT(CRCP_y1,2)-1),"00"),VALUE(LEFT(CRCP_y1,4)-1)) -> 2014-15 | N55: Drop down selector box for CA & Reset RINs. | O55: For CA & Reset RINs only | Y55: for DNSP only | AD55: For DNSPs only | AJ55: Reason for interruption | AK55: dms_Reason_Interruption_Detailed | AL55: dms_Reason_Interruption | AM55: dms_STPIS_Exclusion_List
B56: dms_Model_List | C56: DELETE NR 'CRY' IF NOT AN ANNUAL RIN (EB, CA , ARR) | E56: dms_RYE_Formula_Result | N56: dms_0203_ProjectType | O56: dms_020303_01_UOM | P56: dms_020501_01_UOM | Q56: dms_020501_02_UOM | R56: dms_020501_03_UOM | S56: dms_020501_04_UOM | T56: dms_020603_01_UOM | U56: dms_020701_01_UOM | V56: dms_020701_02_UOM | W56: dms_040102_01_UOM | X56: dms_040102_04_UOM | Y56: dms_030601_01_UOM | Z56: dms_030601_02_UOM | AA56: dms_030701_01_UOM | AB56: dms_030702_01_UOM | AC56: dms_030703_01_UOM | AD56: dms_030605_UOM | AE56: dms_03060703_UOM | AJ56: Animal | AK56: Animal impact | AL56: Animal | AM56: Weather
B57: ARR | C57: ANNUAL REPORTING STATEMENT | E57: =LEFT(dms_SingleYear_FinalYear_Result,2)&RIGHT(dms_SingleYear_FinalYear_Result,2) -> 2018 | F57: =LEFT(dms_SingleYear_FinalYear_Result,2)&RIGHT(dms_SingleYear_FinalYear_Result,2) | H57: Formula errors are OK | N57: New line on new route - single circuit | O57: Circuit line length in km | P57: 0's | Q57: 0's | R57: 0's | S57: 0's | T57: 0's | U57: km | V57: km | W57: 0's | X57: days | Y57: minutes/customer | Z57: minutes/customer | AA57: Customer / km | AB57: % | AC57: km | AD57: number | AE57: number | AK57: Animal nesting/burrowing, etc and other | AL57: Asset failure | AM57: Equipment failure
B58: CA | C58: CATEGORY ANALYSIS | E58: =LEFT(dms_SingleYear_FinalYear_Result,2)&RIGHT(dms_SingleYear_FinalYear_Result,2) -> 2018 | F58: =LEFT(dms_SingleYear_FinalYear_Result,2)&RIGHT(dms_SingleYear_FinalYear_Result,2) | H58: Formula errors are OK | N58: New line on new route - dual circuit | O58: Circuit line length in km | P58: 0's | Q58: 0's | R58: 0's | S58: 0's | T58: 0's | U58: 0's | V58: 0's | W58: 0's | X58: 0's | Y58: minutes/customer | Z58: minutes/customer | AA58: MWh/customer | AB58: Number of spans | AD58: number | AE58: number | AK58: Other | AL58: Other | AM58: Operational error
B59: CPI | C59: CPI | N59: New line on new route - other | O59: Circuit line length in km | P59: MVA added | Q59: MVA added | R59: MVA added | S59: MVA added | T59: 0's | U59: km | V59: km | W59: 0's | X59: $0s | Y59: interruptions/customer | Z59: interruptions/customer | AA59: kVA / customer | AB59: Number of spans | AD59: number | AE59: number | AJ59: Asset failure | AK59: LV | AL59: Overloads | AM59: Vegetation
B60: EB | C60: ECONOMIC BENCHMARKING | E60: =LEFT(dms_SingleYear_FinalYear_Result,2)&RIGHT(dms_SingleYear_FinalYear_Result,2) -> 2018 | F60: =LEFT(dms_SingleYear_FinalYear_Result,2)&RIGHT(dms_SingleYear_FinalYear_Result,2) | H60: Formula errors are OK | N60: Line rebuild over existing route - single circuit | O60: Circuit line length in km | P60: 0's | Q60: 0's | R60: 0's | S60: 0's | T60: 0's | U60: km | V60: km | W60: $0s | X60: 0's | Y60: interruptions/customer | Z60: interruptions/customer | AB60: Number of spans | AD60: number | AE60: number | AK60: Distribution substation | AL60: Planned | AM60: Animals
B61: PTRM | C61: POST TAX REVENUE MODEL | E61: =LEFT(dms_MultiYear_FinalYear_Result,2)&RIGHT(dms_MultiYear_FinalYear_Result,2) -> 2025 | F61: =LEFT(dms_MultiYear_FinalYear_Result,2)&RIGHT(dms_MultiYear_FinalYear_Result,2) | N61: Line rebuild over existing route - dual circuit | O61: Number | P61: total spend $0s | Q61: total spend $0s | R61: total spend $0s | S61: total spend $0s | T61: (per cent) | U61: 0's | V61: 0's | AB61: Number of spans | AD61: number | AE61: (per cent) | AK61: HV | AL61: Network business | AM61: Third party impacts
B62: Reset | C62: REGULATORY REPORTING STATEMENT | E62: =LEFT(dms_MultiYear_FinalYear_Result,2)&RIGHT(dms_MultiYear_FinalYear_Result,2) -> 2025 | F62: =LEFT(dms_MultiYear_FinalYear_Result,2)&RIGHT(dms_MultiYear_FinalYear_Result,2) | H62: Formula errors are OK | N62: Reconductor - Single circuit | O62: Number | P62: net circuit km added | Q62: net circuit km added | R62: net circuit km added | S62: net circuit km added | U62: years | V62: years | AB62: Years | AD62: number | AK62: Zone substation | AL62: Third party | AM62: Transmission failure
B63: RFM | C63: ROLL FORWARD MODEL | E63: =LEFT(dms_CRCP_FinalYear_Result,2)&RIGHT(dms_CRCP_FinalYear_Result,2) -> 2018 | F63: =LEFT(dms_CRCP_FinalYear_Result,2)&RIGHT(dms_CRCP_FinalYear_Result,2) | N63: Reconductor - Dual circuit | O63: Number | P63: total spend $0s | Q63: total spend $0s | R63: total spend $0s | S63: total spend $0s | AB63: Years | AD63: number | AK63: Subtransmission | AL63: Unknown | AM63: Load shedding
B64: WACC | C64: WEIGHTED AVERAGE COST OF CAPITAL | E64: =LEFT(dms_MultiYear_FinalYear_Result,2)&RIGHT(dms_MultiYear_FinalYear_Result,2) -> 2025 | F64: =LEFT(dms_MultiYear_FinalYear_Result,2)&RIGHT(dms_MultiYear_FinalYear_Result,2) | N64: Other | P64: net circuit km added | Q64: net circuit km added | R64: net circuit km added | S64: net circuit km added | AB64: Trees | AD64: number | AJ64: Other | AK64: insert description of 'other' | AL64: Vegetation | AM64: Inter-distributor connection failure
P65: total spend $0s | Q65: total spend $0s | R65: total spend $0s | S65: total spend $0s | AB65: Trees | AD65: number | AJ65: Overloads | AK65: - | AL65: Weather | AM65: Other
B66: dms_DataQuality_List | P66: 0's | R66: $0s | AB66: Defects | AD66: number | AJ66: Planned | AK66: - | AL66: 2 - STPIS Exclusion (3.3)(a)
B67: Actual | P67: 0's | AB67: Defects | AD67: number | AJ67: Network business | AK67: Network error | AL67: 3 - STPIS Exclusion (3.3)(a)
B68: Estimate | P68: 0's | AB68: Spans | AD68: number | AK68: Switching and protection error | AL68: 4 - STPIS Exclusion (3.3)(a)
B69: Consolidated | P69: $0s | AB69: km | AD69: (per cent) | AJ69: Third party | AK69: Fire | AL69: 5 - STPIS Exclusion (3.3)(a)
B70: Recast | AB70: Spans | AD70: (per cent) | AK70: Other | AL70: 6 - STPIS Exclusion (3.3)(a)
B71: Public | AK71: Dig-in | AL71: 7 - STPIS Exclusion (3.3)(a)
AK72: Unauthorised access
B73: For all files either AER or business needs to be able to specify the type of submission | C73: For PTRM & RFM templates we must provide a choice in case they change their form of control - otherwise it is drawn from the business specific lookup table above. | O73: For PTRM files - this field set the text for the named range "DMS_Xfactor" which in all cases is simply the text "x factors" - this saves putting in each old gas PTRM file | Y73: for TNSP only | AK73: Vehicle impact
B74: dms_SourceList | C74: dms_FormControl_Choices | O74: DMS_Xfactor | Y74: dms_030601_01_UOM | AA74: dms_030701_01_UOM | AB74: dms_030702_01_UOM | AJ74: Unknown | AK74: Unknown
B75: After appeal | C75: Revenue cap | O75: x factors | Y75: % | AA75: Number of spans | AB75: km | AJ75: Vegetation | AK75: Blow-in/Fall-in - NSP responsibility
B76: Draft decision | C76: Revenue yield | Y76: number | AA76: Years | AB76: % | AK76: Grow-in - NSP responsibility
B77: Final decision | C77: Weighted average price cap | Y77: number | AA77: Trees | AB77: km | AK77: Blow-in/Fall-in - Other responsible party
B78: PTRM update 1 | Y78: % | AA78: Defects | AB78: number | AK78: Grow-in - Other responsible party
B79: PTRM update 2 | Y79: number | AA79: Number of spans | AJ79: Weather
B80: PTRM update 3 | Y80: number | AA80: km | AJ80: 2 - STPIS Exclusion (3.3)(a)
B81: PTRM update 4 | Y81: % | AA81: km | AJ81: 3 - STPIS Exclusion (3.3)(a)
B82: PTRM update 5 | Y82: number | AA82: Number of spans | AJ82: 4 - STPIS Exclusion (3.3)(a)
B83: PTRM update 6 | Y83: number | AJ83: 5 - STPIS Exclusion (3.3)(a)
B84: PTRM update 7 | Y84: % | AJ84: 6 - STPIS Exclusion (3.3)(a)
B85: Regulatory proposal | Y85: number | AJ85: 7 - STPIS Exclusion (3.3)(a)
B86: Reporting | Y86: %
B87: Revised regulatory proposal | Y87: number
Y88: %
Y89: number
B93: These are indeces and lookup values for various dates. All step from the value placed in FRCP_y1 on the business and other details worksheet | C93: =IF(dms_FifthFeeder_flag_NSP="NO","This NSP has only 4 feeder categories","This NSP has 5 feeder categories") -> This NSP has 5 feeder categories | L93: These date tables are currently used in the Recast templates to provide column headings and conditional formatting
B94: dms_FRCPlength_Num_List | C94: dms_FinalYear_List | D94: dms_CRCPlength_Num_List | E94: dms_CFinalYear_List | F94: dms_FRCP_years | H94: dms_CRCP_years | J94: dms_CRCP_index | L94: CRY from input cell on business sheet | M94: CRY - financial | N94: dms_FinYears | O94: CRY calendar | P94: dms_CalYears | Y94: These "row descriptions" are the column headings in the various templates but become row descriptions in the ETL process
B95: 1 | C95: dms_FRCP_y1 | D95: 1 | E95: CRCP_y1 | F95: =FRCP_y1 -> 2020-21 | G95: dms_FRCP_y1 | H95: =IF(dms_RPT="financial",VALUE(LEFT(dms_FRCP_y1,4)-1)&"-"&TEXT(VALUE(MID(dms_FRCP_y1,3,2)),"00"),VALUE(LEFT(dms_FRCP_y1,4)-1)) -> 2019-20 | I95: dms_CRCP_yZ | J95: 1 | L95: =CRY -> 2017-18 | M95: =VALUE(LEFT(CRY,4))&"-"&TEXT(MID(CRY,3,2)+1,"00") -> 2017-18 | N95: dms_CRYf_y1 | O95: =VALUE(LEFT(CRY,4)+1) -> 2018 | P95: dms_CRYc_y1 | Z95: Table 6.3 sustained interruptions - row descriptions
B96: 2 | C96: dms_FRCP_y2 | D96: 2 | E96: CRCP_y2 | F96: =IF(dms_RPT="financial",VALUE(LEFT(dms_FRCP_y1,4)+1)&"-"&TEXT(VALUE(RIGHT(dms_FRCP_y1,2)+1),"00"),VALUE(LEFT(dms_FRCP_y1,4)+1)) -> 2021-22 | G96: dms_FRCP_y2 | H96: =IF(dms_RPT="financial",VALUE(LEFT(dms_CRCP_yZ,4)-1)&"-"&TEXT(VALUE(MID(dms_CRCP_yZ,3,2)),"00"),VALUE(LEFT(dms_CRCP_yZ,4)-1)) -> 2018-19 | I96: dms_CRCP_yY | J96: 2 | M96: =VALUE(LEFT(dms_CRYf_y1,4)+1)&"-"&TEXT(MID(dms_CRYf_y1,3,2)+2,"00") -> 2018-19 | N96: dms_CRYf_y2 | O96: =VALUE(LEFT(dms_CRYc_y1,4)+1) -> 2019 | P96: dms_CRYc_y2 | Z96: dms_060301_CustNo_Affected_Row | AA96: dms_060301_Avg_Duration_Sustained_Int_Row | AB96: dms_060301_Effect_unplanned_SAIDI_Row | AC96: dms_060301_Effect_unplanned_SAIFI_Row
B97: 3 | C97: =IF(dms_Model="ARR",15,9) | D97: 3 | E97: =IF(dms_Model="ARR",15,9) | F97: =IF(dms_RPT="financial",VALUE(LEFT(dms_FRCP_y2,4)+1)&"-"&TEXT(VALUE(RIGHT(dms_FRCP_y2,2)+1),"00"),VALUE(LEFT(dms_FRCP_y2,4)+1)) -> 2022-23 | G97: dms_FRCP_y3 | H97: =IF(dms_RPT="financial",VALUE(LEFT(dms_CRCP_yY,4)-1)&"-"&TEXT(VALUE(MID(dms_CRCP_yY,3,2)),"00"),VALUE(LEFT(dms_CRCP_yY,4)-1)) -> 2017-18 | I97: dms_CRCP_yX | J97: 3 | M97: =VALUE(LEFT(dms_CRYf_y2,4)+1)&"-"&TEXT(MID(dms_CRYf_y2,3,2)+2,"00") -> 2019-20 | N97: dms_CRYf_y3 | O97: =VALUE(LEFT(dms_CRYc_y2,4)+1) -> 2020 | P97: dms_CRYc_y3 | Z97: Number of customers affected by the interruption | AA97: Average duration of sustained customer interruption | AB97: Effect on unplanned SAIDI | AC97: Effect on unplanned SAIFI
B98: 4 | C98: dms_FRCP_y4 | D98: 4 | E98: CRCP_y4 | F98: =IF(dms_RPT="financial",VALUE(LEFT(dms_FRCP_y3,4)+1)&"-"&TEXT(VALUE(RIGHT(dms_FRCP_y3,2)+1),"00"),VALUE(LEFT(dms_FRCP_y3,4)+1)) -> 2023-24 | G98: dms_FRCP_y4 | H98: =IF(dms_RPT="financial",VALUE(LEFT(dms_CRCP_yX,4)-1)&"-"&TEXT(VALUE(MID(dms_CRCP_yX,3,2)),"00"),VALUE(LEFT(dms_CRCP_yX,4)-1)) -> 2016-17 | I98: dms_CRCP_yW | J98: 4 | M98: =VALUE(LEFT(dms_CRYf_y3,4)+1)&"-"&TEXT(MID(dms_CRYf_y3,3,2)+2,"00") -> 2020-21 | N98: dms_CRYf_y4 | O98: =VALUE(LEFT(dms_CRYc_y3,4)+1) -> 2021 | P98: dms_CRYc_y4
B99: 5 | C99: dms_FRCP_y5 | D99: 5 | E99: CRCP_y5 | F99: =IF(dms_RPT="financial",VALUE(LEFT(dms_FRCP_y4,4)+1)&"-"&TEXT(VALUE(RIGHT(dms_FRCP_y4,2)+1),"00"),VALUE(LEFT(dms_FRCP_y4,4)+1)) -> 2024-25 | G99: dms_FRCP_y5 | H99: =IF(dms_RPT="financial",VALUE(LEFT(dms_CRCP_yW,4)-1)&"-"&TEXT(VALUE(MID(dms_CRCP_yW,3,2)),"00"),VALUE(LEFT(dms_CRCP_yW,4)-1)) -> 2015-16 | I99: dms_CRCP_yV | J99: 5 | M99: =VALUE(LEFT(dms_CRYf_y4,4)+1)&"-"&TEXT(MID(dms_CRYf_y4,3,2)+2,"00") -> 2021-22 | N99: dms_CRYf_y5 | O99: =VALUE(LEFT(dms_CRYc_y4,4)+1) -> 2022 | P99: dms_CRYc_y5
B100: 6 | C100: dms_FRCP_y6 | D100: 6 | E100: CRCP_y6 | F100: =IF(dms_RPT="financial",VALUE(LEFT(dms_FRCP_y5,4)+1)&"-"&TEXT(VALUE(RIGHT(dms_FRCP_y5,2)+1),"00"),VALUE(LEFT(dms_FRCP_y5,4)+1)) -> 2025-26 | G100: dms_FRCP_y6 | H100: =IF(dms_RPT="financial",VALUE(LEFT(dms_CRCP_yV,4)-1)&"-"&TEXT(VALUE(MID(dms_CRCP_yV,3,2)),"00"),VALUE(LEFT(dms_CRCP_yV,4)-1)) -> 2014-15 | I100: dms_CRCP_yU | J100: 6 | M100: =VALUE(LEFT(dms_CRYf_y5,4)+1)&"-"&TEXT(MID(dms_CRYf_y5,3,2)+2,"00") -> 2022-23 | N100: dms_CRYf_y6 | O100: =VALUE(LEFT(dms_CRYc_y5,4)+1) -> 2023 | P100: dms_CRYc_y6
B101: 7 | C101: dms_FRCP_y7 | D101: 7 | E101: CRCP_y7 | F101: =IF(dms_RPT="financial",VALUE(LEFT(dms_FRCP_y6,4)+1)&"-"&TEXT(VALUE(RIGHT(dms_FRCP_y6,2)+1),"00"),VALUE(LEFT(dms_FRCP_y6,4)+1)) -> 2026-27 | G101: dms_FRCP_y7 | H101: =IF(dms_RPT="financial",VALUE(LEFT(dms_CRCP_yU,4)-1)&"-"&TEXT(VALUE(MID(dms_CRCP_yU,3,2)),"00"),VALUE(LEFT(dms_CRCP_yU,4)-1)) -> 2013-14 | I101: dms_CRCP_yT | J101: 7 | M101: =VALUE(LEFT(dms_CRYf_y6,4)+1)&"-"&TEXT(MID(dms_CRYf_y6,3,2)+2,"00") -> 2023-24 | N101: dms_CRYf_y7 | O101: =VALUE(LEFT(dms_CRYc_y6,4)+1) -> 2024 | P101: dms_CRYc_y7 | Z101: Table 6.1 telephone answering - row descriptions and start date
B102: 8 | C102: dms_FRCP_y8 | D102: 8 | E102: CRCP_y8 | F102: =IF(dms_RPT="financial",VALUE(LEFT(dms_FRCP_y7,4)+1)&"-"&TEXT(VALUE(RIGHT(dms_FRCP_y7,2)+1),"00"),VALUE(LEFT(dms_FRCP_y7,4)+1)) -> 2027-28 | G102: dms_FRCP_y8 | H102: =IF(dms_RPT="financial",VALUE(LEFT(dms_CRCP_yT,4)-1)&"-"&TEXT(VALUE(MID(dms_CRCP_yT,3,2)),"00"),VALUE(LEFT(dms_CRCP_yT,4)-1)) -> 2012-13 | I102: dms_CRCP_yS | J102: 8 | M102: =VALUE(LEFT(dms_CRYf_y7,4)+1)&"-"&TEXT(MID(dms_CRYf_y7,3,2)+2,"00") -> 2024-25 | N102: dms_CRYf_y8 | O102: =VALUE(LEFT(dms_CRYc_y7,4)+1) -> 2025 | P102: dms_CRYc_y8 | Z102: dms_060101_Rows | AA102: dms_060102_Rows | AB102: dms_060101_StartDateTxt
B103: 9 | C103: dms_FRCP_y9 | D103: 9 | E103: CRCP_y9 | F103: =IF(dms_RPT="financial",VALUE(LEFT(dms_FRCP_y8,4)+1)&"-"&TEXT(VALUE(RIGHT(dms_FRCP_y8,2)+1),"00"),VALUE(LEFT(dms_FRCP_y8,4)+1)) -> 2028-29 | G103: dms_FRCP_y9 | H103: =IF(dms_RPT="financial",VALUE(LEFT(dms_CRCP_yS,4)-1)&"-"&TEXT(VALUE(MID(dms_CRCP_yS,3,2)),"00"),VALUE(LEFT(dms_CRCP_yS,4)-1)) -> 2011-12 | I103: dms_CRCP_yR | J103: 9 | M103: =VALUE(LEFT(dms_CRYf_y8,4)+1)&"-"&TEXT(MID(dms_CRYf_y8,3,2)+2,"00") -> 2025-26 | N103: dms_CRYf_y9 | O103: =VALUE(LEFT(dms_CRYc_y8,4)+1) -> 2026 | P103: dms_CRYc_y9 | Z103: Total number of calls (after removing excluded events) | AA103: Number of calls answered within 30 seconds (after excluding excluded events) | AB103: =dms_060701_StartDateTxt -> 1-Jul-2017
B104: 10 | C104: =IFERROR(IF(dms_Model="ARR",(MAX(0,dms_0608_LastRow-dms_0608_OffsetRows)),"not an ARR"),"6.8 not present") | D104: 10 | E104: =IFERROR(IF(dms_Model="ARR",(MAX(0,dms_0608_LastRow-dms_0608_OffsetRows)),"not an ARR"),"6.8 not present") | F104: =IF(dms_RPT="financial",VALUE(LEFT(dms_FRCP_y9,4)+1)&"-"&TEXT(VALUE(RIGHT(dms_FRCP_y9,2)+1),"00"),VALUE(LEFT(dms_FRCP_y9,4)+1)) -> 2029-30 | G104: dms_FRCP_y10 | H104: =IF(dms_RPT="financial",VALUE(LEFT(dms_CRCP_yR,4)-1)&"-"&TEXT(VALUE(MID(dms_CRCP_yR,3,2)),"00"),VALUE(LEFT(dms_CRCP_yR,4)-1)) -> 2010-11 | I104: dms_CRCP_yQ | J104: 10 | M104: =VALUE(LEFT(dms_CRYf_y9,4)+1)&"-"&TEXT(MID(dms_CRYf_y9,3,2)+2,"00") -> 2026-27 | N104: dms_CRYf_y10 | O104: =VALUE(LEFT(dms_CRYc_y9,4)+1) -> 2027 | P104: dms_CRYc_y10
B105: 11 | C105: dms_FRCP_y11 | D105: 11 | E105: CRCP_y11 | F105: =IF(dms_RPT="financial",VALUE(LEFT(dms_FRCP_y10,4)+1)&"-"&TEXT(VALUE(RIGHT(dms_FRCP_y10,2)+1),"00"),VALUE(LEFT(dms_FRCP_y10,4)+1)) -> 2030-31 | G105: dms_FRCP_y11 | H105: =IF(dms_RPT="financial",VALUE(LEFT(dms_CRCP_yQ,4)-1)&"-"&TEXT(VALUE(MID(dms_CRCP_yQ,3,2)),"00"),VALUE(LEFT(dms_CRCP_yQ,4)-1)) -> 2009-10 | I105: dms_CRCP_yP | J105: 11 | M105: =VALUE(LEFT(dms_CRYf_y10,4)+1)&"-"&TEXT(MID(dms_CRYf_y10,3,2)+2,"00") -> 2027-28 | N105: dms_CRYf_y11 | O105: =VALUE(LEFT(dms_CRYc_y10,4)+1) -> 2028 | P105: dms_CRYc_y11
B106: 12 | C106: dms_FRCP_y12 | D106: 12 | E106: CRCP_y12 | F106: =IF(dms_RPT="financial",VALUE(LEFT(dms_FRCP_y11,4)+1)&"-"&TEXT(VALUE(RIGHT(dms_FRCP_y11,2)+1),"00"),VALUE(LEFT(dms_FRCP_y11,4)+1)) -> 2031-32 | G106: dms_FRCP_y12 | H106: =IF(dms_RPT="financial",VALUE(LEFT(dms_CRCP_yP,4)-1)&"-"&TEXT(VALUE(MID(dms_CRCP_yP,3,2)),"00"),VALUE(LEFT(dms_CRCP_yP,4)-1)) -> 2008-09 | I106: dms_CRCP_yO | J106: 12 | M106: =VALUE(LEFT(dms_CRYf_y11,4)+1)&"-"&TEXT(MID(dms_CRYf_y11,3,2)+2,"00") -> 2028-29 | N106: dms_CRYf_y12 | O106: =VALUE(LEFT(dms_CRYc_y11,4)+1) -> 2029 | P106: dms_CRYc_y12
B107: 13 | C107: dms_FRCP_y13 | D107: 13 | E107: CRCP_y13 | F107: =IF(dms_RPT="financial",VALUE(LEFT(dms_FRCP_y12,4)+1)&"-"&TEXT(VALUE(RIGHT(dms_FRCP_y12,2)+1),"00"),VALUE(LEFT(dms_FRCP_y12,4)+1)) -> 2032-33 | G107: dms_FRCP_y13 | H107: =IF(dms_RPT="financial",VALUE(LEFT(dms_CRCP_yO,4)-1)&"-"&TEXT(VALUE(MID(dms_CRCP_yO,3,2)),"00"),VALUE(LEFT(dms_CRCP_yO,4)-1)) -> 2007-08 | I107: dms_CRCP_yN | J107: 13 | M107: =VALUE(LEFT(dms_CRYf_y12,4)+1)&"-"&TEXT(MID(dms_CRYf_y12,3,2)+2,"00") -> 2029-30 | N107: dms_CRYf_y13 | O107: =VALUE(LEFT(dms_CRYc_y12,4)+1) -> 2030 | P107: dms_CRYc_y13 | AE107: dms_0603_FeederList | AF107: =INDEX(dms_FeederName_1,MATCH(dms_TradingName,dms_TradingName_List)) -> Critical Infrastructure | AG107: =INDEX(dms_FeederName_2,MATCH(dms_TradingName,dms_TradingName_List)) -> High density commercial | AH107: =INDEX(dms_FeederName_3,MATCH(dms_TradingName,dms_TradingName_List)) -> Urban | AI107: =INDEX(dms_FeederName_4,MATCH(dms_TradingName,dms_TradingName_List)) -> High density rural | AJ107: =INDEX(dms_FeederName_5,MATCH(dms_TradingName,dms_TradingName_List)) -> Low density rural
B108: 14 | C108: dms_FRCP_y14 | D108: 14 | E108: CRCP_y14 | F108: =IF(dms_RPT="financial",VALUE(LEFT(dms_FRCP_y13,4)+1)&"-"&TEXT(VALUE(RIGHT(dms_FRCP_y13,2)+1),"00"),VALUE(LEFT(dms_FRCP_y13,4)+1)) -> 2033-34 | G108: dms_FRCP_y14 | H108: =IF(dms_RPT="financial",VALUE(LEFT(dms_CRCP_yN,4)-1)&"-"&TEXT(VALUE(MID(dms_CRCP_yN,3,2)),"00"),VALUE(LEFT(dms_CRCP_yN,4)-1)) -> 2006-07 | I108: dms_CRCP_yM | J108: 14 | M108: =VALUE(LEFT(dms_CRYf_y13,4)+1)&"-"&TEXT(MID(dms_CRYf_y13,3,2)+2,"00") -> 2030-31 | N108: dms_CRYf_y14 | O108: =VALUE(LEFT(dms_CRYc_y13,4)+1) -> 2031 | P108: dms_CRYc_y14 | Z108: Table 6.7.1 - daily performance data - unplanned - MAIFI -- row descriptions and header named range values
B109: 15 | C109: dms_FRCP_y15 | D109: 15 | E109: CRCP_y15 | F109: =IF(dms_RPT="financial",VALUE(LEFT(dms_FRCP_y14,4)+1)&"-"&TEXT(VALUE(RIGHT(dms_FRCP_y14,2)+1),"00"),VALUE(LEFT(dms_FRCP_y14,4)+1)) -> 2034-35 | G109: dms_FRCP_y15 | H109: =IF(dms_RPT="financial",VALUE(LEFT(dms_CRCP_yM,4)-1)&"-"&TEXT(VALUE(MID(dms_CRCP_yM,3,2)),"00"),VALUE(LEFT(dms_CRCP_yM,4)-1)) -> 2005-06 | I109: dms_CRCP_yL | J109: 15 | M109: =VALUE(LEFT(dms_CRYf_y14,4)+1)&"-"&TEXT(MID(dms_CRYf_y14,3,2)+2,"00") -> 2031-32 | N109: dms_CRYf_y15 | O109: =VALUE(LEFT(dms_CRYc_y14,4)+1) -> 2032 | P109: dms_CRYc_y15 | Z109: These headings (Lists) are determined from the INDEX/MATCH function on the NSP selected on the Business & other details sheet
M110: =VALUE(LEFT(dms_CRYf_y15,4)+1)&"-"&TEXT(MID(dms_CRYf_y15,3,2)+2,"00") -> 2032-33 | N110: dms_CRYf_y16 | O110: =VALUE(LEFT(dms_CRYc_y15,4)+1) -> 2033 | P110: dms_CRYc_y16 | Y110: dms_060701_Feeder_Header_Lvl4 | Z110: =INDEX(dms_FeederName_1,MATCH(dms_TradingName,dms_TradingName_List)) -> Critical Infrastructure | AA110: =INDEX(dms_FeederName_1,MATCH(dms_TradingName,dms_TradingName_List)) -> Critical Infrastructure | AB110: =INDEX(dms_FeederName_2,MATCH(dms_TradingName,dms_TradingName_List)) -> High density commercial | AC110: =INDEX(dms_FeederName_2,MATCH(dms_TradingName,dms_TradingName_List)) -> High density commercial | AD110: =INDEX(dms_FeederName_3,MATCH(dms_TradingName,dms_TradingName_List)) -> Urban | AE110: =INDEX(dms_FeederName_3,MATCH(dms_TradingName,dms_TradingName_List)) -> Urban | AF110: =INDEX(dms_FeederName_4,MATCH(dms_TradingName,dms_TradingName_List)) -> High density rural | AG110: =INDEX(dms_FeederName_4,MATCH(dms_TradingName,dms_TradingName_List)) -> High density rural | AH110: =IF((INDEX(dms_FeederName_5,MATCH(dms_TradingName,dms_TradingName_List))=0),"Network",(INDEX(dms_FeederName_5,MATCH(dms_TradingName,dms_TradingName_List)))) -> Low density rural | AI110: =IF((INDEX(dms_FeederName_5,MATCH(dms_TradingName,dms_TradingName_List))=0),"Network",(INDEX(dms_FeederName_5,MATCH(dms_TradingName,dms_TradingName_List)))) -> Low density rural | AJ110: Network | AK110: Network
B111: These are drop down lists for businesses to select the correct FRCP_y1 on the business and other details worksheet. This also populates the column headings in the worksheets | M111: =VALUE(LEFT(dms_CRYf_y16,4)+1)&"-"&TEXT(MID(dms_CRYf_y16,3,2)+2,"00") -> 2033-34 | N111: dms_CRYf_y17 | O111: =VALUE(LEFT(dms_CRYc_y16,4)+1) -> 2034 | P111: dms_CRYc_y17
B112: dms_RCP_fyear_list | C112: dms_CRY_ListF | D112: dms_CRY_ListC | E112: dms_RCP_cyear_list | F112: dms_FRCP_fyear_list | G112: dms_FRCP_ListF | H112: dms_FRCP_ListC | I112: dms_FRCP_cyear_list | M112: =VALUE(LEFT(dms_CRYf_y17,4)+1)&"-"&TEXT(MID(dms_CRYf_y17,3,2)+2,"00") -> 2034-35 | N112: dms_CRYf_y18 | O112: =VALUE(LEFT(dms_CRYc_y17,4)+1) -> 2035 | P112: dms_CRYc_y18 | Y112: dms_060701_Rows | Z112: All events | AA112: After removing excluded events | AB112: All events | AC112: After removing excluded events | AD112: All events | AE112: After removing excluded events | AF112: All events | AG112: After removing excluded events | AH112: All events | AI112: After removing excluded events | AJ112: All events | AK112: After removing excluded events
B113: dms_fy1 | C113: 2005-06 | D113: 2006 | E113: dms_cy1 | F113: dms_frcp_fy1 | G113: 2010-11 | H113: 2011 | I113: dms_crcp_cy1 | M113: =VALUE(LEFT(dms_CRYf_y18,4)+1)&"-"&TEXT(MID(dms_CRYf_y18,3,2)+2,"00") -> 2035-36 | N113: dms_CRYf_y19 | O113: =VALUE(LEFT(dms_CRYc_y18,4)+1) -> 2036 | P113: dms_CRYc_y19 | Z113: the number of column headings changes from 10 to 12 depending on the number of feeder categories for the NSP
B114: dms_fy2 | C114: 2006-07 | D114: 2007 | E114: dms_cy2 | F114: dms_frcp_fy2 | G114: 2011-12 | H114: 2012 | I114: dms_crcp_cy2 | M114: =VALUE(LEFT(dms_CRYf_y19,4)+1)&"-"&TEXT(MID(dms_CRYf_y19,3,2)+2,"00") -> 2036-37 | N114: dms_CRYf_y20 | O114: =VALUE(LEFT(dms_CRYc_y19,4)+1) -> 2037 | P114: dms_CRYc_y20
B115: dms_fy3 | C115: 2007-08 | D115: 2008 | E115: dms_cy3 | F115: dms_frcp_fy3 | G115: 2012-13 | H115: 2013 | I115: dms_crcp_cy3
B116: dms_fy4 | C116: 2008-09 | D116: 2009 | E116: dms_cy4 | F116: dms_frcp_fy4 | G116: 2013-14 | H116: 2014 | I116: dms_crcp_cy4
B117: dms_fy5 | C117: 2009-10 | D117: 2010 | E117: dms_cy5 | F117: dms_frcp_fy5 | G117: 2014-15 | H117: 2015 | I117: dms_crcp_cy5
B118: dms_fy6 | C118: 2010-11 | D118: 2011 | E118: dms_cy6 | F118: dms_frcp_fy6 | G118: 2015-16 | H118: 2016 | I118: dms_crcp_cy6 | Z118: Table 6.8.1 - row descriptions
B119: dms_fy7 | C119: 2011-12 | D119: 2012 | E119: dms_cy7 | F119: dms_frcp_fy7 | G119: 2016-17 | H119: 2017 | I119: dms_crcp_cy7 | Z119: dms_060801_01_Rows | AA119: dms_060801_02_Rows | AB119: dms_060801_03_Rows | AC119: dms_060801_04_Rows
B120: dms_fy8 | C120: 2012-13 | D120: 2013 | E120: dms_cy8 | F120: dms_frcp_fy8 | G120: 2017-18 | H120: 2018 | I120: dms_crcp_cy8 | L120: 2005-06 | M120: 2006 | Z120: Number of interruptions | AA120: Duration of interruptions | AB120: Total unplanned minutes off supply | AC120: Effect on unplanned MAIFI
B121: dms_fy9 | C121: 2013-14 | D121: 2014 | E121: dms_cy9 | F121: dms_frcp_fy9 | G121: 2018-19 | H121: 2019 | I121: dms_crcp_cy9 | L121: 2006-07 | M121: 2007
B122: dms_fy10 | C122: 2014-15 | D122: 2015 | E122: dms_cy10 | F122: dms_frcp_fy10 | G122: 2019-20 | H122: 2020 | I122: dms_crcp_cy10 | L122: 2007-08 | M122: 2008
B123: dms_fy11 | C123: 2015-16 | D123: 2016 | E123: dms_cy11 | F123: dms_frcp_fy11 | G123: 2020-21 | H123: 2021 | I123: dms_crcp_cy11 | L123: 2008-09 | M123: 2009
B124: dms_fy12 | C124: 2016-17 | D124: 2017 | E124: dms_cy12 | F124: dms_frcp_fy12 | G124: 2021-22 | H124: 2022 | I124: dms_crcp_cy12 | L124: 2009-10 | M124: 2010
B125: dms_fy13 | C125: 2017-18 | D125: 2018 | E125: dms_cy13 | F125: dms_frcp_fy13 | G125: 2022-23 | H125: 2023 | I125: dms_crcp_cy13 | L125: 2010-11 | M125: 2011 | Z125: Table 7.9.4 - market impact component - row descriptions
B126: dms_fy14 | C126: 2018-19 | D126: 2019 | E126: dms_cy14 | F126: dms_frcp_fy14 | G126: 2023-24 | H126: 2024 | I126: dms_crcp_cy14 | L126: 2011-12 | M126: 2012 | Y126: dms_070904_01_Rows | Z126: without exclusions | AA126: with exclusions
B127: dms_fy15 | C127: 2019-20 | D127: 2020 | E127: dms_cy15 | F127: dms_frcp_fy15 | G127: 2024-25 | H127: 2025 | I127: dms_crcp_cy15 | L127: 2012-13 | M127: 2013
B128: dms_fy16 | C128: 2020-21 | D128: 2021 | E128: dms_cy16 | L128: 2013-14 | M128: 2014
B129: dms_fy17 | C129: 2021-22 | D129: 2022 | E129: dms_cy17 | L129: 2014-15 | M129: 2015
B130: dms_fy18 | C130: 2022-23 | D130: 2023 | E130: dms_cy18 | L130: 2015-16 | M130: 2016
B131: dms_fy19 | C131: 2023-24 | D131: 2024 | E131: dms_cy19 | L131: 2016-17 | M131: 2017 | Z131: Use this to add to existing files
B132: dms_fy20 | C132: 2024-25 | D132: 2025 | E132: dms_cy20 | L132: 2017-18 | M132: 2018 | Z132: ARR's 6.8 STPIS exclusions
L133: 2018-19 | M133: 2019 | Z133: dms_060801_Event_Date | AA133: dms_060801_OutageID | AB133: dms_060801_FeederID | AC133: dms_060801_FeederClass | AD133: dms_060801_CauseID | AE133: dms_060801_01_Values | AF133: dms_060801_02_Values | AG133: dms_060801_03_Values | AH133: dms_060801_Excl_Cat | AI133: dms_060801_04_Values
L134: 2019-20 | M134: 2020
L135: 2020-21 | M135: 2021
L136: 2021-22 | M136: 2022 | Z136: CA 6.3 sustained interruptions
L137: 2022-23 | M137: 2023 | Z137: dms_060301_Event_Date | AA137: dms_060301_Event_Time | AB137: dms_060301_AssetID | AC137: dms_060301_FeederClass | AD137: dms_060301_Reason | AE137: dms_060301_DetailedReason | AF137: dms_060301_CustNo_Affected_Values | AG137: dms_060301_Avg_Duration_Sustained_Int_Values | AH137: dms_060301_Effect_unplanned_SAIDI_Values | AI137: dms_060301_Effect_unplanned_SAIFI_Values | AJ137: dms_060301_MED
L138: 2023-24 | M138: 2024
L139: 2024-25 | M139: 2025
L140: 2025-26 | M140: 2026
L141: 2026-27 | M141: 2027
L142: 2027-28 | M142: 2028
L143: 2028-29 | M143: 2029
L144: 2029-30 | M144: 2030
L145: 2030-31 | M145: 2031
L146: 2031-32 | M146: 2032
L147: 2032-33 | M147: 2033
L148: 2033-34 | M148: 2034
L149: 2034-35 | M149: 2035
L150: 2035-36 | M150: 2036

Sheet Instructions
B2: =CONCATENATE(dms_Segment," Network Service Provider") -> Distribution Network Service Provider
B3: Annual Reporting RIN Template
C4: =CONCATENATE("This template is to be used by ",dms_TradingName," to fulfil its reporting obligations to the AER.") -> This template is to be used by TasNetworks (D) to fulfil its reporting obligations to the AER.
C5: INSTRUCTIONS
C6: Complete the Business & other details worksheet before entering data or values in any other worksheets. The Business & other details worksheet is linked to other worksheets within the workbook and automatically generates certain column headings and conditional formatting.
C8: Identifying CONFIDENTIAL INFORMATION: Please use the macro at the top of each worksheet to identify confidential information.
C9: -Do this by selecting the cell or cells that contain confidential information and then run the Mark selection as CONFIDENTIAL macro. This will format the cells a specific colour that is identified by the AER's database which in turn marks that information as confidential. -To reverse this, select the cell or cells and run the Return selection to NON-CONFIDENTIAL macro
C11: UNITS OF MEASURE All amounts are to be unrounded and reported in nominal terms on a one for one basis: that is 1000 is to be entered as '1000'.
C13: COLOUR CODING OF INPUT / NON-INPUT CELLS:
D14: Yellow = Input cell (mandatory)
D15: Darker yellow = input cell (mandatory)
D16: Orange = input cell (if data available)
D17: Grey = Not applicable/No inputs required
D18: Leave coloured cells blank if no information exists. PLEASE DO NOT ENTER TEXT into cells that are to contain numeric data.
C21: WORKSHEET NAVIGATION Many tables in the worksheets have been "grouped" to allow for easy navigation. To ungroup or group data use the outline symbols in the left margin of excel (for Row groupings) or above the columns (for column groupings).
C23: RETURNING COMPLETED RESPONSES Please return four (4) files to the AER: 1. A confidential version which must contain a complete set of all responses with confidential information marked using the Mark selected cells CONFIDENTIAL macro and which has been completed using the locked template file provided by the AER. 2. An actual and an estimate version with confidential information marked using the Mark selected cells CONFIDENTIAL macro and which has been completed using the locked template file provided by the AER. 3. A public version with confidential information either removed completely or aggregated in some form together with writtten consent to disclose the public version of the response. Use the drop down box on the Business and other details worksheet to identify the file as either confidential ('consolidated') or public.
C25: SUBMITTING AMENDED DATA TO THE AER If an NSP wishes to correct data previously submitted to the AER it should resubmit that data using the original completed submission as the starting point. Please make any necessary changes to the data. Data that is not being amended should be left unchanged. NSPs must identify the reason for the amendments in the Amendment Reason box on the Business and other details worksheet. NSPs may provide further details regarding any amendments in the Amendments worksheet. .
C26: NSP may use Amended Data macro to highlight cells that contain amended data. NB: if data is also CONFIDENTIAL, re-apply the Confidentiality macro after applying the Amended macro
C27: Please resubmit two (2) files - a confidential version and a public version of the amended submission to the AER

Sheet Contents
B1: REGULATORY REPORTING STATEMENT
B2: =INDEX(dms_TradingNameFull_List,MATCH(dms_TradingName,dms_TradingName_List)) -> TasNetworks (D)
B3: =CONCATENATE((LOOKUP(dms_Model,dms_Model_List,dms_Worksheet_List))&" "&CRY) -> CATEGORY ANALYSIS 2017-18
B4: CONTENTS
E7: 1. Business details | L7: 2. Expenditure
E27: 4. Alternative control services | L27: 5. Network information | S27: 6. Service & quality

Sheet Business & other details
B1: =IF(dms_DataQuality="backcast",INDEX(dms_Worksheet_List,MATCH(dms_Model,dms_Model_List))&" BACKCAST",INDEX(dms_Worksheet_List,MATCH(dms_Model,dms_Model_List))) -> CATEGORY ANALYSIS
B2: =INDEX(dms_TradingNameFull_List,MATCH(dms_TradingName,dms_TradingName_List)) -> TasNetworks (D)
B3: =IF(SUM(dms_SingleYear_Model)>0,CONCATENATE(CRY),CONCATENATE(FRCP_y1," to ",dms_MultiYear_FinalYear_Result)) -> 2017-18
B4: BUSINESS & OTHER DETAILS
B7: Instructions
B8: Complete the following business details regulatory template before entering data or values in any other regulatory template. This regulatory template is linked to other cells within the spreadsheet and automatically generates column headings and conditional formatting to distinguish business specific input and non-input cells.
B10: SUBMISSION PARTICULARS INPUT SHEETS
B12: ENTITY DETAILS
B14: Short name | C14: TasNetworks (D) | F14: Select business name from drop down list first
B15: ACN / ABN | C15: =INDEX(dms_ABN_List,MATCH(dms_TradingName,dms_TradingName_List)) -> 24167357299
B18: Business address | C18: Address 1 | E18: =INDEX(dms_Addr1_List,MATCH(dms_TradingName,dms_TradingName_List)) -> 1-7 Maria Street
D19: Address 2 | E19: =IF(ISBLANK(INDEX(dms_Addr2_List,MATCH(dms_TradingName,dms_TradingName_List))),"",(INDEX(dms_Addr2_List,MATCH(dms_TradingName,dms_TradingName_List)))) -> 
C20: Suburb | E20: =INDEX(dms_Suburb_List,MATCH(dms_TradingName,dms_TradingName_List)) -> LENAH VALLEY
D21: State | E21: =INDEX(dms_State_List,MATCH(dms_TradingName,dms_TradingName_List)) -> Tas | F21: p/code | G21: =INDEX(dms_PostCode_List,MATCH(dms_TradingName,dms_TradingName_List)) -> 7008
B23: Postal address | C23: Address 1 | E23: =INDEX(dms_PAddr1_List,MATCH(dms_TradingName,dms_TradingName_List)) -> PO Box 606
D24: Address 2 | E24: =IF(ISBLANK(INDEX(dms_PAddr2_List,MATCH(dms_TradingName,dms_TradingName_List))),"",(INDEX(dms_PAddr2_List,MATCH(dms_TradingName,dms_TradingName_List)))) -> 
C25: Suburb | E25: =INDEX(dms_PSuburb_List,MATCH(dms_TradingName,dms_TradingName_List)) -> MOONAH
D26: State | E26: =INDEX(dms_PState_List,MATCH(dms_TradingName,dms_TradingName_List)) -> Tas | F26: p/code | G26: =INDEX(dms_PPostCode_List,MATCH(dms_TradingName,dms_TradingName_List)) -> 7009
B29: Contact name/s | C29: =INDEX(dms_ContactName1_List,MATCH(dms_TradingName,dms_TradingName_List)) -> John Sayers
B30: Contact phone/s
B31: Contact email address/s
B33: REGULATORY CONTROL PERIODS
B35: Forthcoming regulatory control period | C35: 2020-21 | D35: =dms_FRCP_y2 -> 2021-22 | E35: =dms_FRCP_y3 -> 2022-23 | F35: =dms_FRCP_y4 -> 2023-24 | G35: =dms_FRCP_y5 -> 2024-25
C36: =dms_FRCP_y6 -> 2025-26 | D36: =dms_FRCP_y7 -> 2026-27 | E36: =dms_FRCP_y8 -> 2027-28 | F36: =dms_FRCP_y9 -> 2028-29 | G36: =dms_FRCP_y10 -> 2029-30
B39: Current regulatory control period | C39: =dms_CRCP_FirstYear_Result -> 2015-16 | D39: =IF(dms_RPT="financial",VALUE(LEFT(CRCP_y1,4)+1)&"-"&TEXT(MID(CRCP_y1,3,2)+2,"00"),VALUE(LEFT(CRCP_y1,4)+1)) -> 2016-17 | E39: =IF(dms_RPT="financial",VALUE(LEFT(CRCP_y1,4)+2)&"-"&TEXT(VALUE(MID(CRCP_y1,3,2)+3),"00"),VALUE(LEFT(CRCP_y1,4)+2)) -> 2017-18 | F39: =IF(dms_RPT="financial",VALUE(LEFT(CRCP_y1,4)+3)&"-"&TEXT(MID(CRCP_y1,3,2)+4,"00"),VALUE(LEFT(CRCP_y1,4)+3)) -> 2018-19 | G39: =IF(dms_RPT="financial",VALUE(LEFT(CRCP_y1,4)+4)&"-"&TEXT(MID(CRCP_y1,3,2)+5,"00"),VALUE(LEFT(CRCP_y1,4)+4)) -> 2019-20
C40: =IF(dms_RPT="financial",VALUE(LEFT(CRCP_y1,4)+5)&"-"&TEXT(MID(CRCP_y1,3,2)+6,"00"),VALUE(LEFT(CRCP_y1,4)+5)) -> 2020-21 | D40: =IF(dms_RPT="financial",VALUE(LEFT(CRCP_y1,4)+6)&"-"&TEXT(MID(CRCP_y1,3,2)+7,"00"),VALUE(LEFT(CRCP_y1,4)+6)) -> 2021-22 | E40: =IF(dms_RPT="financial",VALUE(LEFT(CRCP_y1,4)+7)&"-"&TEXT(MID(CRCP_y1,3,2)+8,"00"),VALUE(LEFT(CRCP_y1,4)+7)) -> 2022-23 | F40: =IF(dms_RPT="financial",VALUE(LEFT(CRCP_y1,4)+8)&"-"&TEXT(MID(CRCP_y1,3,2)+9,"00"),VALUE(LEFT(CRCP_y1,4)+8)) -> 2023-24 | G40: =IF(dms_RPT="financial",VALUE(LEFT(CRCP_y1,4)+9)&"-"&TEXT(MID(CRCP_y1,3,2)+10,"00"),VALUE(LEFT(CRCP_y1,4)+9)) -> 2024-25
C41: =IF(dms_RPT="financial",VALUE(LEFT(CRCP_y1,4)+10)&"-"&TEXT(MID(CRCP_y1,3,2)+11,"00"),VALUE(LEFT(CRCP_y1,4)+10)) -> 2025-26 | D41: =IF(dms_RPT="financial",VALUE(LEFT(CRCP_y1,4)+11)&"-"&TEXT(MID(CRCP_y1,3,2)+12,"00"),VALUE(LEFT(CRCP_y1,4)+11)) -> 2026-27 | E41: =IF(dms_RPT="financial",VALUE(LEFT(CRCP_y1,4)+12)&"-"&TEXT(MID(CRCP_y1,3,2)+13,"00"),VALUE(LEFT(CRCP_y1,4)+12)) -> 2027-28 | F41: =IF(dms_RPT="financial",VALUE(LEFT(CRCP_y1,4)+13)&"-"&TEXT(MID(CRCP_y1,3,2)+14,"00"),VALUE(LEFT(CRCP_y1,4)+13)) -> 2028-29 | G41: =IF(dms_RPT="financial",VALUE(LEFT(CRCP_y1,4)+14)&"-"&TEXT(MID(CRCP_y1,3,2)+15,"00"),VALUE(LEFT(CRCP_y1,4)+14)) -> 2029-30
B44: Previous regulatory control period | C44: =IF(dms_RPT="financial",VALUE(LEFT(PRCP_y2,4)-1)&"-"&TEXT(VALUE(MID(PRCP_y2,3,2)),"00"),VALUE(LEFT(PRCP_y2,4)-1)) -> 2010-11 | D44: =IF(dms_RPT="financial",VALUE(LEFT(PRCP_y3,4)-1)&"-"&TEXT(VALUE(MID(PRCP_y3,3,2)),"00"),VALUE(LEFT(PRCP_y3,4)-1)) -> 2011-12 | E44: =IF(dms_RPT="financial",VALUE(LEFT(PRCP_y4,4)-1)&"-"&TEXT(VALUE(MID(PRCP_y4,3,2)),"00"),VALUE(LEFT(PRCP_y4,4)-1)) -> 2012-13 | F44: =IF(dms_RPT="financial",VALUE(LEFT(PRCP_y5,4)-1)&"-"&TEXT(VALUE(RIGHT(PRCP_y5,2)-1),"00"),VALUE(LEFT(PRCP_y5,4)-1)) -> 2013-14 | G44: =IF(dms_RPT="financial",VALUE(LEFT(CRCP_y1,4)-1)&"-"&TEXT(VALUE(RIGHT(CRCP_y1,2)-1),"00"),VALUE(LEFT(CRCP_y1,4)-1)) -> 2014-15
B48: Commencing regulatory year | C48: 2017-18 | D48: CRY
B50: Last completed regulatory year | C50: 2017-18 | D50: dms_FinalYear
C54: IF THIS IS AN ABC RIN - make sure the the named range CRY is applied and the named range dms_dollar_nom_UOM is applied
C55: IF THIS IS A RESET RIN - make sure the named ranges CRY and dms_dollar_nom_UOM are NOT present in the workbook
C56: FOR ABC RINS THAT SPAN MULTIPLE YEARS - make sure MultiYear Flag is set and final year entered as required
B58: Source | C58: Reporting | E58: Please select the correct submission type from the dropdown list.
B59: Data quality (actual, estimate, public, consolidated) | C59: Consolidated | E59: Use Consolidated for Consolidated Confidential version Use Public for Consolidated Public version
B60: Amended RIN submission - amendment reason | C60: 20181126 - amended 5.2 asset age profile (see D18/171638) 20190315 - Revised 6.3 interuptions - see D19/19226 and data contained in d19/19215
B61: Submission Date | C61: 2019-02-12 | D61: dms_SubmissionDate | E61: Please enter date this file submitted to AER (dd/mm/yyyy)
B62: EBSS - First application of scheme in forthcoming period? | C62: No
B63: Sector | C63: =INDEX(dms_Sector_List,MATCH(dms_TradingName,dms_TradingName_List)) -> Electricity | D63: dms_Sector | E63: =INDEX(dms_Sector_List,MATCH(dms_TradingName,dms_TradingName_List))
B64: Segment | C64: =INDEX(dms_Segment_List,MATCH(dms_TradingName,dms_TradingName_List)) -> Distribution | D64: dms_Segment | E64: =INDEX(dms_Segment_List,MATCH(dms_TradingName,dms_TradingName_List))
B65: Regulatory Year Ending | C65: =IF(dms_MultiYear_Flag=1,LEFT(dms_Specified_FinalYear,2)&RIGHT(dms_Specified_FinalYear,2),INDEX(dms_RYE_Formula_Result,MATCH(dms_Model,dms_Model_List))) -> 2018 | D65: dms_RYE | E65: =IF(dms_MultiYear_Flag=1,LEFT(dms_Specified_FinalYear,2)&RIGHT(dms_Specified_FinalYear,2),INDEX(dms_RYE_Formula_Result,MATCH(dms_Model,dms_Model_List)))
B66: Reporting Period Type | C66: =INDEX(dms_RPT_List,MATCH(dms_TradingName,dms_TradingName_List)) -> Financial | D66: dms_RPT | E66: =INDEX(dms_RPT_List,MATCH(dms_TradingName,dms_TradingName_List))
B67: Model or RIN Type | C67: CA | D67: dms_Model | E67: Drop down selection
B68: EB/CA Unit of Measure for Monetary Values | C68: $0s | D68: dms_dollar_nom_UOM | E68: If the cover sheet is attached to an ABC RIN make the NAMED RANGE on this field is set
B69: Security Classification | C69: Public | D69: dms_Classification | E69: Always Public
B70: Dollar $ real month | C70: =INDEX(dms_RPTMonth_List,MATCH(dms_TradingName,dms_TradingName_List)) -> June | D70: dms_RPTMonth | E70: =INDEX(dms_RPTMonth_List,MATCH(dms_TradingName,dms_TradingName_List))
B71: Dollar $ real (the last month before the FRCP_y1) | C71: =IF(SUM(dms_SingleYear_Model)>0,CONCATENATE(dms_RPTMonth)&" "&VALUE((LEFT(CRY,2))&RIGHT(CRY,2)),CONCATENATE(dms_RPTMonth)&" "&VALUE((LEFT(dms_CRCP_FinalYear_Result,2)&RIGHT(dms_CRCP_FinalYear_Result,2)))) -> June 2018 | D71: dms_DollarReal | E71: =IF(SUM(dms_SingleYear_Model)>0,CONCATENATE(dms_RPTMonth)&" "&VALUE((LEFT(CRY,2))&RIGHT(CRY,2)),CONCATENATE(dms_RPTMonth)&" "&VALUE((LEFT(dms_CRCP_FinalYear_Result,2)&RIGHT(dms_CRCP_FinalYear_Result,2))))
B72: Dollar $ real previous year (PRCP_y5) | C72: =IF(SUM(dms_SingleYear_Model)>0,CONCATENATE(dms_RPTMonth)&" "&VALUE(((LEFT(CRY,2))&RIGHT(CRY,2))-1),CONCATENATE(dms_RPTMonth)&" "&VALUE(((LEFT(dms_CRCP_FirstYear_Result,2)&RIGHT(dms_CRCP_FirstYear_Result,2))))-1) -> June 2017 | D72: dms_DollarReal_Prev | E72: =IF(SUM(dms_SingleYear_Model)>0,CONCATENATE(dms_RPTMonth)&" "&VALUE(((LEFT(CRY,2))&RIGHT(CRY,2))-1),CONCATENATE(dms_RPTMonth)&" "&VALUE(((LEFT(dms_CRCP_FirstYear_Result,2)&RIGHT(dms_CRCP_FirstYear_Result,2))))-1)
B73: Form of control | C73: =INDEX(dms_FormControl_List,MATCH(dms_TradingName,dms_TradingName_List)) -> Revenue cap | D73: dms_FormControl | E73: =INDEX(dms_FormControl_List,MATCH(dms_TradingName,dms_TradingName_List))
B74: Calendar Year for table 3.6 data | C74: =VALUE(dms_RYE)-1 -> 2017 | D74: dms_0306_Year | E74: =VALUE(dms_RYE)-1
B75: Jurisdiction | C75: =INDEX(dms_JurisdictionList,MATCH(dms_TradingName,dms_TradingName_List)) -> Tas | D75: dms_Jurisdiction | E75: =INDEX(dms_JurisdictionList,MATCH(dms_TradingName,dms_TradingName_List))
B76: FOR ABC RINS THAT SPAN MULTIPLE YEARS
B77: Is this a multi year ABC RIN? | C77: No
B78: Backcast Multiyear EB, CA or ARR? | C78: =IF(dms_MultiYear_ResponseFlag="No",0,1) -> 0 | D78: dms_MultiYear_Flag | E78: This is set from the answer provided above
C79: =IF(dms_MultiYear_Flag=1,"Specify Final Reg Year here eg 2016 or 2015-16","not a Multi Reg Year submission") -> not a Multi Reg Year submission | D79: dms_Specified_FinalYear | E79: The result here is returned to dms_CRCP_FinalYear_Result if response to Q in C73 is "yes" and dms_MultiYear_Flag is set to 1
B80: This block works out the various RYE's for both ABC RINs and Reset RINS
B81: Single Year Model T/F | C81: =IF(dms_Model="EB",1,0) -> 0 | D81: dms_EB
C82: =IF(dms_Model="CA",1,0) -> 1 | D82: dms_CA | E82: =dms_SingleYear_Model
C83: =IF(dms_Model="ARR",1,0) -> 0 | D83: dms_ARR
B84: Single Year Final Year Reference | C84: CRY | D84: dms_SingleYear_FinalYear_Ref | E84: This is the reference for EB, CA & ARR RINs
B85: Single Year Final Year Result | C85: =IFERROR(IF(SUM(dms_SingleYear_Model)<>0,(INDIRECT(dms_SingleYear_FinalYear_Ref)),"not a single year RIN"),"CRY not present") -> 2017-18 | D85: dms_SingleYear_FinalYear_Result | E85: =IFERROR(IF(SUM(dms_SingleYear_Model)<>0,(INDIRECT(dms_SingleYear_FinalYear_Ref)),"not a single year RIN"),"CRY not present")
B86: FRCP length in years | C86: =INDEX(dms_FRCPlength_List,MATCH(dms_TradingName,dms_TradingName_List)) -> 5 | D86: dms_FRCPlength_Num | E86: =INDEX(dms_FRCPlength_List,MATCH(dms_TradingName,dms_TradingName_List))
B87: Multi Year Final Year Reference | C87: =INDEX(dms_FinalYear_List,MATCH(dms_FRCPlength_Num,dms_FRCPlength_Num_List)) -> dms_FRCP_y5 | D87: dms_MultiYear_FinalYear_Ref | E87: =INDEX(dms_FinalYear_List,MATCH(dms_FRCPlength_Num,dms_FRCPlength_Num_List))
B88: Multi Year Final Year Result | C88: =IF(dms_MultiYear_Flag=0,INDIRECT(dms_MultiYear_FinalYear_Ref),dms_Specified_FinalYear) -> 2024-25 | D88: dms_MultiYear_FinalYear_Result | E88: =IF(dms_MultiYear_Flag=0,INDIRECT(dms_MultiYear_FinalYear_Ref),dms_Specified_FinalYear) | I88: Formula errors OK
B89: CRCP length in years | C89: =INDEX(dms_CRCPlength_List,MATCH(dms_TradingName,dms_TradingName_List)) -> 5 | D89: dms_CRCPlength_Num | E89: =INDEX(dms_CRCPlength_List,MATCH(dms_TradingName,dms_TradingName_List))
B90: CRCP Final Year Reference | C90: =INDEX(dms_CFinalYear_List,MATCH(dms_CRCPlength_Num,dms_CRCPlength_Num_List)) -> CRCP_y5 | D90: dms_CRCP_FinalYear_Ref | E90: =INDEX(dms_CFinalYear_List,MATCH(dms_CRCPlength_Num,dms_CRCPlength_Num_List))
B91: CRCP First Year Result | C91: =INDEX(dms_CRCP_years,MATCH(dms_CRCPlength_Num,dms_CRCP_index)) -> 2015-16 | D91: dms_CRCP_FirstYear_Result | E91: =INDEX(dms_CRCP_years,MATCH(dms_CRCPlength_Num,dms_CRCP_index))
B92: CRCP Final Year Result | C92: =IF(dms_MultiYear_Flag=0,(IF(SUM(dms_SingleYear_Model)>0,CRY,dms_CRCP_yZ)),dms_Specified_FinalYear) -> 2017-18 | D92: dms_CRCP_FinalYear_Result | E92: =IF(dms_MultiYear_Flag=0,(IF(SUM(dms_SingleYear_Model)>0,CRY,dms_CRCP_yZ)),dms_Specified_FinalYear)
B93: FOR CATEGORY ANALYSIS FILES
B94: How many rows in tables 6.3 sustained interruptions? | C94: =IF(dms_Model<>"CA","not a CA","Is a CA") -> Is a CA | D94: dms_060301_MaxRows only returns a valid value when cover sheet is attached to a CA file
B95: Table 6.3.1 - last row reference | C95: =IFERROR(IF(dms_Model="CA", LOOKUP(2,1/(dms_060301_Avg_Duration_Sustained_Int_Values<>""), (ROW(dms_060301_Avg_Duration_Sustained_Int_Values))), "not a CA"),"no data in 6.3 or 6.3 not present") -> 12632 | D95: dms_060301_LastRow | E95: =IFERROR(IF(dms_Model="CA",LOOKUP(2,1/(dms_060301_Avg_Duration_Sustained_Int_Values<>""),(ROW(dms_060301_Avg_Duration_Sustained_Int_Values))),"not a CA"),"6.3 not present")
B96: Table 6.3.1 - max number rows | C96: =IFERROR(IF(dms_Model="CA",(dms_060301_LastRow-15),"not a CA"),"no data in 6.3 or 6.3 not present") -> 12617 | D96: dms_060301_MaxRows | E96: =IFERROR(IF(dms_Model="CA",(dms_060301_LastRow-15),"not a CA"),"6.3 not present")
B97: Table 6.6.3 - Public lighting repair - no. business days | C97: =INDEX(dms_663_List,MATCH(dms_TradingName,dms_TradingName_List)) -> 5 | D97: dms_663 | E97: =INDEX(dms_663_List,MATCH(dms_TradingName,dms_TradingName_List))
B98: FOR ARR or RESET FILES
B99: How many rows in tables 6.1 or 6.7? (leap year?) | C99: insert dms_LeapYear NR if required | D99: dms_LeapYear is used to determine dms_060701_Max_Rows BUT it is only found on worksheet 6.1 or 6.7 and the date value in the cell is used to determine whether it is a leap year
B100: Is dms_LeapYear named range present? | C100: =IFERROR(IF(dms_LeapYear,"yes"),"no") -> no
B101: Table 6.7.1 - includes a leap year? | C101: =IFERROR(IF(MONTH(DATE(YEAR(dms_LeapYear),2,29))=2,"is a leap year","not a leap year"), "dms_LeapYear not present") -> dms_LeapYear not present | D101: dms_LeapYear_Result | E101: =IFERROR(IF(MONTH(DATE(YEAR(dms_LeapYear),2,29))=2,"is a leap year","not a leap year"),"dms_LeapYear not present")
B102: Table 6.7.1 - Last row (leap year/ non leap year) | C102: =IFERROR(IF(dms_Model="ARR", IF(dms_LeapYear_Result="is a leap year",366,365), (IF(dms_Model="Reset", (IF(dms_LeapYear_Result="is a leap year",1827,1826)), "not a relevant RIN type"))), "dms_LeapYear in either 6.1 or 6.7 not present") -> not a relevant RIN type | D102: dms_060701_MaxRows | E102: =IFERROR(IF(dms_Model="ARR",IF(dms_LeapYear_Result="is a leap year",366,365),(IF(dms_Model="Reset",(IF(dms_LeapYear_Result="is a leap year",1827,1826)),"not a relevant RIN type"))),"dms_LeapYear in either 6.1 or 6.7 not present")
B103: How many columns in 6.7? (4 or 5 feeder categories) | C103: =IF(dms_FifthFeeder_flag_NSP="NO","This NSP has only 4 feeder categories","This NSP has 5 feeder categories") -> This NSP has 5 feeder categories
B104: Table 6.7.1 - Last column (# of feeder categories > 4) | C104: =IF(dms_FifthFeeder_flag_NSP="NO",10,12) -> 12 | D104: dms_060701_MaxCols | E104: =IF(dms_FifthFeeder_flag_NSP="NO",8,10)
B105: Table 6.7.1 - Number of offset rows | C105: =IF(dms_Model="ARR",15,9) -> 9 | D105: dms_060701_OffsetRows | E105: =IF(dms_Model="ARR",15,9)
B106: Start date for telephone answering in 6.1 or 6.7? | E106: Using 060701 as naming standard not 060101
B107: Table 6.1.1 and 6.7.1 - Start Date as Text | C107: =IF(SUM(dms_SingleYear_Model)>0,(CONCATENATE(IF(LEN(CRY)=4,"1-Jan-","1-Jul-"),LEFT(CRY,4))),(CONCATENATE(IF(LEN(CRCP_y4)=4,"1-Jan-","1-Jul-"),LEFT(CRCP_y4,4)))) -> 1-Jul-2017 | D107: dms_060701_StartDateTxt | E107: =IF(SUM(dms_SingleYear_Model)>1,(CONCATENATE(IF(LEN(CRY)=4,"1-Jan-","1-Jul-"),LEFT(CRY,4))),(CONCATENATE(IF(LEN(CRCP_y4)=4,"1-Jan-","1-Jul-"),LEFT(CRCP_y4,4))))
B108: Table 6.1.1 and 6.7.1 - Start Date as Date Value | C108: =DATEVALUE(dms_060701_StartDateTxt) -> 42917 | D108: dms_060701_StartDateVal | E108: =DATEVALUE(dms_060701_StartDateTxt)
B109: FOR ANNUAL REPORTING RINS
B110: How many rows in table 6.8? | C110: insert dms_060801_StartCell NR if required | D110: dms_060801_StartCell is only found on worksheet 6.8 and is used to determine the starting date for the date range
B111: Table 6.8 - Number of offset rows | C111: =IFERROR(IF(dms_Model="ARR",(ROW(dms_060801_StartCell)-1),"not an ARR"),"6.8 not present") -> not an ARR | D111: dms_0608_OffsetRows | E111: =IFERROR(IF(dms_Model="ARR",(ROW(dms_060801_StartCell)-1),"not an ARR"),"6.8 not present")
B112: Table 6.8 - Last row | C112: =IFERROR(IF(dms_060801_StartCell<>"",IF(dms_Model="ARR",(LOOKUP(2,1/(dms_060801_01_Values<>""),(ROW(dms_060801_01_Values)))),"not an ARR"),0),"6.8 not present") -> 6.8 not present | D112: dms_0608_LastRow | E112: =IFERROR(IF(dms_060801_StartCell<>"",IF(dms_Model="ARR",(LOOKUP(2,1/(dms_060801_01_Values<>""),(ROW(dms_060801_01_Values)))),"not an ARR"),0),"6.8 not present")
B113: Table 6.8 - MaxRows | C113: =IFERROR(IF(dms_Model="ARR",(MAX(0,dms_0608_LastRow-dms_0608_OffsetRows)),"not an ARR"),"6.8 not present") -> not an ARR | D113: dms_060801_MaxRows | E113: =IFERROR(IF(dms_Model="ARR",(MAX(0,dms_0608_LastRow-dms_0608_OffsetRows)),"not an ARR"),"6.8 not present")
B114: FOR TNSP FILES
B115: Table 7.9.4 only appears in TNSPs Reset RIN
B116: Table 7.9.4 - first year | C116: =LEFT(PRCP_y3,4) -> 2012 | D116: dms_070904_Start_Year | E116: =LEFT(PRCP_y3,4)
B117: MISC
B118: Distribution Determination Reference | C118: =INDEX(dms_DeterminationRef_List,MATCH(dms_TradingName,dms_TradingName_List)) -> distribution determination | D118: dms_DeterminationRef
B119: Is this Submission File a Subset File | C119: NO | D119: dms_Partial
B120: CBD Feeder for this business | C120: =INDEX(dms_CBD_flag,MATCH(dms_TradingName,dms_TradingName_List)) -> YES | D120: dms_CBD_flag_NSP
B121: Urban Feeder for this business | C121: =INDEX(dms_Urban_flag,MATCH(dms_TradingName,dms_TradingName_List)) -> YES | D121: dms_Urban_flag_NSP
B122: Short rural Feeder for this business | C122: =INDEX(dms_ShortRural_flag,MATCH(dms_TradingName,dms_TradingName_List)) -> YES | D122: dms_ShortRural_flag_NSP
B123: Long rural Feeder for this business | C123: =INDEX(dms_LongRural_flag,MATCH(dms_TradingName,dms_TradingName_List)) -> YES | D123: dms_LongRural_flag_NSP
B124: Fifth Feeder Category (eg. TasNetworks (D)) | C124: =INDEX(dms_FeederType_5_flag,MATCH(dms_TradingName,dms_TradingName_List)) -> YES | D124: dms_FifthFeeder_flag_NSP | E124: =INDEX(dms_FeederType_5_flag,MATCH(dms_TradingName,dms_TradingName_List))
B126: discard this record? | C126: NO | D126: dms_DISCARD | E126: If record is to be discarded from DB set this flag to YES
B128: USES NAMED RANGES FLAG | C128: yes | D128: dms_Defined_Names_Used
B130: REGULATORY YEARS FOR MULTI RYE SUBMISSIONS
B131: Multiple RYE flag | C131: NO | D131: dms_Multi_RYE_flag
C132: Manually specify RYE | D132: Named ranges to apply
C133: 2013 | D133: dms_RYE_01
C134: 2014 | D134: dms_RYE_02
C135: 2015 | D135: dms_RYE_03
C136: 2016 | D136: dms_RYE_04
C137: 2017 | D137: dms_RYE_05

Sheet 2.1 Expenditure summary
B1: REGULATORY REPORTING STATEMENT
B2: =INDEX(dms_TradingNameFull_List,MATCH(dms_TradingName,dms_TradingName_List)) -> TasNetworks (D)
B3: =CONCATENATE((LOOKUP(dms_Model,dms_Model_List,dms_Worksheet_List))&" "&CRY) -> CATEGORY ANALYSIS 2017-18
B4: 2.1 EXPENDITURE SUMMARY & RECONCILIATION
B6: There are SIX tables on this worksheet. Each has been grouped for ease of navigation. See the Instructions sheet on how to group or ungroup tables.
B8: 2.1.1 - STANDARD CONTROL SERVICES CAPEX
C9: EXPENDITURE ($0's)
C10: =CRY -> 2017-18
B11: Replacement expenditure | C11: 59381131.02
B12: Connections | C12: 22394895.51
B13: Augmentation Expenditure | C13: 9675427.05
B14: Non-network | C14: 29862547.48
B15: capitalised network overheads | C15: 25171425.36
B16: capitalised corporate overheads | C16: 10621012.76
B17: Metering
B18: Public Lighting
B26: balancing item | C26: 5218928.985
B27: capcons (included in the above)
B28: TOTAL GROSS CAPEX (including capcons) | C28: =+SUM(C11:C26) -> 162325368.2
B30: 2.1.2 - STANDARD CONTROL SERVICES OPEX
C31: EXPENDITURE ($0's)
C32: =CRY -> 2017-18
B33: Vegetation management | C33: 20094830.6
B34: Maintenance | C34: 12599394.55
B35: Emergency response | C35: 9922060.49
B36: Non-network | C36: 16797832.69
B37: network overheads | C37: 26409369.44
B38: corporate overheads | C38: 16870356.19
B39: Metering
B40: Public Lighting
B48: balancing item | C48: -16277497.02
B49: TOTAL OPEX | C49: =+SUM(C33:C48) -> 86416346.93
B51: 2.1.3 - ALTERNATIVE CONTROL SERVICES CAPEX
C52: EXPENDITURE ($0's)
C53: =CRY -> 2017-18
B54: Connections
B55: capitalised network overheads | C55: 2256888.025
B56: capitalised corporate overheads | C56: 1316580.865
B57: Metering | C57: 1030485.23
B58: Public lighting | C58: 1239759.118
B59: Fee and quoted | C59: 1567296.56
B67: balancing item | C67: 1905711.322
B68: TOTAL CAPEX | C68: =+SUM(C54:C67) -> 9316721.12
B70: 2.1.4 - ALTERNATIVE CONTROL SERVICES OPEX
C71: EXPENDITURE ($0's)
C72: =CRY -> 2017-18
B73: Connections
B74: network overheads | C74: 8452812.528
B75: corporate overheads | C75: 4117506.678
B76: Metering | C76: 2554443.12
B77: Public lighting | C77: 1119711.991
B78: Fee and quoted | C78: 4767982.196
B86: balancing item | C86: -5480273.58
B87: TOTAL OPEX | C87: =+SUM(C73:C86) -> 15532182.93
B89: 2.1.5 - DUAL FUNCTION ASSETS CAPEX
C90: EXPENDITURE ($0's)
C91: =CRY -> 2017-18
B92: Replacement expenditure
B93: Connections
B94: Augmentation Expenditure
B95: Non-network
B96: Capitalised network overheads
B97: Capitalised corporate overheads
B105: balancing item
B106: capcons (included in the above)
B107: TOTAL GROSS CAPEX (including capcons) | C107: =SUM(C92:C105) -> 0
B109: 2.1.6 - DUAL FUNCTION ASSETS OPEX
C110: EXPENDITURE ($0's)
C111: =CRY -> 2017-18
B112: Vegetation management
B113: Maintenance
B114: Emergency response
B115: Non-network
B116: Network overheads
B117: Corporate overheads
B125: balancing item
B126: TOTAL OPEX | C126: =SUM(C112:C125) -> 0

Sheet 2.2 Repex
B1: REGULATORY REPORTING STATEMENT
B2: =INDEX(dms_TradingNameFull_List,MATCH(dms_TradingName,dms_TradingName_List)) -> TasNetworks (D)
B3: =CONCATENATE((LOOKUP(dms_Model,dms_Model_List,dms_Worksheet_List))&" "&CRY) -> CATEGORY ANALYSIS 2017-18
B4: 2.2 REPEX
B6: There are TWO tables on this worksheet. Each has been grouped for ease of navigation. See the Instructions sheet on how to group or ungroup tables.
B8: 2.2.1 - REPLACEMENT EXPENDITURE, VOLUMES AND ASSET FAILURES BY ASSET CATEGORY
E9: EXPENDITURE ($0's) | F9: ASSET REPLACEMENTS (0's) | G9: ASSET FAILURES (0's)
B10: ASSET GROUP | C10: ASSET CATEGORY | E10: =CRY -> 2017-18 | F10: =CRY -> 2017-18 | G10: =CRY -> 2017-18
B11: POLES BY: HIGHEST OPERATING VOLTAGE ; MATERIAL TYPE; STAKING (IF WOOD) | C11: Staking of a wooden pole | E11: 830649.7 | F11: 787
C12: ˂ = 1 kV; Wood | E12: 3753313.076 | F12: 581
C13: > 1 kV & < = 11 kV; Wood | E13: 1027154.525 | F13: 159
C14: ˃ 11 kV & < = 22 kV; Wood | E14: 8391658.668 | F14: 1299 | G14: 2
C15: > 22 kV & < = 66 kV; Wood | E15: 148582.1011 | F15: 23
C16: > 66 kV & < = 132 kV; Wood | E16: 510347.2169 | F16: 79
C17: > 132 kV; Wood | E17: 0
C18: ˂ = 1 kV; Concrete | E18: 290704.1109 | F18: 45
C19: > 1 kV & < = 11 kV; Concrete | E19: 6460.091353 | F19: 1
C20: ˃ 11 kV & < = 22 kV; Concrete | E20: 38760.54812 | F20: 6
C21: > 22 kV & < = 66 kV; Concrete | E21: 167962.3752 | F21: 26
C22: > 66 kV & < = 132 kV; Concrete | E22: 0
C23: > 132 kV; Concrete | E23: 0
C24: ˂ = 1 kV; Steel | E24: 587868.3131 | F24: 91
C25: > 1 kV & < = 11 kV; Steel | E25: 38760.54812 | F25: 6
C26: ˃ 11 kV & < = 22 kV; Steel | E26: 0
C27: > 22 kV & < = 66 kV; Steel | E27: 0
C28: > 66 kV & < = 132 kV; Steel | E28: 0
C29: > 132 kV; Steel | E29: 0
C30: Other | E30: 25840.36541 | F30: 4
B31: POLE TOP STRUCTURES BY: HIGHEST OPERATING VOLTAGE | C31: ˂ = 1 kV | E31: 603043.3745 | F31: 984 | G31: 30
C32: > 1 kV & < = 11 kV | E32: 173436.2551 | F32: 283 | G32: 7
C33: ˃ 11 kV & < = 22 kV | E33: 1024070.608 | F33: 1671 | G33: 51
C34: > 22 kV & < = 66 kV | E34: 12256.97916 | F34: 20
C35: > 66 kV & < = 132 kV | E35: 0
C36: > 132 kV | E36: 0
C37: Other | E37: 0
B38: OVERHEAD CONDUCTORS BY: HIGHEST OPERATING VOLTAGE; NUMBER OF PHASES (AT HV) | C38: ˂ = 1 kV | E38: 10204863.3 | F38: 8.692 | G38: 42
C39: > 1 kV & < = 11 kV | E39: 666584.7183 | F39: 11.791 | G39: 11
C40: ˃ 11 kV & < = 22 kV ; SWER | E40: 282.6667451 | F40: 0.005
C41: ˃ 11 kV & < = 22 kV ; Single-Phase | E41: 42852.27856 | F41: 0.758
C42: ˃ 11 kV & < = 22 kV ; Multiple-Phase | E42: 5693670.73 | F42: 43.183 | G42: 61
C43: > 22 kV & < = 66 kV | E43: 7688.535467 | F43: 0.136
C44: > 66 kV & < = 132 kV | E44: 0
C45: > 132 kV | E45: 0
C46: Other | E46: 0 | G46: 1
B47: UNDERGROUND CABLES BY: HIGHEST OPERATING VOLTAGE | C47: ˂ = 1 kV | E47: 2818024.438 | F47: 22.372 | G47: 23
C48: > 1 kV & < = 11 kV | E48: 181580.606 | F48: 1.406 | G48: 23
C49: > 11 kV & < = 22 kV | E49: 676342.5558 | F49: 5.237 | G49: 21
C50: > 22 kV & < = 33 kV | E50: 0 | F50: - | G50: 1
C51: > 33 kV & < = 66 kV | E51: 0 | F51: - | G51: 0
C52: > 66 kV & < = 132 kV | E52: 0 | F52: - | G52: 0
C53: > 132 kV | E53: 0 | F53: - | G53: 0
C54: Other | E54: 1316711.83 | F54: - | G54: 0
B55: SERVICE LINES BY: CONNECTION VOLTAGE; CUSTOMER TYPE; CONNECTION COMPLEXITY | C55: ˂ = 11 kV ; Residential ; Simple Type | E55: 1467914.793 | F55: 747 | G55: 747
C56: ˂ = 11 kV ; Commercial & Industrial ; Simple Type | E56: 258493.1965 | F56: 132 | G56: 132
C57: ˂ = 11 kV ; Residential ; Complex Type | E57: 0 | F57: 0 | G57: 0
C58: ˂ = 11 kV ; Commercial & Industrial ; Complex Type | E58: 0 | F58: 0 | G58: 0
C59: ˂ = 11 kV ; Subdivision ; Complex Type | E59: 0 | F59: 0 | G59: 0
C60: > 11 kV & < = 22 kV ; Commercial & Industrial | E60: 0 | F60: 0 | G60: 0
C61: > 11 kV & < = 22 kV ; Subdivision | E61: 0 | F61: 0 | G61: 0
C62: > 22 kV & < = 33 kV ; Commercial & Industrial | E62: 0 | F62: 0 | G62: 0
C63: > 22 kV & < = 33 kV ; Subdivision | E63: 0 | F63: 0 | G63: 0
C64: > 33 kV & < = 66 kV ; Commercial & Industrial | E64: 0 | F64: 0 | G64: 0
C65: > 33 kV & < = 66 kV ; Subdivision | E65: 0 | F65: 0 | G65: 0
C66: > 66 kV & < = 132 kV ; Commercial & Industrial | E66: 0 | F66: 0 | G66: 0
C67: > 66 kV & < = 132 kV ; Subdivision | E67: 0 | F67: 0 | G67: 0
C68: > 132 kV ; Commercial & Industrial | E68: 0 | F68: 0 | G68: 0
C69: > 132 kV ; Subdivision | E69: 0 | F69: 0 | G69: 0
C70: Other | F70: 0 | G70: 0
B71: TRANSFORMERS BY: MOUNTING TYPE; HIGHEST OPERATING VOLTAGE ; AMPERE RATING; NUMBER OF PHASES (AT LV) | C71: Pole Mounted ; < = 22kV ; < = 60 kVA ; Single Phase | E71: 1637167.519 | F71: 108 | G71: 61
C72: Pole Mounted ; < = 22kV ; > 60 kVA and < = 600 kVA ; Single Phase | E72: 0 | F72: 0 | G72: 0
C73: Pole Mounted ; < = 22kV ; > 600 kVA ; Single Phase | E73: 0 | F73: 0 | G73: 0
C74: Pole Mounted ; < = 22kV ; < = 60 kVA ; Multiple Phase | E74: 212225.4191 | F74: 14 | G74: 11
C75: Pole Mounted ; < = 22kV ; > 60 kVA and < = 600 kVA ; Multiple Phase | E75: 1356577.48 | F75: 100 | G75: 53
C76: Pole Mounted ; < = 22kV ; > 600 kVA ; Multiple Phase | E76: 0 | F76: 0 | G76: 0
C77: Kiosk Mounted ; < = 22kV ; < = 60 kVA ; Single Phase | E77: 0 | F77: 0 | G77: 0
C78: Kiosk Mounted ; < = 22kV ; > 60 kVA and < = 600 kVA ; Single Phase | E78: 0 | F78: 0 | G78: 0
C79: Kiosk Mounted ; < = 22kV ; > 600 kVA ; Single Phase | E79: 0 | F79: 0 | G79: 0
C80: Kiosk Mounted ; < = 22kV ; < = 60 kVA ; Multiple Phase | E80: 0 | F80: 0 | G80: 0
C81: Kiosk Mounted ; < = 22kV ; > 60 kVA and < = 600 kVA ; Multiple Phase | E81: 0 | F81: 0
C82: Kiosk Mounted ; < = 22kV ; > 600 kVA ; Multiple Phase | E82: 0 | F82: 0 | G82: 2
C83: Ground Outdoor / Indoor Chamber Mounted; ˂ 22 kV ; < = 60 kVA ; Single Phase | E83: 0 | F83: 0 | G83: 0
C84: Ground Outdoor / Indoor Chamber Mounted; ˂ 22 kV ; > 60 kVA and < = 600 kVA ; Single Phase | E84: 0 | F84: 0 | G84: 0
C85: Ground Outdoor / Indoor Chamber Mounted; ˂ 22 kV ; > 600 kVA ; Single Phase | E85: 0 | F85: 0 | G85: 0
C86: Ground Outdoor / Indoor Chamber Mounted; ˂ 22 kV ; < = 60 kVA ; Multiple Phase | E86: 0 | F86: 0 | G86: 0
C87: Ground Outdoor / Indoor Chamber Mounted; ˂ 22 kV ; > 60 kVA and < = 600 kVA ; Multiple Phase | E87: 0 | F87: 0 | G87: 0
C88: Ground Outdoor / Indoor Chamber Mounted; ˂ 22 kV ; > 600 kVA ; Multiple Phase | E88: 347694.6866 | F88: 1 | G88: 1
C89: Ground Outdoor / Indoor Chamber Mounted; > = 22 kV & < = 33 kV ; < = 15 MVA | E89: 0 | F89: 0 | G89: 0
C90: Ground Outdoor / Indoor Chamber Mounted; > = 22 kV & < = 33 kV ; > 15 MVA and < = 40 MVA | E90: 0 | F90: 0 | G90: 0
C91: Ground Outdoor / Indoor Chamber Mounted; > = 22 kV & < = 33 kV ; > 40 MVA | E91: 0 | F91: 0 | G91: 0
C92: Ground Outdoor / Indoor Chamber Mounted; > 33 kV & < = 66 kV ; < = 15 MVA | E92: 0 | F92: 0 | G92: 0
C93: Ground Outdoor / Indoor Chamber Mounted; > 33 kV & < = 66 kV ; > 15 MVA and < = 40 MVA | E93: 0 | F93: 0 | G93: 0
C94: Ground Outdoor / Indoor Chamber Mounted; > 33 kV & < = 66 kV ; > 40 MVA | E94: 0 | F94: 0 | G94: 0
C95: Ground Outdoor / Indoor Chamber Mounted; > 66 kV & < = 132 kV ; < = 100 MVA | E95: 0 | F95: 0 | G95: 0
C96: Ground Outdoor / Indoor Chamber Mounted; > 66 kV & < = 132 kV ; > 100 MVA | E96: 0 | F96: 0 | G96: 0
C97: Ground Outdoor / Indoor Chamber Mounted; > 132 kV ; < = 100 MVA | E97: 0 | F97: 0 | G97: 0
C98: Ground Outdoor / Indoor Chamber Mounted; > 132 kV ; > 100 MVA | E98: 0 | F98: 0 | G98: 0
C99: Other | E99: 0
B100: SWITCHGEAR BY: HIGHEST OPERATING VOLTAGE ; SWITCH FUNCTION | C100: ˂ = 11 kV ; FUSE | E100: 1637.464773 | F100: 111 | G100: 43
C101: ˂ = 11 kV ; Switch | E101: 7346464.558 | F101: 748
C102: ˂ = 11 kV ; Circuit Breaker | E102: 3793970.052 | F102: 54 | G102: 3
C103: > 11 kV & < = 22 kV ; Switch | E103: 3614303.419 | F103: 368
C104: > 11 kV & < = 22 kV ; Circuit Breaker | E104: 95535.99041 | F104: 1 | G104: 0
C105: > 22 kV & < = 33 kV ; Switch | E105: 0 | F105: 0 | G105: 0
C106: > 22 kV & < = 33 kV ; Circuit Breaker | E106: 0 | F106: 0 | G106: 0
C107: > 33 kV & < = 66 kV ; Switch | E107: 0 | F107: 0 | G107: 0
C108: > 33 kV & < = 66 kV ; Circuit Breaker | E108: 0 | F108: 0 | G108: 0
C109: > 66 kV & < = 132 kV ; Switch | E109: 0 | F109: 0 | G109: 0
C110: > 66 kV & < = 132 kV ; Circuit Breaker | E110: 0 | F110: 0 | G110: 0
C111: > 132 kV ; Switch | E111: 0 | F111: 0 | G111: 0
C112: > 132 kV ; Circuit Breaker | E112: 0 | F112: 0 | G112: 0
C113: Other | E113: 0 | G113: 55
B114: PUBLIC LIGHTING BY: ASSET TYPE ; LIGHTING OBLIGATION | C114: Luminaires ; Major Road | E114: 13756.42517 | F114: 233 | G114: 108
C115: Luminaires ; Minor Road | E115: 442328.6598 | F115: 2908 | G115: 283
C116: Brackets ; Major Road | E116: 46.0904943 | F116: 1 | G116: 1
C117: Brackets ; Minor Road | E117: 152.1075171 | F117: 1 | G117: 9
C118: Lamps ; Major Road | E118: 195285.4243 | F118: 4237 | G118: 527
C119: Lamps ; Minor Road | E119: 534657.9227 | F119: 3515 | G119: 695
C120: Poles / Columns ; Major Road | E120: 0 | F120: 0 | G120: 0
C121: Poles / Columns ; Minor Road | E121: 38449.32 | F121: 4 | G121: 0
C122: Other | E122: 0
B123: SCADA, NETWORK CONTROL AND PROTECTION SYSTEMS BY: FUNCTION | C123: Field Devices | F123: 0 | G123: 0
C124: Local Network Wiring Assets | F124: 0 | G124: 0
C125: Communications Network Assets | F125: 0 | G125: 0
C126: Master Station Assets | F126: 0 | G126: 0
C127: Communications Site Infrastructure | F127: 0 | G127: 0
C128: Communications Linear Assets | F128: 0 | G128: 0
C129: AFLC | F129: 0 | G129: 0
C130: Other | F130: 0 | G130: 0
B131: OTHER BY: DNSP DEFINED | C131: SWITCHGEAR : > 11 kV & < = 22 kV ; FUSE | E131: 9675.928202 | F131: 910
C132: Metering CTs | E132: 0 | F132: 0 | G132: 0
C133: CablePI | E133: 0 | F133: 8104 | G133: 0
B149: 2.2.2 - SELECTED ASSET CHARACTERISTICS
E150: ASSET VOLUMES CURRENTLY IN COMMISSION | F150: ASSET REPLACEMENTS (0's)
B151: ASSET GROUP | C151: METRIC | D151: UNITS | E151: =CRY -> 2017-18 | F151: =CRY -> 2017-18
B152: TOTAL POLES BY: FEEDER TYPE | C152: Total CBD poles | D152: Number | E152: 0 | F152: 0
C153: Total urban poles | D153: Number | E153: 17080 | F153: 265.339515
C154: Total rural long poles | D154: Number | E154: 80971 | F154: 564.246077
C155: Total rural short poles | D155: Number | E155: 130910 | F155: 1409.815977
B156: OVERHEAD CONDUCTORS BY: CONDUCTOR LENGTH BY FEEDER TYPE | C156: Conductors CBD | D156: KM | E156: 0 | F156: 0
C157: Conductors urban | D157: KM | E157: 672.936 | F157: 4.975657565
C158: Conductors rural long | D158: KM | E158: 8356.78 | F158: 10.6225182
C159: Conductors rural short | D159: KM | E159: 11090.618 | F159: 48.96620971
B160: OVERHEAD CONDUCTORS BY: CONDUCTOR LENGTH MATERIAL TYPE | C160: OH conductor LV ABC | D160: KM | E160: 1996.764 | F160: 0
C161: OH conductor steel | D161: KM | E161: 5368.905 | F161: 3.71274107
C162: OH conductor ACSR | D162: KM | E162: 678.928 | F162: 0
C163: OH conductor AAAC | D163: KM | E163: 3247.346 | F163: 48.27818095
C164: OH conductor AAC | D164: KM | E164: 6948.61 | F164: 12.57346346
C165: OH conductor HDBC | D165: KM | E165: 17.893 | F165: 0
C166: Other | D166: KM | E166: 1861.888 | F166: 0
B167: UNDERGROUND CABLES BY: CABLE LENGTH BY FEEDER TYPE | C167: Cable CBD | D167: KM | E167: 0 | F167: -
C168: Cable urban | D168: KM | E168: 1221.224 | F168: 2.859
C169: Cable rural long | D169: KM | E169: 201.254 | F169: 6.103
C170: Cable rural short | D170: KM | E170: 1065.801 | F170: 20.053
B171: TRANSFORMERS BY: TOTAL MVA | C171: Total MVA replaced | D171: MVA | E171: 6765 | F171: 24
C172: Total MVA disposed of | D172: MVA | E172: 677 | F172: 2.4

Sheet 2.3(a) Augex
B1: REGULATORY REPORTING STATEMENT
B2: =INDEX(dms_TradingNameFull_List,MATCH(dms_TradingName,dms_TradingName_List)) -> TasNetworks (D)
B3: =CONCATENATE((LOOKUP(dms_Model,dms_Model_List,dms_Worksheet_List))&" "&CRY) -> CATEGORY ANALYSIS 2017-18
B4: 2.3 AUGEX PROJECT DATA
B7: There are TWO tables on this worksheet - each has been 'grouped' for easy navigation. Both ROWS and COLUMNS have been grouped. See the Instructions sheet on how to group or ungroup tables.
B9: 2.3.1 - AUGEX ASSET DATA - SUBTRANSMISSION SUBSTATIONS, SWITCHING STATIONS AND ZONE SUBSTATIONS
B10: NOTE: DNSP MUST PROVIDE EXPENDITURE INFORMATION ON A PROJECT CLOSE BASIS.
B11: PROJECT DESCRIPTION AND CHANGES | L11: PLANT AND EQUIPMENT EXPENDITURE AND VOLUME | X11: OTHER EXPENDITURE | Z11: TOTAL DIRECT EXPENDITURE ($0's) | AA11: YEARS INCURRED | AB11: ALL RELATED PARTY CONTRACTS | AD11: ALL NON RELATED PARTY CONTRACTS | AE11: LAND AND EASEMENTS
B12: SUBSTATION ID | C12: SUBSTATION TYPE (drop down) | D12: PROJECT ID | E12: PROJECT TYPE (drop down) | F12: PROJECT TRIGGER (drop down) | G12: VOLTAGE (KV) | H12: SUBSTATION RATING NORMAL CYCLIC (MVA) | J12: SUBSTATION RATING N-1 EMERGENCY (MVA) | L12: TRANSFORMERS | O12: SWITCHGEAR | Q12: CAPACITORS | U12: OTHER PLANT ITEM | V12: INSTALLATION (LABOUR) | X12: CIVIL WORKS | Y12: OTHER DIRECT | AB12: RELATED PARTY MARGINS | AC12: TOTAL | AE12: LAND PURCHASE | AF12: EASEMENTS
H13: PRE | I13: POST | J13: PRE | K13: POST | L13: UNITS ADDED | M13: MVA ADDED | N13: EXPENDITURE ($0's) | O13: UNITS ADDED | P13: EXPENDITURE ($0's) | Q13: MVAR ADDED | R13: EXPENDITURE ($0's) | U13: EXPENDITURE ($0's) | V13: VOLUME | W13: EXPENDITURE ($0's) | X13: EXPENDITURE ($0's) | AB13: EXPENDITURE ($0's) | AE13: EXPENDITURE ($0's)
Z14: =SUM(N14,P14,R14,U14,W14,X14,Y14) -> 0
Z15: 0
Z16: 0
Z17: 0
Z18: 0
Z19: 0
Z20: 0
Z21: 0
Z22: 0
Z23: 0
Z24: 0
Z25: 0
Z26: 0
Z27: 0
Z28: 0
Z29: 0
Z30: 0
Z31: 0
Z32: 0
Z33: 0
Z34: 0
Z35: 0
Z36: 0
Z37: 0
Z38: 0
Z39: 0
Z40: 0
Z41: 0
Z42: 0
Z43: 0
Z44: 0
Z45: 0
Z46: =SUM(N46,P46,R46,U46,W46,X46,Y46) -> 0
Z47: 0
Z48: 0
Z49: 0
Z50: 0
Z51: 0
Z52: 0
Z53: 0
Z54: 0
Z55: 0
Z56: 0
Z57: 0
Z58: 0
Z59: 0
Z60: 0
Z61: 0
Z62: 0
Z63: 0
Z64: 0
Z65: 0
D66: Non material projects - [actual] | AB66: 4484532.95
B69: AUG232_1 | C69: AUG232_2 | D69: AUG232_3 | E69: AUG232_4 | F69: AUG232_5 | G69: AUG232_6 | H69: ED_AUG232_00001 | I69: ED_AUG232_00002 | J69: ED_AUG232_00003 | K69: ED_AUG232_00004 | L69: ED_AUG232_00005 | M69: ED_AUG232_00006 | N69: ED_AUG232_00007 | O69: ED_AUG232_00008 | P69: ED_AUG232_00009 | Q69: ED_AUG232_00010 | R69: ED_AUG232_00011 | S69: ED_AUG232_00012 | T69: ED_AUG232_00013 | U69: ED_AUG232_00014 | V69: ED_AUG232_00015 | W69: ED_AUG232_00016 | X69: ED_AUG232_00017 | Y69: ED_AUG232_00018 | Z69: ED_AUG232_00019 | AA69: ED_AUG232_00020 | AB69: ED_AUG232_00021
B70: 2.3.2 - AUGEX ASSET DATA - SUBTRANSMISSION LINES
B71: NOTE: DNSP MUST PROVIDE EXPENDITURE INFORMATION ON A PROJECT CLOSE BASIS.
B72: PROJECT DESCRIPTION AND CHANGES | L72: PLANT AND EQUIPMENT EXPENDITURE AND VOLUME | X72: OTHER EXPENDITURE | Z72: TOTAL DIRECT EXPENDITURE ($0's) | AA72: YEARS INCURRED | AB72: ALL RELATED PARTY CONTRACTS | AD72: ALL NON RELATED PARTY CONTRACTS | AE72: LAND AND EASEMENTS
B73: LINE ID | C73: PROJECT ID | D73: PROJECT TYPE | E73: PROJECT TRIGGER | G73: VOLTAGE (KV) | H73: ROUTE LINE LENGTH ADDED | L73: POLES/TOWERS (INCLUDING STRUCTURES, AND CIVIL WORKS) | O73: OVERHEAD LINES | R73: UNDERGROUND CABLES | U73: OTHER PLANT ITEM | V73: INSTALLATION (LABOUR) | X73: CIVIL WORKS | Y73: OTHER DIRECT | AB73: RELATED PARTY MARGINS | AC73: TOTAL | AE73: LAND PURCHASE | AF73: EASEMENTS
H74: KM ADDED | L74: POLES/TOWERS ADDED | M74: POLES/TOWERS UPGRADED | N74: EXPENDITURE ($0's) | O74: CIRCUIT KM ADDED | P74: CIRCUIT KM UPGRADED | Q74: EXPENDITURE ($0's) | R74: CIRCUIT KM ADDED | S74: CIRCUIT KM UPGRADED | T74: EXPENDITURE ($0's) | U74: EXPENDITURE ($0's) | V74: VOLUME | W74: EXPENDITURE ($0's) | X74: EXPENDITURE ($0's) | AB74: EXPENDITURE ($0's) | AE74: EXPENDITURE ($0's)
Z75: =SUM(N75,Q75,T75,U75,W75,X75,Y75) -> 0 | AH75: New line on new route - single circuit
Z76: 0 | AH76: New line on new route - dual circuit
Z77: 0 | AH77: New line on new route - other
Z78: 0 | AH78: Line rebuild over existing route - single circuit
Z79: 0 | AH79: Line rebuild over existing route - dual circuit
Z80: 0 | AH80: Reconductor - Single circuit
Z81: 0 | AH81: Reconductor - Dual circuit
Z82: 0 | AH82: Reconductor - Other
Z83: 0 | AH83: Line upgrade - raising/retensoring
Z84: 0 | AH84: Line upgrade - voltage upgrade
Z85: 0 | AH85: Line upgrade - capacity
Z86: 0 | AH86: String spare circuit
Z87: 0 | AH87: Other
Z88: 0
Z89: 0
Z90: 0
Z91: 0
Z92: 0
Z93: 0
Z94: 0
Z95: 0
Z96: 0
Z97: 0
Z98: 0
Z99: 0
Z100: 0
Z101: 0
Z102: 0
Z103: 0
Z104: 0
Z105: 0
Z106: 0
Z107: =SUM(N107,Q107,T107,U107,W107,X107,Y107) -> 0
Z108: 0
Z109: 0
Z110: 0
Z111: 0
Z112: 0
Z113: 0
Z114: 0
Z115: 0
Z116: 0
Z117: 0
Z118: 0
Z119: 0
Z120: 0
Z121: 0
Z122: 0
Z123: 0
Z124: 0
Z125: 0
Z126: 0
Z127: 0
Z128: 0
C129: Non material projects - [actual] | AB129: 5099.96

Sheet 2.3(b) Augex
B1: REGULATORY REPORTING STATEMENT
B2: =INDEX(dms_TradingNameFull_List,MATCH(dms_TradingName,dms_TradingName_List)) -> TasNetworks (D)
B3: =CONCATENATE((LOOKUP(dms_Model,dms_Model_List,dms_Worksheet_List))&" "&CRY) -> CATEGORY ANALYSIS 2017-18
B4: 2.3 AUGEX DATA
B6: There are TWO tables on this worksheet. Each has been grouped for ease of navigation. See the Instructions sheet on how to group or ungroup tables.
B8: 2.3.3 - AUGEX DATA - HV/LV FEEDERS AND DISTRIBUTION SUBSTATIONS
B9: NOTE: DNSP MUST PROVIDE EXPENDITURE INFORMATION ON AN AS INCURRED BASIS.
B10: DESCRIPTOR METRICS
B11: PROJECT TYPE | D11: UNITS ADDED (0's) | E11: UNITS UPGRADED (0's)
C12: UNITS | D12: =CRY -> 2017-18 | E12: =CRY -> 2017-18
B13: HV Feeder Augmentations - Overhead Lines | C13: Circuit line length in km | D13: 0.4666666667 | E13: 31.46166667
B14: HV Feeder Augmentations - Underground Cables | C14: Circuit line length in km | D14: 4.314666667 | E14: 0.046
B15: LV Feeder Augmentations - Overhead Lines | C15: Circuit line length in km | D15: 0 | E15: 0.1425
B16: LV Feeder Augmentations - Underground Cables | C16: Circuit line length in km | D16: 1.259 | E16: 0
B17: Distribution Substation Augmentations - Pole Mounted | C17: Number | D17: 17 | E17: 18
B18: Distribution Substation Augmentations - Ground Mounted | C18: Number | D18: 0 | E18: 2
B19: Distribution Substation Augmentations - Indoor | C19: Number | D19: 0 | E19: 0
B21: COST METRICS
B22: TOTAL DIRECT EXPENDITURE - Project Type | D22: EXPENDITURE ($0's)
D23: =CRY -> 2017-18
B24: HV Feeder Augmentations - Overhead Lines | D24: 3197789
B25: HV Feeder Augmentations - Underground Cables | D25: 1295623
B26: HV Feeder Non-Material Projects | D26: 0
B27: LV Feeder Augmentations - Overhead Lines | D27: 0
B28: LV Feeder Augmentations - Underground Cables | D28: 0
B29: LV Feeder Non-Material Projects | D29: 134158
B30: Distribution Substation Augmentations - Pole Mounted | D30: 608655
B31: Distribution Substation Augmentations - Ground Mounted | D31: 29402
B32: Distribution Substation Augmentations - Indoor | D32: 0
B35: 2.3.4 - AUGEX DATA - TOTAL EXPENDITURE
B36: AUGMENTATION CAPEX (As incurred) | D36: EXPENDITURE ($0's)
D37: =CRY -> 2017-18
B38: Subtransmission Substations, Switching Stations, Zone Substations | D38: 1087226.235
B39: Subtransmission Lines | D39: 0
B40: HV Feeders | D40: 6968688.431
B41: HV Feeders - Land Purchases and Easements | D41: 0
B42: Distribution Substations | D42: 123525.8702
B43: Distribution Substations - Land Purchases And Easements | D43: 0
B44: LV Feeders | D44: 1495986.514
B45: LV Feeders - Land Purchases And Easements | D45: 0
B46: Other Assets | D46: 0

Sheet 2.5 Connections
B1: REGULATORY REPORTING STATEMENT
B2: =INDEX(dms_TradingNameFull_List,MATCH(dms_TradingName,dms_TradingName_List)) -> TasNetworks (D)
B3: =CONCATENATE((LOOKUP(dms_Model,dms_Model_List,dms_Worksheet_List))&" "&CRY) -> CATEGORY ANALYSIS 2017-18
B4: 2.5 CONNECTIONS
B6: There are TWO tables on this worksheet. Each has been grouped for ease of navigation. See the Instructions sheet on how to group or ungroup tables.
B8: 2.5.1 - DESCRIPTOR METRICS
B9: <<<GROUP-ROW>>>
E11: VOLUMES AND EXPENDITURE
B12: CONNECTION SUBCATEGORY | C12: DESCRIPTOR METRIC | D12: UNITS | E12: =CRY -> 2017-18
B13: RESIDENTIAL | C13: Underground connections | D13: 0's | E13: 2322
C14: Overhead connections | D14: 0's | E14: 189
C15: Distribution substation installed | D15: MVA added | E15: 13.694
C16: Distribution substations installed | D16: 0's | E16: 195
C17: Distribution substation installed | D17: total spend $0s | E17: 308739.5337
C18: Augmentation HV | D18: net circuit km added | E18: 4.91
C19: Augmentation HV | D19: total spend $0s | E19: 3049.046864
C20: Augmentation LV | D20: net circuit km added | E20: 2.42
C21: Augmentation LV | D21: total spend $0s | E21: 1502.788882
C22: Mean days to connect residential customer with LV single phase connection | D22: 0's | E22: 9
C23: Volume of GSL breaches for residential customers | D23: 0's | E23: 134
C24: Volume of customer complaints relating to connection services | D24: 0's | E24: 146
C25: GSL payments | D25: $0s | E25: 14400
B26: COMMERCIAL/INDUSTRIAL | C26: Underground connections | D26: 0's | E26: 388
C27: Overhead connections | D27: 0's | E27: 60
C28: Distribution substation installed | D28: MVA added | E28: 31.577
C29: Distribution substations installed | D29: 0's | E29: 211
C30: Distribution substation installed | D30: total spend $0s | E30: 711922.6125
C31: Augmentation HV | D31: net circuit km added | E31: 25.44
C32: Augmentation HV | D32: total spend $0s | E32: 15797.91287
C33: Augmentation LV | D33: net circuit km added | E33: 2.02
C34: Augmentation LV | D34: total spend $0s | E34: 1254.394025
B35: SUBDIVISION | C35: Underground connections | D35: 0's | E35: 695
C36: Overhead connections | D36: 0's | E36: 84
C37: Distribution substation installed | D37: MVA added | E37: 5.605
C38: Distribution substations installed | D38: 0's | E38: 27
C39: Distribution substation installed | D39: total spend $0s | E39: 126368.1237
C40: Augmentation HV | D40: net circuit km added | E40: 5.26
C41: Augmentation HV | D41: total spend $0s | E41: 3266.392363
C42: Augmentation LV | D42: net circuit km added | E42: 13.61
C43: Augmentation LV | D43: total spend $0s | E43: 8451.634993
C44: Cost per lot ($) | D44: $0s | E44: 7210
B45: EMBEDDED GENERATION | C45: Underground connections | D45: 0's | E45: 1211
C46: Overhead connections | D46: 0's | E46: 1510
C47: Distribution substation installed | D47: MVA added
C48: Distribution substations installed | D48: 0's
C49: Distribution substation installed | D49: total spend $0s
C50: Augmentation HV | D50: net circuit km added
C51: Augmentation HV | D51: total spend $0s
C52: Augmentation LV | D52: net circuit km added
C53: Augmentation LV | D53: total spend $0s
B57: 2.5.2 - COST METRICS BY CONNECTION CLASSIFICATION
D58: EXPENDITURE ($0's) | E58: VOLUMES (0's)
B59: CONNECTION SUBCATEGORY | C59: CONNECTION CLASSIFICATION | D59: =CRY -> 2017-18 | E59: =CRY -> 2017-18
B60: RESIDENTIAL | C60: Simple connection LV | D60: 759786.0343 | E60: 2295
C61: Complex connection LV | D61: 721899.2593 | E61: 57
C62: Complex connection HV | D62: 2988813.833 | E62: 159
B63: COMMERCIAL/INDUSTRIAL | C63: Simple connection LV | D63: 93690.39116 | E63: 283
C64: Complex connection HV (customer connected at LV, minor HV works) | D64: 0 | E64: 0
C65: Complex connection HV (customer connected at LV, upstream asset works) | D65: 11924743.21 | E65: 165
C66: Complex connection HV (customer connected at HV) | D66: 0 | E66: 0
C67: Complex connection sub-transmission | D67: 0 | E67: 0
B68: SUBDIVISION | C68: Complex connection LV | D68: 4959733.753 | E68: 714
C69: Complex connection HV (no upstream asset works) | D69: 0 | E69: 0
C70: Complex connection HV (with upstream asset works) | D70: 944156.387 | E70: 65
B71: EMBEDDED GENERATION | C71: Simple connection LV | D71: 2072.64139 | E71: 2721
C72: Complex connection HV (small capacity) | D72: 0
C73: Complex connection HV (large capacity) | D73: 0

Sheet 2.6 Non-network
B1: REGULATORY REPORTING STATEMENT
B2: =INDEX(dms_TradingNameFull_List,MATCH(dms_TradingName,dms_TradingName_List)) -> TasNetworks (D)
B3: =CONCATENATE((LOOKUP(dms_Model,dms_Model_List,dms_Worksheet_List))&" "&CRY) -> CATEGORY ANALYSIS 2017-18
B4: 2.6 NON NETWORK EXPENDITURE
B6: There are THREE tables on this worksheet. Each has been grouped (and sub-grouped) for ease of navigation. See the Instructions sheet on how to group or ungroup tables.
B8: 2.6.1 - NON-NETWORK EXPENDITURE
F9: EXPENDITURE ($0's)
B10: SERVICE SUBCATEGORY | C10: ASSET CATEGORY | F10: =CRY -> 2017-18
B11: OPEX
B12: IT & COMMUNICATIONS | C12: Client device expenditure | F12: 4761527.445
C13: Recurrent expenditure | F13: 6165616.235
C14: Non-recurrent expenditure | F14: 0
B15: MOTOR VEHICLES | C15: Car | F15: 72672.44065
C16: Light commercial vehicle | F16: 2180173.22
C17: Elevated work platform (LCV) | F17: 0
C18: Elevated work platform (HCV) | F18: 145344.8813
C19: Heavy commercial vehicle | F19: 218017.322
B20: BUILDINGS AND PROPERTY | C20: Total buildings and property expenditure | F20: 3254481.144
B21: OTHER | C21: Other expenditure | F21: 0
B22: OTHER - DNSP nominated
B33: CAPEX
B34: IT & COMMUNICATIONS | C34: Client device expenditure | F34: 454057.3738
C35: Recurrent expenditure | F35: 10211806.14
C36: Non-recurrent expenditure | F36: 13710071.48
B37: MOTOR VEHICLES | C37: Car | F37: 90181.71916
C38: Light commercial vehicle | F38: 2705451.575
C39: Elevated work platform (LCV) | F39: 0
C40: Elevated work platform (HCV) | F40: 180363.4383
C41: Heavy commercial vehicle | F41: 270545.1575
B42: BUILDINGS AND PROPERTY | C42: Total buildings and property expenditure | F42: 2240070.603
B43: OTHER | C43: Other expenditure | F43: 0
B44: OTHER - DNSP nominated | C44: =IF(ISBLANK(C22),"",C22) -> 
C45: =IF(ISBLANK(C23),"",C23) -> 
B58: 2.6.2 - ANNUAL DESCRIPTOR METRICS - IT & COMMUNICATIONS EXPENDITURE
F59: VOLUMES (0's)
B61: NON-NETWORK CATEGORY | C61: DESCRIPTOR METRIC | F61: =CRY -> 2017-18
B62: IT & COMMUNICATIONS | C62: Employee numbers | F62: 546.5651913
C63: User numbers | F63: 705.7396823
C64: Number of devices | F64: 1632.11285
B67: 2.6.3 - ANNUAL DESCRIPTOR METRICS - MOTOR VEHICLES
F68: VOLUMES / %
B69: NON-NETWORK CATEGORY | C69: ASSET CATEGORY | D69: DESCRIPTOR METRIC | E69: UNITS | F69: =CRY -> 2017-18
B70: MOTOR VEHICLES | C70: CAR | D70: Average kilometres travelled | E70: 0's | F70: 11687
D71: Number purchased | E71: 0's | F71: 1
D72: Number leased | E72: 0's | F72: 0
D73: Number in fleet | E73: 0's | F73: 18
D74: Proportion of total fleet expenditure allocated as regulatory expenditure | E74: (per cent) | F74: 0.7186758476
C75: LIGHT COMMERCIAL VEHICLE | D75: Average kilometres travelled | E75: 0's | F75: 18231
D76: Number purchased | E76: 0's | F76: 22
D77: Number leased | E77: 0's | F77: 0
D78: Number in fleet | E78: 0's | F78: 274
D79: Proportion of total fleet expenditure allocated as regulatory expenditure | E79: (per cent) | F79: 0.7186758476
C80: ELEVATED WORK PLATFORM (LCV) | D80: Average kilometres travelled | E80: 0's | F80: 0
D81: Number purchased | E81: 0's | F81: 0
D82: Number leased | E82: 0's | F82: 0
D83: Number in fleet | E83: 0's | F83: 0
D84: Proportion of total fleet expenditure allocated as regulatory expenditure | E84: (per cent) | F84: 0
C85: ELEVATED WORK PLATFORM (HCV) | D85: Average kilometres travelled | E85: 0's | F85: 12665
D86: Number purchased | E86: 0's | F86: 1
D87: Number leased | E87: 0's | F87: 0
D88: Number in fleet | E88: 0's | F88: 35
D89: Proportion of total fleet expenditure allocated as regulatory expenditure | E89: (per cent) | F89: 0.7186758476
C90: HEAVY COMMERCIAL VEHICLE | D90: Average kilometres travelled | E90: 0's | F90: 8474
D91: Number purchased | E91: 0's | F91: 2
D92: Number leased | E92: 0's | F92: 0
D93: Number in fleet | E93: 0's | F93: 25
D94: Proportion of total fleet expenditure allocated as regulatory expenditure | E94: (per cent) | F94: 0.7186758476

Sheet 2.7 Vegetation management
B1: REGULATORY REPORTING STATEMENT
B2: =INDEX(dms_TradingNameFull_List,MATCH(dms_TradingName,dms_TradingName_List)) -> TasNetworks (D)
B3: =CONCATENATE((LOOKUP(dms_Model,dms_Model_List,dms_Worksheet_List))&" "&CRY) -> CATEGORY ANALYSIS 2017-18
B4: 2.7 VEGETATION MANAGEMENT
B6: There are THREE tables on this worksheet. Each has been grouped (and sub-grouped) for ease of navigation. See the Instructions sheet on how to group or ungroup tables.
B8: Please enter a description for each Zone in table 2.7.1 - Urban and CBD. The zone description will then autopopulate in tables 2.7.1 - Rural and 2.7.2.
A11: ` | B11: 2.7.1 - DESCRIPTOR METRICS BY ZONE
B12: URBAN AND CBD
E13: =CRY -> 2017-18
B14: ZONES | C14: ASSET | D14: UNITS
B15: ZONE 1 | C15: Route line length within zone | D15: km | E15: 1530.51
C16: Number of maintenance spans | D16: 0's | E16: 3848.301997
C17: Total length of maintenance spans | D17: km | E17: 258.4517732
C18: Length of vegetation corridors | D18: km | E18: 217.6578945
C19: Average number of trees per maintenance span | D19: 0's | E19: 4.020924902
C20: Average frequency of cutting cycle | D20: years | E20: 2
B21: ZONE 2 | C21: Route line length within zone | D21: km | E21: 200.68
C22: Number of maintenance spans | D22: 0's | E22: 767.2795601
C23: Total length of maintenance spans | D23: km | E23: 70.27373484
C24: Length of vegetation corridors | D24: km | E24: 16.34083064
C25: Average number of trees per maintenance span | D25: 0's | E25: 3.202662007
C26: Average frequency of cutting cycle | D26: years | E26: 1
B27: ZONE 3 | C27: Route line length within zone | D27: km
C28: Number of maintenance spans | D28: 0's
C29: Total length of maintenance spans | D29: km
C30: Length of vegetation corridors | D30: km
C31: Average number of trees per maintenance span | D31: 0's
C32: Average frequency of cutting cycle | D32: years
B33: ZONE 4 | C33: Route line length within zone | D33: km
C34: Number of maintenance spans | D34: 0's
C35: Total length of maintenance spans | D35: km
C36: Length of vegetation corridors | D36: km
C37: Average number of trees per maintenance span | D37: 0's
C38: Average frequency of cutting cycle | D38: years
B39: ZONE 5 | C39: Route line length within zone | D39: km
C40: Number of maintenance spans | D40: 0's
C41: Total length of maintenance spans | D41: km
C42: Length of vegetation corridors | D42: km
C43: Average number of trees per maintenance span | D43: 0's
C44: Average frequency of cutting cycle | D44: years
B45: ZONE 6 | C45: Route line length within zone | D45: km
C46: Number of maintenance spans | D46: 0's
C47: Total length of maintenance spans | D47: km
C48: Length of vegetation corridors | D48: km
C49: Average number of trees per maintenance span | D49: 0's
C50: Average frequency of cutting cycle | D50: years
B51: ZONE 7 | C51: Route line length within zone | D51: km
C52: Number of maintenance spans | D52: 0's
C53: Total length of maintenance spans | D53: km
C54: Length of vegetation corridors | D54: km
C55: Average number of trees per maintenance span | D55: 0's
C56: Average frequency of cutting cycle | D56: years
B57: ZONE 8 | C57: Route line length within zone | D57: km
C58: Number of maintenance spans | D58: 0's
C59: Total length of maintenance spans | D59: km
C60: Length of vegetation corridors | D60: km
C61: Average number of trees per maintenance span | D61: 0's
C62: Average frequency of cutting cycle | D62: years
B63: ZONE 9 | C63: Route line length within zone | D63: km
C64: Number of maintenance spans | D64: 0's
C65: Total length of maintenance spans | D65: km
C66: Length of vegetation corridors | D66: km
C67: Average number of trees per maintenance span | D67: 0's
C68: Average frequency of cutting cycle | D68: years
B69: ZONE 10 | C69: Route line length within zone | D69: km
C70: Number of maintenance spans | D70: 0's
C71: Total length of maintenance spans | D71: km
C72: Length of vegetation corridors | D72: km
C73: Average number of trees per maintenance span | D73: 0's
C74: Average frequency of cutting cycle | D74: years
B75: ZONE 11 | C75: Route line length within zone | D75: km
C76: Number of maintenance spans | D76: 0's
C77: Total length of maintenance spans | D77: km
C78: Length of vegetation corridors | D78: km
C79: Average number of trees per maintenance span | D79: 0's
C80: Average frequency of cutting cycle | D80: years
B81: ZONE 12 | C81: Route line length within zone | D81: km
C82: Number of maintenance spans | D82: 0's
C83: Total length of maintenance spans | D83: km
C84: Length of vegetation corridors | D84: km
C85: Average number of trees per maintenance span | D85: 0's
C86: Average frequency of cutting cycle | D86: years
B87: ZONE 13 | C87: Route line length within zone | D87: km
C88: Number of maintenance spans | D88: 0's
C89: Total length of maintenance spans | D89: km
C90: Length of vegetation corridors | D90: km
C91: Average number of trees per maintenance span | D91: 0's
C92: Average frequency of cutting cycle | D92: years
B93: ZONE 14 | C93: Route line length within zone | D93: km
C94: Number of maintenance spans | D94: 0's
C95: Total length of maintenance spans | D95: km
C96: Length of vegetation corridors | D96: km
C97: Average number of trees per maintenance span | D97: 0's
C98: Average frequency of cutting cycle | D98: years
B99: ZONE 15 | C99: Route line length within zone | D99: km
C100: Number of maintenance spans | D100: 0's
C101: Total length of maintenance spans | D101: km
C102: Length of vegetation corridors | D102: km
C103: Average number of trees per maintenance span | D103: 0's
C104: Average frequency of cutting cycle | D104: years
B105: ZONE 16 | C105: Route line length within zone | D105: km
C106: Number of maintenance spans | D106: 0's
C107: Total length of maintenance spans | D107: km
C108: Length of vegetation corridors | D108: km
C109: Average number of trees per maintenance span | D109: 0's
C110: Average frequency of cutting cycle | D110: years
B111: ZONE 17 | C111: Route line length within zone | D111: km
C112: Number of maintenance spans | D112: 0's
C113: Total length of maintenance spans | D113: km
C114: Length of vegetation corridors | D114: km
C115: Average number of trees per maintenance span | D115: 0's
C116: Average frequency of cutting cycle | D116: years
B117: ZONE 18 | C117: Route line length within zone | D117: km
C118: Number of maintenance spans | D118: 0's
C119: Total length of maintenance spans | D119: km
C120: Length of vegetation corridors | D120: km
C121: Average number of trees per maintenance span | D121: 0's
C122: Average frequency of cutting cycle | D122: years
B124: RURAL
E125: =CRY -> 2017-18
B126: ZONES | C126: ASSET | D126: UNITS
B127: =B15 -> ZONE 1 | C127: Route line length within zone | D127: km | E127: 12659.86
C128: Number of maintenance spans | D128: 0's | E128: 22559.53415
C129: Total length of maintenance spans | D129: km | E129: 1628.198138
C130: Length of vegetation corridors | D130: km | E130: 1787.742339
C131: Average number of trees per maintenance span | D131: 0's | E131: 33.15091897
C132: Average frequency of cutting cycle | D132: years | E132: 2
B133: =B21 -> ZONE 2 | C133: Route line length within zone | D133: km | E133: 3150.41
C134: Number of maintenance spans | D134: 0's | E134: 4292.003858
C135: Total length of maintenance spans | D135: km | E135: 399.4120064
C136: Length of vegetation corridors | D136: km | E136: 514.7437506
C137: Average number of trees per maintenance span | D137: 0's | E137: 19.05522741
C138: Average frequency of cutting cycle | D138: years | E138: 1
B139: =B27 -> ZONE 3 | C139: Route line length within zone | D139: km
C140: Number of maintenance spans | D140: 0's
C141: Total length of maintenance spans | D141: km
C142: Length of vegetation corridors | D142: km
C143: Average number of trees per maintenance span | D143: 0's
C144: Average frequency of cutting cycle | D144: years
B145: =B33 -> ZONE 4 | C145: Route line length within zone | D145: km
C146: Number of maintenance spans | D146: 0's
C147: Total length of maintenance spans | D147: km
C148: Length of vegetation corridors | D148: km
C149: Average number of trees per maintenance span | D149: 0's
C150: Average frequency of cutting cycle | D150: years
B151: =B39 -> ZONE 5 | C151: Route line length within zone | D151: km
C152: Number of maintenance spans | D152: 0's
C153: Total length of maintenance spans | D153: km
C154: Length of vegetation corridors | D154: km
C155: Average number of trees per maintenance span | D155: 0's
C156: Average frequency of cutting cycle | D156: years
B157: =B45 -> ZONE 6 | C157: Route line length within zone | D157: km
C158: Number of maintenance spans | D158: 0's
C159: Total length of maintenance spans | D159: km
C160: Length of vegetation corridors | D160: km
C161: Average number of trees per maintenance span | D161: 0's
C162: Average frequency of cutting cycle | D162: years
B163: =B51 -> ZONE 7 | C163: Route line length within zone | D163: km
C164: Number of maintenance spans | D164: 0's
C165: Total length of maintenance spans | D165: km
C166: Length of vegetation corridors | D166: km
C167: Average number of trees per maintenance span | D167: 0's
C168: Average frequency of cutting cycle | D168: years
B169: =B57 -> ZONE 8 | C169: Route line length within zone | D169: km
C170: Number of maintenance spans | D170: 0's
C171: Total length of maintenance spans | D171: km
C172: Length of vegetation corridors | D172: km
C173: Average number of trees per maintenance span | D173: 0's
C174: Average frequency of cutting cycle | D174: years
B175: =B63 -> ZONE 9 | C175: Route line length within zone | D175: km
C176: Number of maintenance spans | D176: 0's
C177: Total length of maintenance spans | D177: km
C178: Length of vegetation corridors | D178: km
C179: Average number of trees per maintenance span | D179: 0's
C180: Average frequency of cutting cycle | D180: years
B181: =B69 -> ZONE 10 | C181: Route line length within zone | D181: km
C182: Number of maintenance spans | D182: 0's
C183: Total length of maintenance spans | D183: km
C184: Length of vegetation corridors | D184: km
C185: Average number of trees per maintenance span | D185: 0's
C186: Average frequency of cutting cycle | D186: years
B187: =B75 -> ZONE 11 | C187: Route line length within zone | D187: km
C188: Number of maintenance spans | D188: 0's
C189: Total length of maintenance spans | D189: km
C190: Length of vegetation corridors | D190: km
C191: Average number of trees per maintenance span | D191: 0's
C192: Average frequency of cutting cycle | D192: years
B193: =B81 -> ZONE 12 | C193: Route line length within zone | D193: km
C194: Number of maintenance spans | D194: 0's
C195: Total length of maintenance spans | D195: km
C196: Length of vegetation corridors | D196: km
C197: Average number of trees per maintenance span | D197: 0's
C198: Average frequency of cutting cycle | D198: years
B199: =B87 -> ZONE 13 | C199: Route line length within zone | D199: km
C200: Number of maintenance spans | D200: 0's
C201: Total length of maintenance spans | D201: km
C202: Length of vegetation corridors | D202: km
C203: Average number of trees per maintenance span | D203: 0's
C204: Average frequency of cutting cycle | D204: years
B205: =B93 -> ZONE 14 | C205: Route line length within zone | D205: km
... 201 more rows

Sheet 2.8 Maintenance
B1: REGULATORY REPORTING STATEMENT
B2: =INDEX(dms_TradingNameFull_List,MATCH(dms_TradingName,dms_TradingName_List)) -> TasNetworks (D)
B3: =CONCATENATE((LOOKUP(dms_Model,dms_Model_List,dms_Worksheet_List))&" "&CRY) -> CATEGORY ANALYSIS 2017-18
B4: 2.8 MAINTENANCE
B6: There are TWO tables on this worksheet. Each has been grouped for ease of navigation. See the Instructions sheet on how to group or ungroup tables.
B8: 2.8.1 - DESCRIPTOR METRICS FOR ROUTINE AND NON-ROUTINE MAINTENANCE
F9: ASSET QUANTITY (0's) | H9: AVERAGE AGE OF ASSET GROUP | I9: INSPECTION CYCLE (YEARS) | J9: MAINTENANCE CYCLE (YEARS)
F10: AT YEAR END | G10: INSPECTED / MAINTAINED
B11: MAINTENANCE ACTIVITY | C11: MAINTENANCE ASSET CATEGORY | D11: ASSET QUANTITY | E11: Units | F11: =CRY -> 2017-18 | G11: =CRY -> 2017-18 | H11: =CRY -> 2017-18
B12: Pole top, overhead line & service line maintenance | C12: Pole tops and overhead lines | D12: Number of poles | E12: Number | F12: 230237 | G12: 39247 | H12: 29.69 | I12: 5 | J12: 5
C13: Service lines | D13: Number of customers | E13: Number | F13: 193797 | G13: 0 | H13: 28.3 | I13: 0 | J13: 0
B14: Pole inspection and treatment | C14: All poles | D14: Number of poles | E14: Number | F14: 230237 | G14: 39247 | H14: 30 | I14: 5 | J14: 5
B15: Overhead asset inspection | C15: All overhead assets | D15: Line patrolled (route KM) | E15: KM | F15: 20165 | G15: 6935 | H15: 32.78 | I15: 5 | J15: 5
B16: Network underground cable maintenance: by voltage | C16: LV - 11 to 22 KV | D16: Length (KM) | E16: KM | F16: 2488.27 | G16: - | H16: 18.858 | I16: - | J16: -
C17: 33 KV and above | D17: Length (KM) | E17: KM | F17: 72.152 | G17: 16 | H17: 24.483 | I17: 1 | J17: -
B18: Network underground cable maintenance: by location | C18: Cbd | D18: Length (KM) | E18: KM | F18: - | G18: - | H18: - | I18: - | J18: -
C19: Non-CBD | D19: Length (KM) | E19: KM | F19: 2560.422 | G19: - | H19: 19.017 | I19: - | J19: -
B20: Distribution substation equipment & property maintenance | C20: Distribution substation transformers | D20: Number of installed transformers | E20: Number | F20: 2291 | G20: 1291 | H20: 25.21830005 | I20: 1.78 | J20: 0
C21: Distribution substation switchgear (within-substations and stand-alone switchgear) | D21: Number of switches | E21: Number | F21: 5362 | G21: 3284 | H21: 20.60854093 | I21: 1.78 | J21: 6.67
C22: Distribution substation - other equipment | D22: Earth mat | E22: Number | F22: 2117 | G22: 1193 | H22: 24.94931362 | I22: 1.78 | J22: 0
C23: Distribution substation - property | D23: Number of distribution substation properties maintained | E23: Number | F23: 2117 | G23: 1193 | H23: 24.94931362 | I23: 1.78 | J23: 0
B24: Zone substation equipment maintenance | C24: Transformers - zone substation | D24: Number | E24: Number | F24: 27 | G24: 54 | H24: 23.88888889 | I24: 0.33 | J24: 2
C25: Transformers - distribution | D25: Number of distribution transformers within zone substation | E25: Number | F25: 13 | G25: 54 | H25: 27.92307692 | I25: 0.33 | J25: 0
C26: Transformers - HV | D26: Number of HV transformers | E26: Number | F26: 0 | G26: 0 | H26: 0 | I26: 0 | J26: 0
C27: Zone substation - other equipment | D27: HV switchgear | E27: Number | F27: 180 | G27: 54 | H27: 14.83888889 | I27: 0.33 | J27: 4
B28: Zone substation property maintenance | C28: All zone substation properties | D28: Number of zone substation properties maintained | E28: Number | F28: 13 | G28: 54 | H28: 27.92307692 | I28: 0.33 | J28: 0.33
B29: Public lighting maintenance | C29: Minor roads | D29: Number of public lights maintained | E29: Number | F29: 25348 | G29: 4210 | H29: 8.27197412 | I29: 4 | J29: 4
C30: Major roads | D30: Number of public lights maintained | E30: Number | F30: 11035 | G30: 4764 | H30: 10.18731309 | I30: 4 | J30: 4
B31: SCADA & network control maintenance | C31: SCADA & network control | D31: Number of systems | E31: Number | F31: 600 | G31: 45 | H31: 9 | I31: 0 | J31: 5
B32: Protection systems maintenance | C32: Protection systems | D32: Number of systems | E32: Number | F32: 172 | G32: 198 | H32: 38.3 | I32: 0.86 | J32: 5
B33: Subtransmission asset maintenance | C33: Subtransmission asset maintenance - for DNSPs with dual function assets | D33: <DNSP to nominate> | E33: Number
B34: Various assets | C34: includes rates, electricity, communications equip, metering | D34: Various | E34: Number
B35: Ground clearance - access tracks | C35: Access tracks | D35: Number | E35: Number | F35: 890 | G35: 178 | H35: 30 | I35: 5 | J35: 5
B36: Other | C36: Metering CTs | D36: Sets of CTs | E36: Number | F36: 3296 | G36: 322 | H36: 20.9 | I36: 10 | J36: 10
C37: Polemounted Distribution Substation | D37: Number | E37: Number | F37: 30657 | G37: 2567 | H37: 20.95312653 | I37: 10 | J37: 10
C38: Standby Generation | D38: Number of Transformers
B48: 2.8.2 - COST METRICS FOR ROUTINE AND NON-ROUTINE MAINTENANCE
F49: EXPENDITURE ($0'S)
F50: ROUTINE MAINTENANCE | G50: NON-ROUTINE MAINTENANCE
B51: MAINTENANCE ACTIVITY | C51: MAINTENANCE ASSET CATEGORY | D51: ASSET QUANTITY | E51: Units | F51: =CRY -> 2017-18 | G51: =CRY -> 2017-18
B52: Pole top, overhead line & service line maintenance | C52: Pole tops and overhead lines | D52: Number of poles | E52: Number | F52: 839508.83 | G52: 4499479.9
C53: Service lines | D53: Number of customers | E53: Number | F53: 381167.34 | G53: 0
B54: Pole inspection and treatment | C54: All poles | D54: Number of poles | E54: Number | F54: 1444563.18 | G54: 0
B55: Overhead asset inspection | C55: All overhead assets | D55: Line patrolled (route KM) | E55: KM | F55: 1644439.77 | G55: 0
B56: Network underground cable maintenance: by voltage | C56: LV - 11 to 22 KV | D56: Length (KM) | E56: KM | F56: 20747.84771 | G56: 204584.6101
C57: 33 KV and above | D57: Length (KM) | E57: KM | F57: 601.6222949 | G57: 5932.309913
B58: Network underground cable maintenance: by location | C58: Cbd | D58: Length (KM) | E58: KM | F58: 0 | G58: 0
C59: Non-CBD | D59: Length (KM) | E59: KM | F59: 21349.47 | G59: 210516.92
B60: Distribution substation equipment & property maintenance | C60: Distribution substation transformers | D60: Number of installed transformers | E60: Number | F60: 438077.78 | G60: 16394.31
C61: Distribution substation switchgear (within-substations and stand-alone switchgear) | D61: Number of switches | E61: Number | F61: 351001.43 | G61: 0
C62: Distribution substation - other equipment | D62: Earth mat | E62: Number | F62: 0 | G62: 0
C63: Distribution substation - property | D63: Number of distribution substation properties maintained | E63: Number | F63: 0 | G63: 291591.01
B64: Zone substation equipment maintenance | C64: Transformers - zone substation | D64: Number | E64: Number | F64: 23621.86 | G64: 0
C65: Transformers - distribution | D65: Number of distribution transformers within zone substation | E65: Number | F65: 23621.86 | G65: 0
C66: Transformers - HV | D66: Number of HV transformers | E66: Number | F66: 0 | G66: 0
C67: Zone substation - other equipment | D67: =IF(ISBLANK(D27),"",D27) -> HV switchgear | E67: =IF(ISBLANK(E27),"",E27) -> Number | F67: 55682.19 | G67: 15440.84
B68: Zone substation property maintenance | C68: All zone substation properties | D68: Number of zone substation properties maintained | E68: Number | F68: 98396.39 | G68: 0
B69: Public lighting maintenance | C69: Minor roads | D69: Number of public lights maintained | E69: Number | F69: 268750.0349 | G69: 293489.436
C70: Major roads | D70: Number of public lights maintained | E70: Number | F70: 293570.4021 | G70: 320594.6067
B71: SCADA & network control maintenance | C71: SCADA & network control | D71: Number of systems | E71: Number | F71: 121783.88 | G71: 882005.91
B72: Protection systems maintenance | C72: Protection systems | D72: Number of systems | E72: Number | F72: 0 | G72: 0
B73: Subtransmission asset maintenance | C73: Subtransmission asset maintenance - for DNSPs with dual function assets | D73: =IF(ISBLANK(D33),"",D33) -> <DNSP to nominate> | E73: =IF(ISBLANK(E33),"",E33) -> Number | F73: 0 | G73: 0
B74: Various assets | C74: includes rates, electricity, communications equip, metering | D74: Various | E74: Number | F74: 0 | G74: 0
B75: Ground clearance - access tracks | C75: Access tracks | D75: Number | E75: Number | F75: 0 | G75: 1030805.17
B76: Other | C76: =IF(ISBLANK(C36),"",C36) -> Metering CTs | D76: Sets of CTs | F76: 0 | G76: 0
C77: Polemounted Distribution Substation | D77: Number | F77: 0 | G77: 0
C78: Standby Generation | D78: Number of Transformers | F78: 0 | G78: 209946.51

Sheet 2.9 Emergency Response
B1: REGULATORY REPORTING STATEMENT
B2: =INDEX(dms_TradingNameFull_List,MATCH(dms_TradingName,dms_TradingName_List)) -> TasNetworks (D)
B3: =CONCATENATE((LOOKUP(dms_Model,dms_Model_List,dms_Worksheet_List))&" "&CRY) -> CATEGORY ANALYSIS 2017-18
B4: 2.9 EMERGENCY RESPONSE
B7: There is ONE table on this worksheet. It has been sub-grouped for ease of navigation. See the Instructions sheet on how to group or ungroup tables.
B9: 2.9.1 - EMERGENCY RESPONSE EXPENDITURE (OPEX)
C10: EXPENDITURE ($0's)
C11: =CRY -> 2017-18
B12: (A) TOTAL EMERGENCY RESPONSE EXPENDITURE
B13: Total Expenditure | C13: 9922060.49
B14: (B) MAJOR EVENTS O&M EXPENDITURE
B20: (C) MAJOR EVENT DAYS O&M EXPENDITURE
B21: 2018-05-11 | C21: 15893.5
B22: 2018-05-10 | C22: 4378.4
B23: 2018-02-14 | C23: 109491.78
B24: 2017-12-03 | C24: 73366.4
B25: 2017-08-11 | C25: 15270.86

Sheet 2.10 Overheads
B1: REGULATORY REPORTING STATEMENT
B2: =INDEX(dms_TradingNameFull_List,MATCH(dms_TradingName,dms_TradingName_List)) -> TasNetworks (D)
B3: =CONCATENATE((LOOKUP(dms_Model,dms_Model_List,dms_Worksheet_List))&" "&CRY) -> CATEGORY ANALYSIS 2017-18
B4: 2.10(A) OVERHEADS
B6: This worksheet may be completed on a voluntary basis. Please see worksheet 2.10 for an explanation of Overheads reporting options.
B9: There are TWO tables on this worksheet. Each has been grouped (and sub-grouped) for ease of navigation. See the Instructions sheet on how to group or ungroup tables.
B11: 2.10.1 - NETWORK OVERHEADS EXPENDITURE
D12: EXPENDITURE ($0's)
D13: =CRY -> 2017-18
B14: OPEX
B15: Standard Control Services | C15: Total | D15: 26409369.44
B16: Alternative Control Services | C16: Total | D16: 8452812.528
B17: CAPEX
B18: Standard Control Services | C18: Total | D18: 25171425.36
B19: Alternative Control Services | C19: Total | D19: 2256888.025
B20: OTHER DISTRIBUTION SERVICES
B21: Negotiated Services | C21: Total | D21: 180189.456
B22: Unregulated Services | C22: Total | D22: 1727741.98
B26: 2.10.2 - CORPORATE OVERHEADS EXPENDITURE
D27: EXPENDITURE ($0's)
D28: =CRY -> 2017-18
B29: OPEX
B30: Standard Control Services | C30: Total | D30: 16870356.19
B31: Alternative Control Services | C31: Total | D31: 4117506.678
B32: CAPEX
B33: Standard Control Services | C33: Total | D33: 10621012.76
B34: Alternative Control Services | C34: Total | D34: 1316580.865
B35: OTHER DISTRIBUTION SERVICES
B36: Negotiated Services | C36: Total | D36: 98785.01723
B37: Unregulated Services | C37: Total | D37: 1601942.75

Sheet 2.11 Labour
B1: REGULATORY REPORTING STATEMENT
B2: =INDEX(dms_TradingNameFull_List,MATCH(dms_TradingName,dms_TradingName_List)) -> TasNetworks (D)
B3: =CONCATENATE((LOOKUP(dms_Model,dms_Model_List,dms_Worksheet_List))&" "&CRY) -> CATEGORY ANALYSIS 2017-18
B4: 2.11 LABOUR
B6: There are TWO tables on this worksheet. Each has been grouped for ease of navigation. See the Instructions sheet on how to group or ungroup tables.
B8: 2.11.1 - COST METRICS PER ANNUM
D9: ASL (0's) | E9: TOTAL LABOUR EXPENDITURE ($0's) | F9: AVERAGE PRODUCTIVE WORK HOURS PER ASL (0's) | G9: STAND-DOWN OCCURENCES PER ASL (0's)
D11: =CRY -> 2017-18 | E11: =CRY -> 2017-18 | F11: =CRY -> 2017-18 | G11: =CRY -> 2017-18
B12: INTERNAL LABOUR EXPENDITURE
B13: CORPORATE OVERHEADS | C13: Executive manager | D13: 5.089670174 | E13: 1703926.347 | F13: 1642.5 | G13: 0
C14: Senior manager | D14: 3.958632357 | E14: 1222064.899 | F14: 1642.5 | G14: 0
C15: Manager | D15: 22.1683412 | E15: 5045672.251 | F15: 1577.189907 | G15: 0.02551020408
C16: Professional | D16: 51.68842821 | E16: 8835586.355 | F16: 1626.307338 | G16: 0.02188183807
C17: Semi professional | D17: 23.46903469 | E17: 3206900.172 | F17: 1590.85299 | G17: 0.1204819277
C18: Support staff | D18: 40.6608095 | E18: 4722141.729 | F18: 1560.776615 | G18: 0.611961057
C19: Intern, junior staff, apprentice | D19: 2.262075633 | E19: 239946.7583 | F19: 1643.83363 | G19: 0
B20: NETWORK OVERHEADS | C20: Executive manager | D20: 1.019594211 | E20: 523975.2897 | F20: 1642.5 | G20: 0
C21: Senior manager | D21: 6.627362368 | E21: 2298593.287 | F21: 1642.5 | G21: 0
C22: Manager | D22: 39.40731624 | E22: 8185046.956 | F22: 1676.260611 | G22: 0.1423027167
C23: Professional | D23: 48.08406297 | E23: 9316831.68 | F23: 1633.449274 | G23: 0
C24: Semi professional | D24: 11.71513748 | E24: 1877176.819 | F24: 1626.246212 | G24: 0
C25: Support staff | D25: 47.14603629 | E25: 5932598.573 | F25: 1583.581003 | G25: 0.03243944637
C26: Intern, junior staff, apprentice | D26: 1.019594211 | E26: 115692.316 | F26: 1642.5 | G26: 0
B27: TOTAL DIRECT NETWORK LABOUR | C27: Skilled electrical worker | D27: 131.7618901 | E27: 14860785.89 | F27: 1863.79071 | G27: 1.054933258
C28: Skilled non electical worker | D28: 69.68635407 | E28: 9057770.672 | F28: 1757.775483 | G28: 0.4305003526
C29: Apprentice | D29: 7.629892781 | E29: 767837.9335 | F29: 1771.73126 | G29: 0
C30: Unskilled worker | D30: 33.17095887 | E30: 2972791.291 | F30: 1676.00224 | G30: 0.09044055712
B33: 2.11.2 - DESCRIPTOR METRICS
D34: ORDINARY TIME (0's) | F34: OVERTIME (0's)
D35: PER ASL | E35: HOURLY RATE PER ASL | F35: PER ASL | G35: HOURLY RATE PER ASL
D36: =CRY -> 2017-18 | E36: =CRY -> 2017-18 | F36: =CRY -> 2017-18 | G36: =CRY -> 2017-18
B37: AVERAGE PRODUCTIVE WORK HOURS PER ASL
B38: CORPORATE OVERHEADS | C38: Executive manager | D38: 1642.5 | E38: 111.1031567 | F38: 0 | G38: 0
C39: Senior manager | D39: 1642.5 | E39: 102.450556 | F39: 0 | G39: 0
C40: Manager | D40: 1577.189907 | E40: 75.74778499 | F40: 6.799663505 | G40: 73.53247892
C41: Professional | D41: 1626.307338 | E41: 56.78435601 | F41: 12.06540245 | G41: 84.4120403
C42: Semi professional | D42: 1590.85299 | E42: 45.3438737 | F42: 5.649501955 | G42: 119.2700552
C43: Support staff | D43: 1560.776615 | E43: 38.47599826 | F43: 6.885167559 | G43: 71.69165805
C44: Intern, junior staff, apprentice | D44: 1643.83363 | E44: 35.20245769 | F44: 1.333630247 | G44: 58.39215686
B45: NETWORK OVERHEADS | C45: Executive manager | D45: 1642.5 | E45: 153.7442564 | F45: 0 | G45: 0
C46: Senior manager | D46: 1642.5 | E46: 103.7616505 | F46: 0 | G46: 0
C47: Manager | D47: 1676.260611 | E47: 62.0909199 | F47: 48.50099553 | G47: 69.57089016
C48: Professional | D48: 1633.449274 | E48: 57.9629403 | F48: 19.69302445 | G48: 95.67900418
C49: Semi professional | D49: 1626.246212 | E49: 47.90113163 | F49: 53.55246227 | G49: 49.56234969
C50: Support staff | D50: 1583.581003 | E50: 37.65121162 | F50: 33.59733001 | G50: 66.14626264
C51: Intern, junior staff, apprentice | D51: 1642.5 | E51: 33.94631282 | F51: 0 | G51: 0
B52: TOTAL DIRECT NETWORK LABOUR | C52: Skilled electrical worker | D52: 1863.79071 | E52: 42.08210669 | F52: 227.3711182 | G52: 107.7446662
C53: Skilled non electical worker | D53: 1757.775483 | E53: 48.51278567 | F53: 121.2482107 | G53: 93.90883768
C54: Apprentice | D54: 1771.73126 | E54: 37.54969444 | F54: 129.2312603 | G54: 106.9068357
C55: Unskilled worker | D55: 1676.00224 | E55: 33.44922596 | F55: 59.22441029 | G55: 92.19163831

Sheet 2.12 Input tables
B1: REGULATORY REPORTING STATEMENT
B2: =INDEX(dms_TradingNameFull_List,MATCH(dms_TradingName,dms_TradingName_List)) -> TasNetworks (D)
B3: =CONCATENATE((LOOKUP(dms_Model,dms_Model_List,dms_Worksheet_List))&" "&CRY) -> CATEGORY ANALYSIS 2017-18
B4: 2.12 INPUT TABLES
B6: There is ONE table on this worksheet. It has been sub-grouped for ease of navigation. See the Instructions sheet on how to group or ungroup tables.
B8: 2.12.1 - INPUT TABLES
D9: DIRECT MATERIAL EXPENDITURE | E9: DIRECT LABOUR EXPENDITURE | F9: CONTRACT EXPENDITURE | G9: OTHER EXPENDITURE | H9: RELATED PARTY CONTRACT EXPENDITURE | I9: RELATED PARTY CONTRACT MARGIN EXPENDITURE
D10: EXPENDITURE ($0's)
D11: =CRY -> 2017-18 | E11: 2017-18 | F11: 2017-18 | G11: 2017-18 | H11: 2017-18 | I11: 2017-18
B12: VEGETATION MANAGEMENT | C12: ='2.7 Vegetation management'!B15 -> ZONE 1 | D12: 30957.15333 | E12: 293686.6827 | F12: 19685787.96 | G12: 42639.31583
C13: ='2.7 Vegetation management'!B21 -> ZONE 2 | D13: 64.46667183 | E13: 611.5873379 | F13: 40994.636 | G13: 88.79417146
B30: ROUTINE MAINTENANCE | C30: Pole top, overhead line & service line maintenance | D30: 71905.61 | E30: 486269.35 | F30: 481290.04 | G30: 181211.17
C31: Pole inspection and treatment | D31: 146878.05 | E31: 880358.81 | F31: 222839.93 | G31: 194486.39
C32: Overhead asset inspection | D32: 110249.01 | E32: 200867.62 | F32: 1322117.3 | G32: 11205.84
C33: Network underground cable maintenance | D33: 491.82 | E33: 16935.94 | F33: 1704.72 | G33: 2216.99
C34: Distribution substation equipment & property maintenance | D34: 41467.59674 | E34: 517224.7143 | F34: 191919.8591 | G34: 38467.03991
C35: Zone substation equipment maintenance | D35: 40933.46969 | E35: 43212.84917 | F35: 15206.60199 | G35: 3572.989139
C36: Zone substation property maintenance | D36: 0 | E36: 5074.99 | F36: 92945.12 | G36: 376.28
C37: Public lighting maintenance | D37: -12503.30855 | E37: 116352.6754 | F37: 450790.6934 | G37: 7680.376674
C38: Scada & network control maintenance | D38: 0 | E38: 0 | F38: 0 | G38: 0
C39: Protection systems maintenance | D39: 0 | E39: 0 | F39: 0 | G39: 0
C40: Subtransmission asset maintenance - for dnsps with dual function assets | D40: 0 | E40: 0 | F40: 0 | G40: 0
C41: Other | D41: 4068.833563 | E41: 82416.59655 | F41: 33276.95894 | G41: 2021.49095
B42: NON-ROUTINE MAINTENANCE | C42: Pole top, overhead line & service line maintenance | D42: 343267.36 | E42: 1339214.13 | F42: 2663257.96 | G42: 153740.45
C43: Pole inspection and treatment | D43: 0 | E43: 0 | F43: 0 | G43: 0
C44: Overhead asset inspection | D44: 0 | E44: 0 | F44: 0 | G44: 0
C45: Network underground cable maintenance | D45: 14989.35 | E45: 103589.13 | F45: 84206.96 | G45: 7731.48
C46: Distribution substation equipment & property maintenance | D46: 12598.14 | E46: 100237.15 | F46: 89255.45 | G46: 105894.58
C47: Zone substation equipment maintenance | D47: 1673.71 | E47: 7197.06 | F47: 5577.78 | G47: 992.29
C48: Zone substation property maintenance | D48: 0 | E48: 0 | F48: 0 | G48: 0
C49: Public lighting maintenance | D49: -13654.28278 | E49: 127063.355 | F49: 492287.5877 | G49: 8387.382793
C50: SCADA & network control maintenance | D50: 89032.13 | E50: 104930.18 | F50: 679926.46 | G50: 8117.14
C51: Protection systems maintenance | D51: 0 | E51: 0 | F51: 0 | G51: 0
C52: Subtransmission asset maintenance - for DNSP with dual function assets | D52: 0 | E52: 0 | F52: 0 | G52: 0
C53: Other | D53: 63328.88 | E53: 68080.77 | F53: 1055632.78 | G53: 53709.25
B54: OVERHEADS | C54: Network overheads | D54: 59307.5639 | E54: 52673974.67 | F54: 3026962.007 | G54: -4179449.443
C55: Corporate overheads | D55: 261725.37 | E55: 14279559.47 | F55: 1308487.19 | G55: 11641596.92
B56: AUGMENTATION | C56: Subtransmission substations, switching stations, zone substations | D56: 108678.9 | E56: 133426.74 | F56: 753678.27 | G56: 11672.65
C57: Subtransmission lines | D57: 46051.71653 | E57: 9396.522608 | F57: 20587.14665 | G57: 3734.289287
C58: HV feeders | D58: 2336938.656 | E58: 746485.6686 | F58: 3809723.985 | G58: 75540.12145
C59: Distribution substations | D59: 85008.38379 | E59: 18552.25163 | F59: 17532.51119 | G59: 2432.723549
C60: LV feeders | D60: 624591.0638 | E60: 334947.9772 | F60: 489423.8072 | G60: 47023.66571
C61: Other assets
B62: CONNECTIONS | C62: Simple and complex customer connections | D62: 9685672.27 | E62: 4330582.8 | F62: 7654711.11 | G62: 723929.33
B63: EMERGENCY RESPONSE | C63: Major storms
C64: Major event days | D64: 15204.15 | E64: 184348.24 | F64: 8127.5 | G64: 10721.05
B65: PUBLIC LIGHTING | C65: All public lighting services | D65: 773043.8926 | E65: 385503.8498 | F65: 1159576.498 | G65: 41346.86921
B66: METERING | C66: All metering services | D66: 346701.19 | E66: 2792594.66 | F66: 132413.06 | G66: 313219.44
B67: FEE-BASED SERVICES | C67: All fee-based services | D67: 495099.92 | E67: 1862780.075 | F67: 181861.04 | G67: 242365.271
B68: QUOTED SERVICES | C68: All quoted services | D68: 792762.52 | E68: 812802.85 | F68: 1851932.07 | G68: 95675.01
B69: REPLACEMENT | C69: Poles | D69: 3495718.109 | E69: 4108142.87 | F69: 7670115.17 | G69: 544085.49
C70: Pole top structures | D70: 245303.7809 | E70: 316691.952 | F70: 1230295.129 | G70: 20516.35548
C71: Overhead conductors | D71: 2808870.003 | E71: 2601389.808 | F71: 10863660.12 | G71: 342022.2945
C72: Underground cables | D72: 963532.14 | E72: 394074.99 | F72: 3591398.34 | G72: 43653.96
C73: Service lines | D73: 305236.3097 | E73: 1287414.77 | F73: 121753.84 | G73: 12003.07
C74: Transformers | D74: 1518298.134 | E74: 886638.87 | F74: 1124240.04 | G74: 24488.06
C75: Switchgear | D75: 6922495.405 | E75: 1540063.87 | F75: 6215599.09 | G75: 173753.12
C76: Public lighting | D76: 910782.99 | E76: 60923.72 | F76: 244022.34 | G76: 8946.9
C77: SCADA network control and protection systems | D77: 0 | E77: 0 | F77: 0 | G77: 0
C78: Other | D78: 9675.928202 | E78: 0 | F78: 0 | G78: 0
B79: NON-NETWORK EXPENDITURE | C79: IT and communications | D79: 68475.91 | E79: 18867139.8 | F79: 8672784.029 | G79: 7694678.927
C80: Motor vehicles | D80: 2715490.427 | E80: 188210.72 | F80: 7336.35 | G80: 2951712.257
C81: Buildings and property | D81: 69490.28 | E81: 179740.54 | F81: 34769.39799 | G81: 5210551.529
C82: Other

Sheet 4.1 Public lighting
B1: REGULATORY REPORTING STATEMENT
B2: =INDEX(dms_TradingNameFull_List,MATCH(dms_TradingName,dms_TradingName_List)) -> TasNetworks (D)
B3: =CONCATENATE((LOOKUP(dms_Model,dms_Model_List,dms_Worksheet_List))&" "&CRY) -> CATEGORY ANALYSIS 2017-18
B4: 4.1 PUBLIC LIGHTING
B7: There are THREE tables on this worksheet. Each has been grouped for ease of navigation. See the Instructions sheet on how to group or ungroup tables.
B9: 4.1.1 - DESCRIPTOR METRICS OVER YEAR
E10: VOLUME (0's)
C11: LIGHT TYPE | E11: =CRY -> 2017-18
B12: POPULATION OF LIGHTS | C12: Compact Fluorescent 42 | E12: 5562
C13: Fluorescent 1x20 | E13: 7
C14: Fluorescent 1x40 | E14: 41
C15: Fluorescent 2X20 | E15: 8
C16: Fluorescent 2X24 | E16: 35
C17: Fluorescent 2x40 | E17: 3
C18: Fluorescent 3x40 | E18: 0
C19: Fluorescent 4x20 | E19: 0
C20: Fluorescent 4x40 | E20: 1
C21: High Pressure Sodium 100 | E21: 335
C22: High Pressure Sodium 150 | E22: 4232
C23: High Pressure Sodium 250 | E23: 5439
C24: High Pressure Sodium 400 | E24: 510
C25: High Pressure Sodium 70 | E25: 187
C26: Incandescent 100 | E26: 8
C27: Incandescent 60 | E27: 15
C28: LED 14 | E28: 5905
C29: LED 18 | E29: 722
C30: LED 25 | E30: 31
C31: LED 30 | E31: 1
C32: Mercury Vapour 125 | E32: 98
C33: Mercury Vapour 250 | E33: 420
C34: Mercury Vapour 400 | E34: 279
C35: Mercury Vapour 50 | E35: 159
C36: Mercury Vapour 80 | E36: 12327
C37: Metal Halide 100 | E37: 1
C38: Metal Halide 150 | E38: 27
C39: Metal Halide 250 | E39: 28
C40: Metal Halide 400 | E40: 2
B45: 4.1.2 - DESCRIPTOR METRICS ANNUALLY
E48: VOLUMES & EXPENDITURE
B49: SERVICE/SERVICE QUALITY | C49: DESCRIPTOR METRIC | D49: UNITS | E49: =CRY -> 2017-18
B50: LIGHT INSTALLATION | C50: Major road light installation | D50: 0's | E50: 24
C51: Minor road light installation | D51: 0's | E51: 280
C52: Number of poles installed | D52: 0's | E52: 0
C53: Total cost | D53: $0s | E53: 342003.9386
B54: LIGHT REPLACEMENT | C54: Major road light replacement | D54: 0's | E54: 341
C55: Minor road light replacement | D55: 0's | E55: 3191
C56: Number of poles replaced | D56: 0's | E56: 4
C57: Total cost | D57: $0s | E57: 897755.1799
B58: LIGHT MAINTENANCE | C58: Major road light maintenance | D58: 0's | E58: 4764
C59: Minor road light maintenance | D59: 0's | E59: 4210
C60: Number of poles installed | D60: 0's | E60: 0
C61: Total cost | D61: $0s | E61: 1119711.991
B62: QUALITY OF SUPPLY | C62: Mean days to rectify/replace public lighting assets | D62: days | E62: 12.4
C63: GSO breaches | D63: 0's | E63: 10
C64: GSL payments | D64: $0s | E64: 300
C65: Customer complaints | D65: 0's | E65: 46
B68: 4.1.3 - COST METRICS
E69: AVERAGE UNIT COST ($)
B70: ACTIVITY TYPE | C70: LIGHT TYPE | E70: =CRY -> 2017-18
B71: LIGHT INSTALLATION | C71: 150W Sodium Vapour | E71: 2213.733364
C72: 250W Sodium Vapour | E72: 2384.915022
C73: 14W 250V LED | E73: 1469.216771
C74: 18W 250V LED | E74: 1469.216771
C75: 25W 250V LED | E75: 1469.216771
B78: LIGHT REPLACEMENT | C78: 150W Metal Halide | E78: 395.6234077
C79: 150W Sodium Vapour | E79: 819.2800843
C80: 250W Metal Halide | E80: 395.6234077
C81: 250W Sodium Vapour | E81: 996.4089862
C82: 400W Metal Halide | E82: 395.6234077
C83: 400W Sodium Vapour | E83: 1077.861404
C84: 14W 250V LED | E84: 282.2706336
C85: 18W 250V LED | E85: 282.2706336
C86: 25W 250V LED | E86: 282.2706336
C87: 42W Compact Fluorescent | E87: 645.7343111
C88: 70W Sodium Vapour | E88: 643.6214966
B92: LIGHT MAINTENANCE | C92: 125W Mercury Vapour | E92: 109.060701
C93: 150W Sodium Vapour | E93: 222.5960862
C94: 250W Mercury Vapour | E94: 111.0846059
C95: 250W Sodium Vapour | E95: 270.7215089
C96: 400W Mercury Vapour | E96: 112.8112493
C97: 400W Sodium Vapour | E97: 292.8519008
C98: 100W Sodium Vapour | E98: 162.0807802
C99: 42W Compact Flourescent | E99: 76.69213434
C100: 50W Mercury Vapour | E100: 78.38902329
C101: 70W Sodium Vapour | E101: 174.8701438
C102: 80W Mercury Vapour | E102: 76.69213434

Sheet 4.2 Metering
B1: REGULATORY REPORTING STATEMENT
B2: =INDEX(dms_TradingNameFull_List,MATCH(dms_TradingName,dms_TradingName_List)) -> TasNetworks (D)
B3: =CONCATENATE((LOOKUP(dms_Model,dms_Model_List,dms_Worksheet_List))&" "&CRY) -> CATEGORY ANALYSIS 2017-18
B4: 4.2 METERING
B6: There are TWO tables on this worksheet. Each has been grouped for ease of navigation. See the Instructions sheet on how to group or ungroup tables.
B8: 4.2.1 - METERING DESCRIPTOR METRIC
D9: VOLUMES (0's)
B10: Asset Category | C10: Asset Subcategory | D10: =CRY -> 2017-18
B11: Meter Type 4 | C11: Single phase meter population | D11: 0
C12: Multi phase meter population | D12: 0
C13: Current transformer connected meter population | D13: 0
C14: Direct connect meter population | D14: 0
B15: Meter Type 5 | C15: Single phase meter population | D15: 0
C16: Multi phase meter population | D16: 0
C17: Current transformer connected meter population | D17: 0
C18: Direct connect meter population | D18: 0
B19: Meter Type 6 | C19: Single phase meter population | D19: 399548
C20: Multi phase meter population | D20: 37899
C21: Current transformer connected meter population | D21: 2548
C22: Direct connect meter population | D22: 434899
B25: 4.2.2 - COST METRICS
D26: VOLUMES (0's) | E26: EXPENDITURE ($0's)
B27: Service Subcategory | C27: Meter Type | D27: =CRY -> 2017-18 | E27: =CRY -> 2017-18
B28: Meter purchase | C28: Meter Type 4 | D28: 0 | E28: 0
C29: Meter Type 5 | D29: 0 | E29: 0
C30: Meter Type 6 | D30: 1000 | E30: 183244.274
B31: Meter testing | C31: Meter Type 4 | D31: 0 | E31: 0
C32: Meter Type 5 | D32: 0 | E32: 0
C33: Meter Type 6 | D33: 342 | E33: 243053.46
B34: Meter investigation | C34: Meter Type 4 | D34: 0 | E34: 0
C35: Meter Type 5 | D35: 0 | E35: 0
C36: Meter Type 6 | D36: 451 | E36: 22182.13
B37: Scheduled meter reading | C37: Meter Type 4 | D37: 0 | E37: 0
C38: Meter Type 5 | D38: 0 | E38: 0
C39: Meter Type 6 | D39: 2083230 | E39: 2232611.336
B40: Special meter reading | C40: Meter Type 4 | D40: 0 | E40: 0
C41: Meter Type 5 | D41: 0 | E41: 0
C42: Meter Type 6 | D42: 31624 | E42: 34414.06434
B43: New meter installation | C43: Meter Type 4 | D43: 0 | E43: 0
C44: Meter Type 5 | D44: 0 | E44: 0
C45: Meter Type 6 | D45: 3312 | E45: 655297.656
B46: Meter replacement | C46: Meter Type 4 | D46: 0 | E46: 0
C47: Meter Type 5 | D47: 0 | E47: 0
C48: Meter Type 6 | D48: 4199 | E48: 191943.3
B49: Meter maintenance | C49: Meter Type 4 | D49: 0 | E49: 0
C50: Meter Type 5 | D50: 0 | E50: 0
C51: Meter Type 6 | D51: 451 | E51: 22182.13
B52: Remote meter reading | C52: Meter Type 4 | D52: 0
B53: Remote meter re-configuration | C53: Meter Type 4 | D53: 0
B54: Other metering | C54: Meter Type 4
C55: Meter Type 5
C56: Meter Type 6
C57: Meter Type 7
B58: IT infrastructure capex | C58: Meter Type 4
B59: IT infrastructure opex | C59: Meter Type 4
B60: Communications infrastructure capex | C60: Meter Type 4
B61: Communications infrastructure opex | C61: Meter Type 4

Sheet 4.3 Fee-based services
B1: REGULATORY REPORTING STATEMENT
B2: =INDEX(dms_TradingNameFull_List,MATCH(dms_TradingName,dms_TradingName_List)) -> TasNetworks (D)
B3: =CONCATENATE((LOOKUP(dms_Model,dms_Model_List,dms_Worksheet_List))&" "&CRY) -> CATEGORY ANALYSIS 2017-18
B4: 4.3 ANCILLARY SERVICES - FEE BASED SERVICES
B6: 4.3.1 - COST METRICS FOR FEE-BASED SERVICES
D7: EXPENDITURE ($0's) | F7: VOLUMES (0's)
B8: SERVICE | C8: SERVICE SUBCATEGORY | D8: =CRY -> 2017-18 | F8: =CRY -> 2017-18
B9: Common Fee-Based Services | C9: Energisation | E9: ED_FEE431_00001
C10: De-energisation | E10: ED_FEE431_00002
C11: Re-energisation | E11: ED_FEE431_00003
B12: Miscellaneous Fee-Based Services | C12: Site visit - no appointment | D12: 951075.2517 | E12: ED_FEE431_00004 | F12: 44286
C13: Site visit - non-scheduled visit | D13: 32758.83579 | E13: ED_FEE431_00004 | F13: 690
C14: Site visit - same day premium service | D14: 13747.85088 | E14: ED_FEE431_00004 | F14: 171
C15: Site visit - after hours | D15: 1516.643684 | E15: ED_FEE431_00004 | F15: 12
C16: Site visit - credit actions or site issues | D16: 57752.3376 | E16: ED_FEE431_00004 | F16: 1156
C17: Site visit – credit actions pillar box/pole top | D17: 0 | E17: ED_FEE431_00004 | F17: 0
C18: Site visit – current transformer (CT) metering | D18: 46.55032646 | E18: ED_FEE431_00004 | F18: 1
E19: ED_FEE431_00011
E20: ED_FEE431_00012
E21: ED_FEE431_00013
C22: Tariff alteration - single phase | D22: 44481.1777 | E22: ED_FEE431_00004 | F22: 331
C23: Tariff alteration - multi phase | D23: 23247.5639 | E23: ED_FEE431_00004 | F23: 132
C24: Adjust time clock | D24: 0 | E24: ED_FEE431_00004 | F24: 0
C25: Install pulse outputs | D25: 0 | E25: ED_FEE431_00004 | F25: 0
C26: Remove meter - single phase | D26: 22173.39674 | E26: ED_FEE431_00004 | F26: 165
C27: Remove meter - multi phase | D27: 11976.01777 | E27: ED_FEE431_00004 | F27: 68
C28: Meter alteration - after hours visit | D28: 412.5795482 | E28: ED_FEE431_00004 | F28: 1
C29: Meter alteration Wasted Visit | D29: 0 | E29: ED_FEE431_00004 | F29: 0
C30: Meter test - single phase | D30: 4215.265499 | E30: ED_FEE431_00004 | F30: 15
C31: Meter test - multi phase | D31: 1580.83029 | E31: ED_FEE431_00004 | F31: 4
C32: Meter test – current transformer (CT) | D32: 0 | E32: ED_FEE431_00004 | F32: 0
C33: Meter test - after hours | D33: 0 | E33: ED_FEE431_00004 | F33: 0
C34: Meter test - wasted visit | D34: 1973.269265 | E34: ED_FEE431_00004 | F34: 24
C35: Remove service & meters | D35: 94176.85319 | E35: ED_FEE431_00004 | F35: 376
C36: Supply abolishment - after hours | D36: 0 | E36: ED_FEE431_00004 | F36: 0
C37: Supply abolishment - wasted visit | D37: 1628.403377 | E37: ED_FEE431_00004 | F37: 10
C38: Tee-up/Appointment | D38: 302812.156 | E38: ED_FEE431_00004 | F38: 2155
C39: Tee-up/Appointment – after hours | D39: 1889.948122 | E39: ED_FEE431_00004 | F39: 3
C40: Tee-up/Appointment – no truck – after hours | D40: 12788.5427 | E40: ED_FEE431_00004 | F40: 38
C41: Tee-up/Appointment – wasted visit | D41: 18524.78467 | E41: ED_FEE431_00004 | F41: 201
C42: Open turret | D42: 926.4956212 | E42: ED_FEE431_00004 | F42: 7
C43: Data download | D43: 0 | E43: ED_FEE431_00004 | F43: 0
C44: Alteration to unmetered supply | D44: 2663.644447 | E44: ED_FEE431_00004 | F44: 13
C45: Meter Relocation | D45: 3024.322537 | E45: ED_FEE431_00004 | F45: 19
C46: Miscellaneous service | D46: 5171.535776 | E46: ED_FEE431_00004 | F46: 43
C47: Miscellaneous service – after hours | D47: 1074.664341 | E47: ED_FEE431_00004 | F47: 2
C48: Miscellaneous service – wasted visit | D48: 288.2461151 | E48: ED_FEE431_00004 | F48: 3
C49: Overhead service, single span - single phase | D49: 111694.502 | E49: ED_FEE431_00004 | F49: 211
C50: Overhead service, single span - multi phase | D50: 40315.09133 | E50: ED_FEE431_00004 | F50: 54
C51: Underground service in turret/cabinet - single phase | D51: 256556.6483 | E51: ED_FEE431_00004 | F51: 1479
C52: Underground service in turret/cabinet - multi phase | D52: 51126.39709 | E52: ED_FEE431_00004 | F52: 235
C53: Underground service with pole mounted fuse - single phase | D53: 173245.1276 | E53: ED_FEE431_00004 | F53: 427
C54: Underground service with pole mounted fuse - multi phase | D54: 56053.57487 | E54: ED_FEE431_00004 | F54: 110
C55: Basic connection – after hours | D55: 0 | E55: ED_FEE431_00004 | F55: 0
C56: Connection establishment - wasted visit | D56: 27000.41758 | E56: ED_FEE431_00004 | F56: 182
C57: Modify existing connection for micro embedded generation - single phase | D57: 97676.82861 | E57: ED_FEE431_00004 | F57: 594
C58: Modify existing connection for micro embedded generation - multi phase | D58: 19586.41515 | E58: ED_FEE431_00004 | F58: 95
C59: Renewable energy connection - after hours | D59: 0 | E59: ED_FEE431_00004 | F59: 0
C60: Renewable energy connection – wasted visit | D60: 673.6466126 | E60: ED_FEE431_00004 | F60: 6
C61: Disconnect/reconnect overhead service for facia repairs - single phase | D61: 108184.9242 | E61: ED_FEE431_00004 | F61: 349
C62: Disconnect/reconnect overhead service for facia repairs - multi phase | D62: 0 | E62: ED_FEE431_00004 | F62: 0
C63: Temporary disconnect/reconnect – after hours | D63: 0 | E63: ED_FEE431_00004 | F63: 0
C64: Temporary disconnect/reconnect – wasted visit | D64: 357.0906113 | E64: ED_FEE431_00004 | F64: 2
C65: Connection alteration – overhead single phase | D65: 53627.48391 | E65: ED_FEE431_00004 | F65: 173
C66: Connection alteration – overhead multi phase | D66: 38966.31632 | E66: ED_FEE431_00004 | F66: 98
C67: Connection of new consumer mains to an existing installation – underground single phase to turret or pole | D67: 21202.3306 | E67: ED_FEE431_00004 | F67: 98
C68: Connection of new consumer mains to an existing installation – underground multi phase to turret or pole | D68: 23294.74705 | E68: ED_FEE431_00004 | F68: 88
C69: Augment single phase overhead service to multi phase supply | D69: 40615.03574 | E69: ED_FEE431_00004 | F69: 50
C70: Augment multi phase overhead service to single phase supply | D70: 4165.579451 | E70: ED_FEE431_00004 | F70: 7
C71: Augment single phase overhead service to underground supply (turret) | D71: 376.8899842 | E71: ED_FEE431_00004 | F71: 1
C72: Augment multi phase overhead service to underground supply (turret) | D72: 0 | E72: ED_FEE431_00004 | F72: 0
C73: Augment single phase overhead service to underground supply (pole) | D73: 24044.01342 | E73: ED_FEE431_00004 | F73: 51
C74: Augment multi phase overhead service to underground supply (pole) | D74: 10355.27678 | E74: ED_FEE431_00004 | F74: 18
C75: Basic connection alteration – after hours | D75: 0 | E75: ED_FEE431_00004 | F75: 0
C76: Basic connection wasted visit | D76: 11060.80126 | E76: ED_FEE431_00004 | F76: 66
E77: ED_FEE431_00069
E78: ED_FEE431_00471

Sheet 4.4 Quoted services
B1: REGULATORY REPORTING STATEMENT
B2: =INDEX(dms_TradingNameFull_List,MATCH(dms_TradingName,dms_TradingName_List)) -> TasNetworks (D)
B3: =CONCATENATE((LOOKUP(dms_Model,dms_Model_List,dms_Worksheet_List))&" "&CRY) -> CATEGORY ANALYSIS 2017-18
B4: 4.4 ANCILLARY SERVICES - QUOTED SERVICES
B6: 4.4.1 - COST METRICS FOR QUOTED SERVICES
D7: EXPENDITURE ($0's) | F7: VOLUMES (0's)
B8: SERVICE | C8: SERVICE SUBCATEGORY | D8: =CRY -> 2017-18 | F8: =CRY -> 2017-18
B9: Quoted Services | C9: Relocation/Removal - Poles | D9: 1495470.477 | E9: ED_QUO441_00002 | F9: 80
C10: Relocation/Removal - Substations | D10: 0 | E10: ED_QUO441_00002 | F10: 0
C11: Relocation/Removal - Transformers | D11: 162940.1648 | E11: ED_QUO441_00002 | F11: 17
C12: Relocation/Removal - Overhead | D12: 1041436.544 | E12: ED_QUO441_00002 | F12: 32
C13: Relocation/Removal - Underground | D13: 234754.9467 | E13: ED_QUO441_00002 | F13: 5
C14: Services of a Higher Standard Opex | D14: 0 | E14: ED_QUO441_00002 | F14: 0
C15: Services of higher standard - Poles | D15: 0 | E15: ED_QUO441_00002 | F15: 0
C16: Services of higher standard - Substation | D16: 0 | E16: ED_QUO441_00002 | F16: 0
C17: Services of higher standard - Transformers | D17: 0 | E17: ED_QUO441_00002 | F17: 0
C18: Services of higher standard - Overhead | D18: 0 | E18: ED_QUO441_00002 | F18: 0
C19: Quoted Services Service Connections Opex | D19: 0 | E19: ED_QUO441_00002 | F19: 0
C20: Services of a non standard nature - Connections | D20: 0 | E20: ED_QUO441_00002 | F20: 0
C21: OH & UG Subdivisions for Developers Opex | D21: 0 | E21: ED_QUO441_00002 | F21: 0
C22: Services of a non standard nature - Subdivisions | D22: 618570.3179 | E22: ED_QUO441_00002 | F22: 1
C23: Services of a Non-Standard Nature Opex | D23: 0 | E23: ED_QUO441_00002 | F23: 0
C24: Services of a non standard nature - Underground | D24: 0 | E24: ED_QUO441_00002 | F24: 0
C25: Services of a non standard nature - Overhead | D25: 0 | E25: ED_QUO441_00002 | F25: 0
C26: Services of a non standard nature - Poles | D26: 0 | E26: ED_QUO441_00002 | F26: 0
C27: New Category - Easements | D27: 0 | E27: ED_QUO441_00002 | F27: 0
C28: Easements | D28: 0 | E28: ED_QUO441_00002 | F28: 0
E29: ED_QUO441_00021
E30: ED_QUO441_00473

Sheet 5.2 Asset Age Profile
B1: REGULATORY REPORTING STATEMENT
B2: =INDEX(dms_TradingNameFull_List,MATCH(dms_TradingName,dms_TradingName_List)) -> TasNetworks (D)
B3: =CONCATENATE((LOOKUP(dms_Model,dms_Model_List,dms_Worksheet_List))&" "&CRY) -> CATEGORY ANALYSIS 2017-18
B4: 5.2 ASSET AGE PROFILE
B6: There is ONE table on this worksheet. Both the ROWS and COLUMNS have been 'grouped' for easy navigation. See the Instructions sheet on how to group or ungroup data.
B8: 5.2.1 - ASSET AGE PROFILE
D9: ECONOMIC LIFE (YEARS) | F9: INSTALLED ASSETS -˃ QUANTITY CURRENTLY IN COMMISSION BY YEAR
B10: ASSET GROUP | C10: ASSET CATEGORY | D10: MEAN | E10: STANDARD DEVIATION | F10: =CRY -> 2017-18 | G10: =IF(dms_RPT="financial",(VALUE(LEFT(F10,4)-1)&"-"&MID(F10,3,2)),VALUE(LEFT(F10,4)-1)) -> 2016-17 | H10: =IF(dms_RPT="financial",(VALUE(LEFT(G10,4)-1)&"-"&MID(G10,3,2)),VALUE(LEFT(G10,4)-1)) -> 2015-16 | I10: 2014-15 | J10: 2013-14 | K10: 2012-13 | L10: 2011-12 | M10: 2010-11 | N10: 2009-10 | O10: 2008-09 | P10: 2007-08 | Q10: 2006-07 | R10: 2005-06 | S10: 2004-05 | T10: 2003-04 | U10: 2002-03 | V10: 2001-02 | W10: 2000-01 | X10: 1999-00 | Y10: 1998-99 | Z10: 1997-98 | AA10: 1996-97 | AB10: 1995-96 | AC10: 1994-95 | AD10: 1993-94 | AE10: 1992-93 | AF10: 1991-92 | AG10: 1990-91 | AH10: 1989-90 | AI10: 1988-89 | AJ10: 1987-88 | AK10: 1986-87 | AL10: 1985-86 | AM10: =IF(dms_RPT="financial",(VALUE(LEFT(AL10,4)-1)&"-"&MID(AL10,3,2)),VALUE(LEFT(AL10,4)-1)) -> 1984-85 | AN10: 1983-84 | AO10: 1982-83 | AP10: 1981-82 | AQ10: 1980-81 | AR10: 1979-80 | AS10: 1978-79 | AT10: 1977-78 | AU10: 1976-77 | AV10: 1975-76 | AW10: 1974-75 | AX10: 1973-74 | AY10: 1972-73 | AZ10: 1971-72 | BA10: 1970-71 | BB10: 1969-70 | BC10: 1968-69 | BD10: 1967-68 | BE10: 1966-67 | BF10: 1965-66 | BG10: 1964-65 | BH10: 1963-64 | BI10: 1962-63 | BJ10: 1961-62 | BK10: 1960-61 | BL10: 1959-60 | BM10: 1958-59 | BN10: 1957-58 | BO10: 1956-57 | BP10: 1955-56 | BQ10: 1954-55 | BR10: 1953-54 | BS10: =IF(dms_RPT="financial",(VALUE(LEFT(BR10,4)-1)&"-"&MID(BR10,3,2)),VALUE(LEFT(BR10,4)-1)) -> 1952-53 | BT10: 1951-52 | BU10: 1950-51 | BV10: 1949-50 | BW10: 1948-49 | BX10: 1947-48 | BY10: 1946-47 | BZ10: 1945-46 | CA10: 1944-45 | CB10: 1943-44 | CC10: 1942-43 | CD10: 1941-42 | CE10: 1940-41 | CF10: 1939-40 | CG10: 1938-39 | CH10: 1937-38 | CI10: 1936-37 | CJ10: 1935-36 | CK10: 1934-35 | CL10: 1933-34 | CM10: 1932-33 | CN10: 1931-32 | CO10: 1930-31 | CP10: 1929-30 | CQ10: 1928-29 | CR10: 1927-28 | CS10: 1926-27 | CT10: 1925-26 | CU10: 1924-25 | CV10: 1923-24 | CW10: 1922-23 | CX10: 1921-22 | CY10: =IF(dms_RPT="financial",(VALUE(LEFT(CX10,4)-1)&"-"&MID(CX10,3,2)),VALUE(LEFT(CX10,4)-1)) -> 1920-21 | CZ10: 1919-20 | DA10: 1918-19 | DB10: 1917-18 | DC10: 1916-17 | DD10: 1915-16 | DE10: 1914-15 | DF10: 1913-14 | DG10: 1912-13 | DH10: =IF(dms_RPT="financial",(VALUE(LEFT(DG10,4)-1)&"-"&MID(DG10,3,2)),VALUE(LEFT(DG10,4)-1)) -> 1911-12 | DI10: =IF(dms_RPT="financial",(VALUE(LEFT(DH10,4)-1)&"-"&MID(DH10,3,2)),VALUE(LEFT(DH10,4)-1)) -> 1910-11 | DJ10: =IF(dms_RPT="financial",(VALUE(LEFT(DI10,4)-1)&"-"&MID(DI10,3,2)),VALUE(LEFT(DI10,4)-1)) -> 1909-10
B11: POLES BY: HIGHEST OPERATING VOLTAGE ; MATERIAL TYPE; STAKING (IF WOOD) | C11: Staking of a wooden pole | D11: 35 | E11: 5.916079783 | F11: 787 | G11: 935 | H11: 1139 | I11: 1704 | J11: 2308 | K11: 1418 | L11: 1608 | M11: 1611 | N11: 1526 | O11: 1269 | P11: 673 | Q11: 705 | R11: 900 | S11: 1182 | T11: 326 | U11: 209 | V11: 454 | W11: 609 | X11: 1015 | Y11: 1222 | Z11: 971 | AA11: 965 | AB11: 1059 | AC11: 1073 | AD11: 813 | AE11: 680 | AF11: 732 | AG11: 770 | AH11: 643 | AI11: 308 | AJ11: 116 | AK11: 31 | AL11: 7 | AM11: 1 | AN11: 0 | AO11: 0 | AP11: 0 | AQ11: 0 | AR11: 0 | AS11: 0 | AT11: 0 | AU11: 0 | AV11: 0 | AW11: 0 | AX11: 0 | AY11: 0 | AZ11: 0 | BA11: 0 | BB11: 0 | BC11: 0 | BD11: 0 | BE11: 0 | BF11: 0 | BG11: 0 | BH11: 0 | BI11: 0 | BJ11: 0 | BK11: 0 | BL11: 0 | BM11: 0 | BN11: 0 | BO11: 0 | BP11: 0 | BQ11: 0 | BR11: 0 | BS11: 0 | BT11: 0
C12: ˂ = 1 kV; Wood | D12: 35 | E12: 5.916079783 | F12: 452 | G12: 509 | H12: 500 | I12: 597 | J12: 642 | K12: 506 | L12: 640 | M12: 801 | N12: 960 | O12: 846 | P12: 713 | Q12: 676 | R12: 813 | S12: 876 | T12: 760 | U12: 684 | V12: 775 | W12: 897 | X12: 907 | Y12: 1000 | Z12: 901 | AA12: 786 | AB12: 727 | AC12: 669 | AD12: 774 | AE12: 1108 | AF12: 1603 | AG12: 1328 | AH12: 777 | AI12: 1014 | AJ12: 1406 | AK12: 1339 | AL12: 945 | AM12: 833 | AN12: 1084 | AO12: 1104 | AP12: 1040 | AQ12: 1056 | AR12: 883 | AS12: 898 | AT12: 956 | AU12: 936 | AV12: 584 | AW12: 278 | AX12: 569 | AY12: 806 | AZ12: 1287 | BA12: 1553 | BB12: 1364 | BC12: 1165 | BD12: 1095 | BE12: 1176 | BF12: 927 | BG12: 690 | BH12: 676 | BI12: 691 | BJ12: 519 | BK12: 253 | BL12: 127 | BM12: 53 | BN12: 15 | BO12: 2 | BP12: 1 | BQ12: 0 | BR12: 0 | BS12: 0 | BT12: 0
C13: > 1 kV & < = 11 kV; Wood | D13: 35 | E13: 5.916079783 | F13: 163 | G13: 316 | H13: 200 | I13: 254 | J13: 361 | K13: 286 | L13: 361 | M13: 519 | N13: 659 | O13: 623 | P13: 602 | Q13: 511 | R13: 468 | S13: 560 | T13: 588 | U13: 504 | V13: 509 | W13: 485 | X13: 443 | Y13: 523 | Z13: 628 | AA13: 686 | AB13: 671 | AC13: 678 | AD13: 560 | AE13: 679 | AF13: 987 | AG13: 966 | AH13: 767 | AI13: 843 | AJ13: 1045 | AK13: 1177 | AL13: 1112 | AM13: 901 | AN13: 902 | AO13: 745 | AP13: 589 | AQ13: 669 | AR13: 656 | AS13: 648 | AT13: 621 | AU13: 593 | AV13: 382 | AW13: 251 | AX13: 511 | AY13: 612 | AZ13: 852 | BA13: 1003 | BB13: 745 | BC13: 688 | BD13: 1034 | BE13: 962 | BF13: 439 | BG13: 275 | BH13: 249 | BI13: 304 | BJ13: 248 | BK13: 74 | BL13: 29 | BM13: 2 | BN13: 1 | BO13: 1 | BP13: 1 | BQ13: 1 | BR13: 1 | BS13: 0 | BT13: 0
C14: ˃ 11 kV & < = 22 kV; Wood | D14: 35 | E14: 5.916079783 | F14: 1184 | G14: 1484 | H14: 1324 | I14: 1744 | J14: 1666 | K14: 1722 | L14: 1759 | M14: 2121 | N14: 2625 | O14: 2304 | P14: 1925 | Q14: 2003 | R14: 2257 | S14: 2430 | T14: 2172 | U14: 1824 | V14: 2090 | W14: 2280 | X14: 2341 | Y14: 2661 | Z14: 2820 | AA14: 3132 | AB14: 3134 | AC14: 2479 | AD14: 2058 | AE14: 2310 | AF14: 2537 | AG14: 2328 | AH14: 1955 | AI14: 2069 | AJ14: 2464 | AK14: 2683 | AL14: 2633 | AM14: 2393 | AN14: 2317 | AO14: 1890 | AP14: 1614 | AQ14: 1840 | AR14: 1779 | AS14: 1935 | AT14: 1974 | AU14: 1854 | AV14: 1143 | AW14: 692 | AX14: 1705 | AY14: 1874 | AZ14: 2348 | BA14: 2894 | BB14: 2356 | BC14: 2317 | BD14: 2567 | BE14: 2502 | BF14: 2002 | BG14: 2038 | BH14: 2007 | BI14: 1886 | BJ14: 1607 | BK14: 787 | BL14: 319 | BM14: 72 | BN14: 2 | BO14: 1 | BP14: 0 | BQ14: 0 | BR14: 1 | BS14: 1 | BT14: 0
C15: > 22 kV & < = 66 kV; Wood | D15: 50 | E15: 7.071067812 | F15: 8 | G15: 6 | H15: 5 | I15: 12 | J15: 7 | K15: 9 | L15: 1 | M15: 5 | N15: 12 | O15: 6 | P15: 7 | Q15: 15 | R15: 55 | S15: 52 | T15: 7 | U15: 12 | V15: 14 | W15: 6 | X15: 6 | Y15: 9 | Z15: 10 | AA15: 6 | AB15: 5 | AC15: 6 | AD15: 6 | AE15: 11 | AF15: 17 | AG15: 26 | AH15: 38 | AI15: 26 | AJ15: 9 | AK15: 30 | AL15: 33 | AM15: 12 | AN15: 20 | AO15: 16 | AP15: 10 | AQ15: 18 | AR15: 57 | AS15: 61 | AT15: 21 | AU15: 14 | AV15: 10 | AW15: 6 | AX15: 26 | AY15: 33 | AZ15: 23 | BA15: 23 | BB15: 33 | BC15: 30 | BD15: 13 | BE15: 11 | BF15: 6 | BG15: 1 | BH15: 1 | BI15: 0 | BJ15: 0 | BK15: 0 | BL15: 0 | BM15: 0 | BN15: 1 | BO15: 1 | BP15: 1 | BQ15: 1 | BR15: 0 | BS15: 0 | BT15: 0
C16: > 66 kV & < = 132 kV; Wood | F16: 0 | G16: 0 | H16: 0 | I16: 0 | J16: 0 | K16: 0 | L16: 0 | M16: 0 | N16: 0 | O16: 0 | P16: 0 | Q16: 0 | R16: 0 | S16: 0 | T16: 0 | U16: 0 | V16: 0 | W16: 0 | X16: 0 | Y16: 0 | Z16: 0 | AA16: 0 | AB16: 0 | AC16: 0 | AD16: 0 | AE16: 0 | AF16: 0 | AG16: 0 | AH16: 0 | AI16: 0 | AJ16: 0 | AK16: 0 | AL16: 0 | AM16: 0 | AN16: 0 | AO16: 0 | AP16: 0 | AQ16: 0 | AR16: 0 | AS16: 0 | AT16: 0 | AU16: 0 | AV16: 0 | AW16: 0 | AX16: 0 | AY16: 0 | AZ16: 0 | BA16: 0 | BB16: 0 | BC16: 0 | BD16: 0 | BE16: 0 | BF16: 0 | BG16: 0 | BH16: 0 | BI16: 0 | BJ16: 0 | BK16: 0 | BL16: 0 | BM16: 0 | BN16: 0 | BO16: 0 | BP16: 0 | BQ16: 0 | BR16: 0 | BS16: 0 | BT16: 0
C17: > 132 kV; Wood | F17: 0 | G17: 0 | H17: 0 | I17: 0 | J17: 0 | K17: 0 | L17: 0 | M17: 0 | N17: 0 | O17: 0 | P17: 0 | Q17: 0 | R17: 0 | S17: 0 | T17: 0 | U17: 0 | V17: 0 | W17: 0 | X17: 0 | Y17: 0 | Z17: 0 | AA17: 0 | AB17: 0 | AC17: 0 | AD17: 0 | AE17: 0 | AF17: 0 | AG17: 0 | AH17: 0 | AI17: 0 | AJ17: 0 | AK17: 0 | AL17: 0 | AM17: 0 | AN17: 0 | AO17: 0 | AP17: 0 | AQ17: 0 | AR17: 0 | AS17: 0 | AT17: 0 | AU17: 0 | AV17: 0 | AW17: 0 | AX17: 0 | AY17: 0 | AZ17: 0 | BA17: 0 | BB17: 0 | BC17: 0 | BD17: 0 | BE17: 0 | BF17: 0 | BG17: 0 | BH17: 0 | BI17: 0 | BJ17: 0 | BK17: 0 | BL17: 0 | BM17: 0 | BN17: 0 | BO17: 0 | BP17: 0 | BQ17: 0 | BR17: 0 | BS17: 0 | BT17: 0
C18: ˂ = 1 kV; Concrete | D18: 35 | E18: 5.916079783 | F18: 8 | G18: 4 | H18: 4 | I18: 10 | J18: 3 | K18: 3 | L18: 4 | M18: 5 | N18: 3 | O18: 3 | P18: 3 | Q18: 1 | R18: 4 | S18: 4 | T18: 0 | U18: 0 | V18: 0 | W18: 0 | X18: 0 | Y18: 1 | Z18: 1 | AA18: 1 | AB18: 1 | AC18: 0 | AD18: 1 | AE18: 2 | AF18: 3 | AG18: 4 | AH18: 4 | AI18: 14 | AJ18: 14 | AK18: 6 | AL18: 17 | AM18: 17 | AN18: 7 | AO18: 3 | AP18: 6 | AQ18: 15 | AR18: 14 | AS18: 6 | AT18: 10 | AU18: 17 | AV18: 18 | AW18: 17 | AX18: 30 | AY18: 33 | AZ18: 51 | BA18: 99 | BB18: 125 | BC18: 180 | BD18: 188 | BE18: 168 | BF18: 246 | BG18: 373 | BH18: 318 | BI18: 222 | BJ18: 272 | BK18: 306 | BL18: 246 | BM18: 168 | BN18: 150 | BO18: 118 | BP18: 72 | BQ18: 37 | BR18: 17 | BS18: 2 | BT18: 1
C19: > 1 kV & < = 11 kV; Concrete | D19: 35 | E19: 5.916079783 | F19: 0 | G19: 0 | H19: 1 | I19: 3 | J19: 3 | K19: 2 | L19: 3 | M19: 4 | N19: 4 | O19: 3 | P19: 1 | Q19: 1 | R19: 1 | S19: 0 | T19: 0 | U19: 1 | V19: 1 | W19: 1 | X19: 1 | Y19: 1 | Z19: 1 | AA19: 1 | AB19: 1 | AC19: 1 | AD19: 2 | AE19: 2 | AF19: 0 | AG19: 2 | AH19: 6 | AI19: 11 | AJ19: 14 | AK19: 19 | AL19: 19 | AM19: 13 | AN19: 13 | AO19: 8 | AP19: 2 | AQ19: 7 | AR19: 8 | AS19: 4 | AT19: 1 | AU19: 1 | AV19: 2 | AW19: 1 | AX19: 2 | AY19: 7 | AZ19: 15 | BA19: 30 | BB19: 32 | BC19: 22 | BD19: 55 | BE19: 73 | BF19: 66 | BG19: 91 | BH19: 80 | BI19: 62 | BJ19: 77 | BK19: 93 | BL19: 93 | BM19: 87 | BN19: 73 | BO19: 62 | BP19: 44 | BQ19: 19 | BR19: 25 | BS19: 17 | BT19: 0
C20: ˃ 11 kV & < = 22 kV; Concrete | D20: 35 | E20: 5.916079783 | F20: 14 | G20: 12 | H20: 9 | I20: 1 | J20: 213 | K20: 10 | L20: 7 | M20: 5 | N20: 2 | O20: 2 | P20: 8 | Q20: 7 | R20: 6 | S20: 10 | T20: 5 | U20: 0 | V20: 2 | W20: 8 | X20: 16 | Y20: 30 | Z20: 25 | AA20: 11 | AB20: 8 | AC20: 1 | AD20: 1 | AE20: 1 | AF20: 4 | AG20: 3 | AH20: 2 | AI20: 2 | AJ20: 1 | AK20: 1 | AL20: 1 | AM20: 1 | AN20: 5 | AO20: 8 | AP20: 3 | AQ20: 1 | AR20: 21 | AS20: 25 | AT20: 8 | AU20: 3 | AV20: 0 | AW20: 0 | AX20: 0 | AY20: 0 | AZ20: 10 | BA20: 36 | BB20: 31 | BC20: 30 | BD20: 62 | BE20: 56 | BF20: 35 | BG20: 30 | BH20: 18 | BI20: 36 | BJ20: 49 | BK20: 24 | BL20: 8 | BM20: 74 | BN20: 79 | BO20: 10 | BP20: 2 | BQ20: 0 | BR20: 0 | BS20: 0 | BT20: 0
C21: > 22 kV & < = 66 kV; Concrete | D21: 50 | E21: 7.071067812 | F21: 0 | G21: 0 | H21: 0 | I21: 3 | J21: 0 | K21: 0 | L21: 0 | M21: 0 | N21: 0 | O21: 0 | P21: 0 | Q21: 1 | R21: 1 | S21: 0 | T21: 0 | U21: 0 | V21: 0 | W21: 0 | X21: 0 | Y21: 0 | Z21: 0 | AA21: 0 | AB21: 0 | AC21: 0 | AD21: 0 | AE21: 0 | AF21: 0 | AG21: 0 | AH21: 5 | AI21: 7 | AJ21: 3 | AK21: 1 | AL21: 2 | AM21: 3 | AN21: 1 | AO21: 0 | AP21: 1 | AQ21: 1 | AR21: 4 | AS21: 4 | AT21: 0 | AU21: 2 | AV21: 2 | AW21: 0 | AX21: 0 | AY21: 1 | AZ21: 12 | BA21: 26 | BB21: 17 | BC21: 5 | BD21: 14 | BE21: 26 | BF21: 50 | BG21: 55 | BH21: 34 | BI21: 15 | BJ21: 11 | BK21: 23 | BL21: 25 | BM21: 20 | BN21: 15 | BO21: 12 | BP21: 21 | BQ21: 25 | BR21: 14 | BS21: 1 | BT21: 0
C22: > 66 kV & < = 132 kV; Concrete | F22: 0 | G22: 0 | H22: 0 | I22: 0 | J22: 0 | K22: 0 | L22: 0 | M22: 0 | N22: 0 | O22: 0 | P22: 0 | Q22: 0 | R22: 0 | S22: 0 | T22: 0 | U22: 0 | V22: 0 | W22: 0 | X22: 0 | Y22: 0 | Z22: 0 | AA22: 0 | AB22: 0 | AC22: 0 | AD22: 0 | AE22: 0 | AF22: 0 | AG22: 0 | AH22: 0 | AI22: 0 | AJ22: 0 | AK22: 0 | AL22: 0 | AM22: 0 | AN22: 0 | AO22: 0 | AP22: 0 | AQ22: 0 | AR22: 0 | AS22: 0 | AT22: 0 | AU22: 0 | AV22: 0 | AW22: 0 | AX22: 0 | AY22: 0 | AZ22: 0 | BA22: 0 | BB22: 0 | BC22: 0 | BD22: 0 | BE22: 0 | BF22: 0 | BG22: 0 | BH22: 0 | BI22: 0 | BJ22: 0 | BK22: 0 | BL22: 0 | BM22: 0 | BN22: 0 | BO22: 0 | BP22: 0 | BQ22: 0 | BR22: 0 | BS22: 0 | BT22: 0
C23: > 132 kV; Concrete | F23: 0 | G23: 0 | H23: 0 | I23: 0 | J23: 0 | K23: 0 | L23: 0 | M23: 0 | N23: 0 | O23: 0 | P23: 0 | Q23: 0 | R23: 0 | S23: 0 | T23: 0 | U23: 0 | V23: 0 | W23: 0 | X23: 0 | Y23: 0 | Z23: 0 | AA23: 0 | AB23: 0 | AC23: 0 | AD23: 0 | AE23: 0 | AF23: 0 | AG23: 0 | AH23: 0 | AI23: 0 | AJ23: 0 | AK23: 0 | AL23: 0 | AM23: 0 | AN23: 0 | AO23: 0 | AP23: 0 | AQ23: 0 | AR23: 0 | AS23: 0 | AT23: 0 | AU23: 0 | AV23: 0 | AW23: 0 | AX23: 0 | AY23: 0 | AZ23: 0 | BA23: 0 | BB23: 0 | BC23: 0 | BD23: 0 | BE23: 0 | BF23: 0 | BG23: 0 | BH23: 0 | BI23: 0 | BJ23: 0 | BK23: 0 | BL23: 0 | BM23: 0 | BN23: 0 | BO23: 0 | BP23: 0 | BQ23: 0 | BR23: 0 | BS23: 0 | BT23: 0
C24: ˂ = 1 kV; Steel | D24: 35 | E24: 5.916079783 | F24: 266 | G24: 303 | H24: 501 | I24: 522 | J24: 382 | K24: 276 | L24: 417 | M24: 593 | N24: 712 | O24: 893 | P24: 900 | Q24: 895 | R24: 1025 | S24: 1057 | T24: 854 | U24: 529 | V24: 319 | W24: 504 | X24: 451 | Y24: 154 | Z24: 101 | AA24: 68 | AB24: 64 | AC24: 49 | AD24: 36 | AE24: 31 | AF24: 20 | AG24: 29 | AH24: 41 | AI24: 71 | AJ24: 76 | AK24: 51 | AL24: 37 | AM24: 9 | AN24: 9 | AO24: 15 | AP24: 9 | AQ24: 18 | AR24: 24 | AS24: 13 | AT24: 4 | AU24: 4 | AV24: 4 | AW24: 7 | AX24: 12 | AY24: 10 | AZ24: 8 | BA24: 8 | BB24: 8 | BC24: 14 | BD24: 9 | BE24: 8 | BF24: 6 | BG24: 4 | BH24: 5 | BI24: 7 | BJ24: 5 | BK24: 1 | BL24: 1 | BM24: 0 | BN24: 0 | BO24: 0 | BP24: 0 | BQ24: 0 | BR24: 0 | BS24: 0 | BT24: 0
C25: > 1 kV & < = 11 kV; Steel | D25: 35 | E25: 5.916079783 | F25: 5 | G25: 5 | H25: 0 | I25: 5 | J25: 3 | K25: 3 | L25: 5 | M25: 23 | N25: 23 | O25: 3 | P25: 5 | Q25: 13 | R25: 10 | S25: 8 | T25: 8 | U25: 0 | V25: 0 | W25: 0 | X25: 0 | Y25: 0 | Z25: 0 | AA25: 0 | AB25: 0 | AC25: 0 | AD25: 0 | AE25: 16 | AF25: 15 | AG25: 4 | AH25: 6 | AI25: 60 | AJ25: 61 | AK25: 16 | AL25: 7 | AM25: 12 | AN25: 13 | AO25: 4 | AP25: 0 | AQ25: 12 | AR25: 11 | AS25: 9 | AT25: 6 | AU25: 4 | AV25: 4 | AW25: 12 | AX25: 14 | AY25: 0 | AZ25: 0 | BA25: 9 | BB25: 13 | BC25: 0 | BD25: 0 | BE25: 0 | BF25: 4 | BG25: 3 | BH25: 0 | BI25: 0 | BJ25: 0 | BK25: 13 | BL25: 10 | BM25: 0 | BN25: 10 | BO25: 10 | BP25: 0 | BQ25: 0 | BR25: 0 | BS25: 0 | BT25: 0
C26: ˃ 11 kV & < = 22 kV; Steel | D26: 35 | E26: 5.916079783 | F26: 11 | G26: 53 | H26: 5 | I26: 16 | J26: 11 | K26: 54 | L26: 21 | M26: 159 | N26: 240 | O26: 110 | P26: 135 | Q26: 150 | R26: 31 | S26: 5 | T26: 31 | U26: 52 | V26: 21 | W26: 21 | X26: 88 | Y26: 82 | Z26: 6 | AA26: 6 | AB26: 0 | AC26: 0 | AD26: 7 | AE26: 8 | AF26: 18 | AG26: 24 | AH26: 0 | AI26: 0 | AJ26: 0 | AK26: 0 | AL26: 15 | AM26: 25 | AN26: 9 | AO26: 0 | AP26: 0 | AQ26: 0 | AR26: 0 | AS26: 35 | AT26: 61 | AU26: 49 | AV26: 26 | AW26: 47 | AX26: 57 | AY26: 22 | AZ26: 62 | BA26: 89 | BB26: 66 | BC26: 0 | BD26: 0 | BE26: 27 | BF26: 42 | BG26: 200 | BH26: 206 | BI26: 58 | BJ26: 36 | BK26: 7 | BL26: 5 | BM26: 82 | BN26: 82 | BO26: 5 | BP26: 5 | BQ26: 0 | BR26: 0 | BS26: 0 | BT26: 0
C27: > 22 kV & < = 66 kV; Steel | D27: 50 | E27: 7.071067812 | F27: 0 | G27: 0 | H27: 0 | I27: 0 | J27: 0 | K27: 0 | L27: 0 | M27: 0 | N27: 0 | O27: 11 | P27: 34 | Q27: 23 | R27: 0 | S27: 0 | T27: 0 | U27: 0 | V27: 0 | W27: 0 | X27: 0 | Y27: 0 | Z27: 0 | AA27: 0 | AB27: 0 | AC27: 0 | AD27: 0 | AE27: 1 | AF27: 1 | AG27: 0 | AH27: 0 | AI27: 0 | AJ27: 0 | AK27: 0 | AL27: 0 | AM27: 0 | AN27: 0 | AO27: 0 | AP27: 0 | AQ27: 0 | AR27: 0 | AS27: 0 | AT27: 0 | AU27: 0 | AV27: 0 | AW27: 0 | AX27: 0 | AY27: 0 | AZ27: 0 | BA27: 0 | BB27: 0 | BC27: 0 | BD27: 0 | BE27: 0 | BF27: 0 | BG27: 0 | BH27: 0 | BI27: 0 | BJ27: 0 | BK27: 0 | BL27: 0 | BM27: 0 | BN27: 0 | BO27: 0 | BP27: 0 | BQ27: 0 | BR27: 0 | BS27: 0 | BT27: 0
C28: > 66 kV & < = 132 kV; Steel | F28: 0 | G28: 0 | H28: 0 | I28: 0 | J28: 0 | K28: 0 | L28: 0 | M28: 0 | N28: 0 | O28: 0 | P28: 0 | Q28: 0 | R28: 0 | S28: 0 | T28: 0 | U28: 0 | V28: 0 | W28: 0 | X28: 0 | Y28: 0 | Z28: 0 | AA28: 0 | AB28: 0 | AC28: 0 | AD28: 0 | AE28: 0 | AF28: 0 | AG28: 0 | AH28: 0 | AI28: 0 | AJ28: 0 | AK28: 0 | AL28: 0 | AM28: 0 | AN28: 0 | AO28: 0 | AP28: 0 | AQ28: 0 | AR28: 0 | AS28: 0 | AT28: 0 | AU28: 0 | AV28: 0 | AW28: 0 | AX28: 0 | AY28: 0 | AZ28: 0 | BA28: 0 | BB28: 0 | BC28: 0 | BD28: 0 | BE28: 0 | BF28: 0 | BG28: 0 | BH28: 0 | BI28: 0 | BJ28: 0 | BK28: 0 | BL28: 0 | BM28: 0 | BN28: 0 | BO28: 0 | BP28: 0 | BQ28: 0 | BR28: 0 | BS28: 0 | BT28: 0
C29: > 132 kV; Steel | F29: 0 | G29: 0 | H29: 0 | I29: 0 | J29: 0 | K29: 0 | L29: 0 | M29: 0 | N29: 0 | O29: 0 | P29: 0 | Q29: 0 | R29: 0 | S29: 0 | T29: 0 | U29: 0 | V29: 0 | W29: 0 | X29: 0 | Y29: 0 | Z29: 0 | AA29: 0 | AB29: 0 | AC29: 0 | AD29: 0 | AE29: 0 | AF29: 0 | AG29: 0 | AH29: 0 | AI29: 0 | AJ29: 0 | AK29: 0 | AL29: 0 | AM29: 0 | AN29: 0 | AO29: 0 | AP29: 0 | AQ29: 0 | AR29: 0 | AS29: 0 | AT29: 0 | AU29: 0 | AV29: 0 | AW29: 0 | AX29: 0 | AY29: 0 | AZ29: 0 | BA29: 0 | BB29: 0 | BC29: 0 | BD29: 0 | BE29: 0 | BF29: 0 | BG29: 0 | BH29: 0 | BI29: 0 | BJ29: 0 | BK29: 0 | BL29: 0 | BM29: 0 | BN29: 0 | BO29: 0 | BP29: 0 | BQ29: 0 | BR29: 0 | BS29: 0 | BT29: 0
C30: Other | D30: 35 | E30: 5.916079783 | F30: 0 | G30: 1 | H30: 0 | I30: 0 | J30: 0 | K30: 1 | L30: 2 | M30: 3 | N30: 2 | O30: 3 | P30: 3 | Q30: 2 | R30: 0 | S30: 0 | T30: 0 | U30: 0 | V30: 0 | W30: 0 | X30: 0 | Y30: 0 | Z30: 0 | AA30: 0 | AB30: 0 | AC30: 0 | AD30: 0 | AE30: 0 | AF30: 0 | AG30: 0 | AH30: 0 | AI30: 0 | AJ30: 0 | AK30: 0 | AL30: 0 | AM30: 0 | AN30: 0 | AO30: 0 | AP30: 0 | AQ30: 0 | AR30: 0 | AS30: 0 | AT30: 0 | AU30: 0 | AV30: 0 | AW30: 0 | AX30: 0 | AY30: 0 | AZ30: 0 | BA30: 0 | BB30: 0 | BC30: 0 | BD30: 0 | BE30: 0 | BF30: 0 | BG30: 0 | BH30: 0 | BI30: 0 | BJ30: 0 | BK30: 0 | BL30: 0 | BM30: 0 | BN30: 0 | BO30: 0 | BP30: 0 | BQ30: 0 | BR30: 0 | BS30: 0 | BT30: 0
B31: OVERHEAD CONDUCTORS BY: HIGHEST OPERATING VOLTAGE; NUMBER OF PHASES (AT HV) | C31: ˂ = 1 kV | D31: 35 | E31: 5.916079783 | F31: 46.6675 | G31: 67.3964 | H31: 71.1601 | I31: 77.8768 | J31: 77.506 | K31: 78.7015 | L31: 83.1334 | M31: 105.5129 | N31: 119.8261 | O31: 105.6569 | P31: 89.0858 | Q31: 85.4213 | R31: 99.7747 | S31: 110.9578 | T31: 99.5519 | U31: 88.1308 | V31: 103.0074 | W31: 116.034 | X31: 125.6331 | Y31: 130.8054 | Z31: 114.7118 | AA31: 103.6115 | AB31: 96.489 | AC31: 84.6254 | AD31: 75.6091 | AE31: 92.5769 | AF31: 120.771 | AG31: 116.0757 | AH31: 86.9144 | AI31: 87.5521 | AJ31: 108.2158 | AK31: 114.0675 | AL31: 106.7807 | AM31: 98.546 | AN31: 100.2735 | AO31: 84.0004 | AP31: 75.0914 | AQ31: 87.5383 | AR31: 82.7861 | AS31: 84.3559 | AT31: 83.5402 | AU31: 73.454 | AV31: 44.785 | AW31: 27.2701 | AX31: 56.3414 | AY31: 71.069 | AZ31: 97.9897 | BA31: 109.4292 | BB31: 84.6962 | BC31: 76.4162 | BD31: 77.1739 | BE31: 69.1595 | BF31: 50.1083 | BG31: 43.1744 | BH31: 36.2157 | BI31: 30.7037 | BJ31: 26.2418 | BK31: 15.8855 | BL31: 9.6921 | BM31: 6.0083 | BN31: 4.8666 | BO31: 3.6792 | BP31: 2.0463 | BQ31: 0.7867 | BR31: 0.7145 | BS31: 0.1973 | BT31: 0
C32: > 1 kV & < = 11 kV | D32: 35 | E32: 5.916079783 | F32: 6.1753 | G32: 16.6252 | H32: 9.8977 | I32: 9.3866 | J32: 12.4886 | K32: 12.6935 | L32: 17.4447 | M32: 30.603 | N32: 21.0353 | O32: 17.6028 | P32: 15.8503 | Q32: 16.6549 | R32: 16.1977 | S32: 21.7577 | T32: 29.3509 | U32: 26.117 | V32: 20.422 | W32: 51.1292 | X32: 53.7565 | Y32: 28.3815 | Z32: 39.4256 | AA32: 48.9867 | AB32: 46.8063 | AC32: 55.6043 | AD32: 52.5264 | AE32: 53.4901 | AF32: 75.6492 | AG32: 81.102 | AH32: 73.3071 | AI32: 73.9717 | AJ32: 88.5787 | AK32: 127.0467 | AL32: 122.0137 | AM32: 92.8286 | AN32: 100.0266 | AO32: 80.3425 | AP32: 64.0113 | AQ32: 84.0967 | AR32: 88.9517 | AS32: 77.1974 | AT32: 77.8327 | AU32: 80.7228 | AV32: 58.066 | AW32: 42.247 | AX32: 57.5898 | AY32: 57.6765 | AZ32: 80.9686 | BA32: 115.3135 | BB32: 107.7562 | BC32: 59.8568 | BD32: 49.2058 | BE32: 54.0757 | BF32: 22.1303 | BG32: 16.8109 | BH32: 23.505 | BI32: 27.8052 | BJ32: 23.7446 | BK32: 14.1056 | BL32: 8.5974 | BM32: 4.9283 | BN32: 5.4789 | BO32: 4.0493 | BP32: 14.0523 | BQ32: 13.2389 | BR32: 1.6924 | BS32: 0.7405 | BT32: 0
C33: ˃ 11 kV & < = 22 kV ; SWER | D33: 35 | E33: 5.916079783 | F33: 0.5482 | G33: 21.3995 | H33: 0 | I33: 1.2301 | J33: 0 | K33: 2.4008 | L33: 3.5646 | M33: 2.4498 | N33: 0.5288 | O33: 0.0889 | P33: 0 | Q33: 0.0658 | R33: 2.093 | S33: 2.0272 | T33: 0.1573 | U33: 0.1626 | V33: 0.4525 | W33: 1.2296 | X33: 1.2659 | Y33: 3.0753 | Z33: 4.4202 | AA33: 5.3652 | AB33: 3.5578 | AC33: 5.3162 | AD33: 6.5948 | AE33: 6.3964 | AF33: 7.4282 | AG33: 4.2708 | AH33: 4.427 | AI33: 5.926 | AJ33: 5.6677 | AK33: 8.472 | AL33: 16.6083 | AM33: 19.7789 | AN33: 16.9598 | AO33: 10.8786 | AP33: 3.6383 | AQ33: 4.6806 | AR33: 6.7484 | AS33: 7.4524 | AT33: 7.2756 | AU33: 13.4562 | AV33: 16.7294 | AW33: 13.6331 | AX33: 22.113 | AY33: 19.7211 | AZ33: 10.4314 | BA33: 10.5319 | BB33: 12.3366 | BC33: 7.1346 | BD33: 15.6966 | BE33: 23.1095 | BF33: 11.9715 | BG33: 13.6662 | BH33: 12.0288 | BI33: 15.1178 | BJ33: 16.9635 | BK33: 22.2587 | BL33: 18.1611 | BM33: 0 | BN33: 0 | BO33: 0 | BP33: 0 | BQ33: 0 | BR33: 0 | BS33: 0 | BT33: 0
C34: ˃ 11 kV & < = 22 kV ; Single-Phase | D34: 35 | E34: 5.916079783 | F34: 9.5355 | G34: 16.6619 | H34: 9.6969 | I34: 6.4129 | J34: 8.9468 | K34: 13.13 | L34: 13.0864 | M34: 18.3292 | N34: 28.2985 | O34: 11.8483 | P34: 9.2172 | Q34: 11.395 | R34: 12.2387 | S34: 20.1912 | T34: 24.1286 | U34: 18.9095 | V34: 18.4417 | W34: 31.818 | X34: 36.4325 | Y34: 34.589 | Z34: 36.9909 | AA34: 39.8518 | AB34: 42.4059 | AC34: 52.1054 | AD34: 59.4996 | AE34: 60.3026 | AF34: 59.8219 | AG34: 57.7445 | AH34: 56.977 | AI34: 58.3954 | AJ34: 61.3443 | AK34: 66.1213 | AL34: 66.2991 | AM34: 66.5808 | AN34: 56.4757 | AO34: 35.8018 | AP34: 40.3855 | AQ34: 48.7503 | AR34: 50.6736 | AS34: 52.1013 | AT34: 45.9074 | AU34: 48.1483 | AV34: 34.3134 | AW34: 13.3614 | AX34: 29.4136 | AY34: 32.7634 | AZ34: 42.7271 | BA34: 53.6024 | BB34: 34.5448 | BC34: 21.9165 | BD34: 76.4371 | BE34: 79.4271 | BF34: 23.2583 | BG34: 23.3611 | BH34: 23.1951 | BI34: 26.9485 | BJ34: 26.2637 | BK34: 13.3429 | BL34: 3.5298 | BM34: 1.733 | BN34: 1.0107 | BO34: 0 | BP34: 3.0121 | BQ34: 3.0121 | BR34: 0 | BS34: 0 | BT34: 0
C35: ˃ 11 kV & < = 22 kV ; Multiple-Phase | D35: 35 | E35: 5.916079783 | F35: 88.3642 | G35: 103.822 | H35: 65.3213 | I35: 111.124 | J35: 103.692 | K35: 75.493 | L35: 102.0158 | M35: 133.1479 | N35: 118.072 | O35: 79.3688 | P35: 64.0646 | Q35: 68.0981 | R35: 82.975 | S35: 97.0468 | T35: 94.3426 | U35: 94.79 | V35: 111.1034 | W35: 172.434 | X35: 163.0706 | Y35: 124.5643 | Z35: 130.8045 | AA35: 168.5675 | AB35: 198.1821 | AC35: 188.1212 | AD35: 153.1097 | AE35: 136.8442 | AF35: 192.2341 | AG35: 200.5192 | AH35: 171.5701 | AI35: 181.3103 | AJ35: 220.0212 | AK35: 242.995 | AL35: 233.6667 | AM35: 204.4068 | AN35: 194.3387 | AO35: 174.316 | AP35: 166.7108 | AQ35: 215.4238 | AR35: 215.3295 | AS35: 218.4337 | AT35: 238.3549 | AU35: 214.63 | AV35: 141.7947 | AW35: 94.7621 | AX35: 169.0232 | AY35: 190.5073 | AZ35: 253.3054 | BA35: 322.667 | BB35: 273.5813 | BC35: 194.0486 | BD35: 193.7965 | BE35: 189.6743 | BF35: 126.12 | BG35: 154.6448 | BH35: 186.1531 | BI35: 240.8507 | BJ35: 221.4177 | BK35: 107.4663 | BL35: 32.0578 | BM35: 27.847 | BN35: 27.4166 | BO35: 0.6675 | BP35: 82.2729 | BQ35: 81.8925 | BR35: 0.2871 | BS35: 0 | BT35: 0
C36: > 22 kV & < = 66 kV | D36: 50 | E36: 7.071067812 | F36: 0.0531 | G36: 0 | H36: 0 | I36: 0 | J36: 0 | K36: 0 | L36: 0.1152 | M36: 0 | N36: 0 | O36: 0 | P36: 0 | Q36: 0 | R36: 0 | S36: 0 | T36: 0 | U36: 0 | V36: 0 | W36: 0 | X36: 0 | Y36: 0 | Z36: 0 | AA36: 0 | AB36: 0 | AC36: 0 | AD36: 0 | AE36: 0 | AF36: 0 | AG36: 0 | AH36: 5.0664 | AI36: 5.4506 | AJ36: 0.3842 | AK36: 0.9202 | AL36: 0.9202 | AM36: 0 | AN36: 3.3116 | AO36: 3.3892 | AP36: 0.0776 | AQ36: 0 | AR36: 0.1237 | AS36: 4.9316 | AT36: 4.9201 | AU36: 0.1122 | AV36: 0 | AW36: 1.7823 | AX36: 2.4956 | AY36: 1.9596 | AZ36: 1.341 | BA36: 0.4438 | BB36: 6.5676 | BC36: 8.8969 | BD36: 4.7107 | BE36: 7.255 | BF36: 10.8215 | BG36: 9.2475 | BH36: 4.5243 | BI36: 0.8756 | BJ36: 1.4026 | BK36: 6.1394 | BL36: 8.6831 | BM36: 6.0076 | BN36: 2.7526 | BO36: 2.959 | BP36: 4.079 | BQ36: 4.8239 | BR36: 3.6954 | BS36: 1.2879 | BT36: 0.6051
C37: > 66 kV & < = 132 kV | F37: 0 | G37: 0 | H37: 0 | I37: 0 | J37: 0 | K37: 0 | L37: 0 | M37: 0 | N37: 0 | O37: 0 | P37: 0 | Q37: 0 | R37: 0 | S37: 0 | T37: 0 | U37: 0 | V37: 0 | W37: 0 | X37: 0 | Y37: 0 | Z37: 0 | AA37: 0 | AB37: 0 | AC37: 0 | AD37: 0 | AE37: 0 | AF37: 0 | AG37: 0 | AH37: 0 | AI37: 0 | AJ37: 0 | AK37: 0 | AL37: 0 | AM37: 0 | AN37: 0 | AO37: 0 | AP37: 0 | AQ37: 0 | AR37: 0 | AS37: 0 | AT37: 0 | AU37: 0 | AV37: 0 | AW37: 0 | AX37: 0 | AY37: 0 | AZ37: 0 | BA37: 0 | BB37: 0 | BC37: 0 | BD37: 0 | BE37: 0 | BF37: 0 | BG37: 0 | BH37: 0 | BI37: 0 | BJ37: 0 | BK37: 0 | BL37: 0 | BM37: 0 | BN37: 0 | BO37: 0 | BP37: 0 | BQ37: 0 | BR37: 0 | BS37: 0 | BT37: 0
C38: > 132 kV | F38: 0 | G38: 0 | H38: 0 | I38: 0 | J38: 0 | K38: 0 | L38: 0 | M38: 0 | N38: 0 | O38: 0 | P38: 0 | Q38: 0 | R38: 0 | S38: 0 | T38: 0 | U38: 0 | V38: 0 | W38: 0 | X38: 0 | Y38: 0 | Z38: 0 | AA38: 0 | AB38: 0 | AC38: 0 | AD38: 0 | AE38: 0 | AF38: 0 | AG38: 0 | AH38: 0 | AI38: 0 | AJ38: 0 | AK38: 0 | AL38: 0 | AM38: 0 | AN38: 0 | AO38: 0 | AP38: 0 | AQ38: 0 | AR38: 0 | AS38: 0 | AT38: 0 | AU38: 0 | AV38: 0 | AW38: 0 | AX38: 0 | AY38: 0 | AZ38: 0 | BA38: 0 | BB38: 0 | BC38: 0 | BD38: 0 | BE38: 0 | BF38: 0 | BG38: 0 | BH38: 0 | BI38: 0 | BJ38: 0 | BK38: 0 | BL38: 0 | BM38: 0 | BN38: 0 | BO38: 0 | BP38: 0 | BQ38: 0 | BR38: 0 | BS38: 0 | BT38: 0
C39: Other | F39: 0 | G39: 0 | H39: 0 | I39: 0 | J39: 0 | K39: 0 | L39: 0 | M39: 0 | N39: 0 | O39: 0 | P39: 0 | Q39: 0 | R39: 0 | S39: 0 | T39: 0 | U39: 0 | V39: 0 | W39: 0 | X39: 0 | Y39: 0 | Z39: 0 | AA39: 0 | AB39: 0 | AC39: 0 | AD39: 0 | AE39: 0 | AF39: 0 | AG39: 0 | AH39: 0 | AI39: 0 | AJ39: 0 | AK39: 0 | AL39: 0 | AM39: 0 | AN39: 0 | AO39: 0 | AP39: 0 | AQ39: 0 | AR39: 0 | AS39: 0 | AT39: 0 | AU39: 0 | AV39: 0 | AW39: 0 | AX39: 0 | AY39: 0 | AZ39: 0 | BA39: 0 | BB39: 0 | BC39: 0 | BD39: 0 | BE39: 0 | BF39: 0 | BG39: 0 | BH39: 0 | BI39: 0 | BJ39: 0 | BK39: 0 | BL39: 0 | BM39: 0 | BN39: 0 | BO39: 0 | BP39: 0 | BQ39: 0 | BR39: 0 | BS39: 0 | BT39: 0
B40: UNDERGROUND CABLES BY: HIGHEST OPERATING VOLTAGE | C40: ˂ = 1 kV | D40: 60 | E40: 7.745966692 | F40: 53.7193 | G40: 49.537 | H40: 82.4194 | I40: 96.9233 | J40: 45.6982 | K40: 32.4268 | L40: 76.967 | M40: 144.58 | N40: 107.9472 | O40: 24.2671 | P40: 9.3751 | Q40: 13.3967 | R40: 21.6028 | S40: 24.1606 | T40: 15.2256 | U40: 12.9229 | V40: 11.6363 | W40: 6.6423 | X40: 10.6015 | Y40: 11.3845 | Z40: 14.5132 | AA40: 21.2411 | AB40: 17.6414 | AC40: 13.9136 | AD40: 17.8446 | AE40: 12.9925 | AF40: 10.1123 | AG40: 15.2156 | AH40: 16.9097 | AI40: 14.7893 | AJ40: 17.0903 | AK40: 21.8259 | AL40: 22.7624 | AM40: 22.7215 | AN40: 19.3465 | AO40: 20.3797 | AP40: 18.6088 | AQ40: 15.3409 | AR40: 17.04 | AS40: 14.1615 | AT40: 11.0063 | AU40: 16.3415 | AV40: 11.9709 | AW40: 5.3982 | AX40: 8.7892 | AY40: 7.0056 | AZ40: 3.725 | BA40: 5.0956 | BB40: 4.2663 | BC40: 2.4965 | BD40: 3.1271 | BE40: 2.9929 | BF40: 2.9106 | BG40: 1.9967 | BH40: 4.005 | BI40: 4.8228 | BJ40: 2.746 | BK40: 2.7024 | BL40: 2.3661 | BM40: 0.9768 | BN40: 0 | BO40: 0 | BP40: 0 | BQ40: 0 | BR40: 0 | BS40: 0 | BT40: 0
C41: > 1 kV & < = 11 kV | D41: 60 | E41: 7.745966692 | F41: 7.2447 | G41: 6.744 | H41: 6.3743 | I41: 6.0908 | J41: 7.9793 | K41: 3.7476 | L41: 8.864 | M41: 25.6472 | N41: 15.7988 | O41: 17.623 | P41: 14.6567 | Q41: 9.9058 | R41: 12.2975 | S41: 15.233 | T41: 12.3057 | U41: 9.063 | V41: 13.28 | W41: 12.768 | X41: 8.4163 | Y41: 7.5677 | Z41: 13.6568 | AA41: 13.5293 | AB41: 10.6858 | AC41: 14.5704 | AD41: 13.397 | AE41: 8.4222 | AF41: 6.6701 | AG41: 8.4618 | AH41: 12.1822 | AI41: 18.1538 | AJ41: 20.7498 | AK41: 19.7222 | AL41: 18.6758 | AM41: 16.8387 | AN41: 11.8846 | AO41: 12.2064 | AP41: 12.6493 | AQ41: 19.4813 | AR41: 21.3557 | AS41: 13.6828 | AT41: 15.2477 | AU41: 12.285 | AV41: 4.7191 | AW41: 3.1275 | AX41: 6.7138 | AY41: 6.2515 | AZ41: 7.8353 | BA41: 9.777 | BB41: 7.0458 | BC41: 6.6761 | BD41: 8.7288 | BE41: 7.7869 | BF41: 5.2145 | BG41: 7.0995 | BH41: 6.5078 | BI41: 5.893 | BJ41: 5.4383 | BK41: 3.6939 | BL41: 3.1033 | BM41: 1.0157 | BN41: 0 | BO41: 0 | BP41: 0 | BQ41: 0 | BR41: 0 | BS41: 0 | BT41: 0
C42: > 11 kV & < = 22 kV | D42: 60 | E42: 7.745966692 | F42: 9.6168 | G42: 6.2612 | H42: 4.5118 | I42: 4.1073 | J42: 6.8592 | K42: 15.0669 | L42: 8.8639 | M42: 23.4184 | N42: 26.447 | O42: 21.2097 | P42: 35.5732 | Q42: 45.4826 | R42: 28.6692 | S42: 19.8444 | T42: 22.2966 | U42: 15.3308 | V42: 23.028 | W42: 25.3468 | X42: 13.614 | Y42: 14.2772 | Z42: 21.6101 | AA42: 22.7168 | AB42: 12.3401 | AC42: 5.2624 | AD42: 4.3189 | AE42: 4.3544 | AF42: 5.6796 | AG42: 6.1861 | AH42: 5.0095 | AI42: 6.601 | AJ42: 7.9011 | AK42: 6.788 | AL42: 5.5316 | AM42: 4.64 | AN42: 6.3428 | AO42: 6.9495 | AP42: 4.6039 | AQ42: 6.0707 | AR42: 6.7106 | AS42: 4.3142 | AT42: 5.1062 | AU42: 5.108 | AV42: 2.6994 | AW42: 2.3276 | AX42: 2.0415 | AY42: 1.0787 | AZ42: 0.5425 | BA42: 0.7075 | BB42: 0.6935 | BC42: 0.4254 | BD42: 0 | BE42: 0.0915 | BF42: 0.0915 | BG42: 0.0979 | BH42: 0.0979 | BI42: 0 | BJ42: 0 | BK42: 0.0175 | BL42: 0.0175 | BM42: 0 | BN42: 0 | BO42: 0 | BP42: 0 | BQ42: 0 | BR42: 0 | BS42: 0 | BT42: 0
C43: > 22 kV & < = 33 kV | D43: 60 | E43: 7.745966692 | F43: 0.5824 | G43: 0 | H43: 0 | I43: 3.1169 | J43: 3.3972 | K43: 1.4832 | L43: 7.8441 | M43: 3.1185 | N43: 0 | O43: 11.9602 | P43: 11.5921 | Q43: 0 | R43: 0 | S43: 0 | T43: 0 | U43: 0 | V43: 0.6279 | W43: 0.6279 | X43: 0 | Y43: 0 | Z43: 0 | AA43: 0 | AB43: 0 | AC43: 0 | AD43: 0 | AE43: 0 | AF43: 0 | AG43: 0 | AH43: 0 | AI43: 0 | AJ43: 0 | AK43: 0 | AL43: 0 | AM43: 0 | AN43: 0 | AO43: 0 | AP43: 0 | AQ43: 0 | AR43: 0 | AS43: 0 | AT43: 0 | AU43: 0 | AV43: 0 | AW43: 0 | AX43: 0 | AY43: 0 | AZ43: 2.0093 | BA43: 2.0093 | BB43: 0 | BC43: 0 | BD43: 6.0497 | BE43: 6.0497 | BF43: 0 | BG43: 5.8418 | BH43: 5.8418 | BI43: 0 | BJ43: 0 | BK43: 0 | BL43: 0 | BM43: 0 | BN43: 0 | BO43: 0 | BP43: 0 | BQ43: 0 | BR43: 0 | BS43: 0 | BT43: 0
C44: > 33 kV & < = 66 kV | F44: 0 | G44: 0 | H44: 0 | I44: 0 | J44: 0 | K44: 0 | L44: 0 | M44: 0 | N44: 0 | O44: 0 | P44: 0 | Q44: 0 | R44: 0 | S44: 0 | T44: 0 | U44: 0 | V44: 0 | W44: 0 | X44: 0 | Y44: 0 | Z44: 0 | AA44: 0 | AB44: 0 | AC44: 0 | AD44: 0 | AE44: 0 | AF44: 0 | AG44: 0 | AH44: 0 | AI44: 0 | AJ44: 0 | AK44: 0 | AL44: 0 | AM44: 0 | AN44: 0 | AO44: 0 | AP44: 0 | AQ44: 0 | AR44: 0 | AS44: 0 | AT44: 0 | AU44: 0 | AV44: 0 | AW44: 0 | AX44: 0 | AY44: 0 | AZ44: 0 | BA44: 0 | BB44: 0 | BC44: 0 | BD44: 0 | BE44: 0 | BF44: 0 | BG44: 0 | BH44: 0 | BI44: 0 | BJ44: 0 | BK44: 0 | BL44: 0 | BM44: 0 | BN44: 0 | BO44: 0 | BP44: 0 | BQ44: 0 | BR44: 0 | BS44: 0 | BT44: 0
C45: > 66 kV & < = 132 kV | F45: 0 | G45: 0 | H45: 0 | I45: 0 | J45: 0 | K45: 0 | L45: 0 | M45: 0 | N45: 0 | O45: 0 | P45: 0 | Q45: 0 | R45: 0 | S45: 0 | T45: 0 | U45: 0 | V45: 0 | W45: 0 | X45: 0 | Y45: 0 | Z45: 0 | AA45: 0 | AB45: 0 | AC45: 0 | AD45: 0 | AE45: 0 | AF45: 0 | AG45: 0 | AH45: 0 | AI45: 0 | AJ45: 0 | AK45: 0 | AL45: 0 | AM45: 0 | AN45: 0 | AO45: 0 | AP45: 0 | AQ45: 0 | AR45: 0 | AS45: 0 | AT45: 0 | AU45: 0 | AV45: 0 | AW45: 0 | AX45: 0 | AY45: 0 | AZ45: 0 | BA45: 0 | BB45: 0 | BC45: 0 | BD45: 0 | BE45: 0 | BF45: 0 | BG45: 0 | BH45: 0 | BI45: 0 | BJ45: 0 | BK45: 0 | BL45: 0 | BM45: 0 | BN45: 0 | BO45: 0 | BP45: 0 | BQ45: 0 | BR45: 0 | BS45: 0 | BT45: 0
C46: > 132 kV | F46: 0 | G46: 0 | H46: 0 | I46: 0 | J46: 0 | K46: 0 | L46: 0 | M46: 0 | N46: 0 | O46: 0 | P46: 0 | Q46: 0 | R46: 0 | S46: 0 | T46: 0 | U46: 0 | V46: 0 | W46: 0 | X46: 0 | Y46: 0 | Z46: 0 | AA46: 0 | AB46: 0 | AC46: 0 | AD46: 0 | AE46: 0 | AF46: 0 | AG46: 0 | AH46: 0 | AI46: 0 | AJ46: 0 | AK46: 0 | AL46: 0 | AM46: 0 | AN46: 0 | AO46: 0 | AP46: 0 | AQ46: 0 | AR46: 0 | AS46: 0 | AT46: 0 | AU46: 0 | AV46: 0 | AW46: 0 | AX46: 0 | AY46: 0 | AZ46: 0 | BA46: 0 | BB46: 0 | BC46: 0 | BD46: 0 | BE46: 0 | BF46: 0 | BG46: 0 | BH46: 0 | BI46: 0 | BJ46: 0 | BK46: 0 | BL46: 0 | BM46: 0 | BN46: 0 | BO46: 0 | BP46: 0 | BQ46: 0 | BR46: 0 | BS46: 0 | BT46: 0
C47: Other | F47: 0 | G47: 0 | H47: 0 | I47: 0 | J47: 0 | K47: 0 | L47: 0 | M47: 0 | N47: 0 | O47: 0 | P47: 0 | Q47: 0 | R47: 0 | S47: 0 | T47: 0 | U47: 0 | V47: 0 | W47: 0 | X47: 0 | Y47: 0 | Z47: 0 | AA47: 0 | AB47: 0 | AC47: 0 | AD47: 0 | AE47: 0 | AF47: 0 | AG47: 0 | AH47: 0 | AI47: 0 | AJ47: 0 | AK47: 0 | AL47: 0 | AM47: 0 | AN47: 0 | AO47: 0 | AP47: 0 | AQ47: 0 | AR47: 0 | AS47: 0 | AT47: 0 | AU47: 0 | AV47: 0 | AW47: 0 | AX47: 0 | AY47: 0 | AZ47: 0 | BA47: 0 | BB47: 0 | BC47: 0 | BD47: 0 | BE47: 0 | BF47: 0 | BG47: 0 | BH47: 0 | BI47: 0 | BJ47: 0 | BK47: 0 | BL47: 0 | BM47: 0 | BN47: 0 | BO47: 0 | BP47: 0 | BQ47: 0 | BR47: 0 | BS47: 0 | BT47: 0
B48: SERVICE LINES BY: CONNECTION VOLTAGE; CUSTOMER TYPE; CONNECTION COMPLEXITY | C48: ˂ = 11 kV ; Residential ; Simple Type | D48: 40 | E48: 6.32455532 | F48: 2072 | G48: 3208 | H48: 3852 | I48: 3126 | J48: 2355 | K48: 1791 | L48: 2693 | M48: 3697 | N48: 4629 | O48: 3158 | P48: 1626 | Q48: 2305 | R48: 2957 | S48: 3445 | T48: 3209 | U48: 2575 | V48: 2665 | W48: 3550 | X48: 3565 | Y48: 3072 | Z48: 2675 | AA48: 2295 | AB48: 2188 | AC48: 1954 | AD48: 1868 | AE48: 2591 | AF48: 3666 | AG48: 3306 | AH48: 2369 | AI48: 2618 | AJ48: 3242 | AK48: 3323 | AL48: 2805 | AM48: 2571 | AN48: 2901 | AO48: 2777 | AP48: 2599 | AQ48: 2700 | AR48: 2368 | AS48: 2474 | AT48: 2657 | AU48: 2568 | AV48: 1595 | AW48: 852 | AX48: 1873 | AY48: 2535 | AZ48: 3662 | BA48: 4379 | BB48: 3777 | BC48: 3534 | BD48: 3620 | BE48: 3531 | BF48: 2754 | BG48: 2552 | BH48: 2414 | BI48: 2235 | BJ48: 1994 | BK48: 1321 | BL48: 828 | BM48: 477 | BN48: 346 | BO48: 255 | BP48: 163 | BQ48: 84 | BR48: 49 | BS48: 4 | BT48: 0 | BU48: 0 | BV48: 0 | BW48: 0 | BX48: 0 | BY48: 0 | BZ48: 0 | CA48: 0 | CB48: 0 | CC48: 0 | CD48: 0 | CE48: 0 | CF48: 0 | CG48: 0 | CH48: 0 | CI48: 0 | CJ48: 0 | CK48: 0 | CL48: 0 | CM48: 0 | CN48: 0 | CO48: 0 | CP48: 0 | CQ48: 0 | CR48: 0 | CS48: 0 | CT48: 0 | CU48: 0 | CV48: 0 | CW48: 0 | CX48: 0 | CY48: 0 | CZ48: 0 | DA48: 0 | DB48: 0 | DC48: 0 | DD48: 0 | DE48: 0 | DF48: 0 | DG48: 0 | DH48: 0 | DI48: 0 | DJ48: 0
C49: ˂ = 11 kV ; Commercial & Industrial ; Simple Type | D49: 40 | E49: 6.32455532 | F49: 393 | G49: 609 | H49: 731 | I49: 593 | J49: 447 | K49: 340 | L49: 511 | M49: 701 | N49: 878 | O49: 599 | P49: 308 | Q49: 437 | R49: 561 | S49: 654 | T49: 609 | U49: 488 | V49: 506 | W49: 673 | X49: 676 | Y49: 583 | Z49: 507 | AA49: 435 | AB49: 415 | AC49: 371 | AD49: 354 | AE49: 492 | AF49: 695 | AG49: 627 | AH49: 449 | AI49: 496 | AJ49: 615 | AK49: 630 | AL49: 532 | AM49: 488 | AN49: 550 | AO49: 527 | AP49: 493 | AQ49: 512 | AR49: 449 | AS49: 469 | AT49: 504 | AU49: 487 | AV49: 303 | AW49: 162 | AX49: 355 | AY49: 481 | AZ49: 695 | BA49: 831 | BB49: 716 | BC49: 670 | BD49: 687 | BE49: 670 | BF49: 522 | BG49: 484 | BH49: 458 | BI49: 424 | BJ49: 378 | BK49: 250 | BL49: 157 | BM49: 90 | BN49: 66 | BO49: 48 | BP49: 31 | BQ49: 16 | BR49: 9 | BS49: 1 | BT49: 0 | BU49: 0 | BV49: 0 | BW49: 0 | BX49: 0 | BY49: 0 | BZ49: 0 | CA49: 0 | CB49: 0 | CC49: 0 | CD49: 0 | CE49: 0 | CF49: 0 | CG49: 0 | CH49: 0 | CI49: 0 | CJ49: 0 | CK49: 0 | CL49: 0 | CM49: 0 | CN49: 0 | CO49: 0 | CP49: 0 | CQ49: 0 | CR49: 0 | CS49: 0 | CT49: 0 | CU49: 0 | CV49: 0 | CW49: 0 | CX49: 0 | CY49: 0 | CZ49: 0 | DA49: 0 | DB49: 0 | DC49: 0 | DD49: 0 | DE49: 0 | DF49: 0 | DG49: 0 | DH49: 0 | DI49: 0 | DJ49: 0
C50: ˂ = 11 kV ; Residential ; Complex Type | F50: 0 | G50: 0 | H50: 0 | I50: 0 | J50: 0 | K50: 0 | L50: 0 | M50: 0 | N50: 0 | O50: 0 | P50: 0 | Q50: 0 | R50: 0 | S50: 0 | T50: 0 | U50: 0 | V50: 0 | W50: 0 | X50: 0 | Y50: 0 | Z50: 0 | AA50: 0 | AB50: 0 | AC50: 0 | AD50: 0 | AE50: 0 | AF50: 0 | AG50: 0 | AH50: 0 | AI50: 0 | AJ50: 0 | AK50: 0 | AL50: 0 | AM50: 0 | AN50: 0 | AO50: 0 | AP50: 0 | AQ50: 0 | AR50: 0 | AS50: 0 | AT50: 0 | AU50: 0 | AV50: 0 | AW50: 0 | AX50: 0 | AY50: 0 | AZ50: 0 | BA50: 0 | BB50: 0 | BC50: 0 | BD50: 0 | BE50: 0 | BF50: 0 | BG50: 0 | BH50: 0 | BI50: 0 | BJ50: 0 | BK50: 0 | BL50: 0 | BM50: 0 | BN50: 0 | BO50: 0 | BP50: 0 | BQ50: 0 | BR50: 0 | BS50: 0 | BT50: 0 | BU50: 0 | BV50: 0 | BW50: 0 | BX50: 0 | BY50: 0 | BZ50: 0 | CA50: 0 | CB50: 0 | CC50: 0 | CD50: 0 | CE50: 0 | CF50: 0 | CG50: 0 | CH50: 0 | CI50: 0 | CJ50: 0 | CK50: 0 | CL50: 0 | CM50: 0 | CN50: 0 | CO50: 0 | CP50: 0 | CQ50: 0 | CR50: 0 | CS50: 0 | CT50: 0 | CU50: 0 | CV50: 0 | CW50: 0 | CX50: 0 | CY50: 0 | CZ50: 0 | DA50: 0 | DB50: 0 | DC50: 0 | DD50: 0 | DE50: 0 | DF50: 0 | DG50: 0 | DH50: 0 | DI50: 0 | DJ50: 0
C51: ˂ = 11 kV ; Commercial & Industrial ; Complex Type | F51: 0 | G51: 0 | H51: 0 | I51: 0 | J51: 0 | K51: 0 | L51: 0 | M51: 0 | N51: 0 | O51: 0 | P51: 0 | Q51: 0 | R51: 0 | S51: 0 | T51: 0 | U51: 0 | V51: 0 | W51: 0 | X51: 0 | Y51: 0 | Z51: 0 | AA51: 0 | AB51: 0 | AC51: 0 | AD51: 0 | AE51: 0 | AF51: 0 | AG51: 0 | AH51: 0 | AI51: 0 | AJ51: 0 | AK51: 0 | AL51: 0 | AM51: 0 | AN51: 0 | AO51: 0 | AP51: 0 | AQ51: 0 | AR51: 0 | AS51: 0 | AT51: 0 | AU51: 0 | AV51: 0 | AW51: 0 | AX51: 0 | AY51: 0 | AZ51: 0 | BA51: 0 | BB51: 0 | BC51: 0 | BD51: 0 | BE51: 0 | BF51: 0 | BG51: 0 | BH51: 0 | BI51: 0 | BJ51: 0 | BK51: 0 | BL51: 0 | BM51: 0 | BN51: 0 | BO51: 0 | BP51: 0 | BQ51: 0 | BR51: 0 | BS51: 0 | BT51: 0 | BU51: 0 | BV51: 0 | BW51: 0 | BX51: 0 | BY51: 0 | BZ51: 0 | CA51: 0 | CB51: 0 | CC51: 0 | CD51: 0 | CE51: 0 | CF51: 0 | CG51: 0 | CH51: 0 | CI51: 0 | CJ51: 0 | CK51: 0 | CL51: 0 | CM51: 0 | CN51: 0 | CO51: 0 | CP51: 0 | CQ51: 0 | CR51: 0 | CS51: 0 | CT51: 0 | CU51: 0 | CV51: 0 | CW51: 0 | CX51: 0 | CY51: 0 | CZ51: 0 | DA51: 0 | DB51: 0 | DC51: 0 | DD51: 0 | DE51: 0 | DF51: 0 | DG51: 0 | DH51: 0 | DI51: 0 | DJ51: 0
C52: ˂ = 11 kV ; Subdivision ; Complex Type | F52: 0 | G52: 0 | H52: 0 | I52: 0 | J52: 0 | K52: 0 | L52: 0 | M52: 0 | N52: 0 | O52: 0 | P52: 0 | Q52: 0 | R52: 0 | S52: 0 | T52: 0 | U52: 0 | V52: 0 | W52: 0 | X52: 0 | Y52: 0 | Z52: 0 | AA52: 0 | AB52: 0 | AC52: 0 | AD52: 0 | AE52: 0 | AF52: 0 | AG52: 0 | AH52: 0 | AI52: 0 | AJ52: 0 | AK52: 0 | AL52: 0 | AM52: 0 | AN52: 0 | AO52: 0 | AP52: 0 | AQ52: 0 | AR52: 0 | AS52: 0 | AT52: 0 | AU52: 0 | AV52: 0 | AW52: 0 | AX52: 0 | AY52: 0 | AZ52: 0 | BA52: 0 | BB52: 0 | BC52: 0 | BD52: 0 | BE52: 0 | BF52: 0 | BG52: 0 | BH52: 0 | BI52: 0 | BJ52: 0 | BK52: 0 | BL52: 0 | BM52: 0 | BN52: 0 | BO52: 0 | BP52: 0 | BQ52: 0 | BR52: 0 | BS52: 0 | BT52: 0 | BU52: 0 | BV52: 0 | BW52: 0 | BX52: 0 | BY52: 0 | BZ52: 0 | CA52: 0 | CB52: 0 | CC52: 0 | CD52: 0 | CE52: 0 | CF52: 0 | CG52: 0 | CH52: 0 | CI52: 0 | CJ52: 0 | CK52: 0 | CL52: 0 | CM52: 0 | CN52: 0 | CO52: 0 | CP52: 0 | CQ52: 0 | CR52: 0 | CS52: 0 | CT52: 0 | CU52: 0 | CV52: 0 | CW52: 0 | CX52: 0 | CY52: 0 | CZ52: 0 | DA52: 0 | DB52: 0 | DC52: 0 | DD52: 0 | DE52: 0 | DF52: 0 | DG52: 0 | DH52: 0 | DI52: 0 | DJ52: 0
C53: > 11 kV & < = 22 kV ; Commercial & Industrial | F53: 0 | G53: 0 | H53: 0 | I53: 0 | J53: 0 | K53: 0 | L53: 0 | M53: 0 | N53: 0 | O53: 0 | P53: 0 | Q53: 0 | R53: 0 | S53: 0 | T53: 0 | U53: 0 | V53: 0 | W53: 0 | X53: 0 | Y53: 0 | Z53: 0 | AA53: 0 | AB53: 0 | AC53: 0 | AD53: 0 | AE53: 0 | AF53: 0 | AG53: 0 | AH53: 0 | AI53: 0 | AJ53: 0 | AK53: 0 | AL53: 0 | AM53: 0 | AN53: 0 | AO53: 0 | AP53: 0 | AQ53: 0 | AR53: 0 | AS53: 0 | AT53: 0 | AU53: 0 | AV53: 0 | AW53: 0 | AX53: 0 | AY53: 0 | AZ53: 0 | BA53: 0 | BB53: 0 | BC53: 0 | BD53: 0 | BE53: 0 | BF53: 0 | BG53: 0 | BH53: 0 | BI53: 0 | BJ53: 0 | BK53: 0 | BL53: 0 | BM53: 0 | BN53: 0 | BO53: 0 | BP53: 0 | BQ53: 0 | BR53: 0 | BS53: 0 | BT53: 0 | BU53: 0 | BV53: 0 | BW53: 0 | BX53: 0 | BY53: 0 | BZ53: 0 | CA53: 0 | CB53: 0 | CC53: 0 | CD53: 0 | CE53: 0 | CF53: 0 | CG53: 0 | CH53: 0 | CI53: 0 | CJ53: 0 | CK53: 0 | CL53: 0 | CM53: 0 | CN53: 0 | CO53: 0 | CP53: 0 | CQ53: 0 | CR53: 0 | CS53: 0 | CT53: 0 | CU53: 0 | CV53: 0 | CW53: 0 | CX53: 0 | CY53: 0 | CZ53: 0 | DA53: 0 | DB53: 0 | DC53: 0 | DD53: 0 | DE53: 0 | DF53: 0 | DG53: 0 | DH53: 0 | DI53: 0 | DJ53: 0
C54: > 11 kV & < = 22 kV ; Subdivision | F54: 0 | G54: 0 | H54: 0 | I54: 0 | J54: 0 | K54: 0 | L54: 0 | M54: 0 | N54: 0 | O54: 0 | P54: 0 | Q54: 0 | R54: 0 | S54: 0 | T54: 0 | U54: 0 | V54: 0 | W54: 0 | X54: 0 | Y54: 0 | Z54: 0 | AA54: 0 | AB54: 0 | AC54: 0 | AD54: 0 | AE54: 0 | AF54: 0 | AG54: 0 | AH54: 0 | AI54: 0 | AJ54: 0 | AK54: 0 | AL54: 0 | AM54: 0 | AN54: 0 | AO54: 0 | AP54: 0 | AQ54: 0 | AR54: 0 | AS54: 0 | AT54: 0 | AU54: 0 | AV54: 0 | AW54: 0 | AX54: 0 | AY54: 0 | AZ54: 0 | BA54: 0 | BB54: 0 | BC54: 0 | BD54: 0 | BE54: 0 | BF54: 0 | BG54: 0 | BH54: 0 | BI54: 0 | BJ54: 0 | BK54: 0 | BL54: 0 | BM54: 0 | BN54: 0 | BO54: 0 | BP54: 0 | BQ54: 0 | BR54: 0 | BS54: 0 | BT54: 0 | BU54: 0 | BV54: 0 | BW54: 0 | BX54: 0 | BY54: 0 | BZ54: 0 | CA54: 0 | CB54: 0 | CC54: 0 | CD54: 0 | CE54: 0 | CF54: 0 | CG54: 0 | CH54: 0 | CI54: 0 | CJ54: 0 | CK54: 0 | CL54: 0 | CM54: 0 | CN54: 0 | CO54: 0 | CP54: 0 | CQ54: 0 | CR54: 0 | CS54: 0 | CT54: 0 | CU54: 0 | CV54: 0 | CW54: 0 | CX54: 0 | CY54: 0 | CZ54: 0 | DA54: 0 | DB54: 0 | DC54: 0 | DD54: 0 | DE54: 0 | DF54: 0 | DG54: 0 | DH54: 0 | DI54: 0 | DJ54: 0
C55: > 22 kV & < = 33 kV ; Commercial & Industrial | F55: 0 | G55: 0 | H55: 0 | I55: 0 | J55: 0 | K55: 0 | L55: 0 | M55: 0 | N55: 0 | O55: 0 | P55: 0 | Q55: 0 | R55: 0 | S55: 0 | T55: 0 | U55: 0 | V55: 0 | W55: 0 | X55: 0 | Y55: 0 | Z55: 0 | AA55: 0 | AB55: 0 | AC55: 0 | AD55: 0 | AE55: 0 | AF55: 0 | AG55: 0 | AH55: 0 | AI55: 0 | AJ55: 0 | AK55: 0 | AL55: 0 | AM55: 0 | AN55: 0 | AO55: 0 | AP55: 0 | AQ55: 0 | AR55: 0 | AS55: 0 | AT55: 0 | AU55: 0 | AV55: 0 | AW55: 0 | AX55: 0 | AY55: 0 | AZ55: 0 | BA55: 0 | BB55: 0 | BC55: 0 | BD55: 0 | BE55: 0 | BF55: 0 | BG55: 0 | BH55: 0 | BI55: 0 | BJ55: 0 | BK55: 0 | BL55: 0 | BM55: 0 | BN55: 0 | BO55: 0 | BP55: 0 | BQ55: 0 | BR55: 0 | BS55: 0 | BT55: 0 | BU55: 0 | BV55: 0 | BW55: 0 | BX55: 0 | BY55: 0 | BZ55: 0 | CA55: 0 | CB55: 0 | CC55: 0 | CD55: 0 | CE55: 0 | CF55: 0 | CG55: 0 | CH55: 0 | CI55: 0 | CJ55: 0 | CK55: 0 | CL55: 0 | CM55: 0 | CN55: 0 | CO55: 0 | CP55: 0 | CQ55: 0 | CR55: 0 | CS55: 0 | CT55: 0 | CU55: 0 | CV55: 0 | CW55: 0 | CX55: 0 | CY55: 0 | CZ55: 0 | DA55: 0 | DB55: 0 | DC55: 0 | DD55: 0 | DE55: 0 | DF55: 0 | DG55: 0 | DH55: 0 | DI55: 0 | DJ55: 0
C56: > 22 kV & < = 33 kV ; Subdivision | F56: 0 | G56: 0 | H56: 0 | I56: 0 | J56: 0 | K56: 0 | L56: 0 | M56: 0 | N56: 0 | O56: 0 | P56: 0 | Q56: 0 | R56: 0 | S56: 0 | T56: 0 | U56: 0 | V56: 0 | W56: 0 | X56: 0 | Y56: 0 | Z56: 0 | AA56: 0 | AB56: 0 | AC56: 0 | AD56: 0 | AE56: 0 | AF56: 0 | AG56: 0 | AH56: 0 | AI56: 0 | AJ56: 0 | AK56: 0 | AL56: 0 | AM56: 0 | AN56: 0 | AO56: 0 | AP56: 0 | AQ56: 0 | AR56: 0 | AS56: 0 | AT56: 0 | AU56: 0 | AV56: 0 | AW56: 0 | AX56: 0 | AY56: 0 | AZ56: 0 | BA56: 0 | BB56: 0 | BC56: 0 | BD56: 0 | BE56: 0 | BF56: 0 | BG56: 0 | BH56: 0 | BI56: 0 | BJ56: 0 | BK56: 0 | BL56: 0 | BM56: 0 | BN56: 0 | BO56: 0 | BP56: 0 | BQ56: 0 | BR56: 0 | BS56: 0 | BT56: 0 | BU56: 0 | BV56: 0 | BW56: 0 | BX56: 0 | BY56: 0 | BZ56: 0 | CA56: 0 | CB56: 0 | CC56: 0 | CD56: 0 | CE56: 0 | CF56: 0 | CG56: 0 | CH56: 0 | CI56: 0 | CJ56: 0 | CK56: 0 | CL56: 0 | CM56: 0 | CN56: 0 | CO56: 0 | CP56: 0 | CQ56: 0 | CR56: 0 | CS56: 0 | CT56: 0 | CU56: 0 | CV56: 0 | CW56: 0 | CX56: 0 | CY56: 0 | CZ56: 0 | DA56: 0 | DB56: 0 | DC56: 0 | DD56: 0 | DE56: 0 | DF56: 0 | DG56: 0 | DH56: 0 | DI56: 0 | DJ56: 0
C57: > 33 kV & < = 66 kV ; Commercial & Industrial | F57: 0 | G57: 0 | H57: 0 | I57: 0 | J57: 0 | K57: 0 | L57: 0 | M57: 0 | N57: 0 | O57: 0 | P57: 0 | Q57: 0 | R57: 0 | S57: 0 | T57: 0 | U57: 0 | V57: 0 | W57: 0 | X57: 0 | Y57: 0 | Z57: 0 | AA57: 0 | AB57: 0 | AC57: 0 | AD57: 0 | AE57: 0 | AF57: 0 | AG57: 0 | AH57: 0 | AI57: 0 | AJ57: 0 | AK57: 0 | AL57: 0 | AM57: 0 | AN57: 0 | AO57: 0 | AP57: 0 | AQ57: 0 | AR57: 0 | AS57: 0 | AT57: 0 | AU57: 0 | AV57: 0 | AW57: 0 | AX57: 0 | AY57: 0 | AZ57: 0 | BA57: 0 | BB57: 0 | BC57: 0 | BD57: 0 | BE57: 0 | BF57: 0 | BG57: 0 | BH57: 0 | BI57: 0 | BJ57: 0 | BK57: 0 | BL57: 0 | BM57: 0 | BN57: 0 | BO57: 0 | BP57: 0 | BQ57: 0 | BR57: 0 | BS57: 0 | BT57: 0 | BU57: 0 | BV57: 0 | BW57: 0 | BX57: 0 | BY57: 0 | BZ57: 0 | CA57: 0 | CB57: 0 | CC57: 0 | CD57: 0 | CE57: 0 | CF57: 0 | CG57: 0 | CH57: 0 | CI57: 0 | CJ57: 0 | CK57: 0 | CL57: 0 | CM57: 0 | CN57: 0 | CO57: 0 | CP57: 0 | CQ57: 0 | CR57: 0 | CS57: 0 | CT57: 0 | CU57: 0 | CV57: 0 | CW57: 0 | CX57: 0 | CY57: 0 | CZ57: 0 | DA57: 0 | DB57: 0 | DC57: 0 | DD57: 0 | DE57: 0 | DF57: 0 | DG57: 0 | DH57: 0 | DI57: 0 | DJ57: 0
C58: > 33 kV & < = 66 kV ; Subdivision | F58: 0 | G58: 0 | H58: 0 | I58: 0 | J58: 0 | K58: 0 | L58: 0 | M58: 0 | N58: 0 | O58: 0 | P58: 0 | Q58: 0 | R58: 0 | S58: 0 | T58: 0 | U58: 0 | V58: 0 | W58: 0 | X58: 0 | Y58: 0 | Z58: 0 | AA58: 0 | AB58: 0 | AC58: 0 | AD58: 0 | AE58: 0 | AF58: 0 | AG58: 0 | AH58: 0 | AI58: 0 | AJ58: 0 | AK58: 0 | AL58: 0 | AM58: 0 | AN58: 0 | AO58: 0 | AP58: 0 | AQ58: 0 | AR58: 0 | AS58: 0 | AT58: 0 | AU58: 0 | AV58: 0 | AW58: 0 | AX58: 0 | AY58: 0 | AZ58: 0 | BA58: 0 | BB58: 0 | BC58: 0 | BD58: 0 | BE58: 0 | BF58: 0 | BG58: 0 | BH58: 0 | BI58: 0 | BJ58: 0 | BK58: 0 | BL58: 0 | BM58: 0 | BN58: 0 | BO58: 0 | BP58: 0 | BQ58: 0 | BR58: 0 | BS58: 0 | BT58: 0 | BU58: 0 | BV58: 0 | BW58: 0 | BX58: 0 | BY58: 0 | BZ58: 0 | CA58: 0 | CB58: 0 | CC58: 0 | CD58: 0 | CE58: 0 | CF58: 0 | CG58: 0 | CH58: 0 | CI58: 0 | CJ58: 0 | CK58: 0 | CL58: 0 | CM58: 0 | CN58: 0 | CO58: 0 | CP58: 0 | CQ58: 0 | CR58: 0 | CS58: 0 | CT58: 0 | CU58: 0 | CV58: 0 | CW58: 0 | CX58: 0 | CY58: 0 | CZ58: 0 | DA58: 0 | DB58: 0 | DC58: 0 | DD58: 0 | DE58: 0 | DF58: 0 | DG58: 0 | DH58: 0 | DI58: 0 | DJ58: 0
C59: > 66 kV & < = 132 kV ; Commercial & Industrial | F59: 0 | G59: 0 | H59: 0 | I59: 0 | J59: 0 | K59: 0 | L59: 0 | M59: 0 | N59: 0 | O59: 0 | P59: 0 | Q59: 0 | R59: 0 | S59: 0 | T59: 0 | U59: 0 | V59: 0 | W59: 0 | X59: 0 | Y59: 0 | Z59: 0 | AA59: 0 | AB59: 0 | AC59: 0 | AD59: 0 | AE59: 0 | AF59: 0 | AG59: 0 | AH59: 0 | AI59: 0 | AJ59: 0 | AK59: 0 | AL59: 0 | AM59: 0 | AN59: 0 | AO59: 0 | AP59: 0 | AQ59: 0 | AR59: 0 | AS59: 0 | AT59: 0 | AU59: 0 | AV59: 0 | AW59: 0 | AX59: 0 | AY59: 0 | AZ59: 0 | BA59: 0 | BB59: 0 | BC59: 0 | BD59: 0 | BE59: 0 | BF59: 0 | BG59: 0 | BH59: 0 | BI59: 0 | BJ59: 0 | BK59: 0 | BL59: 0 | BM59: 0 | BN59: 0 | BO59: 0 | BP59: 0 | BQ59: 0 | BR59: 0 | BS59: 0 | BT59: 0 | BU59: 0 | BV59: 0 | BW59: 0 | BX59: 0 | BY59: 0 | BZ59: 0 | CA59: 0 | CB59: 0 | CC59: 0 | CD59: 0 | CE59: 0 | CF59: 0 | CG59: 0 | CH59: 0 | CI59: 0 | CJ59: 0 | CK59: 0 | CL59: 0 | CM59: 0 | CN59: 0 | CO59: 0 | CP59: 0 | CQ59: 0 | CR59: 0 | CS59: 0 | CT59: 0 | CU59: 0 | CV59: 0 | CW59: 0 | CX59: 0 | CY59: 0 | CZ59: 0 | DA59: 0 | DB59: 0 | DC59: 0 | DD59: 0 | DE59: 0 | DF59: 0 | DG59: 0 | DH59: 0 | DI59: 0 | DJ59: 0
C60: > 66 kV & < = 132 kV ; Subdivision | F60: 0 | G60: 0 | H60: 0 | I60: 0 | J60: 0 | K60: 0 | L60: 0 | M60: 0 | N60: 0 | O60: 0 | P60: 0 | Q60: 0 | R60: 0 | S60: 0 | T60: 0 | U60: 0 | V60: 0 | W60: 0 | X60: 0 | Y60: 0 | Z60: 0 | AA60: 0 | AB60: 0 | AC60: 0 | AD60: 0 | AE60: 0 | AF60: 0 | AG60: 0 | AH60: 0 | AI60: 0 | AJ60: 0 | AK60: 0 | AL60: 0 | AM60: 0 | AN60: 0 | AO60: 0 | AP60: 0 | AQ60: 0 | AR60: 0 | AS60: 0 | AT60: 0 | AU60: 0 | AV60: 0 | AW60: 0 | AX60: 0 | AY60: 0 | AZ60: 0 | BA60: 0 | BB60: 0 | BC60: 0 | BD60: 0 | BE60: 0 | BF60: 0 | BG60: 0 | BH60: 0 | BI60: 0 | BJ60: 0 | BK60: 0 | BL60: 0 | BM60: 0 | BN60: 0 | BO60: 0 | BP60: 0 | BQ60: 0 | BR60: 0 | BS60: 0 | BT60: 0 | BU60: 0 | BV60: 0 | BW60: 0 | BX60: 0 | BY60: 0 | BZ60: 0 | CA60: 0 | CB60: 0 | CC60: 0 | CD60: 0 | CE60: 0 | CF60: 0 | CG60: 0 | CH60: 0 | CI60: 0 | CJ60: 0 | CK60: 0 | CL60: 0 | CM60: 0 | CN60: 0 | CO60: 0 | CP60: 0 | CQ60: 0 | CR60: 0 | CS60: 0 | CT60: 0 | CU60: 0 | CV60: 0 | CW60: 0 | CX60: 0 | CY60: 0 | CZ60: 0 | DA60: 0 | DB60: 0 | DC60: 0 | DD60: 0 | DE60: 0 | DF60: 0 | DG60: 0 | DH60: 0 | DI60: 0 | DJ60: 0
C61: > 132 kV ; Commercial & Industrial | F61: 0 | G61: 0 | H61: 0 | I61: 0 | J61: 0 | K61: 0 | L61: 0 | M61: 0 | N61: 0 | O61: 0 | P61: 0 | Q61: 0 | R61: 0 | S61: 0 | T61: 0 | U61: 0 | V61: 0 | W61: 0 | X61: 0 | Y61: 0 | Z61: 0 | AA61: 0 | AB61: 0 | AC61: 0 | AD61: 0 | AE61: 0 | AF61: 0 | AG61: 0 | AH61: 0 | AI61: 0 | AJ61: 0 | AK61: 0 | AL61: 0 | AM61: 0 | AN61: 0 | AO61: 0 | AP61: 0 | AQ61: 0 | AR61: 0 | AS61: 0 | AT61: 0 | AU61: 0 | AV61: 0 | AW61: 0 | AX61: 0 | AY61: 0 | AZ61: 0 | BA61: 0 | BB61: 0 | BC61: 0 | BD61: 0 | BE61: 0 | BF61: 0 | BG61: 0 | BH61: 0 | BI61: 0 | BJ61: 0 | BK61: 0 | BL61: 0 | BM61: 0 | BN61: 0 | BO61: 0 | BP61: 0 | BQ61: 0 | BR61: 0 | BS61: 0 | BT61: 0 | BU61: 0 | BV61: 0 | BW61: 0 | BX61: 0 | BY61: 0 | BZ61: 0 | CA61: 0 | CB61: 0 | CC61: 0 | CD61: 0 | CE61: 0 | CF61: 0 | CG61: 0 | CH61: 0 | CI61: 0 | CJ61: 0 | CK61: 0 | CL61: 0 | CM61: 0 | CN61: 0 | CO61: 0 | CP61: 0 | CQ61: 0 | CR61: 0 | CS61: 0 | CT61: 0 | CU61: 0 | CV61: 0 | CW61: 0 | CX61: 0 | CY61: 0 | CZ61: 0 | DA61: 0 | DB61: 0 | DC61: 0 | DD61: 0 | DE61: 0 | DF61: 0 | DG61: 0 | DH61: 0 | DI61: 0 | DJ61: 0
C62: > 132 kV ; Subdivision | F62: 0 | G62: 0 | H62: 0 | I62: 0 | J62: 0 | K62: 0 | L62: 0 | M62: 0 | N62: 0 | O62: 0 | P62: 0 | Q62: 0 | R62: 0 | S62: 0 | T62: 0 | U62: 0 | V62: 0 | W62: 0 | X62: 0 | Y62: 0 | Z62: 0 | AA62: 0 | AB62: 0 | AC62: 0 | AD62: 0 | AE62: 0 | AF62: 0 | AG62: 0 | AH62: 0 | AI62: 0 | AJ62: 0 | AK62: 0 | AL62: 0 | AM62: 0 | AN62: 0 | AO62: 0 | AP62: 0 | AQ62: 0 | AR62: 0 | AS62: 0 | AT62: 0 | AU62: 0 | AV62: 0 | AW62: 0 | AX62: 0 | AY62: 0 | AZ62: 0 | BA62: 0 | BB62: 0 | BC62: 0 | BD62: 0 | BE62: 0 | BF62: 0 | BG62: 0 | BH62: 0 | BI62: 0 | BJ62: 0 | BK62: 0 | BL62: 0 | BM62: 0 | BN62: 0 | BO62: 0 | BP62: 0 | BQ62: 0 | BR62: 0 | BS62: 0 | BT62: 0 | BU62: 0 | BV62: 0 | BW62: 0 | BX62: 0 | BY62: 0 | BZ62: 0 | CA62: 0 | CB62: 0 | CC62: 0 | CD62: 0 | CE62: 0 | CF62: 0 | CG62: 0 | CH62: 0 | CI62: 0 | CJ62: 0 | CK62: 0 | CL62: 0 | CM62: 0 | CN62: 0 | CO62: 0 | CP62: 0 | CQ62: 0 | CR62: 0 | CS62: 0 | CT62: 0 | CU62: 0 | CV62: 0 | CW62: 0 | CX62: 0 | CY62: 0 | CZ62: 0 | DA62: 0 | DB62: 0 | DC62: 0 | DD62: 0 | DE62: 0 | DF62: 0 | DG62: 0 | DH62: 0 | DI62: 0 | DJ62: 0
C63: Other | F63: 0 | G63: 0 | H63: 0 | I63: 0 | J63: 0 | K63: 0 | L63: 0 | M63: 0 | N63: 0 | O63: 0 | P63: 0 | Q63: 0 | R63: 0 | S63: 0 | T63: 0 | U63: 0 | V63: 0 | W63: 0 | X63: 0 | Y63: 0 | Z63: 0 | AA63: 0 | AB63: 0 | AC63: 0 | AD63: 0 | AE63: 0 | AF63: 0 | AG63: 0 | AH63: 0 | AI63: 0 | AJ63: 0 | AK63: 0 | AL63: 0 | AM63: 0 | AN63: 0 | AO63: 0 | AP63: 0 | AQ63: 0 | AR63: 0 | AS63: 0 | AT63: 0 | AU63: 0 | AV63: 0 | AW63: 0 | AX63: 0 | AY63: 0 | AZ63: 0 | BA63: 0 | BB63: 0 | BC63: 0 | BD63: 0 | BE63: 0 | BF63: 0 | BG63: 0 | BH63: 0 | BI63: 0 | BJ63: 0 | BK63: 0 | BL63: 0 | BM63: 0 | BN63: 0 | BO63: 0 | BP63: 0 | BQ63: 0 | BR63: 0 | BS63: 0 | BT63: 0 | BU63: 0 | BV63: 0 | BW63: 0 | BX63: 0 | BY63: 0 | BZ63: 0 | CA63: 0 | CB63: 0 | CC63: 0 | CD63: 0 | CE63: 0 | CF63: 0 | CG63: 0 | CH63: 0 | CI63: 0 | CJ63: 0 | CK63: 0 | CL63: 0 | CM63: 0 | CN63: 0 | CO63: 0 | CP63: 0 | CQ63: 0 | CR63: 0 | CS63: 0 | CT63: 0 | CU63: 0 | CV63: 0 | CW63: 0 | CX63: 0 | CY63: 0 | CZ63: 0 | DA63: 0 | DB63: 0 | DC63: 0 | DD63: 0 | DE63: 0 | DF63: 0 | DG63: 0 | DH63: 0 | DI63: 0 | DJ63: 0
B64: TRANSFORMERS BY: MOUNTING TYPE; HIGHEST OPERATING VOLTAGE ; AMPERE RATING; NUMBER OF PHASES (AT LV) | C64: Pole Mounted ; < = 22kV ; < = 60 kVA ; Single Phase | D64: 40 | E64: 6.32455532 | F64: 197 | G64: 234 | H64: 197 | I64: 196 | J64: 114 | K64: 117 | L64: 188 | M64: 341 | N64: 376 | O64: 298 | P64: 435 | Q64: 443 | R64: 503 | S64: 497 | T64: 445 | U64: 320 | V64: 263 | W64: 264 | X64: 349 | Y64: 388 | Z64: 522 | AA64: 583 | AB64: 556 | AC64: 433 | AD64: 510 | AE64: 473 | AF64: 439 | AG64: 492 | AH64: 482 | AI64: 511 | AJ64: 461 | AK64: 358 | AL64: 363 | AM64: 341 | AN64: 290 | AO64: 246 | AP64: 265 | AQ64: 207 | AR64: 216 | AS64: 185 | AT64: 157 | AU64: 170 | AV64: 118 | AW64: 112 | AX64: 105 | AY64: 109 | AZ64: 86 | BA64: 83 | BB64: 43 | BC64: 58 | BD64: 71 | BE64: 33 | BF64: 2 | BG64: 5 | BH64: 7 | BI64: 3 | BJ64: 2 | BK64: 4 | BL64: 3 | BM64: 5 | BN64: 1 | BO64: 3 | BP64: 1 | BQ64: - | BR64: 1 | BS64: - | BT64: - | BU64: - | BV64: - | BW64: - | BX64: - | BY64: - | BZ64: - | CA64: - | CB64: - | CC64: - | CD64: - | CE64: - | CF64: - | CG64: - | CH64: - | CI64: - | CJ64: - | CK64: - | CL64: - | CM64: - | CN64: - | CO64: - | CP64: - | CQ64: - | CR64: - | CS64: - | CT64: - | CU64: - | CV64: - | CW64: - | CX64: - | CY64: - | CZ64: - | DA64: - | DB64: - | DC64: - | DD64: - | DE64: - | DF64: - | DG64: - | DH64: - | DI64: - | DJ64: -
C65: Pole Mounted ; < = 22kV ; > 60 kVA and < = 600 kVA ; Single Phase | D65: 40 | E65: 6.32455532 | F65: 3 | G65: 4 | H65: 1 | I65: - | J65: - | K65: - | L65: - | M65: 3 | N65: 1 | O65: 1 | P65: - | Q65: 3 | R65: - | S65: - | T65: - | U65: - | V65: 1 | W65: 1 | X65: - | Y65: - | Z65: 5 | AA65: 1 | AB65: 1 | AC65: 1 | AD65: 1 | AE65: - | AF65: - | AG65: - | AH65: - | AI65: - | AJ65: - | AK65: - | AL65: - | AM65: - | AN65: - | AO65: - | AP65: - | AQ65: - | AR65: - | AS65: - | AT65: - | AU65: - | AV65: - | AW65: - | AX65: - | AY65: - | AZ65: - | BA65: - | BB65: - | BC65: - | BD65: - | BE65: - | BF65: - | BG65: - | BH65: - | BI65: - | BJ65: - | BK65: - | BL65: - | BM65: - | BN65: - | BO65: - | BP65: - | BQ65: - | BR65: - | BS65: - | BT65: - | BU65: - | BV65: - | BW65: - | BX65: - | BY65: - | BZ65: - | CA65: - | CB65: - | CC65: - | CD65: - | CE65: - | CF65: - | CG65: - | CH65: - | CI65: - | CJ65: - | CK65: - | CL65: - | CM65: - | CN65: - | CO65: - | CP65: - | CQ65: - | CR65: - | CS65: - | CT65: - | CU65: - | CV65: - | CW65: - | CX65: - | CY65: - | CZ65: - | DA65: - | DB65: - | DC65: - | DD65: - | DE65: - | DF65: - | DG65: - | DH65: - | DI65: - | DJ65: -
C66: Pole Mounted ; < = 22kV ; > 600 kVA ; Single Phase | F66: - | G66: - | H66: - | I66: - | J66: - | K66: - | L66: - | M66: - | N66: - | O66: - | P66: - | Q66: - | R66: - | S66: - | T66: - | U66: - | V66: - | W66: - | X66: - | Y66: - | Z66: - | AA66: - | AB66: - | AC66: - | AD66: - | AE66: - | AF66: - | AG66: - | AH66: - | AI66: - | AJ66: - | AK66: - | AL66: - | AM66: - | AN66: - | AO66: - | AP66: - | AQ66: - | AR66: - | AS66: - | AT66: - | AU66: - | AV66: - | AW66: - | AX66: - | AY66: - | AZ66: - | BA66: - | BB66: - | BC66: - | BD66: - | BE66: - | BF66: - | BG66: - | BH66: - | BI66: - | BJ66: - | BK66: - | BL66: - | BM66: - | BN66: - | BO66: - | BP66: - | BQ66: - | BR66: - | BS66: - | BT66: - | BU66: - | BV66: - | BW66: - | BX66: - | BY66: - | BZ66: - | CA66: - | CB66: - | CC66: - | CD66: - | CE66: - | CF66: - | CG66: - | CH66: - | CI66: - | CJ66: - | CK66: - | CL66: - | CM66: - | CN66: - | CO66: - | CP66: - | CQ66: - | CR66: - | CS66: - | CT66: - | CU66: - | CV66: - | CW66: - | CX66: - | CY66: - | CZ66: - | DA66: - | DB66: - | DC66: - | DD66: - | DE66: - | DF66: - | DG66: - | DH66: - | DI66: - | DJ66: -
C67: Pole Mounted ; < = 22kV ; < = 60 kVA ; Multiple Phase | D67: 40 | E67: 6.32455532 | F67: 20 | G67: 29 | H67: 22 | I67: 22 | J67: 18 | K67: 16 | L67: 13 | M67: 21 | N67: 47 | O67: 30 | P67: 67 | Q67: 67 | R67: 95 | S67: 72 | T67: 70 | U67: 66 | V67: 72 | W67: 52 | X67: 102 | Y67: 164 | Z67: 201 | AA67: 180 | AB67: 196 | AC67: 187 | AD67: 174 | AE67: 156 | AF67: 165 | AG67: 179 | AH67: 197 | AI67: 199 | AJ67: 140 | AK67: 100 | AL67: 96 | AM67: 75 | AN67: 91 | AO67: 88 | AP67: 80 | AQ67: 78 | AR67: 70 | AS67: 45 | AT67: 67 | AU67: 55 | AV67: 45 | AW67: 45 | AX67: 32 | AY67: 34 | AZ67: 27 | BA67: 23 | BB67: 27 | BC67: 18 | BD67: 15 | BE67: 6 | BF67: - | BG67: 2 | BH67: 2 | BI67: 2 | BJ67: 3 | BK67: 1 | BL67: 2 | BM67: 2 | BN67: - | BO67: - | BP67: - | BQ67: 1 | BR67: 2 | BS67: - | BT67: - | BU67: - | BV67: - | BW67: - | BX67: - | BY67: - | BZ67: - | CA67: - | CB67: - | CC67: - | CD67: - | CE67: - | CF67: - | CG67: - | CH67: - | CI67: - | CJ67: - | CK67: - | CL67: - | CM67: - | CN67: - | CO67: - | CP67: - | CQ67: - | CR67: - | CS67: - | CT67: - | CU67: - | CV67: - | CW67: - | CX67: - | CY67: - | CZ67: - | DA67: - | DB67: - | DC67: - | DD67: - | DE67: - | DF67: - | DG67: - | DH67: - | DI67: - | DJ67: -
C68: Pole Mounted ; < = 22kV ; > 60 kVA and < = 600 kVA ; Multiple Phase | D68: 40 | E68: 6.32455532 | F68: 254 | G68: 331 | H68: 310 | I68: 251 | J68: 164 | K68: 154 | L68: 227 | M68: 295 | N68: 302 | O68: 332 | P68: 548 | Q68: 530 | R68: 555 | S68: 563 | T68: 467 | U68: 423 | V68: 317 | W68: 303 | X68: 353 | Y68: 295 | Z68: 356 | AA68: 354 | AB68: 340 | AC68: 208 | AD68: 179 | AE68: 175 | AF68: 177 | AG68: 203 | AH68: 212 | AI68: 230 | AJ68: 181 | AK68: 128 | AL68: 133 | AM68: 132 | AN68: 156 | AO68: 138 | AP68: 134 | AQ68: 93 | AR68: 75 | AS68: 78 | AT68: 71 | AU68: 77 | AV68: 57 | AW68: 38 | AX68: 53 | AY68: 40 | AZ68: 36 | BA68: 33 | BB68: 27 | BC68: 18 | BD68: 13 | BE68: 18 | BF68: 10 | BG68: 9 | BH68: 3 | BI68: 6 | BJ68: 1 | BK68: 4 | BL68: 3 | BM68: 2 | BN68: 1 | BO68: - | BP68: 1 | BQ68: - | BR68: - | BS68: - | BT68: - | BU68: - | BV68: - | BW68: - | BX68: - | BY68: - | BZ68: - | CA68: - | CB68: - | CC68: - | CD68: - | CE68: - | CF68: - | CG68: - | CH68: - | CI68: - | CJ68: - | CK68: - | CL68: - | CM68: - | CN68: - | CO68: - | CP68: - | CQ68: - | CR68: - | CS68: - | CT68: - | CU68: - | CV68: - | CW68: - | CX68: - | CY68: - | CZ68: - | DA68: - | DB68: - | DC68: - | DD68: - | DE68: - | DF68: - | DG68: - | DH68: - | DI68: - | DJ68: -
C69: Pole Mounted ; < = 22kV ; > 600 kVA ; Multiple Phase | F69: - | G69: - | H69: - | I69: - | J69: - | K69: - | L69: - | M69: - | N69: - | O69: - | P69: - | Q69: - | R69: - | S69: - | T69: - | U69: - | V69: - | W69: - | X69: - | Y69: - | Z69: - | AA69: - | AB69: - | AC69: - | AD69: - | AE69: - | AF69: - | AG69: - | AH69: - | AI69: - | AJ69: - | AK69: - | AL69: - | AM69: - | AN69: - | AO69: - | AP69: - | AQ69: - | AR69: - | AS69: - | AT69: - | AU69: - | AV69: - | AW69: - | AX69: - | AY69: - | AZ69: - | BA69: - | BB69: - | BC69: - | BD69: - | BE69: - | BF69: - | BG69: - | BH69: - | BI69: - | BJ69: - | BK69: - | BL69: - | BM69: - | BN69: - | BO69: - | BP69: - | BQ69: - | BR69: - | BS69: - | BT69: - | BU69: - | BV69: - | BW69: - | BX69: - | BY69: - | BZ69: - | CA69: - | CB69: - | CC69: - | CD69: - | CE69: - | CF69: - | CG69: - | CH69: - | CI69: - | CJ69: - | CK69: - | CL69: - | CM69: - | CN69: - | CO69: - | CP69: - | CQ69: - | CR69: - | CS69: - | CT69: - | CU69: - | CV69: - | CW69: - | CX69: - | CY69: - | CZ69: - | DA69: - | DB69: - | DC69: - | DD69: - | DE69: - | DF69: - | DG69: - | DH69: - | DI69: - | DJ69: -
C70: Kiosk Mounted ; < = 22kV ; < = 60 kVA ; Single Phase | F70: 0 | G70: 0 | H70: 0 | I70: 0 | J70: 0 | K70: 0 | L70: 0 | M70: 0 | N70: 0 | O70: 0 | P70: 0 | Q70: 0 | R70: 0 | S70: 0 | T70: 0 | U70: 0 | V70: 0 | W70: 0 | X70: 0 | Y70: 0 | Z70: 0 | AA70: 0 | AB70: 0 | AC70: 0 | AD70: 0 | AE70: 0 | AF70: 0 | AG70: 0 | AH70: 0 | AI70: 0 | AJ70: 0 | AK70: 0 | AL70: 0 | AM70: 0 | AN70: 0 | AO70: 0 | AP70: 0 | AQ70: 0 | AR70: 0 | AS70: 0 | AT70: 0 | AU70: 0 | AV70: 0 | AW70: 0 | AX70: 0 | AY70: 0 | AZ70: 0 | BA70: 0 | BB70: 0 | BC70: 0 | BD70: 0 | BE70: 0 | BF70: 0 | BG70: 0 | BH70: 0 | BI70: 0 | BJ70: 0 | BK70: 0 | BL70: 0 | BM70: 0 | BN70: 0 | BO70: 0 | BP70: 0 | BQ70: 0 | BR70: 0 | BS70: 0 | BT70: 0
C71: Kiosk Mounted ; < = 22kV ; > 60 kVA and < = 600 kVA ; Single Phase | F71: 0 | G71: 0 | H71: 0 | I71: 0 | J71: 0 | K71: 0 | L71: 0 | M71: 0 | N71: 0 | O71: 0 | P71: 0 | Q71: 0 | R71: 0 | S71: 0 | T71: 0 | U71: 0 | V71: 0 | W71: 0 | X71: 0 | Y71: 0 | Z71: 0 | AA71: 0 | AB71: 0 | AC71: 0 | AD71: 0 | AE71: 0 | AF71: 0 | AG71: 0 | AH71: 0 | AI71: 0 | AJ71: 0 | AK71: 0 | AL71: 0 | AM71: 0 | AN71: 0 | AO71: 0 | AP71: 0 | AQ71: 0 | AR71: 0 | AS71: 0 | AT71: 0 | AU71: 0 | AV71: 0 | AW71: 0 | AX71: 0 | AY71: 0 | AZ71: 0 | BA71: 0 | BB71: 0 | BC71: 0 | BD71: 0 | BE71: 0 | BF71: 0 | BG71: 0 | BH71: 0 | BI71: 0 | BJ71: 0 | BK71: 0 | BL71: 0 | BM71: 0 | BN71: 0 | BO71: 0 | BP71: 0 | BQ71: 0 | BR71: 0 | BS71: 0 | BT71: 0
C72: Kiosk Mounted ; < = 22kV ; > 600 kVA ; Single Phase | F72: 0 | G72: 0 | H72: 0 | I72: 0 | J72: 0 | K72: 0 | L72: 0 | M72: 0 | N72: 0 | O72: 0 | P72: 0 | Q72: 0 | R72: 0 | S72: 0 | T72: 0 | U72: 0 | V72: 0 | W72: 0 | X72: 0 | Y72: 0 | Z72: 0 | AA72: 0 | AB72: 0 | AC72: 0 | AD72: 0 | AE72: 0 | AF72: 0 | AG72: 0 | AH72: 0 | AI72: 0 | AJ72: 0 | AK72: 0 | AL72: 0 | AM72: 0 | AN72: 0 | AO72: 0 | AP72: 0 | AQ72: 0 | AR72: 0 | AS72: 0 | AT72: 0 | AU72: 0 | AV72: 0 | AW72: 0 | AX72: 0 | AY72: 0 | AZ72: 0 | BA72: 0 | BB72: 0 | BC72: 0 | BD72: 0 | BE72: 0 | BF72: 0 | BG72: 0 | BH72: 0 | BI72: 0 | BJ72: 0 | BK72: 0 | BL72: 0 | BM72: 0 | BN72: 0 | BO72: 0 | BP72: 0 | BQ72: 0 | BR72: 0 | BS72: 0 | BT72: 0
C73: Kiosk Mounted ; < = 22kV ; < = 60 kVA ; Multiple Phase | F73: 0 | G73: 0 | H73: 0 | I73: 0 | J73: 0 | K73: 0 | L73: 1 | M73: 2 | N73: 1 | O73: 2 | P73: 0 | Q73: 0 | R73: 0 | S73: 0 | T73: 0 | U73: 0 | V73: 0 | W73: 0 | X73: 1 | Y73: 0 | Z73: 0 | AA73: 0 | AB73: 0 | AC73: 0 | AD73: 0 | AE73: 0 | AF73: 0 | AG73: 0 | AH73: 0 | AI73: 0 | AJ73: 0 | AK73: 0 | AL73: 0 | AM73: 0 | AN73: 0 | AO73: 0 | AP73: 0 | AQ73: 0 | AR73: 0 | AS73: 0 | AT73: 0 | AU73: 0 | AV73: 0 | AW73: 0 | AX73: 0 | AY73: 0 | AZ73: 0 | BA73: 0 | BB73: 0 | BC73: 0 | BD73: 0 | BE73: 0 | BF73: 0 | BG73: 0 | BH73: 0 | BI73: 0 | BJ73: 0 | BK73: 0 | BL73: 0 | BM73: 0 | BN73: 0 | BO73: 0 | BP73: 0 | BQ73: 0 | BR73: 0 | BS73: 0 | BT73: 0
C74: Kiosk Mounted ; < = 22kV ; > 60 kVA and < = 600 kVA ; Multiple Phase | D74: 40 | E74: 6.32455532 | F74: 14 | G74: 13 | H74: 21 | I74: 14 | J74: 11 | K74: 6 | L74: 20 | M74: 27 | N74: 15 | O74: 14 | P74: 5 | Q74: 9 | R74: 26 | S74: 14 | T74: 10 | U74: 10 | V74: 3 | W74: 6 | X74: 9 | Y74: 16 | Z74: 5 | AA74: 16 | AB74: 16 | AC74: 15 | AD74: 20 | AE74: 12 | AF74: 16 | AG74: 22 | AH74: 24 | AI74: 24 | AJ74: 28 | AK74: 27 | AL74: 19 | AM74: 30 | AN74: 26 | AO74: 29 | AP74: 20 | AQ74: 14 | AR74: 24 | AS74: 26 | AT74: 16 | AU74: 22 | AV74: 15 | AW74: 9 | AX74: 26 | AY74: 10 | AZ74: 6 | BA74: 17 | BB74: 12 | BC74: 5 | BD74: 4 | BE74: 1 | BF74: 3 | BG74: 1 | BH74: 0 | BI74: 1 | BJ74: 0 | BK74: 0 | BL74: 0 | BM74: 0 | BN74: 0 | BO74: 0 | BP74: 0 | BQ74: 0 | BR74: 0 | BS74: 0 | BT74: 0
C75: Kiosk Mounted ; < = 22kV ; > 600 kVA ; Multiple Phase | D75: 40 | E75: 6.32455532 | F75: 17 | G75: 7 | H75: 13 | I75: 17 | J75: 11 | K75: 9 | L75: 25 | M75: 50 | N75: 49 | O75: 48 | P75: 21 | Q75: 26 | R75: 21 | S75: 25 | T75: 12 | U75: 19 | V75: 6 | W75: 13 | X75: 20 | Y75: 21 | Z75: 13 | AA75: 16 | AB75: 12 | AC75: 9 | AD75: 9 | AE75: 5 | AF75: 11 | AG75: 5 | AH75: 11 | AI75: 12 | AJ75: 7 | AK75: 10 | AL75: 10 | AM75: 16 | AN75: 4 | AO75: 9 | AP75: 3 | AQ75: 9 | AR75: 4 | AS75: 1 | AT75: 0 | AU75: 4 | AV75: 2 | AW75: 0 | AX75: 2 | AY75: 1 | AZ75: 1 | BA75: 2 | BB75: 3 | BC75: 0 | BD75: 0 | BE75: 0 | BF75: 1 | BG75: 1 | BH75: 1 | BI75: 0 | BJ75: 0 | BK75: 0 | BL75: 0 | BM75: 0 | BN75: 0 | BO75: 0 | BP75: 0 | BQ75: 0 | BR75: 0 | BS75: 0 | BT75: 0
C76: Ground Outdoor / Indoor Chamber Mounted; ˂ 22 kV ; < = 60 kVA ; Single Phase | F76: 0 | G76: 0 | H76: 0 | I76: 0 | J76: 0 | K76: 0 | L76: 0 | M76: 0 | N76: 0 | O76: 0 | P76: 0 | Q76: 0 | R76: 0 | S76: 0 | T76: 0 | U76: 0 | V76: 0 | W76: 0 | X76: 0 | Y76: 0 | Z76: 0 | AA76: 0 | AB76: 0 | AC76: 0 | AD76: 0 | AE76: 0 | AF76: 0 | AG76: 0 | AH76: 0 | AI76: 0 | AJ76: 0 | AK76: 0 | AL76: 0 | AM76: 0 | AN76: 0 | AO76: 0 | AP76: 0 | AQ76: 0 | AR76: 0 | AS76: 0 | AT76: 0 | AU76: 0 | AV76: 0 | AW76: 0 | AX76: 0 | AY76: 0 | AZ76: 0 | BA76: 0 | BB76: 0 | BC76: 0 | BD76: 0 | BE76: 0 | BF76: 0 | BG76: 0 | BH76: 0 | BI76: 0 | BJ76: 0 | BK76: 0 | BL76: 0 | BM76: 0 | BN76: 0 | BO76: 0 | BP76: 0 | BQ76: 0 | BR76: 0 | BS76: 0 | BT76: 0
C77: Ground Outdoor / Indoor Chamber Mounted; ˂ 22 kV ; > 60 kVA and < = 600 kVA ; Single Phase | F77: 0 | G77: 0 | H77: 0 | I77: 0 | J77: 0 | K77: 0 | L77: 0 | M77: 0 | N77: 0 | O77: 0 | P77: 0 | Q77: 0 | R77: 0 | S77: 0 | T77: 0 | U77: 0 | V77: 0 | W77: 0 | X77: 0 | Y77: 0 | Z77: 0 | AA77: 0 | AB77: 0 | AC77: 0 | AD77: 0 | AE77: 0 | AF77: 0 | AG77: 0 | AH77: 0 | AI77: 0 | AJ77: 0 | AK77: 0 | AL77: 0 | AM77: 0 | AN77: 0 | AO77: 0 | AP77: 0 | AQ77: 0 | AR77: 0 | AS77: 0 | AT77: 0 | AU77: 0 | AV77: 0 | AW77: 0 | AX77: 0 | AY77: 0 | AZ77: 0 | BA77: 0 | BB77: 0 | BC77: 0 | BD77: 0 | BE77: 0 | BF77: 0 | BG77: 0 | BH77: 0 | BI77: 0 | BJ77: 0 | BK77: 0 | BL77: 0 | BM77: 0 | BN77: 0 | BO77: 0 | BP77: 0 | BQ77: 0 | BR77: 0 | BS77: 0 | BT77: 0
C78: Ground Outdoor / Indoor Chamber Mounted; ˂ 22 kV ; > 600 kVA ; Single Phase | F78: 0 | G78: 0 | H78: 0 | I78: 0 | J78: 0 | K78: 0 | L78: 0 | M78: 0 | N78: 0 | O78: 0 | P78: 0 | Q78: 0 | R78: 0 | S78: 0 | T78: 0 | U78: 0 | V78: 0 | W78: 0 | X78: 0 | Y78: 0 | Z78: 0 | AA78: 0 | AB78: 0 | AC78: 0 | AD78: 0 | AE78: 0 | AF78: 0 | AG78: 0 | AH78: 0 | AI78: 0 | AJ78: 0 | AK78: 0 | AL78: 0 | AM78: 0 | AN78: 0 | AO78: 0 | AP78: 0 | AQ78: 0 | AR78: 0 | AS78: 0 | AT78: 0 | AU78: 0 | AV78: 0 | AW78: 0 | AX78: 0 | AY78: 0 | AZ78: 0 | BA78: 0 | BB78: 0 | BC78: 0 | BD78: 0 | BE78: 0 | BF78: 0 | BG78: 0 | BH78: 0 | BI78: 0 | BJ78: 0 | BK78: 0 | BL78: 0 | BM78: 0 | BN78: 0 | BO78: 0 | BP78: 0 | BQ78: 0 | BR78: 0 | BS78: 0 | BT78: 0
C79: Ground Outdoor / Indoor Chamber Mounted; ˂ 22 kV ; < = 60 kVA ; Multiple Phase | D79: 40 | E79: 6.32455532 | F79: 0 | G79: 0 | H79: 0 | I79: 0 | J79: 0 | K79: 0 | L79: 0 | M79: 0 | N79: 0 | O79: 0 | P79: 0 | Q79: 0 | R79: 3 | S79: 0 | T79: 0 | U79: 0 | V79: 0 | W79: 0 | X79: 0 | Y79: 0 | Z79: 0 | AA79: 0 | AB79: 0 | AC79: 0 | AD79: 0 | AE79: 0 | AF79: 1 | AG79: 0 | AH79: 0 | AI79: 0 | AJ79: 0 | AK79: 0 | AL79: 0 | AM79: 0 | AN79: 0 | AO79: 0 | AP79: 0 | AQ79: 0 | AR79: 0 | AS79: 0 | AT79: 0 | AU79: 0 | AV79: 0 | AW79: 0 | AX79: 0 | AY79: 0 | AZ79: 0 | BA79: 0 | BB79: 0 | BC79: 0 | BD79: 0 | BE79: 0 | BF79: 0 | BG79: 0 | BH79: 0 | BI79: 0 | BJ79: 0 | BK79: 0 | BL79: 0 | BM79: 0 | BN79: 0 | BO79: 0 | BP79: 0 | BQ79: 0 | BR79: 0 | BS79: 0 | BT79: 0
C80: Ground Outdoor / Indoor Chamber Mounted; ˂ 22 kV ; > 60 kVA and < = 600 kVA ; Multiple Phase | D80: 40 | E80: 6.32455532 | F80: 0 | G80: 0 | H80: 0 | I80: 1 | J80: 2 | K80: 0 | L80: 0 | M80: 1 | N80: 0 | O80: 0 | P80: 0 | Q80: 0 | R80: 0 | S80: 1 | T80: 0 | U80: 0 | V80: 0 | W80: 0 | X80: 1 | Y80: 1 | Z80: 1 | AA80: 0 | AB80: 2 | AC80: 1 | AD80: 2 | AE80: 0 | AF80: 0 | AG80: 0 | AH80: 0 | AI80: 1 | AJ80: 5 | AK80: 2 | AL80: 1 | AM80: 3 | AN80: 0 | AO80: 3 | AP80: 3 | AQ80: 3 | AR80: 6 | AS80: 0 | AT80: 3 | AU80: 1 | AV80: 1 | AW80: 1 | AX80: 1 | AY80: 2 | AZ80: 3 | BA80: 1 | BB80: 2 | BC80: 3 | BD80: 6 | BE80: 13 | BF80: 6 | BG80: 10 | BH80: 15 | BI80: 10 | BJ80: 6 | BK80: 5 | BL80: 2 | BM80: 0 | BN80: 0 | BO80: 0 | BP80: 0 | BQ80: 0 | BR80: 0 | BS80: 0 | BT80: 0
C81: Ground Outdoor / Indoor Chamber Mounted; ˂ 22 kV ; > 600 kVA ; Multiple Phase | D81: 40 | E81: 6.32455532 | F81: 5 | G81: 0 | H81: 2 | I81: 3 | J81: 0 | K81: 0 | L81: 5 | M81: 6 | N81: 2 | O81: 0 | P81: 5 | Q81: 6 | R81: 6 | S81: 3 | T81: 11 | U81: 5 | V81: 6 | W81: 6 | X81: 5 | Y81: 9 | Z81: 21 | AA81: 31 | AB81: 16 | AC81: 7 | AD81: 8 | AE81: 4 | AF81: 16 | AG81: 12 | AH81: 25 | AI81: 24 | AJ81: 21 | AK81: 24 | AL81: 15 | AM81: 15 | AN81: 15 | AO81: 27 | AP81: 11 | AQ81: 26 | AR81: 25 | AS81: 12 | AT81: 16 | AU81: 14 | AV81: 5 | AW81: 7 | AX81: 11 | AY81: 4 | AZ81: 12 | BA81: 6 | BB81: 7 | BC81: 7 | BD81: 7 | BE81: 2 | BF81: 1 | BG81: 0 | BH81: 8 | BI81: 6 | BJ81: 7 | BK81: 8 | BL81: 16 | BM81: 0 | BN81: 0 | BO81: 2 | BP81: 0 | BQ81: 0 | BR81: 0 | BS81: 0 | BT81: 0
C82: Ground Outdoor / Indoor Chamber Mounted; > = 22 kV & < = 33 kV ; < = 15 MVA | F82: 0 | G82: 0 | H82: 0 | I82: 0 | J82: 0 | K82: 0 | L82: 0 | M82: 0 | N82: 0 | O82: 0 | P82: 0 | Q82: 0 | R82: 0 | S82: 0 | T82: 0 | U82: 0 | V82: 0 | W82: 0 | X82: 0 | Y82: 0 | Z82: 0 | AA82: 0 | AB82: 0 | AC82: 0 | AD82: 0 | AE82: 0 | AF82: 0 | AG82: 0 | AH82: 0 | AI82: 0 | AJ82: 0 | AK82: 0 | AL82: 0 | AM82: 0 | AN82: 0 | AO82: 0 | AP82: 0 | AQ82: 0 | AR82: 0 | AS82: 0 | AT82: 0 | AU82: 0 | AV82: 0 | AW82: 0 | AX82: 0 | AY82: 0 | AZ82: 0 | BA82: 0 | BB82: 0 | BC82: 0 | BD82: 0 | BE82: 0 | BF82: 0 | BG82: 0 | BH82: 0 | BI82: 0 | BJ82: 0 | BK82: 0 | BL82: 0 | BM82: 0 | BN82: 0 | BO82: 0 | BP82: 0 | BQ82: 0 | BR82: 0 | BS82: 0 | BT82: 0
C83: Ground Outdoor / Indoor Chamber Mounted; > = 22 kV & < = 33 kV ; > 15 MVA and < = 40 MVA | F83: 0 | G83: 0 | H83: 0 | I83: 0 | J83: 0 | K83: 0 | L83: 0 | M83: 0 | N83: 0 | O83: 0 | P83: 0 | Q83: 0 | R83: 0 | S83: 0 | T83: 0 | U83: 0 | V83: 0 | W83: 0 | X83: 0 | Y83: 0 | Z83: 0 | AA83: 0 | AB83: 0 | AC83: 0 | AD83: 0 | AE83: 0 | AF83: 0 | AG83: 0 | AH83: 0 | AI83: 0 | AJ83: 0 | AK83: 0 | AL83: 0 | AM83: 0 | AN83: 0 | AO83: 0 | AP83: 0 | AQ83: 0 | AR83: 0 | AS83: 0 | AT83: 0 | AU83: 0 | AV83: 0 | AW83: 0 | AX83: 0 | AY83: 0 | AZ83: 0 | BA83: 0 | BB83: 0 | BC83: 0 | BD83: 0 | BE83: 0 | BF83: 0 | BG83: 0 | BH83: 0 | BI83: 0 | BJ83: 0 | BK83: 0 | BL83: 0 | BM83: 0 | BN83: 0 | BO83: 0 | BP83: 0 | BQ83: 0 | BR83: 0 | BS83: 0 | BT83: 0
C84: Ground Outdoor / Indoor Chamber Mounted; > = 22 kV & < = 33 kV ; > 40 MVA | F84: 0 | G84: 0 | H84: 0 | I84: 0 | J84: 0 | K84: 0 | L84: 0 | M84: 0 | N84: 0 | O84: 0 | P84: 0 | Q84: 0 | R84: 0 | S84: 0 | T84: 0 | U84: 0 | V84: 0 | W84: 0 | X84: 0 | Y84: 0 | Z84: 0 | AA84: 0 | AB84: 0 | AC84: 0 | AD84: 0 | AE84: 0 | AF84: 0 | AG84: 0 | AH84: 0 | AI84: 0 | AJ84: 0 | AK84: 0 | AL84: 0 | AM84: 0 | AN84: 0 | AO84: 0 | AP84: 0 | AQ84: 0 | AR84: 0 | AS84: 0 | AT84: 0 | AU84: 0 | AV84: 0 | AW84: 0 | AX84: 0 | AY84: 0 | AZ84: 0 | BA84: 0 | BB84: 0 | BC84: 0 | BD84: 0 | BE84: 0 | BF84: 0 | BG84: 0 | BH84: 0 | BI84: 0 | BJ84: 0 | BK84: 0 | BL84: 0 | BM84: 0 | BN84: 0 | BO84: 0 | BP84: 0 | BQ84: 0 | BR84: 0 | BS84: 0 | BT84: 0
C85: Ground Outdoor / Indoor Chamber Mounted; > 33 kV & < = 66 kV ; < = 15 MVA | F85: 0 | G85: 0 | H85: 0 | I85: 0 | J85: 0 | K85: 0 | L85: 0 | M85: 0 | N85: 0 | O85: 0 | P85: 0 | Q85: 0 | R85: 0 | S85: 0 | T85: 0 | U85: 0 | V85: 0 | W85: 0 | X85: 0 | Y85: 0 | Z85: 0 | AA85: 0 | AB85: 0 | AC85: 0 | AD85: 0 | AE85: 0 | AF85: 0 | AG85: 0 | AH85: 0 | AI85: 0 | AJ85: 0 | AK85: 0 | AL85: 0 | AM85: 0 | AN85: 0 | AO85: 0 | AP85: 0 | AQ85: 0 | AR85: 0 | AS85: 0 | AT85: 0 | AU85: 0 | AV85: 0 | AW85: 0 | AX85: 0 | AY85: 0 | AZ85: 0 | BA85: 0 | BB85: 0 | BC85: 0 | BD85: 0 | BE85: 0 | BF85: 0 | BG85: 0 | BH85: 0 | BI85: 0 | BJ85: 0 | BK85: 0 | BL85: 0 | BM85: 0 | BN85: 0 | BO85: 0 | BP85: 0 | BQ85: 0 | BR85: 0 | BS85: 0 | BT85: 0
C86: Ground Outdoor / Indoor Chamber Mounted; > 33 kV & < = 66 kV ; > 15 MVA and < = 40 MVA | F86: 0 | G86: 0 | H86: 0 | I86: 0 | J86: 0 | K86: 0 | L86: 0 | M86: 0 | N86: 0 | O86: 0 | P86: 0 | Q86: 0 | R86: 0 | S86: 0 | T86: 0 | U86: 0 | V86: 0 | W86: 0 | X86: 0 | Y86: 0 | Z86: 0 | AA86: 0 | AB86: 0 | AC86: 0 | AD86: 0 | AE86: 0 | AF86: 0 | AG86: 0 | AH86: 0 | AI86: 0 | AJ86: 0 | AK86: 0 | AL86: 0 | AM86: 0 | AN86: 0 | AO86: 0 | AP86: 0 | AQ86: 0 | AR86: 0 | AS86: 0 | AT86: 0 | AU86: 0 | AV86: 0 | AW86: 0 | AX86: 0 | AY86: 0 | AZ86: 0 | BA86: 0 | BB86: 0 | BC86: 0 | BD86: 0 | BE86: 0 | BF86: 0 | BG86: 0 | BH86: 0 | BI86: 0 | BJ86: 0 | BK86: 0 | BL86: 0 | BM86: 0 | BN86: 0 | BO86: 0 | BP86: 0 | BQ86: 0 | BR86: 0 | BS86: 0 | BT86: 0
C87: Ground Outdoor / Indoor Chamber Mounted; > 33 kV & < = 66 kV ; > 40 MVA | F87: 0 | G87: 0 | H87: 0 | I87: 0 | J87: 0 | K87: 0 | L87: 0 | M87: 0 | N87: 0 | O87: 0 | P87: 0 | Q87: 0 | R87: 0 | S87: 0 | T87: 0 | U87: 0 | V87: 0 | W87: 0 | X87: 0 | Y87: 0 | Z87: 0 | AA87: 0 | AB87: 0 | AC87: 0 | AD87: 0 | AE87: 0 | AF87: 0 | AG87: 0 | AH87: 0 | AI87: 0 | AJ87: 0 | AK87: 0 | AL87: 0 | AM87: 0 | AN87: 0 | AO87: 0 | AP87: 0 | AQ87: 0 | AR87: 0 | AS87: 0 | AT87: 0 | AU87: 0 | AV87: 0 | AW87: 0 | AX87: 0 | AY87: 0 | AZ87: 0 | BA87: 0 | BB87: 0 | BC87: 0 | BD87: 0 | BE87: 0 | BF87: 0 | BG87: 0 | BH87: 0 | BI87: 0 | BJ87: 0 | BK87: 0 | BL87: 0 | BM87: 0 | BN87: 0 | BO87: 0 | BP87: 0 | BQ87: 0 | BR87: 0 | BS87: 0 | BT87: 0
C88: Ground Outdoor / Indoor Chamber Mounted; > 66 kV & < = 132 kV ; < = 100 MVA | F88: 0 | G88: 0 | H88: 0 | I88: 0 | J88: 0 | K88: 0 | L88: 0 | M88: 0 | N88: 0 | O88: 0 | P88: 0 | Q88: 0 | R88: 0 | S88: 0 | T88: 0 | U88: 0 | V88: 0 | W88: 0 | X88: 0 | Y88: 0 | Z88: 0 | AA88: 0 | AB88: 0 | AC88: 0 | AD88: 0 | AE88: 0 | AF88: 0 | AG88: 0 | AH88: 0 | AI88: 0 | AJ88: 0 | AK88: 0 | AL88: 0 | AM88: 0 | AN88: 0 | AO88: 0 | AP88: 0 | AQ88: 0 | AR88: 0 | AS88: 0 | AT88: 0 | AU88: 0 | AV88: 0 | AW88: 0 | AX88: 0 | AY88: 0 | AZ88: 0 | BA88: 0 | BB88: 0 | BC88: 0 | BD88: 0 | BE88: 0 | BF88: 0 | BG88: 0 | BH88: 0 | BI88: 0 | BJ88: 0 | BK88: 0 | BL88: 0 | BM88: 0 | BN88: 0 | BO88: 0 | BP88: 0 | BQ88: 0 | BR88: 0 | BS88: 0 | BT88: 0
C89: Ground Outdoor / Indoor Chamber Mounted; > 66 kV & < = 132 kV ; > 100 MVA | F89: 0 | G89: 0 | H89: 0 | I89: 0 | J89: 0 | K89: 0 | L89: 0 | M89: 0 | N89: 0 | O89: 0 | P89: 0 | Q89: 0 | R89: 0 | S89: 0 | T89: 0 | U89: 0 | V89: 0 | W89: 0 | X89: 0 | Y89: 0 | Z89: 0 | AA89: 0 | AB89: 0 | AC89: 0 | AD89: 0 | AE89: 0 | AF89: 0 | AG89: 0 | AH89: 0 | AI89: 0 | AJ89: 0 | AK89: 0 | AL89: 0 | AM89: 0 | AN89: 0 | AO89: 0 | AP89: 0 | AQ89: 0 | AR89: 0 | AS89: 0 | AT89: 0 | AU89: 0 | AV89: 0 | AW89: 0 | AX89: 0 | AY89: 0 | AZ89: 0 | BA89: 0 | BB89: 0 | BC89: 0 | BD89: 0 | BE89: 0 | BF89: 0 | BG89: 0 | BH89: 0 | BI89: 0 | BJ89: 0 | BK89: 0 | BL89: 0 | BM89: 0 | BN89: 0 | BO89: 0 | BP89: 0 | BQ89: 0 | BR89: 0 | BS89: 0 | BT89: 0
C90: Ground Outdoor / Indoor Chamber Mounted; > 132 kV ; < = 100 MVA | F90: 0 | G90: 0 | H90: 0 | I90: 0 | J90: 0 | K90: 0 | L90: 0 | M90: 0 | N90: 0 | O90: 0 | P90: 0 | Q90: 0 | R90: 0 | S90: 0 | T90: 0 | U90: 0 | V90: 0 | W90: 0 | X90: 0 | Y90: 0 | Z90: 0 | AA90: 0 | AB90: 0 | AC90: 0 | AD90: 0 | AE90: 0 | AF90: 0 | AG90: 0 | AH90: 0 | AI90: 0 | AJ90: 0 | AK90: 0 | AL90: 0 | AM90: 0 | AN90: 0 | AO90: 0 | AP90: 0 | AQ90: 0 | AR90: 0 | AS90: 0 | AT90: 0 | AU90: 0 | AV90: 0 | AW90: 0 | AX90: 0 | AY90: 0 | AZ90: 0 | BA90: 0 | BB90: 0 | BC90: 0 | BD90: 0 | BE90: 0 | BF90: 0 | BG90: 0 | BH90: 0 | BI90: 0 | BJ90: 0 | BK90: 0 | BL90: 0 | BM90: 0 | BN90: 0 | BO90: 0 | BP90: 0 | BQ90: 0 | BR90: 0 | BS90: 0 | BT90: 0
C91: Ground Outdoor / Indoor Chamber Mounted; > 132 kV ; > 100 MVA | F91: 0 | G91: 0 | H91: 0 | I91: 0 | J91: 0 | K91: 0 | L91: 0 | M91: 0 | N91: 0 | O91: 0 | P91: 0 | Q91: 0 | R91: 0 | S91: 0 | T91: 0 | U91: 0 | V91: 0 | W91: 0 | X91: 0 | Y91: 0 | Z91: 0 | AA91: 0 | AB91: 0 | AC91: 0 | AD91: 0 | AE91: 0 | AF91: 0 | AG91: 0 | AH91: 0 | AI91: 0 | AJ91: 0 | AK91: 0 | AL91: 0 | AM91: 0 | AN91: 0 | AO91: 0 | AP91: 0 | AQ91: 0 | AR91: 0 | AS91: 0 | AT91: 0 | AU91: 0 | AV91: 0 | AW91: 0 | AX91: 0 | AY91: 0 | AZ91: 0 | BA91: 0 | BB91: 0 | BC91: 0 | BD91: 0 | BE91: 0 | BF91: 0 | BG91: 0 | BH91: 0 | BI91: 0 | BJ91: 0 | BK91: 0 | BL91: 0 | BM91: 0 | BN91: 0 | BO91: 0 | BP91: 0 | BQ91: 0 | BR91: 0 | BS91: 0 | BT91: 0
C92: Other | F92: 0 | G92: 0 | H92: 0 | I92: 0 | J92: 1 | K92: 0 | L92: 1 | M92: 0 | N92: 0 | O92: 0 | P92: 0 | Q92: 0 | R92: 0 | S92: 0 | T92: 0 | U92: 0 | V92: 0 | W92: 0 | X92: 0 | Y92: 0 | Z92: 0 | AA92: 1 | AB92: 0 | AC92: 0 | AD92: 0 | AE92: 0 | AF92: 0 | AG92: 0 | AH92: 0 | AI92: 0 | AJ92: 0 | AK92: 0 | AL92: 0 | AM92: 0 | AN92: 0 | AO92: 0 | AP92: 0 | AQ92: 0 | AR92: 0 | AS92: 0 | AT92: 0 | AU92: 0 | AV92: 0 | AW92: 0 | AX92: 0 | AY92: 0 | AZ92: 0 | BA92: 0 | BB92: 0 | BC92: 0 | BD92: 0 | BE92: 0 | BF92: 0 | BG92: 0 | BH92: 0 | BI92: 0 | BJ92: 0 | BK92: 0 | BL92: 0 | BM92: 0 | BN92: 0 | BO92: 0 | BP92: 0 | BQ92: 0 | BR92: 0 | BS92: 0 | BT92: 0
B93: SWITCHGEAR BY: HIGHEST OPERATING VOLTAGE ; SWITCH FUNCTION | C93: ˂ = 11 kV ; Fuse | D93: 40 | E93: 6.32455532 | F93: 145 | G93: 166 | H93: 146 | I93: 115 | J93: 79 | K93: 91 | L93: 143 | M93: 277 | N93: 301 | O93: 196 | P93: 360 | Q93: 298 | R93: 288 | S93: 323 | T93: 281 | U93: 225 | V93: 168 | W93: 134 | X93: 209 | Y93: 231 | Z93: 375 | AA93: 471 | AB93: 484 | AC93: 287 | AD93: 309 | AE93: 257 | AF93: 301 | AG93: 338 | AH93: 354 | AI93: 381 | AJ93: 338 | AK93: 255 | AL93: 200 | AM93: 224 | AN93: 202 | AO93: 167 | AP93: 143 | AQ93: 125 | AR93: 132 | AS93: 69 | AT93: 62 | AU93: 86 | AV93: 50 | AW93: 26 | AX93: 51 | AY93: 38 | AZ93: 53 | BA93: 53 | BB93: 44 | BC93: 29 | BD93: 37 | BE93: 35 | BF93: 19 | BG93: 23 | BH93: 17 | BI93: 17 | BJ93: 12 | BK93: 16 | BL93: 9 | BM93: 2 | BN93: 2 | BO93: 1 | BP93: 0 | BQ93: 0 | BR93: 0 | BS93: 0 | BT93: 0
C94: ˂ = 11 kV ; Switch | D94: 40 | E94: 6.32455532 | F94: 826 | G94: 1017 | H94: 836 | I94: 695 | J94: 453 | K94: 429 | L94: 669 | M94: 995 | N94: 1100 | O94: 966 | P94: 1548 | Q94: 1523 | R94: 1692 | S94: 1652 | T94: 1421 | U94: 1175 | V94: 951 | W94: 890 | X94: 1154 | Y94: 1228 | Z94: 1543 | AA94: 1582 | AB94: 1543 | AC94: 1168 | AD94: 1215 | AE94: 1093 | AF94: 1091 | AG94: 1231 | AH94: 1250 | AI94: 1326 | AJ94: 1121 | AK94: 867 | AL94: 877 | AM94: 823 | AN94: 794 | AO94: 714 | AP94: 705 | AQ94: 575 | AR94: 555 | AS94: 473 | AT94: 448 | AU94: 445 | AV94: 331 | AW94: 292 | AX94: 302 | AY94: 275 | AZ94: 223 | BA94: 207 | BB94: 145 | BC94: 144 | BD94: 149 | BE94: 89 | BF94: 21 | BG94: 34 | BH94: 26 | BI94: 23 | BJ94: 15 | BK94: 14 | BL94: 13 | BM94: 12 | BN94: 3 | BO94: 6 | BP94: 2 | BQ94: 2 | BR94: 5 | BS94: 0 | BT94: 0
C95: ˂ = 11 kV ; Circuit Breaker | D95: 40 | E95: 6.32455532 | F95: 76 | G95: 46 | H95: 71 | I95: 58 | J95: 62 | K95: 31 | L95: 102 | M95: 149 | N95: 122 | O95: 98 | P95: 56 | Q95: 54 | R95: 70 | S95: 53 | T95: 34 | U95: 27 | V95: 13 | W95: 22 | X95: 10 | Y95: 6 | Z95: 1 | AA95: 6 | AB95: 5 | AC95: 2 | AD95: 5 | AE95: 2 | AF95: 5 | AG95: 4 | AH95: 7 | AI95: 4 | AJ95: 6 | AK95: 12 | AL95: 7 | AM95: 12 | AN95: 11 | AO95: 16 | AP95: 11 | AQ95: 17 | AR95: 20 | AS95: 13 | AT95: 4 | AU95: 15 | AV95: 8 | AW95: 0 | AX95: 11 | AY95: 6 | AZ95: 10 | BA95: 13 | BB95: 12 | BC95: 5 | BD95: 11 | BE95: 9 | BF95: 9 | BG95: 5 | BH95: 19 | BI95: 9 | BJ95: 4 | BK95: 10 | BL95: 13 | BM95: 0 | BN95: 0 | BO95: 0 | BP95: 0 | BQ95: 0 | BR95: 0 | BS95: 0 | BT95: 0
C96: > 11 kV & < = 22 kV ; Switch | D96: 40 | E96: 6.32455532 | F96: 785 | G96: 1115 | H96: 548 | I96: 144 | J96: 164 | K96: 223 | L96: 160 | M96: 378 | N96: 348 | O96: 124 | P96: 176 | Q96: 378 | R96: 437 | S96: 336 | T96: 160 | U96: 110 | V96: 41 | W96: 9 | X96: 60 | Y96: 5 | Z96: 5 | AA96: 18 | AB96: 0 | AC96: 0 | AD96: 0 | AE96: 0 | AF96: 0 | AG96: 5 | AH96: 0 | AI96: 5 | AJ96: 0 | AK96: 0 | AL96: 0 | AM96: 0 | AN96: 0 | AO96: 0 | AP96: 0 | AQ96: 0 | AR96: 0 | AS96: 0 | AT96: 0 | AU96: 5 | AV96: 0 | AW96: 0 | AX96: 0 | AY96: 0 | AZ96: 0 | BA96: 0 | BB96: 0 | BC96: 0 | BD96: 0 | BE96: 0 | BF96: 0 | BG96: 0 | BH96: 0 | BI96: 0 | BJ96: 0 | BK96: 0 | BL96: 0 | BM96: 0 | BN96: 0 | BO96: 5 | BP96: 0 | BQ96: 0 | BR96: 0 | BS96: 0 | BT96: 0
C97: > 11 kV & < = 22 kV ; Circuit Breaker | D97: 40 | E97: 6.32455532 | F97: 39 | G97: 24 | H97: 23 | I97: 23 | J97: 20 | K97: 14 | L97: 29 | M97: 75 | N97: 60 | O97: 62 | P97: 28 | Q97: 35 | R97: 47 | S97: 38 | T97: 18 | U97: 24 | V97: 16 | W97: 8 | X97: 17 | Y97: 9 | Z97: 9 | AA97: 11 | AB97: 2 | AC97: 5 | AD97: 1 | AE97: 0 | AF97: 1 | AG97: 1 | AH97: 2 | AI97: 0 | AJ97: 1 | AK97: 3 | AL97: 0 | AM97: 9 | AN97: 2 | AO97: 6 | AP97: 5 | AQ97: 7 | AR97: 6 | AS97: 9 | AT97: 2 | AU97: 3 | AV97: 3 | AW97: 1 | AX97: 1 | AY97: 0 | AZ97: 0 | BA97: 0 | BB97: 0 | BC97: 0 | BD97: 0 | BE97: 0 | BF97: 0 | BG97: 0 | BH97: 0 | BI97: 0 | BJ97: 2 | BK97: 0 | BL97: 7 | BM97: 0 | BN97: 0 | BO97: 0 | BP97: 0 | BQ97: 0 | BR97: 0 | BS97: 0 | BT97: 0
C98: > 22 kV & < = 33 kV ; Switch | D98: 40 | E98: 6.32455532 | F98: 0 | G98: 0 | H98: 0 | I98: 0 | J98: 0 | K98: 0 | L98: 0 | M98: 0 | N98: 0 | O98: 0 | P98: 0 | Q98: 0 | R98: 0 | S98: 0 | T98: 0 | U98: 0 | V98: 1 | W98: 0 | X98: 0 | Y98: 0 | Z98: 0 | AA98: 0 | AB98: 0 | AC98: 0 | AD98: 0 | AE98: 0 | AF98: 0 | AG98: 0 | AH98: 0 | AI98: 0 | AJ98: 0 | AK98: 0 | AL98: 0 | AM98: 0 | AN98: 0 | AO98: 0 | AP98: 0 | AQ98: 0 | AR98: 0 | AS98: 0 | AT98: 0 | AU98: 0 | AV98: 0 | AW98: 0 | AX98: 0 | AY98: 0 | AZ98: 0 | BA98: 0 | BB98: 0 | BC98: 0 | BD98: 0 | BE98: 0 | BF98: 0 | BG98: 0 | BH98: 0 | BI98: 0 | BJ98: 0 | BK98: 0 | BL98: 0 | BM98: 0 | BN98: 0 | BO98: 0 | BP98: 0 | BQ98: 0 | BR98: 0 | BS98: 0 | BT98: 0
C99: > 22 kV & < = 33 kV ; Circuit Breaker | D99: 40 | E99: 6.32455532 | F99: 0 | G99: 0 | H99: 0 | I99: 0 | J99: 1 | K99: 0 | L99: 2 | M99: 0 | N99: 0 | O99: 0 | P99: 2 | Q99: 0 | R99: 0 | S99: 1 | T99: 7 | U99: 0 | V99: 0 | W99: 3 | X99: 0 | Y99: 1 | Z99: 0 | AA99: 0 | AB99: 0 | AC99: 0 | AD99: 0 | AE99: 0 | AF99: 0 | AG99: 0 | AH99: 0 | AI99: 0 | AJ99: 0 | AK99: 0 | AL99: 0 | AM99: 0 | AN99: 0 | AO99: 0 | AP99: 0 | AQ99: 0 | AR99: 0 | AS99: 0 | AT99: 0 | AU99: 0 | AV99: 0 | AW99: 0 | AX99: 0 | AY99: 0 | AZ99: 0 | BA99: 2 | BB99: 0 | BC99: 2 | BD99: 0 | BE99: 0 | BF99: 0 | BG99: 0 | BH99: 4 | BI99: 0 | BJ99: 0 | BK99: 0 | BL99: 0 | BM99: 0 | BN99: 0 | BO99: 0 | BP99: 0 | BQ99: 0 | BR99: 0 | BS99: 0 | BT99: 0
C100: > 33 kV & < = 66 kV ; Switch | D100: 40 | E100: 6.32455532 | F100: 0 | G100: 0 | H100: 0 | I100: 0 | J100: 0 | K100: 0 | L100: 0 | M100: 0 | N100: 0 | O100: 0 | P100: 0 | Q100: 0 | R100: 0 | S100: 0 | T100: 0 | U100: 0 | V100: 0 | W100: 0 | X100: 0 | Y100: 0 | Z100: 0 | AA100: 0 | AB100: 0 | AC100: 0 | AD100: 0 | AE100: 0 | AF100: 0 | AG100: 0 | AH100: 0 | AI100: 0 | AJ100: 0 | AK100: 0 | AL100: 0 | AM100: 0 | AN100: 0 | AO100: 0 | AP100: 0 | AQ100: 0 | AR100: 0 | AS100: 0 | AT100: 0 | AU100: 0 | AV100: 0 | AW100: 0 | AX100: 0 | AY100: 0 | AZ100: 0 | BA100: 0 | BB100: 0 | BC100: 0 | BD100: 0 | BE100: 0 | BF100: 0 | BG100: 0 | BH100: 0 | BI100: 0 | BJ100: 0 | BK100: 0 | BL100: 0 | BM100: 0 | BN100: 0 | BO100: 0 | BP100: 0 | BQ100: 0 | BR100: 0 | BS100: 0 | BT100: 0
C101: > 33 kV & < = 66 kV ; Circuit Breaker | D101: 40 | E101: 6.32455532 | F101: 0 | G101: 0 | H101: 0 | I101: 0 | J101: 0 | K101: 0 | L101: 0 | M101: 0 | N101: 0 | O101: 0 | P101: 0 | Q101: 2 | R101: 0 | S101: 0 | T101: 0 | U101: 0 | V101: 0 | W101: 0 | X101: 0 | Y101: 0 | Z101: 0 | AA101: 0 | AB101: 0 | AC101: 0 | AD101: 0 | AE101: 0 | AF101: 0 | AG101: 0 | AH101: 0 | AI101: 0 | AJ101: 0 | AK101: 0 | AL101: 0 | AM101: 0 | AN101: 0 | AO101: 0 | AP101: 0 | AQ101: 0 | AR101: 0 | AS101: 0 | AT101: 0 | AU101: 0 | AV101: 0 | AW101: 0 | AX101: 0 | AY101: 0 | AZ101: 0 | BA101: 0 | BB101: 0 | BC101: 0 | BD101: 0 | BE101: 0 | BF101: 0 | BG101: 0 | BH101: 0 | BI101: 0 | BJ101: 0 | BK101: 0 | BL101: 0 | BM101: 0 | BN101: 0 | BO101: 0 | BP101: 0 | BQ101: 0 | BR101: 0 | BS101: 0 | BT101: 0
C102: > 66 kV & < = 132 kV ; Switch | F102: 0 | G102: 0 | H102: 0 | I102: 0 | J102: 0 | K102: 0 | L102: 0 | M102: 0 | N102: 0 | O102: 0 | P102: 0 | Q102: 0 | R102: 0 | S102: 0 | T102: 0 | U102: 0 | V102: 0 | W102: 0 | X102: 0 | Y102: 0 | Z102: 0 | AA102: 0 | AB102: 0 | AC102: 0 | AD102: 0 | AE102: 0 | AF102: 0 | AG102: 0 | AH102: 0 | AI102: 0 | AJ102: 0 | AK102: 0 | AL102: 0 | AM102: 0 | AN102: 0 | AO102: 0 | AP102: 0 | AQ102: 0 | AR102: 0 | AS102: 0 | AT102: 0 | AU102: 0 | AV102: 0 | AW102: 0 | AX102: 0 | AY102: 0 | AZ102: 0 | BA102: 0 | BB102: 0 | BC102: 0 | BD102: 0 | BE102: 0 | BF102: 0 | BG102: 0 | BH102: 0 | BI102: 0 | BJ102: 0 | BK102: 0 | BL102: 0 | BM102: 0 | BN102: 0 | BO102: 0 | BP102: 0 | BQ102: 0 | BR102: 0 | BS102: 0 | BT102: 0
C103: > 66 kV & < = 132 kV ; Circuit Breaker | F103: 0 | G103: 0 | H103: 0 | I103: 0 | J103: 0 | K103: 0 | L103: 0 | M103: 0 | N103: 0 | O103: 0 | P103: 0 | Q103: 0 | R103: 0 | S103: 0 | T103: 0 | U103: 0 | V103: 0 | W103: 0 | X103: 0 | Y103: 0 | Z103: 0 | AA103: 0 | AB103: 0 | AC103: 0 | AD103: 0 | AE103: 0 | AF103: 0 | AG103: 0 | AH103: 0 | AI103: 0 | AJ103: 0 | AK103: 0 | AL103: 0 | AM103: 0 | AN103: 0 | AO103: 0 | AP103: 0 | AQ103: 0 | AR103: 0 | AS103: 0 | AT103: 0 | AU103: 0 | AV103: 0 | AW103: 0 | AX103: 0 | AY103: 0 | AZ103: 0 | BA103: 0 | BB103: 0 | BC103: 0 | BD103: 0 | BE103: 0 | BF103: 0 | BG103: 0 | BH103: 0 | BI103: 0 | BJ103: 0 | BK103: 0 | BL103: 0 | BM103: 0 | BN103: 0 | BO103: 0 | BP103: 0 | BQ103: 0 | BR103: 0 | BS103: 0 | BT103: 0
C104: > 132 kV ; Switch | F104: 0 | G104: 0 | H104: 0 | I104: 0 | J104: 0 | K104: 0 | L104: 0 | M104: 0 | N104: 0 | O104: 0 | P104: 0 | Q104: 0 | R104: 0 | S104: 0 | T104: 0 | U104: 0 | V104: 0 | W104: 0 | X104: 0 | Y104: 0 | Z104: 0 | AA104: 0 | AB104: 0 | AC104: 0 | AD104: 0 | AE104: 0 | AF104: 0 | AG104: 0 | AH104: 0 | AI104: 0 | AJ104: 0 | AK104: 0 | AL104: 0 | AM104: 0 | AN104: 0 | AO104: 0 | AP104: 0 | AQ104: 0 | AR104: 0 | AS104: 0 | AT104: 0 | AU104: 0 | AV104: 0 | AW104: 0 | AX104: 0 | AY104: 0 | AZ104: 0 | BA104: 0 | BB104: 0 | BC104: 0 | BD104: 0 | BE104: 0 | BF104: 0 | BG104: 0 | BH104: 0 | BI104: 0 | BJ104: 0 | BK104: 0 | BL104: 0 | BM104: 0 | BN104: 0 | BO104: 0 | BP104: 0 | BQ104: 0 | BR104: 0 | BS104: 0 | BT104: 0
C105: > 132 kV ; Circuit Breaker | F105: 0 | G105: 0 | H105: 0 | I105: 0 | J105: 0 | K105: 0 | L105: 0 | M105: 0 | N105: 0 | O105: 0 | P105: 0 | Q105: 0 | R105: 0 | S105: 0 | T105: 0 | U105: 0 | V105: 0 | W105: 0 | X105: 0 | Y105: 0 | Z105: 0 | AA105: 0 | AB105: 0 | AC105: 0 | AD105: 0 | AE105: 0 | AF105: 0 | AG105: 0 | AH105: 0 | AI105: 0 | AJ105: 0 | AK105: 0 | AL105: 0 | AM105: 0 | AN105: 0 | AO105: 0 | AP105: 0 | AQ105: 0 | AR105: 0 | AS105: 0 | AT105: 0 | AU105: 0 | AV105: 0 | AW105: 0 | AX105: 0 | AY105: 0 | AZ105: 0 | BA105: 0 | BB105: 0 | BC105: 0 | BD105: 0 | BE105: 0 | BF105: 0 | BG105: 0 | BH105: 0 | BI105: 0 | BJ105: 0 | BK105: 0 | BL105: 0 | BM105: 0 | BN105: 0 | BO105: 0 | BP105: 0 | BQ105: 0 | BR105: 0 | BS105: 0 | BT105: 0
C106: Other | D106: 40 | E106: 6.32455532 | F106: 3 | G106: 0 | H106: 3 | I106: 1 | J106: 3 | K106: 0 | L106: 5 | M106: 5 | N106: 1 | O106: 3 | P106: 0 | Q106: 3 | R106: 2 | S106: 0 | T106: 2 | U106: 6 | V106: 0 | W106: 1 | X106: 0 | Y106: 1 | Z106: 3 | AA106: 2 | AB106: 4 | AC106: 0 | AD106: 1 | AE106: 0 | AF106: 3 | AG106: 1 | AH106: 0 | AI106: 0 | AJ106: 1 | AK106: 1 | AL106: 3 | AM106: 4 | AN106: 4 | AO106: 5 | AP106: 2 | AQ106: 3 | AR106: 4 | AS106: 5 | AT106: 0 | AU106: 6 | AV106: 3 | AW106: 1 | AX106: 1 | AY106: 0 | AZ106: 1 | BA106: 0 | BB106: 0 | BC106: 0 | BD106: 0 | BE106: 0 | BF106: 5 | BG106: 4 | BH106: 4 | BI106: 5 | BJ106: 5 | BK106: 3 | BL106: 8 | BM106: 0 | BN106: 0 | BO106: 0 | BP106: 0 | BQ106: 0 | BR106: 0 | BS106: 0 | BT106: 0
B107: PUBLIC LIGHTING BY: ASSET TYPE ; LIGHTING OBLIGATION | C107: Luminaires ; Major Road | D107: 20 | E107: 4.472135955 | F107: 465 | G107: 966 | H107: 1224 | I107: 895 | J107: 765 | K107: 950 | L107: 425 | M107: 383 | N107: 404 | O107: 334 | P107: 248 | Q107: 246 | R107: 244 | S107: 211 | T107: 212 | U107: 337 | V107: 336 | W107: 132 | X107: 130 | Y107: 130 | Z107: 130 | AA107: 129 | AB107: 128 | AC107: 127 | AD107: 128 | AE107: 129 | AF107: 128 | AG107: 147 | AH107: 150 | AI107: 151 | AJ107: 151 | AK107: 151 | AL107: 30 | AM107: 35 | AN107: 29 | AO107: 28 | AP107: 27 | AQ107: 28 | AR107: 21 | AS107: 22 | AT107: 21 | AU107: 21 | AV107: 20 | AW107: 14 | AX107: 13 | AY107: 14 | AZ107: 13 | BA107: 13
C108: Luminaires ; Minor Road | D108: 20 | E108: 4.472135955 | F108: 4477 | G108: 2696 | H108: 1958 | I108: 1631 | J108: 1128 | K108: 813 | L108: 264 | M108: 714 | N108: 699 | O108: 1315 | P108: 1307 | Q108: 628 | R108: 625 | S108: 625 | T108: 895 | U108: 891 | V108: 891 | W108: 274 | X108: 276 | Y108: 276 | Z108: 276 | AA108: 276 | AB108: 276 | AC108: 279 | AD108: 276 | AE108: 276 | AF108: 276 | AG108: 275 | AH108: 286 | AI108: 288 | AJ108: 16 | AK108: 16 | AL108: 16 | AM108: 16 | AN108: 13 | AO108: 14 | AP108: 15 | AQ108: 15 | AR108: 4 | AS108: 3 | AT108: 4 | AU108: 5 | AV108: 4 | AW108: 4 | AX108: 6 | AY108: 6 | AZ108: 6 | BA108: 18
C109: Brackets ; Major Road | D109: 40 | E109: 6.32455532 | F109: 178 | G109: 115 | H109: 152 | I109: 150 | J109: 114 | K109: 74 | L109: 176 | M109: 339 | N109: 417 | O109: 293 | P109: 205 | Q109: 125 | R109: 183 | S109: 215 | T109: 152 | U109: 158 | V109: 214 | W109: 303 | X109: 316 | Y109: 271 | Z109: 210 | AA109: 188 | AB109: 232 | AC109: 210 | AD109: 135 | AE109: 151 | AF109: 192 | AG109: 171 | AH109: 169 | AI109: 183 | AJ109: 187 | AK109: 179 | AL109: 164 | AM109: 207 | AN109: 236 | AO109: 183 | AP109: 156 | AQ109: 160 | AR109: 150 | AS109: 151 | AT109: 166 | AU109: 185 | AV109: 116 | AW109: 56 | AX109: 131 | AY109: 163 | AZ109: 195 | BA109: 224 | BB109: 198 | BC109: 188 | BD109: 174 | BE109: 150 | BF109: 116 | BG109: 146 | BH109: 151 | BI109: 116 | BJ109: 122 | BK109: 91 | BL109: 43 | BM109: 19 | BN109: 17 | BO109: 18 | BP109: 18 | BQ109: 13 | BR109: 4 | BS109: 0 | BT109: 0 | BU109: 0 | BV109: 0 | BW109: 0 | BX109: 0 | BY109: 0 | BZ109: 0 | CA109: 0 | CB109: 0 | CC109: 0 | CD109: 0 | CE109: 0 | CF109: 0 | CG109: 0 | CH109: 0 | CI109: 0 | CJ109: 0 | CK109: 0 | CL109: 0 | CM109: 0 | CN109: 0 | CO109: 0 | CP109: 0 | CQ109: 0 | CR109: 0 | CS109: 0 | CT109: 0 | CU109: 0 | CV109: 0 | CW109: 0 | CX109: 0 | CY109: 0 | CZ109: 0 | DA109: 0 | DB109: 0 | DC109: 0 | DD109: 0 | DE109: 0 | DF109: 0 | DG109: 0 | DH109: 0 | DI109: 0 | DJ109: 0
C110: Brackets ; Minor Road | D110: 40 | E110: 6.32455532 | F110: 231 | G110: 281 | H110: 313 | I110: 267 | J110: 311 | K110: 277 | L110: 278 | M110: 490 | N110: 618 | O110: 504 | P110: 440 | Q110: 399 | R110: 461 | S110: 658 | T110: 564 | U110: 343 | V110: 355 | W110: 397 | X110: 492 | Y110: 497 | Z110: 424 | AA110: 419 | AB110: 400 | AC110: 332 | AD110: 276 | AE110: 334 | AF110: 446 | AG110: 402 | AH110: 308 | AI110: 377 | AJ110: 457 | AK110: 469 | AL110: 445 | AM110: 410 | AN110: 450 | AO110: 394 | AP110: 314 | AQ110: 385 | AR110: 377 | AS110: 401 | AT110: 432 | AU110: 373 | AV110: 223 | AW110: 140 | AX110: 298 | AY110: 371 | AZ110: 575 | BA110: 719 | BB110: 587 | BC110: 590 | BD110: 673 | BE110: 670 | BF110: 518 | BG110: 460 | BH110: 414 | BI110: 415 | BJ110: 401 | BK110: 243 | BL110: 124 | BM110: 37 | BN110: 22 | BO110: 28 | BP110: 24 | BQ110: 9 | BR110: 5 | BS110: 0 | BT110: 0 | BU110: 0 | BV110: 0 | BW110: 0 | BX110: 0 | BY110: 0 | BZ110: 0 | CA110: 0 | CB110: 0 | CC110: 0 | CD110: 0 | CE110: 0 | CF110: 0 | CG110: 0 | CH110: 0 | CI110: 0 | CJ110: 0 | CK110: 0 | CL110: 0 | CM110: 0 | CN110: 0 | CO110: 0 | CP110: 0 | CQ110: 0 | CR110: 0 | CS110: 0 | CT110: 0 | CU110: 0 | CV110: 0 | CW110: 0 | CX110: 0 | CY110: 0 | CZ110: 0 | DA110: 0 | DB110: 0 | DC110: 0 | DD110: 0 | DE110: 0 | DF110: 0 | DG110: 0 | DH110: 0 | DI110: 0 | DJ110: 0
C111: Lamps ; Major Road | F111: 0 | G111: 0 | H111: 0 | I111: 0 | J111: 0 | K111: 0 | L111: 0 | M111: 0 | N111: 0 | O111: 0 | P111: 0 | Q111: 0 | R111: 0 | S111: 0 | T111: 0 | U111: 0 | V111: 0 | W111: 0 | X111: 0 | Y111: 0 | Z111: 0 | AA111: 0 | AB111: 0 | AC111: 0 | AD111: 0 | AE111: 0 | AF111: 0 | AG111: 0 | AH111: 0 | AI111: 0 | AJ111: 0 | AK111: 0 | AL111: 0 | AM111: 0 | AN111: 0 | AO111: 0 | AP111: 0 | AQ111: 0 | AR111: 0 | AS111: 0 | AT111: 0 | AU111: 0 | AV111: 0 | AW111: 0 | AX111: 0 | AY111: 0 | AZ111: 0 | BA111: 0 | BB111: 0 | BC111: 0 | BD111: 0 | BE111: 0 | BF111: 0 | BG111: 0 | BH111: 0 | BI111: 0 | BJ111: 0 | BK111: 0 | BL111: 0 | BM111: 0 | BN111: 0 | BO111: 0 | BP111: 0 | BQ111: 0 | BR111: 0 | BS111: 0 | BT111: 0 | BU111: 0 | BV111: 0 | BW111: 0 | BX111: 0 | BY111: 0 | BZ111: 0 | CA111: 0 | CB111: 0 | CC111: 0 | CD111: 0 | CE111: 0 | CF111: 0 | CG111: 0 | CH111: 0 | CI111: 0 | CJ111: 0 | CK111: 0 | CL111: 0 | CM111: 0 | CN111: 0 | CO111: 0 | CP111: 0 | CQ111: 0 | CR111: 0 | CS111: 0 | CT111: 0 | CU111: 0 | CV111: 0 | CW111: 0 | CX111: 0 | CY111: 0 | CZ111: 0 | DA111: 0 | DB111: 0 | DC111: 0 | DD111: 0 | DE111: 0 | DF111: 0 | DG111: 0 | DH111: 0 | DI111: 0 | DJ111: 0
C112: Lamps ; Minor Road | F112: 0 | G112: 0 | H112: 0 | I112: 0 | J112: 0 | K112: 0 | L112: 0 | M112: 0 | N112: 0 | O112: 0 | P112: 0 | Q112: 0 | R112: 0 | S112: 0 | T112: 0 | U112: 0 | V112: 0 | W112: 0 | X112: 0 | Y112: 0 | Z112: 0 | AA112: 0 | AB112: 0 | AC112: 0 | AD112: 0 | AE112: 0 | AF112: 0 | AG112: 0 | AH112: 0 | AI112: 0 | AJ112: 0 | AK112: 0 | AL112: 0 | AM112: 0 | AN112: 0 | AO112: 0 | AP112: 0 | AQ112: 0 | AR112: 0 | AS112: 0 | AT112: 0 | AU112: 0 | AV112: 0 | AW112: 0 | AX112: 0 | AY112: 0 | AZ112: 0 | BA112: 0 | BB112: 0 | BC112: 0 | BD112: 0 | BE112: 0 | BF112: 0 | BG112: 0 | BH112: 0 | BI112: 0 | BJ112: 0 | BK112: 0 | BL112: 0 | BM112: 0 | BN112: 0 | BO112: 0 | BP112: 0 | BQ112: 0 | BR112: 0 | BS112: 0 | BT112: 0 | BU112: 0 | BV112: 0 | BW112: 0 | BX112: 0 | BY112: 0 | BZ112: 0 | CA112: 0 | CB112: 0 | CC112: 0 | CD112: 0 | CE112: 0 | CF112: 0 | CG112: 0 | CH112: 0 | CI112: 0 | CJ112: 0 | CK112: 0 | CL112: 0 | CM112: 0 | CN112: 0 | CO112: 0 | CP112: 0 | CQ112: 0 | CR112: 0 | CS112: 0 | CT112: 0 | CU112: 0 | CV112: 0 | CW112: 0 | CX112: 0 | CY112: 0 | CZ112: 0 | DA112: 0 | DB112: 0 | DC112: 0 | DD112: 0 | DE112: 0 | DF112: 0 | DG112: 0 | DH112: 0 | DI112: 0 | DJ112: 0
C113: Poles / Columns ; Major Road | D113: 35 | E113: 5.916079783 | F113: 0 | G113: 15 | H113: 33 | I113: 13 | J113: 8 | K113: 13 | L113: 24 | M113: 65 | N113: 24 | O113: 51 | P113: 84 | Q113: 13 | R113: 17 | S113: 15 | T113: 20 | U113: 24 | V113: 17 | W113: 24 | X113: 18 | Y113: 36 | Z113: 31 | AA113: 2 | AB113: 4 | AC113: 6 | AD113: 2 | AE113: 9 | AF113: 9 | AG113: 20 | AH113: 42 | AI113: 92 | AJ113: 92 | AK113: 24 | AL113: 4 | AM113: 4 | AN113: 4 | AO113: 24 | AP113: 24 | AQ113: 13 | AR113: 18 | AS113: 9 | AT113: 4 | AU113: 17 | AV113: 15 | AW113: 0 | AX113: 0 | AY113: 2 | AZ113: 9 | BA113: 16 | BB113: 20 | BC113: 22 | BD113: 15 | BE113: 6 | BF113: 4 | BG113: 6 | BH113: 11 | BI113: 16 | BJ113: 11 | BK113: 6 | BL113: 4 | BM113: 0 | BN113: 0 | BO113: 0 | BP113: 0 | BQ113: 0 | BR113: 0 | BS113: 0 | BT113: 0 | BU113: 0 | BV113: 0 | BW113: 0 | BX113: 0 | BY113: 0 | BZ113: 0 | CA113: 0 | CB113: 0 | CC113: 0 | CD113: 0 | CE113: 0 | CF113: 0 | CG113: 0 | CH113: 0 | CI113: 0 | CJ113: 0 | CK113: 0 | CL113: 0 | CM113: 0 | CN113: 0 | CO113: 0 | CP113: 0 | CQ113: 0 | CR113: 0 | CS113: 0 | CT113: 0 | CU113: 0 | CV113: 0 | CW113: 0 | CX113: 0 | CY113: 0 | CZ113: 0 | DA113: 0 | DB113: 0 | DC113: 0 | DD113: 0 | DE113: 0 | DF113: 0 | DG113: 0 | DH113: 0 | DI113: 0 | DJ113: 0
C114: Poles / Columns ; Minor Road | D114: 35 | E114: 5.916079783 | F114: 6 | G114: 6 | H114: 14 | I114: 10 | J114: 19 | K114: 4 | L114: 6 | M114: 31 | N114: 34 | O114: 20 | P114: 18 | Q114: 12 | R114: 6 | S114: 12 | T114: 10 | U114: 4 | V114: 7 | W114: 8 | X114: 3 | Y114: 1 | Z114: 6 | AA114: 9 | AB114: 4 | AC114: 6 | AD114: 6 | AE114: 4 | AF114: 4 | AG114: 2 | AH114: 1 | AI114: 1 | AJ114: 2 | AK114: 3 | AL114: 2 | AM114: 2 | AN114: 4 | AO114: 3 | AP114: 1 | AQ114: 0 | AR114: 0 | AS114: 1 | AT114: 1 | AU114: 1 | AV114: 1 | AW114: 1 | AX114: 1 | AY114: 1 | AZ114: 1 | BA114: 1 | BB114: 3 | BC114: 3 | BD114: 3 | BE114: 2 | BF114: 1 | BG114: 2 | BH114: 2 | BI114: 1 | BJ114: 0 | BK114: 0 | BL114: 0 | BM114: 0 | BN114: 0 | BO114: 0 | BP114: 0 | BQ114: 0 | BR114: 0 | BS114: 0 | BT114: 0 | BU114: 0 | BV114: 0 | BW114: 0 | BX114: 0 | BY114: 0 | BZ114: 0 | CA114: 0 | CB114: 0 | CC114: 0 | CD114: 0 | CE114: 0 | CF114: 0 | CG114: 0 | CH114: 0 | CI114: 0 | CJ114: 0 | CK114: 0 | CL114: 0 | CM114: 0 | CN114: 0 | CO114: 0 | CP114: 0 | CQ114: 0 | CR114: 0 | CS114: 0 | CT114: 0 | CU114: 0 | CV114: 0 | CW114: 0 | CX114: 0 | CY114: 0 | CZ114: 0 | DA114: 0 | DB114: 0 | DC114: 0 | DD114: 0 | DE114: 0 | DF114: 0 | DG114: 0 | DH114: 0 | DI114: 0 | DJ114: 0
C115: Other | D115: 0 | E115: 0 | F115: 0 | G115: 0 | H115: 0 | I115: 0 | J115: 0 | K115: 0 | L115: 0 | M115: 0 | N115: 0 | O115: 0 | P115: 0 | Q115: 0 | R115: 0 | S115: 0 | T115: 0 | U115: 0 | V115: 0 | W115: 0 | X115: 0 | Y115: 0 | Z115: 0 | AA115: 0 | AB115: 0 | AC115: 0 | AD115: 0 | AE115: 0 | AF115: 0 | AG115: 0 | AH115: 0 | AI115: 0 | AJ115: 0 | AK115: 0 | AL115: 0 | AM115: 0 | AN115: 0 | AO115: 0 | AP115: 0 | AQ115: 0 | AR115: 0 | AS115: 0 | AT115: 0 | AU115: 0 | AV115: 0 | AW115: 0 | AX115: 0 | AY115: 0 | AZ115: 0 | BA115: 0 | BB115: 0 | BC115: 0 | BD115: 0 | BE115: 0 | BF115: 0 | BG115: 0 | BH115: 0 | BI115: 0 | BJ115: 0 | BK115: 0 | BL115: 0 | BM115: 0 | BN115: 0 | BO115: 0 | BP115: 0 | BQ115: 0 | BR115: 0 | BS115: 0 | BT115: 0 | BU115: 0 | BV115: 0 | BW115: 0 | BX115: 0 | BY115: 0 | BZ115: 0 | CA115: 0 | CB115: 0 | CC115: 0 | CD115: 0 | CE115: 0 | CF115: 0 | CG115: 0 | CH115: 0 | CI115: 0 | CJ115: 0 | CK115: 0 | CL115: 0 | CM115: 0 | CN115: 0 | CO115: 0 | CP115: 0 | CQ115: 0 | CR115: 0 | CS115: 0 | CT115: 0 | CU115: 0 | CV115: 0 | CW115: 0 | CX115: 0 | CY115: 0 | CZ115: 0 | DA115: 0 | DB115: 0 | DC115: 0 | DD115: 0 | DE115: 0 | DF115: 0 | DG115: 0 | DH115: 0 | DI115: 0 | DJ115: 0
B116: SCADA, NETWORK CONTROL AND PROTECTION SYSTEMS BY: FUNCTION | C116: Field Devices | D116: 10 | E116: 3.16227766 | F116: 30 | G116: 0 | H116: 0 | I116: 0 | J116: 110 | K116: 0 | L116: 28 | M116: 0 | N116: 0 | O116: 38 | P116: 0 | Q116: 17 | R116: 28 | S116: 0 | T116: 39 | U116: 52 | V116: 42 | W116: 38 | X116: 0
C117: Local Network Wiring Assets | D117: 10 | E117: 3.16227766 | F117: 30 | G117: 0 | H117: 0 | I117: 0 | J117: 110 | K117: 0 | L117: 28 | M117: 0 | N117: 0 | O117: 38 | P117: 0 | Q117: 17 | R117: 28 | S117: 0 | T117: 39 | U117: 52 | V117: 42 | W117: 38 | X117: 0
C118: Communications Network Assets | D118: 10 | E118: 3.16227766 | F118: 3 | G118: 0 | H118: 0 | I118: 0 | J118: 10 | K118: 0 | L118: 4 | M118: 0 | N118: 0 | O118: 4 | P118: 0 | Q118: 4 | R118: 5 | S118: 0 | T118: 6 | U118: 8 | V118: 6 | W118: 8 | X118: 0
C119: Master Station Assets | D119: 10 | E119: 3.16227766 | F119: 1 | G119: 0 | H119: 0 | I119: 0 | J119: 2 | K119: 3 | L119: 3 | M119: 3 | N119: 3 | O119: 3 | P119: 2 | Q119: 2 | R119: 2 | S119: 0 | T119: 1 | U119: 1 | V119: 1 | W119: 1 | X119: 1
C120: Communications Site Infrastructure | D120: 10 | E120: 3.16227766 | F120: 3 | G120: 0 | H120: 0 | I120: 0 | J120: 10 | K120: 0 | L120: 4 | M120: 0 | N120: 0 | O120: 4 | P120: 0 | Q120: 4 | R120: 5 | S120: 0 | T120: 6 | U120: 8 | V120: 6 | W120: 8 | X120: 0
C121: Communications Linear Assets | D121: 10 | E121: 3.16227766 | F121: 1 | G121: 0 | H121: 0 | I121: 0 | J121: 6 | K121: 0 | L121: 2 | M121: 0 | N121: 0 | O121: 2 | P121: 0 | Q121: 2 | R121: 2 | S121: 0 | T121: 3 | U121: 4 | V121: 3 | W121: 4 | X121: 0
C122: AFLC | F122: 0 | G122: 0 | H122: 0 | I122: 0 | J122: 0 | K122: 0 | L122: 0 | M122: 0 | N122: 0 | O122: 0 | P122: 0 | Q122: 0 | R122: 0 | S122: 0 | T122: 0 | U122: 0 | V122: 0 | W122: 0 | X122: 0
C123: Other | F123: 0 | G123: 0 | H123: 0 | I123: 0 | J123: 0 | K123: 0 | L123: 0 | M123: 0 | N123: 0 | O123: 0 | P123: 0 | Q123: 0 | R123: 0 | S123: 0 | T123: 0 | U123: 0 | V123: 0 | W123: 0 | X123: 0
B124: OTHER BY: DNSP DEFINED | C124: Metering CTs | D124: 40 | E124: 6.32455532 | F124: 5 | G124: 63 | H124: 75 | I124: 68 | J124: 48 | K124: 62 | L124: 86 | M124: 84 | N124: 99 | O124: 80 | P124: 124 | Q124: 80 | R124: 74 | S124: 75 | T124: 67 | U124: 69 | V124: 64 | W124: 44 | X124: 52 | Y124: 57 | Z124: 103 | AA124: 151 | AB124: 122 | AC124: 144 | AD124: 198 | AE124: 104 | AF124: 72 | AG124: 97 | AH124: 120 | AI124: 95 | AJ124: 122 | AK124: 80 | AL124: 36 | AM124: 50 | AN124: 33 | AO124: 29 | AP124: 37 | AQ124: 33 | AR124: 22 | AS124: 25 | AT124: 23 | AU124: 25 | AV124: 27 | AW124: 25 | AX124: 17 | AY124: 12 | AZ124: 14 | BA124: 104 | BB124: 0 | BC124: 0 | BD124: 0 | BE124: 0 | BF124: 0 | BG124: 0 | BH124: 0 | BI124: 0 | BJ124: 0 | BK124: 0 | BL124: 0 | BM124: 0 | BN124: 0 | BO124: 0 | BP124: 0 | BQ124: 0 | BR124: 0 | BS124: 0 | BT124: 0 | BU124: 0 | BV124: 0 | BW124: 0 | BX124: 0 | BY124: 0 | BZ124: 0 | CA124: 0 | CB124: 0 | CC124: 0 | CD124: 0 | CE124: 0 | CF124: 0 | CG124: 0 | CH124: 0 | CI124: 0 | CJ124: 0 | CK124: 0 | CL124: 0 | CM124: 0 | CN124: 0 | CO124: 0 | CP124: 0 | CQ124: 0 | CR124: 0 | CS124: 0 | CT124: 0 | CU124: 0 | CV124: 0 | CW124: 0 | CX124: 0 | CY124: 0 | CZ124: 0 | DA124: 0 | DB124: 0 | DC124: 0 | DD124: 0 | DE124: 0 | DF124: 0 | DG124: 0 | DH124: 0 | DI124: 0 | DJ124: 0
C125: SWITCHGEAR : > 11 kV & < = 22 kV ; FUSE | D125: 40 | E125: 6.32455532 | F125: 496 | G125: 630 | H125: 534 | I125: 510 | J125: 322 | K125: 321 | L125: 459 | M125: 684 | N125: 711 | O125: 626 | P125: 955 | Q125: 1140 | R125: 1244 | S125: 1130 | T125: 905 | U125: 760 | V125: 625 | W125: 541 | X125: 677 | Y125: 755 | Z125: 855 | AA125: 795 | AB125: 761 | AC125: 641 | AD125: 675 | AE125: 630 | AF125: 566 | AG125: 642 | AH125: 694 | AI125: 713 | AJ125: 570 | AK125: 450 | AL125: 500 | AM125: 441 | AN125: 428 | AO125: 403 | AP125: 404 | AQ125: 313 | AR125: 303 | AS125: 287 | AT125: 272 | AU125: 255 | AV125: 198 | AW125: 198 | AX125: 185 | AY125: 173 | AZ125: 128 | BA125: 126 | BB125: 90 | BC125: 80 | BD125: 80 | BE125: 41 | BF125: 2 | BG125: 6 | BH125: 4 | BI125: 4 | BJ125: 0 | BK125: 1 | BL125: 2 | BM125: 5 | BN125: 0 | BO125: 1 | BP125: 1 | BQ125: 1 | BR125: 1 | BS125: 0 | BT125: 0
C126: Cable PI | D126: 20 | E126: 4.472135955 | F126: 8104 | G126: 13750 | H126: 12000 | I126: 12000 | J126: 12000 | K126: 12000 | L126: 30000 | M126: 12000 | N126: 12000 | O126: 210000

Sheet 5.3 MD - Network level
B1: REGULATORY REPORTING STATEMENT
B2: =INDEX(dms_TradingNameFull_List,MATCH(dms_TradingName,dms_TradingName_List)) -> TasNetworks (D)
B3: =CONCATENATE((LOOKUP(dms_Model,dms_Model_List,dms_Worksheet_List))&" "&CRY) -> CATEGORY ANALYSIS 2017-18
B4: 5.3 MAXIMUM DEMAND AT NETWORK LEVEL
B7: 5.3.1 - RAW AND WEATHER CORRECTED COINCIDENT MD AT NETWORK LEVEL (Summed at transmission connection point)
C8: UNIT | D8: =CRY -> 2017-18
B9: Raw network coincident MD | C9: MW | D9: 962.176612
B10: Date MD occurred | D10: 2017-07-03
B11: Half hour time period MD occurred | D11: 08:30:00
B12: Winter/summer peaking | D12: Winter
B13: Embedded generation | C13: MW | D13: 8.46676
B14: Weather corrected (10% POE) network coincident MD | C14: MW | D14: 1001.9001
B15: Weather corrected (50% POE) network coincident MD | C15: MW | D15: 976.6766969

Sheet 5.4 MD & utilisation-Spatial
B1: REGULATORY REPORTING STATEMENT
B2: =INDEX(dms_TradingNameFull_List,MATCH(dms_TradingName,dms_TradingName_List)) -> TasNetworks (D)
B3: =CONCATENATE((LOOKUP(dms_Model,dms_Model_List,dms_Worksheet_List))&" "&CRY) -> CATEGORY ANALYSIS 2017-18
B4: 5.4 MAXIMUM DEMAND AND UTILISATION AT SPATIAL LEVEL
B6: There is ONE table on this worksheet. It has two sub-tables based on the Network Level. Each sub-table has been grouped for ease of navigation. See the Instructions sheet on how to group or ungroup data.
B8: 5.4.1 NON-COINCIDENT & COINCIDENT MAXIMUM DEMAND
B9: NETWORK LEVEL | C9: SUBSTATION | D9: FORECASTING ELEMENTS | E9: UNIT | F9: MAX DEMAND | G9: =CRY -> 2017-18
B10: SUBTRANSMISSION SUBSTATION | C10: Bellerive | D10: Substation Rating | E10: MVA | F10: Non-Coincident | G10: 58.5
F11: Coincident | G11: 58.5
D12: Raw Adjusted MD | E12: MW | F12: Non-Coincident | G12: 11.88999939
F13: Coincident | G13: 10.62999964
D14: Raw Adjusted MD | E14: MVA | F14: Non-Coincident | G14: 11.9199996
F15: Coincident | G15: 10.69000006
D16: Date MD occurred | F16: Non-Coincident | G16: 2018-06-28
F17: Coincident | G17: 2017-07-03
D18: Half hour time period MD occurred | F18: Non-Coincident | G18: 08:30:00
F19: Coincident | G19: 08:30:00
D20: Winter/Summer Peaking | F20: Non-Coincident | G20: Winter
F21: Coincident | G21: Winter
D22: Adjustments - Embedded generation | E22: MW | F22: Non-Coincident | G22: 0
F23: Coincident | G23: 0
D24: Weather Corrected MD 10% POE | E24: MW | F24: Non-Coincident | G24: 13.42809009
F25: Coincident | G25: 12.16809033
D26: Weather Corrected MD 10% POE | E26: MVA | F26: Non-Coincident | G26: 13.4580903
F27: Coincident | G27: 12.22809075
D28: Weather Corrected MD 50% POE | E28: MW | F28: Non-Coincident | G28: 12.45144168
F29: Coincident | G29: 11.19144192
D30: Weather Corrected MD 50% POE | E30: MVA | F30: Non-Coincident | G30: 12.48144189
F31: Coincident | G31: 11.25144234
C32: Cambridge | D32: Substation Rating | E32: MVA | F32: Non-Coincident | G32: 52
F33: Coincident | G33: 52
D34: Raw Adjusted MD | E34: MW | F34: Non-Coincident | G34: 15.08600044
F35: Coincident | G35: 13.35000038
D36: Raw Adjusted MD | E36: MVA | F36: Non-Coincident | G36: 15.26900053
F37: Coincident | G37: 13.4720006
D38: Date MD occurred | F38: Non-Coincident | G38: 2017-07-13
F39: Coincident | G39: 2017-07-03
D40: Half hour time period MD occurred | F40: Non-Coincident | G40: 08:30:00
F41: Coincident | G41: 08:30:00
D42: Winter/Summer Peaking | F42: Non-Coincident | G42: Winter
F43: Coincident | G43: Winter
D44: Adjustments - Embedded generation | E44: MW | F44: Non-Coincident | G44: 0
F45: Coincident | G45: 0
D46: Weather Corrected MD 10% POE | E46: MW | F46: Non-Coincident | G46: 15.38554445
F47: Coincident | G47: 13.58163769
D48: Weather Corrected MD 10% POE | E48: MVA | F48: Non-Coincident | G48: 15.56854454
F49: Coincident | G49: 13.7036379
D50: Weather Corrected MD 50% POE | E50: MW | F50: Non-Coincident | G50: 15.20295087
F51: Coincident | G51: 13.39904411
D52: Weather Corrected MD 50% POE | E52: MVA | F52: Non-Coincident | G52: 15.38595096
F53: Coincident | G53: 13.52104432
C54: Claremont | D54: Substation Rating | E54: MVA | F54: Non-Coincident | G54: 58.5
F55: Coincident | G55: 58.5
D56: Raw Adjusted MD | E56: MW | F56: Non-Coincident | G56: 24.0800004
F57: Coincident | G57: 19.74400043
D58: Raw Adjusted MD | E58: MVA | F58: Non-Coincident | G58: 23.80800104
F59: Coincident | G59: 19.76000023
D60: Date MD occurred | F60: Non-Coincident | G60: 2017-10-04
F61: Coincident | G61: 2017-07-03
D62: Half hour time period MD occurred | F62: Non-Coincident | G62: 07:00:00
F63: Coincident | G63: 08:30:00
D64: Winter/Summer Peaking | F64: Non-Coincident | G64: Winter
F65: Coincident | G65: Winter
D66: Adjustments - Embedded generation | E66: MW | F66: Non-Coincident | G66: 0
F67: Coincident | G67: 0
D68: Weather Corrected MD 10% POE | E68: MW | F68: Non-Coincident | G68: 25.39059104
F69: Coincident | G69: 21.05459108
D70: Weather Corrected MD 10% POE | E70: MVA | F70: Non-Coincident | G70: 25.11859168
F71: Coincident | G71: 21.07059087
D72: Weather Corrected MD 50% POE | E72: MW | F72: Non-Coincident | G72: 24.55839937
F73: Coincident | G73: 20.22239941
D74: Weather Corrected MD 50% POE | E74: MVA | F74: Non-Coincident | G74: 24.28640001
F75: Coincident | G75: 20.2383992
C76: Derwent Park | D76: Substation Rating | E76: MVA | F76: Non-Coincident | G76: 58.5
F77: Coincident | G77: 58.5
D78: Raw Adjusted MD | E78: MW | F78: Non-Coincident | G78: 20.30999947
F79: Coincident | G79: 17.90999985
D80: Raw Adjusted MD | E80: MVA | F80: Non-Coincident | G80: 20.71999931
F81: Coincident | G81: 18.36999989
D82: Date MD occurred | F82: Non-Coincident | G82: 2018-06-20
F83: Coincident | G83: 2017-07-03
D84: Half hour time period MD occurred | F84: Non-Coincident | G84: 09:30:00
F85: Coincident | G85: 08:30:00
D86: Winter/Summer Peaking | F86: Non-Coincident | G86: Winter
F87: Coincident | G87: Winter
D88: Adjustments - Embedded generation | E88: MW | F88: Non-Coincident | G88: 0
F89: Coincident | G89: 0
D90: Weather Corrected MD 10% POE | E90: MW | F90: Non-Coincident | G90: 21.73249676
F91: Coincident | G91: 19.33249714
D92: Weather Corrected MD 10% POE | E92: MVA | F92: Non-Coincident | G92: 22.1424966
F93: Coincident | G93: 19.79249717
D94: Weather Corrected MD 50% POE | E94: MW | F94: Non-Coincident | G94: 20.82924721
F95: Coincident | G95: 18.42924759
D96: Weather Corrected MD 50% POE | E96: MVA | F96: Non-Coincident | G96: 21.23924706
F97: Coincident | G97: 18.88924763
C98: East Hobart | D98: Substation Rating | E98: MVA | F98: Non-Coincident | G98: 117
F99: Coincident | G99: 117
D100: Raw Adjusted MD | E100: MW | F100: Non-Coincident | G100: 27.15200138
F101: Coincident | G101: 25.52000046
D102: Raw Adjusted MD | E102: MVA | F102: Non-Coincident | G102: 27.80800152
F103: Coincident | G103: 26.20800114
D104: Date MD occurred | F104: Non-Coincident | G104: 2017-07-03
F105: Coincident | G105: 2017-07-03
D106: Half hour time period MD occurred | F106: Non-Coincident | G106: 10:00:00
F107: Coincident | G107: 08:30:00
D108: Winter/Summer Peaking | F108: Non-Coincident | G108: Winter
F109: Coincident | G109: Winter
D110: Adjustments - Embedded generation | E110: MW | F110: Non-Coincident | G110: 0
F111: Coincident | G111: 0
D112: Weather Corrected MD 10% POE | E112: MW | F112: Non-Coincident | G112: 29.12598176
F113: Coincident | G113: 27.49398083
D114: Weather Corrected MD 10% POE | E114: MVA | F114: Non-Coincident | G114: 29.78198189
F115: Coincident | G115: 28.18198151
D116: Weather Corrected MD 50% POE | E116: MW | F116: Non-Coincident | G116: 27.8725545
F117: Coincident | G117: 26.24055358
D118: Weather Corrected MD 50% POE | E118: MVA | F118: Non-Coincident | G118: 28.52855464
F119: Coincident | G119: 26.92855426
C120: Geilston Bay | D120: Substation Rating | E120: MVA | F120: Non-Coincident | G120: 58.5
F121: Coincident | G121: 58.5
D122: Raw Adjusted MD | E122: MW | F122: Non-Coincident | G122: 17.42000008
F123: Coincident | G123: 17.18999958
D124: Raw Adjusted MD | E124: MVA | F124: Non-Coincident | G124: 17.47999954
F125: Coincident | G125: 17.2699995
D126: Date MD occurred | F126: Non-Coincident | G126: 2017-08-03
F127: Coincident | G127: 2017-07-03
D128: Half hour time period MD occurred | F128: Non-Coincident | G128: 08:00:00
F129: Coincident | G129: 08:30:00
D130: Winter/Summer Peaking | F130: Non-Coincident | G130: Winter
F131: Coincident | G131: Winter
D132: Adjustments - Embedded generation | E132: MW | F132: Non-Coincident | G132: 0
F133: Coincident | G133: 0
D134: Weather Corrected MD 10% POE | E134: MW | F134: Non-Coincident | G134: 19.42368096
F135: Coincident | G135: 19.19368047
D136: Weather Corrected MD 10% POE | E136: MVA | F136: Non-Coincident | G136: 19.48368043
F137: Coincident | G137: 19.27368039
D138: Weather Corrected MD 50% POE | E138: MW | F138: Non-Coincident | G138: 18.15139464
F139: Coincident | G139: 17.92139415
D140: Weather Corrected MD 50% POE | E140: MVA | F140: Non-Coincident | G140: 18.21139411
F141: Coincident | G141: 18.00139407
C142: Howrah | D142: Substation Rating | E142: MVA | F142: Non-Coincident | G142: 65
F143: Coincident | G143: 65
D144: Raw Adjusted MD | E144: MW | F144: Non-Coincident | G144: 20.65999985
F145: Coincident | G145: 17.02999973
D146: Raw Adjusted MD | E146: MVA | F146: Non-Coincident | G146: 20.77999973
F147: Coincident | G147: 17.05000019
D148: Date MD occurred | F148: Non-Coincident | G148: 2017-07-02
F149: Coincident | G149: 2017-07-03
D150: Half hour time period MD occurred | F150: Non-Coincident | G150: 18:00:00
F151: Coincident | G151: 08:30:00
D152: Winter/Summer Peaking | F152: Non-Coincident | G152: Winter
F153: Coincident | G153: Winter
D154: Adjustments - Embedded generation | E154: MW | F154: Non-Coincident | G154: 0
F155: Coincident | G155: 0
D156: Weather Corrected MD 10% POE | E156: MW | F156: Non-Coincident | G156: 22.12374379
F157: Coincident | G157: 18.49374368
D158: Weather Corrected MD 10% POE | E158: MVA | F158: Non-Coincident | G158: 22.24374368
F159: Coincident | G159: 18.51374413
D160: Weather Corrected MD 50% POE | E160: MW | F160: Non-Coincident | G160: 21.19430367
F161: Coincident | G161: 17.56430356
D162: Weather Corrected MD 50% POE | E162: MVA | F162: Non-Coincident | G162: 21.31430356
F163: Coincident | G163: 17.58430402
C164: New Town | D164: Substation Rating | E164: MVA | F164: Non-Coincident | G164: 58.5
F165: Coincident | G165: 58.5
D166: Raw Adjusted MD | E166: MW | F166: Non-Coincident | G166: 21.53999901
F167: Coincident | G167: 21.32999992
D168: Raw Adjusted MD | E168: MVA | F168: Non-Coincident | G168: 21.77999973
F169: Coincident | G169: 21.54999924
D170: Date MD occurred | F170: Non-Coincident | G170: 2017-07-03
F171: Coincident | G171: 2017-07-03
D172: Half hour time period MD occurred | F172: Non-Coincident | G172: 09:30:00
F173: Coincident | G173: 08:30:00
D174: Winter/Summer Peaking | F174: Non-Coincident | G174: Winter
F175: Coincident | G175: Winter
D176: Adjustments - Embedded generation | E176: MW | F176: Non-Coincident | G176: 0
F177: Coincident | G177: 0
D178: Weather Corrected MD 10% POE | E178: MW | F178: Non-Coincident | G178: 23.21483744
F179: Coincident | G179: 23.00483835
D180: Weather Corrected MD 10% POE | E180: MVA | F180: Non-Coincident | G180: 23.45483816
F181: Coincident | G181: 23.22483766
D182: Weather Corrected MD 50% POE | E182: MW | F182: Non-Coincident | G182: 22.1513577
F183: Coincident | G183: 21.94135861
D184: Weather Corrected MD 50% POE | E184: MVA | F184: Non-Coincident | G184: 22.39135842
F185: Coincident | G185: 22.16135793
C186: Rosny Park | D186: Substation Rating | E186: MVA | F186: Non-Coincident | G186: 32.5
F187: Coincident | G187: 32.5
D188: Raw Adjusted MD | E188: MW | F188: Non-Coincident | G188: 15.19999981
F189: Coincident | G189: 14.10999966
D190: Raw Adjusted MD | E190: MVA | F190: Non-Coincident | G190: 15.26995724
F191: Coincident | G191: 14.15842471
D192: Date MD occurred | F192: Non-Coincident | G192: 2017-07-19
F193: Coincident | G193: 2017-07-03
D194: Half hour time period MD occurred | F194: Non-Coincident | G194: 09:00:00
F195: Coincident | G195: 08:30:00
D196: Winter/Summer Peaking | F196: Non-Coincident | G196: Winter
F197: Coincident | G197: Winter
D198: Adjustments - Embedded generation | E198: MW | F198: Non-Coincident | G198: 0
F199: Coincident | G199: 0
D200: Weather Corrected MD 10% POE | E200: MW | F200: Non-Coincident | G200: 22.24374368
F201: Coincident | G201: 18.51374413
D202: Weather Corrected MD 10% POE | E202: MVA | F202: Non-Coincident | G202: 19.42368096
... 11226 more rows

Sheet 6.3 Sustained interruptionss
B1: REGULATORY REPORTING STATEMENT
B2: =INDEX(dms_TradingNameFull_List,MATCH(dms_TradingName,dms_TradingName_List)) -> TasNetworks (D)
B3: =CONCATENATE((LOOKUP(dms_Model,dms_Model_List,dms_Worksheet_List))&" "&CRY) -> CATEGORY ANALYSIS 2017-18
B4: 6.3 SUSTAINED INTERRUPTIONS TO SUPPLY
B6: =CONCATENATE("6.3.1 - SUSTAINED INTERRUPTIONS TO SUPPLY (for ",CRY,")") -> 6.3.1 - SUSTAINED INTERRUPTIONS TO SUPPLY (for 2017-18)
B8: There is ONE table on this worksheet. It has been grouped into five subgroups of 10000 rows each for navigation purposes. See the Instructions sheet on how to group and ungroup data.
B10: Definitions:
B11: Feeder classification definitions (column E) | G11: Average duration of sustained customer interruption (column I) | I11: Effect on unplanned SAIDI (column J) | K11: Effect on unplanned SAIFI (column K)
B12: CBD feeder: a feeder supplying predominantly commercial, high-rise buildings, supplied by a predominantly underground distribution network containing significant interconnection and redundancy when compared to urban areas. Urban feeder: a feeder, that is not a CBD feeder, with actual maximum demand over the reporting period per total feeder route length greater than 0.3 MVA/km. Short rural feeder: a feeder that is not a CBD or urban feeder with a total feeder route length less than 200 km. Long rural feeder: a feeder that is not a CBD or urban feeder with a total feeder route length greater than 200 km. | G12: The average duration of an interruption experienced by an affected customer. | I12: The sum of the duration of each unplanned sustained customer interruption (in minutes) divided by the total number of distribution customers. Unplanned SAIDI excludes momentary interruptions (one minute or less). | K12: The total number of unplanned sustained customer interruptions divided by the total number of distribution customers. Unplanned SAIFI excludes momentary interruptions (one minute or less). SAIFI is expressed per 0.01 interruptions.
B14: Date of event | C14: Time of interruption | D14: Asset ID | E14: Feeder classification | F14: Reason for interruption | G14: Detailed reason for interruption | H14: Number of customers affected by the interruption | I14: Average duration of sustained customer interruption | J14: Effect on unplanned SAIDI | K14: Effect on unplanned SAIFI | L14: MED
B15: (DD/MM/YYYY) | C15: (HH:MM) | D15: (eg. feeder ID) | E15: (drop down) | F15: (select from options in drop-down box) | G15: (select from options in column 'O' that correspond with reason in column 'F') | I15: (minutes)
B16: 2017-07-01 | C16: 42917.00556 | D16: Hobart Urban | E16: Urban | F16: Asset failure | G16: NULL | H16: 1 | I16: 82 | J16: 0.0004280330316 | K16: 5.21e-06 | L16: 0
B17: 2017-07-01 | C17: 42917.28958 | D17: Hobart Urban | E17: Urban | F17: Third party | G17: Vehicle impact | H17: 3 | I17: 633 | J17: 0.009912618623 | K17: 1.565e-05 | L17: 0
B18: 2017-07-01 | C18: 42917.35417 | D18: Far North East Rural | E18: Low Density Rural | F18: Planned | G18: NULL | H18: 331 | I18: 455 | J18: 3.39598178 | K18: 0.00746369 | L18: 0
B19: 2017-07-01 | C19: 42917.37778 | D19: Bridport | E19: Urban | F19: Asset failure | G19: NULL | H19: 1 | I19: 92 | J19: 0.0004802321818 | K19: 5.21e-06 | L19: 0
B20: 2017-07-01 | C20: 42917.37847 | D20: Scottsdale Rural | E20: High Density Rural | F20: Unknown | G20: Unknown | H20: 2 | I20: 135 | J20: 0.006167763158 | K20: 4.568e-05 | L20: 0
B21: 2017-07-01 | C21: 42917.39236 | D21: Huon-Channel | E21: High Density Rural | F21: Planned | G21: NULL | H21: 2 | I21: 300 | J21: 0.01370614035 | K21: 4.568e-05 | L21: 0
B22: 2017-07-01 | C22: 42917.39444 | D22: Devonport CBD | E22: High Density Commercial | F22: Asset failure | G22: NULL | H22: 1 | I22: 122 | J22: 0.02704799911 | K22: 0.0002217 | L22: 0
B23: 2017-07-01 | C23: 42917.39583 | D23: Lewisham - Dodges Ferry | E23: Urban | F23: 7 - STPIS Exclusion (3.3)(a) | G23: NULL | H23: 1 | I23: 5 | J23: 2.60995751e-05 | K23: 5.21e-06 | L23: 0
B24: 2017-07-01 | C24: 42917.41319 | D24: Bruny Island Rural | E24: Low Density Rural | F24: Planned | G24: NULL | H24: 1 | I24: 200 | J24: 0.004509786236 | K24: 2.254e-05 | L24: 0
B25: 2017-07-01 | C25: 42917.41319 | D25: Burnie CBD | E25: High Density Commercial | F25: Asset failure | G25: NULL | H25: 1 | I25: 115 | J25: 0.02549606474 | K25: 0.0002217 | L25: 0
B26: 2017-07-01 | C26: 42917.41667 | D26: North East Rural | E26: Low Density Rural | F26: Planned | G26: NULL | H26: 9 | I26: 60 | J26: 0.01217642284 | K26: 0.00020294 | L26: 0
B27: 2017-07-01 | C27: 42917.41875 | D27: North West | E27: Low Density Rural | F27: Asset failure | G27: NULL | H27: 8 | I27: 52 | J27: 0.009380355371 | K27: 0.00018039 | L27: 0
B28: 2017-07-01 | C28: 42917.43403 | D28: Hadspen | E28: Urban | F28: Asset failure | G28: NULL | H28: 81 | I28: 95 | J28: 0.04016724608 | K28: 0.00042281 | L28: 0
B29: 2017-07-01 | C29: 42917.43403 | D29: Hobart Urban | E29: Urban | F29: Planned | G29: NULL | H29: 1 | I29: 405 | J29: 0.002114065583 | K29: 5.21e-06 | L29: 0
B30: 2017-07-01 | C30: 42917.48681 | D30: Cradle Coast | E30: High Density Rural | F30: 7 - STPIS Exclusion (3.3)(a) | G30: NULL | H30: 1 | I30: 1 | J30: 2.284356725e-05 | K30: 2.284e-05 | L30: 0
B31: 2017-07-01 | C31: 42917.50139 | D31: Cradle Coast | E31: High Density Rural | F31: Unknown | G31: Unknown | H31: 2 | I31: 20 | J31: 0.0009137426901 | K31: 4.568e-05 | L31: 0
B32: 2017-07-01 | C32: 42917.53681 | D32: Far North East Rural | E32: Low Density Rural | F32: Unknown | G32: Unknown | H32: 1 | I32: 297 | J32: 0.006697032561 | K32: 2.254e-05 | L32: 0
B33: 2017-07-01 | C33: 42917.56528 | D33: Launceston Urban | E33: Urban | F33: Unknown | G33: Unknown | H33: 56 | I33: 42 | J33: 0.01227724013 | K33: 0.00029231 | L33: 0
B34: 2017-07-01 | C34: 42917.58889 | D34: Railton Rural | E34: Low Density Rural | F34: Asset failure | G34: NULL | H34: 2 | I34: 38 | J34: 0.00171371877 | K34: 4.509e-05 | L34: 0
B35: 2017-07-01 | C35: 42917.59167 | D35: Ross Rural | E35: Low Density Rural | F35: Animal | G35: Animal impact | H35: 1 | I35: 108 | J35: 0.002435284568 | K35: 2.254e-05 | L35: 0
B36: 2017-07-01 | C36: 42917.63125 | D36: Launceston Urban | E36: Urban | F36: Unknown | G36: Unknown | H36: 58 | I36: 101 | J36: 0.03057826219 | K36: 0.00030274 | L36: 0
B37: 2017-07-01 | C37: 42917.64583 | D37: Devonport | E37: Urban | F37: 7 - STPIS Exclusion (3.3)(a) | G37: NULL | H37: 5 | I37: 5 | J37: 0.0001304978755 | K37: 2.609e-05 | L37: 0
B38: 2017-07-01 | C38: 42917.72431 | D38: Hobart Urban | E38: Urban | F38: Asset failure | G38: NULL | H38: 1 | I38: 1047 | J38: 0.005465251026 | K38: 5.21e-06 | L38: 0
B39: 2017-07-01 | C39: 42917.75764 | D39: Ulverstone | E39: Urban | F39: Asset failure | G39: NULL | H39: 1 | I39: 99 | J39: 0.000516771587 | K39: 5.21e-06 | L39: 0
B40: 2017-07-01 | C40: 42917.78333 | D40: Hobart Urban | E40: Urban | F40: Asset failure | G40: NULL | H40: 1 | I40: 176 | J40: 0.0009187050435 | K40: 5.21e-06 | L40: 0
B41: 2017-07-01 | C41: 42917.79861 | D41: Far North East Rural | E41: Low Density Rural | F41: Animal | G41: Animal impact | H41: 1 | I41: 76 | J41: 0.00171371877 | K41: 2.254e-05 | L41: 0
B42: 2017-07-01 | C42: 42917.92431 | D42: North West | E42: Low Density Rural | F42: Asset failure | G42: NULL | H42: 1 | I42: 149 | J42: 0.003359790746 | K42: 2.254e-05 | L42: 0
B43: 2017-07-02 | C43: 42918.35417 | D43: Ulverstone | E43: Urban | F43: Planned | G43: NULL | H43: 12 | I43: 360 | J43: 0.02255003289 | K43: 6.263e-05 | L43: 0
B44: 2017-07-02 | C44: 42918.375 | D44: Launceston Urban | E44: Urban | F44: Planned | G44: NULL | H44: 87 | I44: 140 | J44: 0.06357856494 | K44: 0.00045412 | L44: 0
B45: 2017-07-02 | C45: 42918.375 | D45: Launceston Urban | E45: Urban | F45: Planned | G45: NULL | H45: 38 | I45: 150 | J45: 0.02975351561 | K45: 0.00019835 | L45: 0
B46: 2017-07-02 | C46: 42918.38403 | D46: Somerset - Wynyard | E46: Urban | F46: 7 - STPIS Exclusion (3.3)(a) | G46: NULL | H46: 1 | I46: 85 | J46: 0.0004436927767 | K46: 5.21e-06 | L46: 0
B47: 2017-07-02 | C47: 42918.38542 | D47: Launceston Urban | E47: Urban | F47: Planned | G47: NULL | H47: 15 | I47: 270 | J47: 0.02114065583 | K47: 7.829e-05 | L47: 0
B48: 2017-07-02 | C48: 42918.38889 | D48: Tamar East Rural | E48: Low Density Rural | F48: Planned | G48: NULL | H48: 1 | I48: 160 | J48: 0.003607828989 | K48: 2.254e-05 | L48: 0
B49: 2017-07-02 | C49: 42918.39444 | D49: Deloraine | E49: Urban | F49: Planned | G49: NULL | H49: 40 | I49: 277 | J49: 0.05783665842 | K49: 0.00020879 | L49: 0
B50: 2017-07-02 | C50: 42918.40625 | D50: Launceston Urban | E50: Urban | F50: Unknown | G50: Unknown | H50: 58 | I50: 45 | J50: 0.0136239782 | K50: 0.00030274 | L50: 0
B51: 2017-07-02 | C51: 42918.43403 | D51: Hobart Urban | E51: Urban | F51: Asset failure | G51: NULL | H51: 1 | I51: 280 | J51: 0.001461576206 | K51: 5.21e-06 | L51: 0
B52: 2017-07-02 | C52: 42918.48611 | D52: Huon-Channel | E52: High Density Rural | F52: Asset failure | G52: NULL | H52: 1 | I52: 60 | J52: 0.001370614035 | K52: 2.284e-05 | L52: 0
B53: 2017-07-02 | C53: 42918.51389 | D53: Longford | E53: Urban | F53: Asset failure | G53: NULL | H53: 1 | I53: 20 | J53: 0.0001043983004 | K53: 5.21e-06 | L53: 0
B54: 2017-07-02 | C54: 42918.52431 | D54: George Town Industrial | E54: Low Density Rural | F54: Planned | G54: NULL | H54: 2 | I54: 35 | J54: 0.001578425183 | K54: 4.509e-05 | L54: 0
B55: 2017-07-02 | C55: 42918.52431 | D55: Launceston Urban | E55: Urban | F55: Planned | G55: NULL | H55: 18 | I55: 155 | J55: 0.01456356291 | K55: 9.395e-05 | L55: 0
B56: 2017-07-02 | C56: 42918.53125 | D56: Hobart Urban | E56: Urban | F56: Asset failure | G56: NULL | H56: 1 | I56: 30 | J56: 0.0001565974506 | K56: 5.21e-06 | L56: 0
B57: 2017-07-02 | C57: 42918.575 | D57: Cradle Coast | E57: High Density Rural | F57: Unknown | G57: Unknown | H57: 5 | I57: 142 | J57: 0.01621893275 | K57: 0.00011421 | L57: 0
B58: 2017-07-02 | C58: 42918.69722 | D58: Pirates Bay - Nubeena - Port Arthur | E58: High Density Rural | F58: Asset failure | G58: NULL | H58: 1 | I58: 226 | J58: 0.005162646199 | K58: 2.284e-05 | L58: 0
B59: 2017-07-02 | C59: 42918.72778 | D59: Railton Rural | E59: Low Density Rural | F59: Animal | G59: Animal impact | H59: 18 | I59: 82 | J59: 0.03328222242 | K59: 0.00040588 | L59: 0
B60: 2017-07-02 | C60: 42918.73125 | D60: Hobart Urban | E60: Urban | F60: Asset failure | G60: NULL | H60: 1 | I60: 67 | J60: 0.0003497343063 | K60: 5.21e-06 | L60: 0
B61: 2017-07-02 | C61: 42918.79722 | D61: Queenstown | E61: Urban | F61: Asset failure | G61: NULL | H61: 1 | I61: 42 | J61: 0.0002192364308 | K61: 5.21e-06 | L61: 0
B62: 2017-07-02 | C62: 42918.80556 | D62: Granton-Magra | E62: High Density Rural | F62: Asset failure | G62: NULL | H62: 98 | I62: 100.2346939 | J62: 0.2243923611 | K62: 0.00223866 | L62: 0
B63: 2017-07-02 | C63: 42918.80556 | D63: Hobart Urban | E63: Urban | F63: Asset failure | G63: NULL | H63: 1522 | I63: 143.760841 | J63: 1.142138286 | K63: 0.0079447 | L63: 0
B64: 2017-07-02 | C64: 42918.81111 | D64: Hobart Urban | E64: Urban | F64: Asset failure | G64: NULL | H64: 1482 | I64: 266.3394062 | J64: 2.060378757 | K64: 0.0077359 | L64: 0
B65: 2017-07-02 | C65: 42918.83819 | D65: Hobart Urban | E65: Urban | F65: Asset failure | G65: NULL | H65: 1 | I65: 89 | J65: 0.0004645724368 | K65: 5.21e-06 | L65: 0
B66: 2017-07-02 | C66: 42918.85139 | D66: Cressy - Blessington Rural | E66: Low Density Rural | F66: Asset failure | G66: NULL | H66: 9 | I66: 60 | J66: 0.01217642284 | K66: 0.00020294 | L66: 0
B67: 2017-07-02 | C67: 42918.85139 | D67: Longford Rural | E67: High Density Rural | F67: Asset failure | G67: NULL | H67: 34 | I67: 60 | J67: 0.04660087719 | K67: 0.00077667 | L67: 0
B68: 2017-07-02 | C68: 42918.85556 | D68: Triabunna - St Marys Rural | E68: Low Density Rural | F68: Animal | G68: Animal impact | H68: 6 | I68: 174 | J68: 0.02354108415 | K68: 0.00013529 | L68: 0
B69: 2017-07-02 | C69: 42918.96389 | D69: Hobart Urban | E69: Urban | F69: Unknown | G69: Unknown | H69: 1186 | I69: 47 | J69: 0.290968503 | K69: 0.00619081 | L69: 0
B70: 2017-07-02 | C70: 42918.96389 | D70: South Arm | E70: High Density Rural | F70: Unknown | G70: Unknown | H70: 845 | I70: 47 | J70: 0.9072322734 | K70: 0.01930281 | L70: 0
B71: 2017-07-03 | C71: 42919.24722 | D71: Hobart Urban | E71: Urban | F71: 7 - STPIS Exclusion (3.3)(a) | G71: NULL | H71: 1 | I71: 34 | J71: 0.0001774771107 | K71: 5.21e-06 | L71: 0
B72: 2017-07-03 | C72: 42919.27708 | D72: Longford Rural | E72: High Density Rural | F72: Unknown | G72: Unknown | H72: 6 | I72: 59 | J72: 0.008086622807 | K72: 0.00013706 | L72: 0
B73: 2017-07-03 | C73: 42919.29236 | D73: Meander Valley Rural | E73: High Density Rural | F73: Animal | G73: Animal impact | H73: 7 | I73: 49 | J73: 0.007835343567 | K73: 0.0001599 | L73: 0
B74: 2017-07-03 | C74: 42919.29236 | D74: Railton Rural | E74: Low Density Rural | F74: Animal | G74: Animal impact | H74: 5 | I74: 49 | J74: 0.005524488139 | K74: 0.00011273 | L74: 0
B75: 2017-07-03 | C75: 42919.30417 | D75: Hobart Urban | E75: Urban | F75: Asset failure | G75: NULL | H75: 1888 | I75: 102.7854873 | J75: 1.012971489 | K75: 0.00985519 | L75: 0
B76: 2017-07-03 | C76: 42919.31736 | D76: Scottsdale Rural | E76: High Density Rural | F76: Unknown | G76: Unknown | H76: 2 | I76: 33 | J76: 0.001507675439 | K76: 4.568e-05 | L76: 0
B77: 2017-07-03 | C77: 42919.33889 | D77: Cradle Coast | E77: High Density Rural | F77: Unknown | G77: Unknown | H77: 1 | I77: 72 | J77: 0.001644736842 | K77: 2.284e-05 | L77: 0
B78: 2017-07-03 | C78: 42919.3625 | D78: Cressy - Blessington Rural | E78: Low Density Rural | F78: Unknown | G78: Unknown | H78: 1 | I78: 144 | J78: 0.00324704609 | K78: 2.254e-05 | L78: 0
B79: 2017-07-03 | C79: 42919.36319 | D79: Ross Rural | E79: Low Density Rural | F79: Unknown | G79: Unknown | H79: 3 | I79: 42 | J79: 0.002841165329 | K79: 6.764e-05 | L79: 0
B80: 2017-07-03 | C80: 42919.38542 | D80: Cressy - Blessington Rural | E80: Low Density Rural | F80: Planned | G80: NULL | H80: 1 | I80: 285 | J80: 0.006426445386 | K80: 2.254e-05 | L80: 0
B81: 2017-07-03 | C81: 42919.39583 | D81: Triabunna - St Marys Rural | E81: Low Density Rural | F81: Planned | G81: NULL | H81: 12 | I81: 240 | J81: 0.0649409218 | K81: 0.00027058 | L81: 0
B82: 2017-07-03 | C82: 42919.40972 | D82: Cradle Coast | E82: High Density Rural | F82: Planned | G82: NULL | H82: 6 | I82: 289 | J82: 0.03961074561 | K82: 0.00013706 | L82: 0
B83: 2017-07-03 | C83: 42919.41667 | D83: Launceston Urban | E83: Urban | F83: Planned | G83: NULL | H83: 5 | I83: 130 | J83: 0.003392944763 | K83: 2.609e-05 | L83: 0
B84: 2017-07-03 | C84: 42919.41806 | D84: Railton Rural | E84: Low Density Rural | F84: Planned | G84: NULL | H84: 1 | I84: 258 | J84: 0.005817624245 | K84: 2.254e-05 | L84: 0
B85: 2017-07-03 | C85: 42919.41875 | D85: Cradle Coast | E85: High Density Rural | F85: Planned | G85: NULL | H85: 23 | I85: 13 | J85: 0.006830226608 | K85: 0.0005254 | L85: 0
B86: 2017-07-03 | C86: 42919.41875 | D86: Devonport | E86: Urban | F86: Planned | G86: NULL | H86: 2 | I86: 13 | J86: 0.0001357177905 | K86: 1.043e-05 | L86: 0
B87: 2017-07-03 | C87: 42919.42361 | D87: Hobart Critical Extended | E87: Critical Infrastructure | F87: Planned | G87: NULL | H87: 81 | I87: 280 | J87: 12.96 | K87: 0.04628571 | L87: 0
B88: 2017-07-03 | C88: 42919.4375 | D88: Channel Rural | E88: Low Density Rural | F88: Planned | G88: NULL | H88: 15 | I88: 195 | J88: 0.0659556237 | K88: 0.00033823 | L88: 0
B89: 2017-07-03 | C89: 42919.44306 | D89: Triabunna - St Marys Rural | E89: Low Density Rural | F89: Animal | G89: Animal impact | H89: 1 | I89: 112 | J89: 0.002525480292 | K89: 2.254e-05 | L89: 0
B90: 2017-07-03 | C90: 42919.47569 | D90: Channel Rural | E90: Low Density Rural | F90: Planned | G90: NULL | H90: 5 | I90: 110 | J90: 0.01240191215 | K90: 0.00011274 | L90: 0
B91: 2017-07-03 | C91: 42919.48819 | D91: Launceston Urban | E91: Urban | F91: Unknown | G91: Unknown | H91: 1 | I91: 107 | J91: 0.0005585309071 | K91: 5.21e-06 | L91: 0
B92: 2017-07-03 | C92: 42919.49653 | D92: Derwent Valley Rural | E92: Low Density Rural | F92: Unknown | G92: Unknown | H92: 1 | I92: 5 | J92: 0.0001127446559 | K92: 2.254e-05 | L92: 0
B93: 2017-07-03 | C93: 42919.53819 | D93: Longford | E93: Urban | F93: Asset failure | G93: NULL | H93: 40 | I93: 137 | J93: 0.02860513431 | K93: 0.00020879 | L93: 0
B94: 2017-07-03 | C94: 42919.54028 | D94: Hobart Urban | E94: Urban | F94: Unknown | G94: Unknown | H94: 1 | I94: 22 | J94: 0.0001148381304 | K94: 5.21e-06 | L94: 0
B95: 2017-07-03 | C95: 42919.54583 | D95: Tasman Peninsula Rural | E95: Low Density Rural | F95: Asset failure | G95: NULL | H95: 1 | I95: 154 | J95: 0.003472535402 | K95: 2.254e-05 | L95: 0
B96: 2017-07-03 | C96: 42919.54653 | D96: Burnie CBD | E96: High Density Commercial | F96: Asset failure | G96: NULL | H96: 1 | I96: 93 | J96: 0.0206185567 | K96: 0.0002217 | L96: 0
B97: 2017-07-03 | C97: 42919.55694 | D97: Hobart Urban | E97: Urban | F97: Asset failure | G97: NULL | H97: 1 | I97: 38 | J97: 0.0001983567708 | K97: 5.21e-06 | L97: 0
B98: 2017-07-03 | C98: 42919.55764 | D98: Latrobe | E98: Urban | F98: Unknown | G98: Unknown | H98: 32 | I98: 29 | J98: 0.004844081138 | K98: 0.00016703 | L98: 0
B99: 2017-07-03 | C99: 42919.59722 | D99: Margate - Snug | E99: Urban | F99: 7 - STPIS Exclusion (3.3)(a) | G99: NULL | H99: 19 | I99: 10 | J99: 0.0009917838538 | K99: 9.917e-05 | L99: 0
B100: 2017-07-03 | C100: 42919.60139 | D100: Kingston - Blackmans Bay | E100: Urban | F100: Asset failure | G100: NULL | H100: 1 | I100: 90 | J100: 0.0004697923518 | K100: 5.21e-06 | L100: 0
B101: 2017-07-03 | C101: 42919.60417 | D101: Georgetown | E101: Urban | F101: Weather | G101: NULL | H101: 1 | I101: 110 | J101: 0.0005741906522 | K101: 5.21e-06 | L101: 0
B102: 2017-07-03 | C102: 42919.6375 | D102: Railton Rural | E102: Low Density Rural | F102: Unknown | G102: Unknown | H102: 1 | I102: 62 | J102: 0.001398033733 | K102: 2.254e-05 | L102: 0
B103: 2017-07-03 | C103: 42919.64306 | D103: Burnie - Penguin | E103: Urban | F103: Unknown | G103: Unknown | H103: 1 | I103: 94 | J103: 0.0004906720119 | K103: 5.21e-06 | L103: 0
B104: 2017-07-03 | C104: 42919.64583 | D104: Ross Rural | E104: Low Density Rural | F104: 7 - STPIS Exclusion (3.3)(a) | G104: NULL | H104: 1 | I104: 10 | J104: 0.0002254893118 | K104: 2.254e-05 | L104: 0
B105: 2017-07-03 | C105: 42919.66111 | D105: Brighton Rural | E105: High Density Rural | F105: Unknown | G105: Unknown | H105: 1 | I105: 48 | J105: 0.001096491228 | K105: 2.284e-05 | L105: 0
B106: 2017-07-03 | C106: 42919.66319 | D106: Smithton | E106: Urban | F106: Unknown | G106: Unknown | H106: 1 | I106: 55 | J106: 0.0002870953261 | K106: 5.21e-06 | L106: 0
B107: 2017-07-03 | C107: 42919.66667 | D107: Margate - Snug | E107: Urban | F107: 7 - STPIS Exclusion (3.3)(a) | G107: NULL | H107: 1 | I107: 10 | J107: 5.21991502e-05 | K107: 5.21e-06 | L107: 0
B108: 2017-07-03 | C108: 42919.66667 | D108: Margate - Snug | E108: Urban | F108: 7 - STPIS Exclusion (3.3)(a) | G108: NULL | H108: 1 | I108: 10 | J108: 5.21991502e-05 | K108: 5.21e-06 | L108: 0
B109: 2017-07-03 | C109: 42919.66667 | D109: Margate - Snug | E109: Urban | F109: 7 - STPIS Exclusion (3.3)(a) | G109: NULL | H109: 1 | I109: 10 | J109: 5.21991502e-05 | K109: 5.21e-06 | L109: 0
B110: 2017-07-03 | C110: 42919.66667 | D110: Margate - Snug | E110: Urban | F110: 7 - STPIS Exclusion (3.3)(a) | G110: NULL | H110: 1 | I110: 10 | J110: 5.21991502e-05 | K110: 5.21e-06 | L110: 0
B111: 2017-07-03 | C111: 42919.67431 | D111: Margate - Snug | E111: Urban | F111: 7 - STPIS Exclusion (3.3)(a) | G111: NULL | H111: 1 | I111: 9 | J111: 4.697923518e-05 | K111: 5.21e-06 | L111: 0
B112: 2017-07-03 | C112: 42919.675 | D112: Margate - Snug | E112: Urban | F112: 7 - STPIS Exclusion (3.3)(a) | G112: NULL | H112: 1 | I112: 8 | J112: 4.175932016e-05 | K112: 5.21e-06 | L112: 0
B113: 2017-07-03 | C113: 42919.67569 | D113: Margate - Snug | E113: Urban | F113: 7 - STPIS Exclusion (3.3)(a) | G113: NULL | H113: 1 | I113: 7 | J113: 3.653940514e-05 | K113: 5.21e-06 | L113: 0
B114: 2017-07-03 | C114: 42919.67639 | D114: Margate - Snug | E114: Urban | F114: 7 - STPIS Exclusion (3.3)(a) | G114: NULL | H114: 1 | I114: 6 | J114: 3.131949012e-05 | K114: 5.21e-06 | L114: 0
B115: 2017-07-03 | C115: 42919.67708 | D115: Margate - Snug | E115: Urban | F115: 7 - STPIS Exclusion (3.3)(a) | G115: NULL | H115: 1 | I115: 5 | J115: 2.60995751e-05 | K115: 5.21e-06 | L115: 0
B116: 2017-07-03 | C116: 42919.67847 | D116: Margate - Snug | E116: Urban | F116: 7 - STPIS Exclusion (3.3)(a) | G116: NULL | H116: 1 | I116: 3 | J116: 1.565974506e-05 | K116: 5.21e-06 | L116: 0
B117: 2017-07-03 | C117: 42919.67917 | D117: Margate - Snug | E117: Urban | F117: 7 - STPIS Exclusion (3.3)(a) | G117: NULL | H117: 1 | I117: 2 | J117: 1.043983004e-05 | K117: 5.21e-06 | L117: 0
B118: 2017-07-03 | C118: 42919.67917 | D118: Margate - Snug | E118: Urban | F118: 7 - STPIS Exclusion (3.3)(a) | G118: NULL | H118: 1 | I118: 10 | J118: 5.21991502e-05 | K118: 5.21e-06 | L118: 0
B119: 2017-07-03 | C119: 42919.67986 | D119: Margate - Snug | E119: Urban | F119: 7 - STPIS Exclusion (3.3)(a) | G119: NULL | H119: 1 | I119: 1 | J119: 5.219915019e-06 | K119: 5.21e-06 | L119: 0
B120: 2017-07-03 | C120: 42919.68125 | D120: Margate - Snug | E120: Urban | F120: 7 - STPIS Exclusion (3.3)(a) | G120: NULL | H120: 1 | I120: 9 | J120: 4.697923518e-05 | K120: 5.21e-06 | L120: 0
B121: 2017-07-03 | C121: 42919.68194 | D121: Margate - Snug | E121: Urban | F121: 7 - STPIS Exclusion (3.3)(a) | G121: NULL | H121: 1 | I121: 8 | J121: 4.175932016e-05 | K121: 5.21e-06 | L121: 0
B122: 2017-07-03 | C122: 42919.68403 | D122: Margate - Snug | E122: Urban | F122: 7 - STPIS Exclusion (3.3)(a) | G122: NULL | H122: 1 | I122: 5 | J122: 2.60995751e-05 | K122: 5.21e-06 | L122: 0
B123: 2017-07-03 | C123: 42919.68472 | D123: Margate - Snug | E123: Urban | F123: 7 - STPIS Exclusion (3.3)(a) | G123: NULL | H123: 1 | I123: 4 | J123: 2.087966008e-05 | K123: 5.21e-06 | L123: 0
B124: 2017-07-03 | C124: 42919.68542 | D124: Margate - Snug | E124: Urban | F124: 7 - STPIS Exclusion (3.3)(a) | G124: NULL | H124: 1 | I124: 3 | J124: 1.565974506e-05 | K124: 5.21e-06 | L124: 0
B125: 2017-07-03 | C125: 42919.70694 | D125: Georgetown | E125: Urban | F125: 7 - STPIS Exclusion (3.3)(a) | G125: NULL | H125: 1 | I125: 242 | J125: 0.001263219435 | K125: 5.21e-06 | L125: 0
B126: 2017-07-03 | C126: 42919.74306 | D126: North Coast | E126: Low Density Rural | F126: 7 - STPIS Exclusion (3.3)(a) | G126: NULL | H126: 1 | I126: 12 | J126: 0.0002705871742 | K126: 2.254e-05 | L126: 0
B127: 2017-07-03 | C127: 42919.75694 | D127: Margate - Snug | E127: Urban | F127: 7 - STPIS Exclusion (3.3)(a) | G127: NULL | H127: 1 | I127: 10 | J127: 5.21991502e-05 | K127: 5.21e-06 | L127: 0
B128: 2017-07-03 | C128: 42919.77917 | D128: Channel Rural | E128: Low Density Rural | F128: Unknown | G128: Unknown | H128: 13 | I128: 128 | J128: 0.03752142148 | K128: 0.00029313 | L128: 0
B129: 2017-07-03 | C129: 42919.78542 | D129: Launceston Urban | E129: Urban | F129: Asset failure | G129: NULL | H129: 1 | I129: 99 | J129: 0.000516771587 | K129: 5.21e-06 | L129: 0
B130: 2017-07-03 | C130: 42919.80694 | D130: Tamar East Rural | E130: Low Density Rural | F130: Asset failure | G130: NULL | H130: 1 | I130: 108 | J130: 0.002435284568 | K130: 2.254e-05 | L130: 0
B131: 2017-07-03 | C131: 42919.80764 | D131: Granton-Magra | E131: High Density Rural | F131: Unknown | G131: Unknown | H131: 2 | I131: 141 | J131: 0.006441885965 | K131: 4.568e-05 | L131: 0
B132: 2017-07-03 | C132: 42919.80764 | D132: Hobart Urban | E132: Urban | F132: Unknown | G132: Unknown | H132: 40 | I132: 141 | J132: 0.02944032071 | K132: 0.00020879 | L132: 0
B133: 2017-07-03 | C133: 42919.81319 | D133: Hobart Urban | E133: Urban | F133: Asset failure | G133: NULL | H133: 96 | I133: 165 | J133: 0.08268345391 | K133: 0.00050111 | L133: 0
B134: 2017-07-03 | C134: 42919.84097 | D134: Hobart Urban | E134: Urban | F134: Asset failure | G134: NULL | H134: 1 | I134: 153 | J134: 0.000798646998 | K134: 5.21e-06 | L134: 0
B135: 2017-07-03 | C135: 42919.85417 | D135: Burnie - Penguin | E135: Urban | F135: 7 - STPIS Exclusion (3.3)(a) | G135: NULL | H135: 1 | I135: 64 | J135: 0.0003340745613 | K135: 5.21e-06 | L135: 0
B136: 2017-07-03 | C136: 42919.87708 | D136: Cressy - Blessington Rural | E136: Low Density Rural | F136: Unknown | G136: Unknown | H136: 7 | I136: 147 | J136: 0.02320285018 | K136: 0.00015784 | L136: 0
B137: 2017-07-04 | C137: 42920.01944 | D137: Far North East Rural | E137: Low Density Rural | F137: Unknown | G137: Unknown | H137: 104 | I137: 18 | J137: 0.04221159917 | K137: 0.00234508 | L137: 0
B138: 2017-07-04 | C138: 42920.01944 | D138: St Helens | E138: Urban | F138: Unknown | G138: Unknown | H138: 1096 | I138: 18 | J138: 0.1029784835 | K138: 0.00572102 | L138: 0
B139: 2017-07-04 | C139: 42920.01944 | D139: St Helens Rural | E139: Low Density Rural | F139: Unknown | G139: Unknown | H139: 2049 | I139: 18 | J139: 0.8316496798 | K139: 0.04620275 | L139: 0
B140: 2017-07-04 | C140: 42920.01944 | D140: St Marys | E140: High Density Rural | F140: Unknown | G140: Unknown | H140: 126 | I140: 18 | J140: 0.05180921053 | K140: 0.00287828 | L140: 0
B141: 2017-07-04 | C141: 42920.01944 | D141: Triabunna - St Marys Rural | E141: Low Density Rural | F141: Unknown | G141: Unknown | H141: 25 | I141: 18 | J141: 0.01014701903 | K141: 0.00056372 | L141: 0
B142: 2017-07-04 | C142: 42920.03681 | D142: Far North East Rural | E142: Low Density Rural | F142: Unknown | G142: Unknown | H142: 104 | I142: 15 | J142: 0.03517633264 | K142: 0.00234508 | L142: 0
B143: 2017-07-04 | C143: 42920.03681 | D143: St Helens | E143: Urban | F143: Unknown | G143: Unknown | H143: 1096 | I143: 15 | J143: 0.08581540293 | K143: 0.00572102 | L143: 0
B144: 2017-07-04 | C144: 42920.03681 | D144: St Helens Rural | E144: Low Density Rural | F144: Unknown | G144: Unknown | H144: 2049 | I144: 15 | J144: 0.6930413998 | K144: 0.04620275 | L144: 0
B145: 2017-07-04 | C145: 42920.03681 | D145: St Marys | E145: High Density Rural | F145: Unknown | G145: Unknown | H145: 126 | I145: 15 | J145: 0.04317434211 | K145: 0.00287828 | L145: 0
B146: 2017-07-04 | C146: 42920.03681 | D146: Triabunna - St Marys Rural | E146: Low Density Rural | F146: Unknown | G146: Unknown | H146: 25 | I146: 15 | J146: 0.008455849193 | K146: 0.00056372 | L146: 0
B147: 2017-07-04 | C147: 42920.1125 | D147: Cradle Coast | E147: High Density Rural | F147: Animal | G147: Animal impact | H147: 12 | I147: 106 | J147: 0.02905701754 | K147: 0.00027412 | L147: 0
B148: 2017-07-04 | C148: 42920.33403 | D148: Pirates Bay - Nubeena - Port Arthur | E148: High Density Rural | F148: Weather | G148: NULL | H148: 4 | I148: 175 | J148: 0.01599049708 | K148: 9.137e-05 | L148: 0
B149: 2017-07-04 | C149: 42920.34306 | D149: Launceston Urban | E149: Urban | F149: Asset failure | G149: NULL | H149: 1 | I149: 66 | J149: 0.0003445143913 | K149: 5.21e-06 | L149: 0
B150: 2017-07-04 | C150: 42920.36389 | D150: Burnie Rural | E150: Low Density Rural | F150: Planned | G150: NULL | H150: 47 | I150: 371 | J150: 0.393185713 | K150: 0.00105979 | L150: 0
B151: 2017-07-04 | C151: 42920.36389 | D151: Margate - Snug | E151: Urban | F151: Unknown | G151: Unknown | H151: 1 | I151: 196 | J151: 0.001023103344 | K151: 5.21e-06 | L151: 0
B152: 2017-07-04 | C152: 42920.375 | D152: Hobart | E152: High Density Commercial | F152: Overloads | G152: NULL | H152: 1 | I152: 80 | J152: 0.01773639286 | K152: 0.0002217 | L152: 0
B153: 2017-07-04 | C153: 42920.375 | D153: Kingston - Blackmans Bay | E153: Urban | F153: Planned | G153: NULL | H153: 37 | I153: 270 | J153: 0.05214695105 | K153: 0.00019313 | L153: 0
B154: 2017-07-04 | C154: 42920.375 | D154: North East Rural | E154: Low Density Rural | F154: Planned | G154: NULL | H154: 2 | I154: 230 | J154: 0.01037250834 | K154: 4.509e-05 | L154: 0
B155: 2017-07-04 | C155: 42920.375 | D155: Tamar East Rural | E155: Low Density Rural | F155: Planned | G155: NULL | H155: 1 | I155: 230 | J155: 0.005186254172 | K155: 2.254e-05 | L155: 0
B156: 2017-07-04 | C156: 42920.37847 | D156: Midway Point | E156: Urban | F156: Planned | G156: NULL | H156: 27 | I156: 325 | J156: 0.0458047543 | K156: 0.00014093 | L156: 0
B157: 2017-07-04 | C157: 42920.38542 | D157: Midway Point | E157: Urban | F157: Network business | G157: Switching or protection error | H157: 1 | I157: 685 | J157: 0.003575641789 | K157: 5.21e-06 | L157: 0
B158: 2017-07-04 | C158: 42920.38889 | D158: Channel Rural | E158: Low Density Rural | F158: Planned | G158: NULL | H158: 25 | I158: 200 | J158: 0.1127446559 | K158: 0.00056372 | L158: 0
B159: 2017-07-04 | C159: 42920.38889 | D159: Huonville - Cygnet | E159: High Density Rural | F159: Planned | G159: NULL | H159: 6 | I159: 200 | J159: 0.0274122807 | K159: 0.00013706 | L159: 0
B160: 2017-07-04 | C160: 42920.38889 | D160: Triabunna - St Marys Rural | E160: Low Density Rural | F160: Planned | G160: NULL | H160: 46 | I160: 295 | J160: 0.3059889961 | K160: 0.00103725 | L160: 0
B161: 2017-07-04 | C161: 42920.39236 | D161: Channel Rural | E161: Low Density Rural | F161: Planned | G161: NULL | H161: 17 | I161: 215 | J161: 0.08241634347 | K161: 0.00038333 | L161: 0
B162: 2017-07-04 | C162: 42920.40278 | D162: North East Rural | E162: Low Density Rural | F162: Planned | G162: NULL | H162: 46 | I162: 320 | J162: 0.331920267 | K162: 0.00103725 | L162: 0
B163: 2017-07-04 | C163: 42920.40347 | D163: Devon Hills-Evandale | E163: High Density Rural | F163: Planned | G163: NULL | H163: 1 | I163: 81 | J163: 0.001850328947 | K163: 2.284e-05 | L163: 0
B164: 2017-07-04 | C164: 42920.40903 | D164: North West | E164: Low Density Rural | F164: Weather | G164: NULL | H164: 1 | I164: 199 | J164: 0.004487237305 | K164: 2.254e-05 | L164: 0
B165: 2017-07-04 | C165: 42920.42083 | D165: North West | E165: Low Density Rural | F165: Asset failure | G165: NULL | H165: 3 | I165: 9 | J165: 0.0006088211419 | K165: 6.764e-05 | L165: 0
B166: 2017-07-04 | C166: 42920.42708 | D166: Tamar West | E166: Low Density Rural | F166: Planned | G166: NULL | H166: 5 | I166: 190 | J166: 0.02142148462 | K166: 0.00011274 | L166: 0
